Workbook

Sheet 01
E1: LINDE 01 | K1: =VLOOKUP($N$4,$B:$H,7,FALSE) -> 2
A2: Lp. | B2: DATA | D2: GODZINA | E2: PRACOWNIK | F2: Stan motogodzin | G2: ilość zatankowanego paliwa | K2: =LOOKUP(DATEVALUE($O$4),$C:$C,A:A) -> 38
A3: =IF(ISERROR(MATCH(ROW()-2,Arkusz1!$C:$C,0)),"",INDEX(Arkusz1!C:C,MATCH(ROW()-2,Arkusz1!$C:$C,0))) -> 1 | B3: =IF(ISERROR(MATCH(ROW()-2,Arkusz1!$C:$C,0)),"",INDEX('import danych'!$A:$A,MATCH(ROW()-2,Arkusz1!$C:$C,0)+5)) ->  | C3: =IF(A3="","",DATEVALUE(B3)) ->  | D3: =IF(ISERROR(MATCH(ROW()-2,Arkusz1!$C:$C,0)),"",INDEX('import danych'!$B:$B,MATCH(ROW()-2,Arkusz1!$C:$C,0)+5)) ->  | E3: =IF(ISERROR(MATCH(ROW()-2,Arkusz1!$C:$C,0)),"",INDEX(Arkusz1!I:I,MATCH(ROW()-2,Arkusz1!$C:$C,0))) -> PRACOWNIK | F3: =IF(ISERROR(MATCH(ROW()-2,Arkusz1!$C:$C,0)),"",INDEX('import danych'!$H:$H,MATCH(ROW()-2,Arkusz1!$C:$C,0)+5)) ->  | G3: =IF(ISERROR(MATCH(ROW()-2,Arkusz1!$C:$C,0)),"",INDEX('import danych'!$L:$L,MATCH(ROW()-2,Arkusz1!$C:$C,0)+5)) ->  | H3: =A3 -> 1 | N3: Data OD: | O3: Data DO:
A4: =IF(ISERROR(MATCH(ROW()-2,Arkusz1!$C:$C,0)),"",INDEX(Arkusz1!C:C,MATCH(ROW()-2,Arkusz1!$C:$C,0))) -> 2 | B4: =IF(ISERROR(MATCH(ROW()-2,Arkusz1!$C:$C,0)),"",INDEX('import danych'!$A:$A,MATCH(ROW()-2,Arkusz1!$C:$C,0)+5)) -> 2012-09-20 | C4: =IF(A4="","",DATEVALUE(B4)) -> 41172 | D4: =IF(ISERROR(MATCH(ROW()-2,Arkusz1!$C:$C,0)),"",INDEX('import danych'!$B:$B,MATCH(ROW()-2,Arkusz1!$C:$C,0)+5)) -> 13:24 | E4: =IF(ISERROR(MATCH(ROW()-2,Arkusz1!$C:$C,0)),"",INDEX(Arkusz1!I:I,MATCH(ROW()-2,Arkusz1!$C:$C,0))) -> TEST 1 | F4: =IF(ISERROR(MATCH(ROW()-2,Arkusz1!$C:$C,0)),"",INDEX('import danych'!$H:$H,MATCH(ROW()-2,Arkusz1!$C:$C,0)+5)) -> 13319 | G4: =IF(ISERROR(MATCH(ROW()-2,Arkusz1!$C:$C,0)),"",INDEX('import danych'!$L:$L,MATCH(ROW()-2,Arkusz1!$C:$C,0)+5)) -> 1.55 | H4: =A4 -> 2 | J4: Raport 01 | N4: 2012-09-20 | O4: 2012-11-01
A5: =IF(ISERROR(MATCH(ROW()-2,Arkusz1!$C:$C,0)),"",INDEX(Arkusz1!C:C,MATCH(ROW()-2,Arkusz1!$C:$C,0))) -> 3 | B5: =IF(ISERROR(MATCH(ROW()-2,Arkusz1!$C:$C,0)),"",INDEX('import danych'!$A:$A,MATCH(ROW()-2,Arkusz1!$C:$C,0)+5)) -> 2012-09-21 | C5: 41173 | D5: =IF(ISERROR(MATCH(ROW()-2,Arkusz1!$C:$C,0)),"",INDEX('import danych'!$B:$B,MATCH(ROW()-2,Arkusz1!$C:$C,0)+5)) -> 13:08 | E5: =IF(ISERROR(MATCH(ROW()-2,Arkusz1!$C:$C,0)),"",INDEX(Arkusz1!I:I,MATCH(ROW()-2,Arkusz1!$C:$C,0))) ->  | F5: =IF(ISERROR(MATCH(ROW()-2,Arkusz1!$C:$C,0)),"",INDEX('import danych'!$H:$H,MATCH(ROW()-2,Arkusz1!$C:$C,0)+5)) -> 13337 | G5: =IF(ISERROR(MATCH(ROW()-2,Arkusz1!$C:$C,0)),"",INDEX('import danych'!$L:$L,MATCH(ROW()-2,Arkusz1!$C:$C,0)+5)) -> 44.48 | H5: 3
A6: =IF(ISERROR(MATCH(ROW()-2,Arkusz1!$C:$C,0)),"",INDEX(Arkusz1!C:C,MATCH(ROW()-2,Arkusz1!$C:$C,0))) -> 4 | B6: =IF(ISERROR(MATCH(ROW()-2,Arkusz1!$C:$C,0)),"",INDEX('import danych'!$A:$A,MATCH(ROW()-2,Arkusz1!$C:$C,0)+5)) -> 2012-09-22 | C6: 41174 | D6: =IF(ISERROR(MATCH(ROW()-2,Arkusz1!$C:$C,0)),"",INDEX('import danych'!$B:$B,MATCH(ROW()-2,Arkusz1!$C:$C,0)+5)) -> 12:54 | E6: =IF(ISERROR(MATCH(ROW()-2,Arkusz1!$C:$C,0)),"",INDEX(Arkusz1!I:I,MATCH(ROW()-2,Arkusz1!$C:$C,0))) ->  | F6: =IF(ISERROR(MATCH(ROW()-2,Arkusz1!$C:$C,0)),"",INDEX('import danych'!$H:$H,MATCH(ROW()-2,Arkusz1!$C:$C,0)+5)) -> 13348 | G6: =IF(ISERROR(MATCH(ROW()-2,Arkusz1!$C:$C,0)),"",INDEX('import danych'!$L:$L,MATCH(ROW()-2,Arkusz1!$C:$C,0)+5)) -> 31.27 | H6: 4 | J6: Lp. | K6: Data | L6: Godzina | M6: Stan motogodzin | N6: Zatankowane paliwo | O6: Pracownik
A7: =IF(ISERROR(MATCH(ROW()-2,Arkusz1!$C:$C,0)),"",INDEX(Arkusz1!C:C,MATCH(ROW()-2,Arkusz1!$C:$C,0))) -> 5 | B7: =IF(ISERROR(MATCH(ROW()-2,Arkusz1!$C:$C,0)),"",INDEX('import danych'!$A:$A,MATCH(ROW()-2,Arkusz1!$C:$C,0)+5)) -> 2012-09-24 | C7: 41176 | D7: =IF(ISERROR(MATCH(ROW()-2,Arkusz1!$C:$C,0)),"",INDEX('import danych'!$B:$B,MATCH(ROW()-2,Arkusz1!$C:$C,0)+5)) -> 12:36 | E7: =IF(ISERROR(MATCH(ROW()-2,Arkusz1!$C:$C,0)),"",INDEX(Arkusz1!I:I,MATCH(ROW()-2,Arkusz1!$C:$C,0))) ->  | F7: =IF(ISERROR(MATCH(ROW()-2,Arkusz1!$C:$C,0)),"",INDEX('import danych'!$H:$H,MATCH(ROW()-2,Arkusz1!$C:$C,0)+5)) -> 13354 | G7: =IF(ISERROR(MATCH(ROW()-2,Arkusz1!$C:$C,0)),"",INDEX('import danych'!$L:$L,MATCH(ROW()-2,Arkusz1!$C:$C,0)+5)) -> 14.63 | H7: 5 | J7: =IF(K7="","",ROW()-6) -> 1 | K7: =LOOKUP($K$1,A:A,B:B) -> 2012-09-20 | L7: =LOOKUP(K1,A:A,D:D) -> 13:24 | M7: =LOOKUP($K1,$A:$A,F:F) -> 13319 | N7: =LOOKUP($K$1,$A:$A,$G:$G) -> 1.55 | O7: 1
A8: =IF(ISERROR(MATCH(ROW()-2,Arkusz1!$C:$C,0)),"",INDEX(Arkusz1!C:C,MATCH(ROW()-2,Arkusz1!$C:$C,0))) -> 6 | B8: =IF(ISERROR(MATCH(ROW()-2,Arkusz1!$C:$C,0)),"",INDEX('import danych'!$A:$A,MATCH(ROW()-2,Arkusz1!$C:$C,0)+5)) -> 2012-09-25 | C8: 41177 | D8: =IF(ISERROR(MATCH(ROW()-2,Arkusz1!$C:$C,0)),"",INDEX('import danych'!$B:$B,MATCH(ROW()-2,Arkusz1!$C:$C,0)+5)) -> 08:53 | E8: =IF(ISERROR(MATCH(ROW()-2,Arkusz1!$C:$C,0)),"",INDEX(Arkusz1!I:I,MATCH(ROW()-2,Arkusz1!$C:$C,0))) ->  | F8: =IF(ISERROR(MATCH(ROW()-2,Arkusz1!$C:$C,0)),"",INDEX('import danych'!$H:$H,MATCH(ROW()-2,Arkusz1!$C:$C,0)+5)) -> 13371 | G8: =IF(ISERROR(MATCH(ROW()-2,Arkusz1!$C:$C,0)),"",INDEX('import danych'!$L:$L,MATCH(ROW()-2,Arkusz1!$C:$C,0)+5)) -> 43.92 | H8: 6 | J8: =IF(J7>$K$2-$K$1,"",J7+1) -> 2 | K8: =IF($J8="","",LOOKUP($K$1+$J7,$A:$A,$B:$B)) -> 2012-09-21 | L8: =IF($J8="","",LOOKUP($K$1+$J7,$A:$A,$D:$D)) -> 13:08 | M8: =IF($J8="","",LOOKUP($K$1+$J7,$A:$A,$F:$F)) -> 13337 | N8: =IF($J8="","",LOOKUP($K$1+$J7,$A:$A,$G:$G)) -> 44.48 | O8: 2
A9: =IF(ISERROR(MATCH(ROW()-2,Arkusz1!$C:$C,0)),"",INDEX(Arkusz1!C:C,MATCH(ROW()-2,Arkusz1!$C:$C,0))) -> 7 | B9: =IF(ISERROR(MATCH(ROW()-2,Arkusz1!$C:$C,0)),"",INDEX('import danych'!$A:$A,MATCH(ROW()-2,Arkusz1!$C:$C,0)+5)) -> 2012-09-26 | C9: 41178 | D9: =IF(ISERROR(MATCH(ROW()-2,Arkusz1!$C:$C,0)),"",INDEX('import danych'!$B:$B,MATCH(ROW()-2,Arkusz1!$C:$C,0)+5)) -> 09:36 | E9: =IF(ISERROR(MATCH(ROW()-2,Arkusz1!$C:$C,0)),"",INDEX(Arkusz1!I:I,MATCH(ROW()-2,Arkusz1!$C:$C,0))) ->  | F9: =IF(ISERROR(MATCH(ROW()-2,Arkusz1!$C:$C,0)),"",INDEX('import danych'!$H:$H,MATCH(ROW()-2,Arkusz1!$C:$C,0)+5)) -> 13386 | G9: =IF(ISERROR(MATCH(ROW()-2,Arkusz1!$C:$C,0)),"",INDEX('import danych'!$L:$L,MATCH(ROW()-2,Arkusz1!$C:$C,0)+5)) -> 41.02 | H9: 7 | J9: 3 | K9: 2012-09-22 | L9: 12:54 | M9: 13348 | N9: 31.27 | O9: 3 | Q9: Ilość wykonanych motogodzin: | S9: =MAX(M:M)-MIN(M:M) -> 555
A10: =IF(ISERROR(MATCH(ROW()-2,Arkusz1!$C:$C,0)),"",INDEX(Arkusz1!C:C,MATCH(ROW()-2,Arkusz1!$C:$C,0))) -> 8 | B10: =IF(ISERROR(MATCH(ROW()-2,Arkusz1!$C:$C,0)),"",INDEX('import danych'!$A:$A,MATCH(ROW()-2,Arkusz1!$C:$C,0)+5)) -> 2012-09-27 | C10: 41179 | D10: =IF(ISERROR(MATCH(ROW()-2,Arkusz1!$C:$C,0)),"",INDEX('import danych'!$B:$B,MATCH(ROW()-2,Arkusz1!$C:$C,0)+5)) -> 11:32 | E10: =IF(ISERROR(MATCH(ROW()-2,Arkusz1!$C:$C,0)),"",INDEX(Arkusz1!I:I,MATCH(ROW()-2,Arkusz1!$C:$C,0))) ->  | F10: =IF(ISERROR(MATCH(ROW()-2,Arkusz1!$C:$C,0)),"",INDEX('import danych'!$H:$H,MATCH(ROW()-2,Arkusz1!$C:$C,0)+5)) -> 13398 | G10: =IF(ISERROR(MATCH(ROW()-2,Arkusz1!$C:$C,0)),"",INDEX('import danych'!$L:$L,MATCH(ROW()-2,Arkusz1!$C:$C,0)+5)) -> 32.57 | H10: 8 | J10: 4 | K10: 2012-09-24 | L10: 12:36 | M10: 13354 | N10: 14.63 | O10: 4 | Q10: Ilość zatankowanego paliwa: | S10: =SUM(N:N) -> 1494.09
A11: =IF(ISERROR(MATCH(ROW()-2,Arkusz1!$C:$C,0)),"",INDEX(Arkusz1!C:C,MATCH(ROW()-2,Arkusz1!$C:$C,0))) -> 9 | B11: =IF(ISERROR(MATCH(ROW()-2,Arkusz1!$C:$C,0)),"",INDEX('import danych'!$A:$A,MATCH(ROW()-2,Arkusz1!$C:$C,0)+5)) -> 2012-09-28 | C11: 41180 | D11: =IF(ISERROR(MATCH(ROW()-2,Arkusz1!$C:$C,0)),"",INDEX('import danych'!$B:$B,MATCH(ROW()-2,Arkusz1!$C:$C,0)+5)) -> 10:11 | E11: =IF(ISERROR(MATCH(ROW()-2,Arkusz1!$C:$C,0)),"",INDEX(Arkusz1!I:I,MATCH(ROW()-2,Arkusz1!$C:$C,0))) ->  | F11: =IF(ISERROR(MATCH(ROW()-2,Arkusz1!$C:$C,0)),"",INDEX('import danych'!$H:$H,MATCH(ROW()-2,Arkusz1!$C:$C,0)+5)) -> 13417 | G11: =IF(ISERROR(MATCH(ROW()-2,Arkusz1!$C:$C,0)),"",INDEX('import danych'!$L:$L,MATCH(ROW()-2,Arkusz1!$C:$C,0)+5)) -> 52.8 | H11: 9 | J11: 5 | K11: 2012-09-25 | L11: 08:53 | M11: 13371 | N11: 43.92 | O11: 5 | Q11: Średnie zużycie paliwa: | S11: =S10/S9 -> 2.692
A12: =IF(ISERROR(MATCH(ROW()-2,Arkusz1!$C:$C,0)),"",INDEX(Arkusz1!C:C,MATCH(ROW()-2,Arkusz1!$C:$C,0))) -> 10 | B12: =IF(ISERROR(MATCH(ROW()-2,Arkusz1!$C:$C,0)),"",INDEX('import danych'!$A:$A,MATCH(ROW()-2,Arkusz1!$C:$C,0)+5)) -> 2012-09-30 | C12: 41182 | D12: =IF(ISERROR(MATCH(ROW()-2,Arkusz1!$C:$C,0)),"",INDEX('import danych'!$B:$B,MATCH(ROW()-2,Arkusz1!$C:$C,0)+5)) -> 08:45 | E12: =IF(ISERROR(MATCH(ROW()-2,Arkusz1!$C:$C,0)),"",INDEX(Arkusz1!I:I,MATCH(ROW()-2,Arkusz1!$C:$C,0))) ->  | F12: =IF(ISERROR(MATCH(ROW()-2,Arkusz1!$C:$C,0)),"",INDEX('import danych'!$H:$H,MATCH(ROW()-2,Arkusz1!$C:$C,0)+5)) -> 13435 | G12: =IF(ISERROR(MATCH(ROW()-2,Arkusz1!$C:$C,0)),"",INDEX('import danych'!$L:$L,MATCH(ROW()-2,Arkusz1!$C:$C,0)+5)) -> 50.82 | H12: 10 | J12: 6 | K12: 2012-09-26 | L12: 09:36 | M12: 13386 | N12: 41.02 | O12: 6
A13: =IF(ISERROR(MATCH(ROW()-2,Arkusz1!$C:$C,0)),"",INDEX(Arkusz1!C:C,MATCH(ROW()-2,Arkusz1!$C:$C,0))) -> 11 | B13: =IF(ISERROR(MATCH(ROW()-2,Arkusz1!$C:$C,0)),"",INDEX('import danych'!$A:$A,MATCH(ROW()-2,Arkusz1!$C:$C,0)+5)) -> 2012-10-01 | C13: 41183 | D13: =IF(ISERROR(MATCH(ROW()-2,Arkusz1!$C:$C,0)),"",INDEX('import danych'!$B:$B,MATCH(ROW()-2,Arkusz1!$C:$C,0)+5)) -> 18:56 | E13: =IF(ISERROR(MATCH(ROW()-2,Arkusz1!$C:$C,0)),"",INDEX(Arkusz1!I:I,MATCH(ROW()-2,Arkusz1!$C:$C,0))) ->  | F13: =IF(ISERROR(MATCH(ROW()-2,Arkusz1!$C:$C,0)),"",INDEX('import danych'!$H:$H,MATCH(ROW()-2,Arkusz1!$C:$C,0)+5)) -> 13455 | G13: =IF(ISERROR(MATCH(ROW()-2,Arkusz1!$C:$C,0)),"",INDEX('import danych'!$L:$L,MATCH(ROW()-2,Arkusz1!$C:$C,0)+5)) -> 48.04 | H13: 11 | J13: 7 | K13: 2012-09-27 | L13: 11:32 | M13: 13398 | N13: 32.57 | O13: 7
A14: =IF(ISERROR(MATCH(ROW()-2,Arkusz1!$C:$C,0)),"",INDEX(Arkusz1!C:C,MATCH(ROW()-2,Arkusz1!$C:$C,0))) -> 12 | B14: =IF(ISERROR(MATCH(ROW()-2,Arkusz1!$C:$C,0)),"",INDEX('import danych'!$A:$A,MATCH(ROW()-2,Arkusz1!$C:$C,0)+5)) -> 2012-10-02 | C14: 41184 | D14: =IF(ISERROR(MATCH(ROW()-2,Arkusz1!$C:$C,0)),"",INDEX('import danych'!$B:$B,MATCH(ROW()-2,Arkusz1!$C:$C,0)+5)) -> 13:02 | E14: =IF(ISERROR(MATCH(ROW()-2,Arkusz1!$C:$C,0)),"",INDEX(Arkusz1!I:I,MATCH(ROW()-2,Arkusz1!$C:$C,0))) ->  | F14: =IF(ISERROR(MATCH(ROW()-2,Arkusz1!$C:$C,0)),"",INDEX('import danych'!$H:$H,MATCH(ROW()-2,Arkusz1!$C:$C,0)+5)) -> 13463 | G14: =IF(ISERROR(MATCH(ROW()-2,Arkusz1!$C:$C,0)),"",INDEX('import danych'!$L:$L,MATCH(ROW()-2,Arkusz1!$C:$C,0)+5)) -> 23.7 | H14: 12 | J14: 8 | K14: 2012-09-28 | L14: 10:11 | M14: 13417 | N14: 52.8 | O14: 8
A15: =IF(ISERROR(MATCH(ROW()-2,Arkusz1!$C:$C,0)),"",INDEX(Arkusz1!C:C,MATCH(ROW()-2,Arkusz1!$C:$C,0))) -> 13 | B15: =IF(ISERROR(MATCH(ROW()-2,Arkusz1!$C:$C,0)),"",INDEX('import danych'!$A:$A,MATCH(ROW()-2,Arkusz1!$C:$C,0)+5)) -> 2012-10-03 | C15: 41185 | D15: =IF(ISERROR(MATCH(ROW()-2,Arkusz1!$C:$C,0)),"",INDEX('import danych'!$B:$B,MATCH(ROW()-2,Arkusz1!$C:$C,0)+5)) -> 13:15 | E15: =IF(ISERROR(MATCH(ROW()-2,Arkusz1!$C:$C,0)),"",INDEX(Arkusz1!I:I,MATCH(ROW()-2,Arkusz1!$C:$C,0))) ->  | F15: =IF(ISERROR(MATCH(ROW()-2,Arkusz1!$C:$C,0)),"",INDEX('import danych'!$H:$H,MATCH(ROW()-2,Arkusz1!$C:$C,0)+5)) -> 13475 | G15: =IF(ISERROR(MATCH(ROW()-2,Arkusz1!$C:$C,0)),"",INDEX('import danych'!$L:$L,MATCH(ROW()-2,Arkusz1!$C:$C,0)+5)) -> 34.78 | H15: 13 | J15: 9 | K15: 2012-09-30 | L15: 08:45 | M15: 13435 | N15: 50.82 | O15: 9
A16: =IF(ISERROR(MATCH(ROW()-2,Arkusz1!$C:$C,0)),"",INDEX(Arkusz1!C:C,MATCH(ROW()-2,Arkusz1!$C:$C,0))) -> 14 | B16: =IF(ISERROR(MATCH(ROW()-2,Arkusz1!$C:$C,0)),"",INDEX('import danych'!$A:$A,MATCH(ROW()-2,Arkusz1!$C:$C,0)+5)) -> 2012-10-04 | C16: 41186 | D16: =IF(ISERROR(MATCH(ROW()-2,Arkusz1!$C:$C,0)),"",INDEX('import danych'!$B:$B,MATCH(ROW()-2,Arkusz1!$C:$C,0)+5)) -> 13:21 | E16: =IF(ISERROR(MATCH(ROW()-2,Arkusz1!$C:$C,0)),"",INDEX(Arkusz1!I:I,MATCH(ROW()-2,Arkusz1!$C:$C,0))) ->  | F16: =IF(ISERROR(MATCH(ROW()-2,Arkusz1!$C:$C,0)),"",INDEX('import danych'!$H:$H,MATCH(ROW()-2,Arkusz1!$C:$C,0)+5)) -> 13493 | G16: =IF(ISERROR(MATCH(ROW()-2,Arkusz1!$C:$C,0)),"",INDEX('import danych'!$L:$L,MATCH(ROW()-2,Arkusz1!$C:$C,0)+5)) -> 49.26 | H16: 14 | J16: 10 | K16: 2012-10-01 | L16: 18:56 | M16: 13455 | N16: 48.04 | O16: 10
A17: =IF(ISERROR(MATCH(ROW()-2,Arkusz1!$C:$C,0)),"",INDEX(Arkusz1!C:C,MATCH(ROW()-2,Arkusz1!$C:$C,0))) -> 15 | B17: =IF(ISERROR(MATCH(ROW()-2,Arkusz1!$C:$C,0)),"",INDEX('import danych'!$A:$A,MATCH(ROW()-2,Arkusz1!$C:$C,0)+5)) -> 2012-10-05 | C17: 41187 | D17: =IF(ISERROR(MATCH(ROW()-2,Arkusz1!$C:$C,0)),"",INDEX('import danych'!$B:$B,MATCH(ROW()-2,Arkusz1!$C:$C,0)+5)) -> 13:07 | E17: =IF(ISERROR(MATCH(ROW()-2,Arkusz1!$C:$C,0)),"",INDEX(Arkusz1!I:I,MATCH(ROW()-2,Arkusz1!$C:$C,0))) ->  | F17: =IF(ISERROR(MATCH(ROW()-2,Arkusz1!$C:$C,0)),"",INDEX('import danych'!$H:$H,MATCH(ROW()-2,Arkusz1!$C:$C,0)+5)) -> 13509 | G17: =IF(ISERROR(MATCH(ROW()-2,Arkusz1!$C:$C,0)),"",INDEX('import danych'!$L:$L,MATCH(ROW()-2,Arkusz1!$C:$C,0)+5)) -> 45.18 | H17: 15 | J17: 11 | K17: 2012-10-02 | L17: 13:02 | M17: 13463 | N17: 23.7 | O17: 11
A18: =IF(ISERROR(MATCH(ROW()-2,Arkusz1!$C:$C,0)),"",INDEX(Arkusz1!C:C,MATCH(ROW()-2,Arkusz1!$C:$C,0))) -> 16 | B18: =IF(ISERROR(MATCH(ROW()-2,Arkusz1!$C:$C,0)),"",INDEX('import danych'!$A:$A,MATCH(ROW()-2,Arkusz1!$C:$C,0)+5)) -> 2012-10-06 | C18: 41188 | D18: =IF(ISERROR(MATCH(ROW()-2,Arkusz1!$C:$C,0)),"",INDEX('import danych'!$B:$B,MATCH(ROW()-2,Arkusz1!$C:$C,0)+5)) -> 12:58 | E18: =IF(ISERROR(MATCH(ROW()-2,Arkusz1!$C:$C,0)),"",INDEX(Arkusz1!I:I,MATCH(ROW()-2,Arkusz1!$C:$C,0))) ->  | F18: =IF(ISERROR(MATCH(ROW()-2,Arkusz1!$C:$C,0)),"",INDEX('import danych'!$H:$H,MATCH(ROW()-2,Arkusz1!$C:$C,0)+5)) -> 13523 | G18: =IF(ISERROR(MATCH(ROW()-2,Arkusz1!$C:$C,0)),"",INDEX('import danych'!$L:$L,MATCH(ROW()-2,Arkusz1!$C:$C,0)+5)) -> 35.3 | H18: 16 | J18: 12 | K18: 2012-10-03 | L18: 13:15 | M18: 13475 | N18: 34.78 | O18: 12
A19: =IF(ISERROR(MATCH(ROW()-2,Arkusz1!$C:$C,0)),"",INDEX(Arkusz1!C:C,MATCH(ROW()-2,Arkusz1!$C:$C,0))) -> 17 | B19: =IF(ISERROR(MATCH(ROW()-2,Arkusz1!$C:$C,0)),"",INDEX('import danych'!$A:$A,MATCH(ROW()-2,Arkusz1!$C:$C,0)+5)) -> 2012-10-08 | C19: 41190 | D19: =IF(ISERROR(MATCH(ROW()-2,Arkusz1!$C:$C,0)),"",INDEX('import danych'!$B:$B,MATCH(ROW()-2,Arkusz1!$C:$C,0)+5)) -> 13:19 | E19: =IF(ISERROR(MATCH(ROW()-2,Arkusz1!$C:$C,0)),"",INDEX(Arkusz1!I:I,MATCH(ROW()-2,Arkusz1!$C:$C,0))) ->  | F19: =IF(ISERROR(MATCH(ROW()-2,Arkusz1!$C:$C,0)),"",INDEX('import danych'!$H:$H,MATCH(ROW()-2,Arkusz1!$C:$C,0)+5)) -> 13532 | G19: =IF(ISERROR(MATCH(ROW()-2,Arkusz1!$C:$C,0)),"",INDEX('import danych'!$L:$L,MATCH(ROW()-2,Arkusz1!$C:$C,0)+5)) -> 23.29 | H19: 17 | J19: 13 | K19: 2012-10-04 | L19: 13:21 | M19: 13493 | N19: 49.26 | O19: 13
A20: =IF(ISERROR(MATCH(ROW()-2,Arkusz1!$C:$C,0)),"",INDEX(Arkusz1!C:C,MATCH(ROW()-2,Arkusz1!$C:$C,0))) -> 18 | B20: =IF(ISERROR(MATCH(ROW()-2,Arkusz1!$C:$C,0)),"",INDEX('import danych'!$A:$A,MATCH(ROW()-2,Arkusz1!$C:$C,0)+5)) -> 2012-10-09 | C20: 41191 | D20: =IF(ISERROR(MATCH(ROW()-2,Arkusz1!$C:$C,0)),"",INDEX('import danych'!$B:$B,MATCH(ROW()-2,Arkusz1!$C:$C,0)+5)) -> 11:33 | E20: =IF(ISERROR(MATCH(ROW()-2,Arkusz1!$C:$C,0)),"",INDEX(Arkusz1!I:I,MATCH(ROW()-2,Arkusz1!$C:$C,0))) ->  | F20: =IF(ISERROR(MATCH(ROW()-2,Arkusz1!$C:$C,0)),"",INDEX('import danych'!$H:$H,MATCH(ROW()-2,Arkusz1!$C:$C,0)+5)) -> 13550 | G20: =IF(ISERROR(MATCH(ROW()-2,Arkusz1!$C:$C,0)),"",INDEX('import danych'!$L:$L,MATCH(ROW()-2,Arkusz1!$C:$C,0)+5)) -> 45.86 | H20: 18 | J20: 14 | K20: 2012-10-05 | L20: 13:07 | M20: 13509 | N20: 45.18 | O20: 14
A21: =IF(ISERROR(MATCH(ROW()-2,Arkusz1!$C:$C,0)),"",INDEX(Arkusz1!C:C,MATCH(ROW()-2,Arkusz1!$C:$C,0))) -> 19 | B21: =IF(ISERROR(MATCH(ROW()-2,Arkusz1!$C:$C,0)),"",INDEX('import danych'!$A:$A,MATCH(ROW()-2,Arkusz1!$C:$C,0)+5)) -> 2012-10-10 | C21: 41192 | D21: =IF(ISERROR(MATCH(ROW()-2,Arkusz1!$C:$C,0)),"",INDEX('import danych'!$B:$B,MATCH(ROW()-2,Arkusz1!$C:$C,0)+5)) -> 08:45 | E21: =IF(ISERROR(MATCH(ROW()-2,Arkusz1!$C:$C,0)),"",INDEX(Arkusz1!I:I,MATCH(ROW()-2,Arkusz1!$C:$C,0))) ->  | F21: =IF(ISERROR(MATCH(ROW()-2,Arkusz1!$C:$C,0)),"",INDEX('import danych'!$H:$H,MATCH(ROW()-2,Arkusz1!$C:$C,0)+5)) -> 13565 | G21: =IF(ISERROR(MATCH(ROW()-2,Arkusz1!$C:$C,0)),"",INDEX('import danych'!$L:$L,MATCH(ROW()-2,Arkusz1!$C:$C,0)+5)) -> 45.59 | H21: 19 | J21: 15 | K21: 2012-10-06 | L21: 12:58 | M21: 13523 | N21: 35.3 | O21: 15
A22: =IF(ISERROR(MATCH(ROW()-2,Arkusz1!$C:$C,0)),"",INDEX(Arkusz1!C:C,MATCH(ROW()-2,Arkusz1!$C:$C,0))) -> 20 | B22: =IF(ISERROR(MATCH(ROW()-2,Arkusz1!$C:$C,0)),"",INDEX('import danych'!$A:$A,MATCH(ROW()-2,Arkusz1!$C:$C,0)+5)) -> 2012-10-11 | C22: 41193 | D22: =IF(ISERROR(MATCH(ROW()-2,Arkusz1!$C:$C,0)),"",INDEX('import danych'!$B:$B,MATCH(ROW()-2,Arkusz1!$C:$C,0)+5)) -> 10:23 | E22: =IF(ISERROR(MATCH(ROW()-2,Arkusz1!$C:$C,0)),"",INDEX(Arkusz1!I:I,MATCH(ROW()-2,Arkusz1!$C:$C,0))) ->  | F22: =IF(ISERROR(MATCH(ROW()-2,Arkusz1!$C:$C,0)),"",INDEX('import danych'!$H:$H,MATCH(ROW()-2,Arkusz1!$C:$C,0)+5)) -> 13584 | G22: =IF(ISERROR(MATCH(ROW()-2,Arkusz1!$C:$C,0)),"",INDEX('import danych'!$L:$L,MATCH(ROW()-2,Arkusz1!$C:$C,0)+5)) -> 44.96 | H22: 20 | J22: 16 | K22: 2012-10-08 | L22: 13:19 | M22: 13532 | N22: 23.29 | O22: 16
A23: =IF(ISERROR(MATCH(ROW()-2,Arkusz1!$C:$C,0)),"",INDEX(Arkusz1!C:C,MATCH(ROW()-2,Arkusz1!$C:$C,0))) -> 21 | B23: =IF(ISERROR(MATCH(ROW()-2,Arkusz1!$C:$C,0)),"",INDEX('import danych'!$A:$A,MATCH(ROW()-2,Arkusz1!$C:$C,0)+5)) -> 2012-10-12 | C23: 41194 | D23: =IF(ISERROR(MATCH(ROW()-2,Arkusz1!$C:$C,0)),"",INDEX('import danych'!$B:$B,MATCH(ROW()-2,Arkusz1!$C:$C,0)+5)) -> 11:27 | E23: =IF(ISERROR(MATCH(ROW()-2,Arkusz1!$C:$C,0)),"",INDEX(Arkusz1!I:I,MATCH(ROW()-2,Arkusz1!$C:$C,0))) ->  | F23: =IF(ISERROR(MATCH(ROW()-2,Arkusz1!$C:$C,0)),"",INDEX('import danych'!$H:$H,MATCH(ROW()-2,Arkusz1!$C:$C,0)+5)) -> 13599 | G23: =IF(ISERROR(MATCH(ROW()-2,Arkusz1!$C:$C,0)),"",INDEX('import danych'!$L:$L,MATCH(ROW()-2,Arkusz1!$C:$C,0)+5)) -> 39.89 | H23: 21 | J23: 17 | K23: 2012-10-09 | L23: 11:33 | M23: 13550 | N23: 45.86 | O23: 17
A24: =IF(ISERROR(MATCH(ROW()-2,Arkusz1!$C:$C,0)),"",INDEX(Arkusz1!C:C,MATCH(ROW()-2,Arkusz1!$C:$C,0))) -> 22 | B24: =IF(ISERROR(MATCH(ROW()-2,Arkusz1!$C:$C,0)),"",INDEX('import danych'!$A:$A,MATCH(ROW()-2,Arkusz1!$C:$C,0)+5)) -> 2012-10-14 | C24: 41196 | D24: =IF(ISERROR(MATCH(ROW()-2,Arkusz1!$C:$C,0)),"",INDEX('import danych'!$B:$B,MATCH(ROW()-2,Arkusz1!$C:$C,0)+5)) -> 10:31 | E24: =IF(ISERROR(MATCH(ROW()-2,Arkusz1!$C:$C,0)),"",INDEX(Arkusz1!I:I,MATCH(ROW()-2,Arkusz1!$C:$C,0))) ->  | F24: =IF(ISERROR(MATCH(ROW()-2,Arkusz1!$C:$C,0)),"",INDEX('import danych'!$H:$H,MATCH(ROW()-2,Arkusz1!$C:$C,0)+5)) -> 13618 | G24: =IF(ISERROR(MATCH(ROW()-2,Arkusz1!$C:$C,0)),"",INDEX('import danych'!$L:$L,MATCH(ROW()-2,Arkusz1!$C:$C,0)+5)) -> 48.27 | H24: 22 | J24: 18 | K24: 2012-10-10 | L24: 08:45 | M24: 13565 | N24: 45.59 | O24: 18
A25: =IF(ISERROR(MATCH(ROW()-2,Arkusz1!$C:$C,0)),"",INDEX(Arkusz1!C:C,MATCH(ROW()-2,Arkusz1!$C:$C,0))) -> 23 | B25: =IF(ISERROR(MATCH(ROW()-2,Arkusz1!$C:$C,0)),"",INDEX('import danych'!$A:$A,MATCH(ROW()-2,Arkusz1!$C:$C,0)+5)) -> 2012-10-15 | C25: 41197 | D25: =IF(ISERROR(MATCH(ROW()-2,Arkusz1!$C:$C,0)),"",INDEX('import danych'!$B:$B,MATCH(ROW()-2,Arkusz1!$C:$C,0)+5)) -> 13:01 | E25: =IF(ISERROR(MATCH(ROW()-2,Arkusz1!$C:$C,0)),"",INDEX(Arkusz1!I:I,MATCH(ROW()-2,Arkusz1!$C:$C,0))) ->  | F25: =IF(ISERROR(MATCH(ROW()-2,Arkusz1!$C:$C,0)),"",INDEX('import danych'!$H:$H,MATCH(ROW()-2,Arkusz1!$C:$C,0)+5)) -> 13624 | G25: =IF(ISERROR(MATCH(ROW()-2,Arkusz1!$C:$C,0)),"",INDEX('import danych'!$L:$L,MATCH(ROW()-2,Arkusz1!$C:$C,0)+5)) -> 22.09 | H25: 23 | J25: 19 | K25: 2012-10-11 | L25: 10:23 | M25: 13584 | N25: 44.96 | O25: 19
A26: =IF(ISERROR(MATCH(ROW()-2,Arkusz1!$C:$C,0)),"",INDEX(Arkusz1!C:C,MATCH(ROW()-2,Arkusz1!$C:$C,0))) -> 24 | B26: =IF(ISERROR(MATCH(ROW()-2,Arkusz1!$C:$C,0)),"",INDEX('import danych'!$A:$A,MATCH(ROW()-2,Arkusz1!$C:$C,0)+5)) -> 2012-10-16 | C26: 41198 | D26: =IF(ISERROR(MATCH(ROW()-2,Arkusz1!$C:$C,0)),"",INDEX('import danych'!$B:$B,MATCH(ROW()-2,Arkusz1!$C:$C,0)+5)) -> 11:18 | E26: =IF(ISERROR(MATCH(ROW()-2,Arkusz1!$C:$C,0)),"",INDEX(Arkusz1!I:I,MATCH(ROW()-2,Arkusz1!$C:$C,0))) ->  | F26: =IF(ISERROR(MATCH(ROW()-2,Arkusz1!$C:$C,0)),"",INDEX('import danych'!$H:$H,MATCH(ROW()-2,Arkusz1!$C:$C,0)+5)) -> 13641 | G26: =IF(ISERROR(MATCH(ROW()-2,Arkusz1!$C:$C,0)),"",INDEX('import danych'!$L:$L,MATCH(ROW()-2,Arkusz1!$C:$C,0)+5)) -> 50.52 | H26: 24 | J26: 20 | K26: 2012-10-12 | L26: 11:27 | M26: 13599 | N26: 39.89 | O26: 20
A27: =IF(ISERROR(MATCH(ROW()-2,Arkusz1!$C:$C,0)),"",INDEX(Arkusz1!C:C,MATCH(ROW()-2,Arkusz1!$C:$C,0))) -> 25 | B27: =IF(ISERROR(MATCH(ROW()-2,Arkusz1!$C:$C,0)),"",INDEX('import danych'!$A:$A,MATCH(ROW()-2,Arkusz1!$C:$C,0)+5)) -> 2012-10-17 | C27: 41199 | D27: =IF(ISERROR(MATCH(ROW()-2,Arkusz1!$C:$C,0)),"",INDEX('import danych'!$B:$B,MATCH(ROW()-2,Arkusz1!$C:$C,0)+5)) -> 11:08 | E27: =IF(ISERROR(MATCH(ROW()-2,Arkusz1!$C:$C,0)),"",INDEX(Arkusz1!I:I,MATCH(ROW()-2,Arkusz1!$C:$C,0))) ->  | F27: =IF(ISERROR(MATCH(ROW()-2,Arkusz1!$C:$C,0)),"",INDEX('import danych'!$H:$H,MATCH(ROW()-2,Arkusz1!$C:$C,0)+5)) -> 13661 | G27: =IF(ISERROR(MATCH(ROW()-2,Arkusz1!$C:$C,0)),"",INDEX('import danych'!$L:$L,MATCH(ROW()-2,Arkusz1!$C:$C,0)+5)) -> 50.39 | H27: 25 | J27: 21 | K27: 2012-10-14 | L27: 10:31 | M27: 13618 | N27: 48.27 | O27: 21
A28: =IF(ISERROR(MATCH(ROW()-2,Arkusz1!$C:$C,0)),"",INDEX(Arkusz1!C:C,MATCH(ROW()-2,Arkusz1!$C:$C,0))) -> 26 | B28: =IF(ISERROR(MATCH(ROW()-2,Arkusz1!$C:$C,0)),"",INDEX('import danych'!$A:$A,MATCH(ROW()-2,Arkusz1!$C:$C,0)+5)) -> 2012-10-18 | C28: 41200 | D28: =IF(ISERROR(MATCH(ROW()-2,Arkusz1!$C:$C,0)),"",INDEX('import danych'!$B:$B,MATCH(ROW()-2,Arkusz1!$C:$C,0)+5)) -> 11:03 | E28: =IF(ISERROR(MATCH(ROW()-2,Arkusz1!$C:$C,0)),"",INDEX(Arkusz1!I:I,MATCH(ROW()-2,Arkusz1!$C:$C,0))) ->  | F28: =IF(ISERROR(MATCH(ROW()-2,Arkusz1!$C:$C,0)),"",INDEX('import danych'!$H:$H,MATCH(ROW()-2,Arkusz1!$C:$C,0)+5)) -> 13682 | G28: =IF(ISERROR(MATCH(ROW()-2,Arkusz1!$C:$C,0)),"",INDEX('import danych'!$L:$L,MATCH(ROW()-2,Arkusz1!$C:$C,0)+5)) -> 52.42 | H28: 26 | J28: 22 | K28: 2012-10-15 | L28: 13:01 | M28: 13624 | N28: 22.09 | O28: 22
A29: =IF(ISERROR(MATCH(ROW()-2,Arkusz1!$C:$C,0)),"",INDEX(Arkusz1!C:C,MATCH(ROW()-2,Arkusz1!$C:$C,0))) -> 27 | B29: =IF(ISERROR(MATCH(ROW()-2,Arkusz1!$C:$C,0)),"",INDEX('import danych'!$A:$A,MATCH(ROW()-2,Arkusz1!$C:$C,0)+5)) -> 2012-10-19 | C29: 41201 | D29: =IF(ISERROR(MATCH(ROW()-2,Arkusz1!$C:$C,0)),"",INDEX('import danych'!$B:$B,MATCH(ROW()-2,Arkusz1!$C:$C,0)+5)) -> 13:32 | E29: =IF(ISERROR(MATCH(ROW()-2,Arkusz1!$C:$C,0)),"",INDEX(Arkusz1!I:I,MATCH(ROW()-2,Arkusz1!$C:$C,0))) ->  | F29: =IF(ISERROR(MATCH(ROW()-2,Arkusz1!$C:$C,0)),"",INDEX('import danych'!$H:$H,MATCH(ROW()-2,Arkusz1!$C:$C,0)+5)) -> 13701 | G29: =IF(ISERROR(MATCH(ROW()-2,Arkusz1!$C:$C,0)),"",INDEX('import danych'!$L:$L,MATCH(ROW()-2,Arkusz1!$C:$C,0)+5)) -> 50.82 | H29: 27 | J29: 23 | K29: 2012-10-16 | L29: 11:18 | M29: 13641 | N29: 50.52 | O29: 23
A30: =IF(ISERROR(MATCH(ROW()-2,Arkusz1!$C:$C,0)),"",INDEX(Arkusz1!C:C,MATCH(ROW()-2,Arkusz1!$C:$C,0))) -> 28 | B30: =IF(ISERROR(MATCH(ROW()-2,Arkusz1!$C:$C,0)),"",INDEX('import danych'!$A:$A,MATCH(ROW()-2,Arkusz1!$C:$C,0)+5)) -> 2012-10-20 | C30: 41202 | D30: =IF(ISERROR(MATCH(ROW()-2,Arkusz1!$C:$C,0)),"",INDEX('import danych'!$B:$B,MATCH(ROW()-2,Arkusz1!$C:$C,0)+5)) -> 13:06 | E30: =IF(ISERROR(MATCH(ROW()-2,Arkusz1!$C:$C,0)),"",INDEX(Arkusz1!I:I,MATCH(ROW()-2,Arkusz1!$C:$C,0))) ->  | F30: =IF(ISERROR(MATCH(ROW()-2,Arkusz1!$C:$C,0)),"",INDEX('import danych'!$H:$H,MATCH(ROW()-2,Arkusz1!$C:$C,0)+5)) -> 13713 | G30: =IF(ISERROR(MATCH(ROW()-2,Arkusz1!$C:$C,0)),"",INDEX('import danych'!$L:$L,MATCH(ROW()-2,Arkusz1!$C:$C,0)+5)) -> 40.05 | H30: 28 | J30: 24 | K30: 2012-10-17 | L30: 11:08 | M30: 13661 | N30: 50.39 | O30: 24
A31: =IF(ISERROR(MATCH(ROW()-2,Arkusz1!$C:$C,0)),"",INDEX(Arkusz1!C:C,MATCH(ROW()-2,Arkusz1!$C:$C,0))) -> 29 | B31: =IF(ISERROR(MATCH(ROW()-2,Arkusz1!$C:$C,0)),"",INDEX('import danych'!$A:$A,MATCH(ROW()-2,Arkusz1!$C:$C,0)+5)) -> 2012-10-22 | C31: 41204 | D31: =IF(ISERROR(MATCH(ROW()-2,Arkusz1!$C:$C,0)),"",INDEX('import danych'!$B:$B,MATCH(ROW()-2,Arkusz1!$C:$C,0)+5)) -> 12:58 | E31: =IF(ISERROR(MATCH(ROW()-2,Arkusz1!$C:$C,0)),"",INDEX(Arkusz1!I:I,MATCH(ROW()-2,Arkusz1!$C:$C,0))) ->  | F31: =IF(ISERROR(MATCH(ROW()-2,Arkusz1!$C:$C,0)),"",INDEX('import danych'!$H:$H,MATCH(ROW()-2,Arkusz1!$C:$C,0)+5)) -> 13731 | G31: =IF(ISERROR(MATCH(ROW()-2,Arkusz1!$C:$C,0)),"",INDEX('import danych'!$L:$L,MATCH(ROW()-2,Arkusz1!$C:$C,0)+5)) -> 42.97 | H31: 29 | J31: 25 | K31: 2012-10-18 | L31: 11:03 | M31: 13682 | N31: 52.42 | O31: 25
A32: =IF(ISERROR(MATCH(ROW()-2,Arkusz1!$C:$C,0)),"",INDEX(Arkusz1!C:C,MATCH(ROW()-2,Arkusz1!$C:$C,0))) -> 30 | B32: =IF(ISERROR(MATCH(ROW()-2,Arkusz1!$C:$C,0)),"",INDEX('import danych'!$A:$A,MATCH(ROW()-2,Arkusz1!$C:$C,0)+5)) -> 2012-10-23 | C32: 41205 | D32: =IF(ISERROR(MATCH(ROW()-2,Arkusz1!$C:$C,0)),"",INDEX('import danych'!$B:$B,MATCH(ROW()-2,Arkusz1!$C:$C,0)+5)) -> 13:06 | E32: =IF(ISERROR(MATCH(ROW()-2,Arkusz1!$C:$C,0)),"",INDEX(Arkusz1!I:I,MATCH(ROW()-2,Arkusz1!$C:$C,0))) ->  | F32: =IF(ISERROR(MATCH(ROW()-2,Arkusz1!$C:$C,0)),"",INDEX('import danych'!$H:$H,MATCH(ROW()-2,Arkusz1!$C:$C,0)+5)) -> 13750 | G32: =IF(ISERROR(MATCH(ROW()-2,Arkusz1!$C:$C,0)),"",INDEX('import danych'!$L:$L,MATCH(ROW()-2,Arkusz1!$C:$C,0)+5)) -> 50.48 | H32: 30 | J32: 26 | K32: 2012-10-19 | L32: 13:32 | M32: 13701 | N32: 50.82 | O32: 26
A33: =IF(ISERROR(MATCH(ROW()-2,Arkusz1!$C:$C,0)),"",INDEX(Arkusz1!C:C,MATCH(ROW()-2,Arkusz1!$C:$C,0))) -> 31 | B33: =IF(ISERROR(MATCH(ROW()-2,Arkusz1!$C:$C,0)),"",INDEX('import danych'!$A:$A,MATCH(ROW()-2,Arkusz1!$C:$C,0)+5)) -> 2012-10-24 | C33: 41206 | D33: =IF(ISERROR(MATCH(ROW()-2,Arkusz1!$C:$C,0)),"",INDEX('import danych'!$B:$B,MATCH(ROW()-2,Arkusz1!$C:$C,0)+5)) -> 13:04 | E33: =IF(ISERROR(MATCH(ROW()-2,Arkusz1!$C:$C,0)),"",INDEX(Arkusz1!I:I,MATCH(ROW()-2,Arkusz1!$C:$C,0))) ->  | F33: =IF(ISERROR(MATCH(ROW()-2,Arkusz1!$C:$C,0)),"",INDEX('import danych'!$H:$H,MATCH(ROW()-2,Arkusz1!$C:$C,0)+5)) -> 13768 | G33: =IF(ISERROR(MATCH(ROW()-2,Arkusz1!$C:$C,0)),"",INDEX('import danych'!$L:$L,MATCH(ROW()-2,Arkusz1!$C:$C,0)+5)) -> 49.19 | H33: 31 | J33: 27 | K33: 2012-10-20 | L33: 13:06 | M33: 13713 | N33: 40.05 | O33: 27
A34: =IF(ISERROR(MATCH(ROW()-2,Arkusz1!$C:$C,0)),"",INDEX(Arkusz1!C:C,MATCH(ROW()-2,Arkusz1!$C:$C,0))) -> 32 | B34: =IF(ISERROR(MATCH(ROW()-2,Arkusz1!$C:$C,0)),"",INDEX('import danych'!$A:$A,MATCH(ROW()-2,Arkusz1!$C:$C,0)+5)) -> 2012-10-25 | C34: 41207 | D34: =IF(ISERROR(MATCH(ROW()-2,Arkusz1!$C:$C,0)),"",INDEX('import danych'!$B:$B,MATCH(ROW()-2,Arkusz1!$C:$C,0)+5)) -> 13:23 | E34: =IF(ISERROR(MATCH(ROW()-2,Arkusz1!$C:$C,0)),"",INDEX(Arkusz1!I:I,MATCH(ROW()-2,Arkusz1!$C:$C,0))) ->  | F34: =IF(ISERROR(MATCH(ROW()-2,Arkusz1!$C:$C,0)),"",INDEX('import danych'!$H:$H,MATCH(ROW()-2,Arkusz1!$C:$C,0)+5)) -> 13785 | G34: =IF(ISERROR(MATCH(ROW()-2,Arkusz1!$C:$C,0)),"",INDEX('import danych'!$L:$L,MATCH(ROW()-2,Arkusz1!$C:$C,0)+5)) -> 53.23 | H34: 32 | J34: 28 | K34: 2012-10-22 | L34: 12:58 | M34: 13731 | N34: 42.97 | O34: 28
A35: =IF(ISERROR(MATCH(ROW()-2,Arkusz1!$C:$C,0)),"",INDEX(Arkusz1!C:C,MATCH(ROW()-2,Arkusz1!$C:$C,0))) -> 33 | B35: =IF(ISERROR(MATCH(ROW()-2,Arkusz1!$C:$C,0)),"",INDEX('import danych'!$A:$A,MATCH(ROW()-2,Arkusz1!$C:$C,0)+5)) -> 2012-10-26 | C35: 41208 | D35: =IF(ISERROR(MATCH(ROW()-2,Arkusz1!$C:$C,0)),"",INDEX('import danych'!$B:$B,MATCH(ROW()-2,Arkusz1!$C:$C,0)+5)) -> 18:39 | E35: =IF(ISERROR(MATCH(ROW()-2,Arkusz1!$C:$C,0)),"",INDEX(Arkusz1!I:I,MATCH(ROW()-2,Arkusz1!$C:$C,0))) ->  | F35: =IF(ISERROR(MATCH(ROW()-2,Arkusz1!$C:$C,0)),"",INDEX('import danych'!$H:$H,MATCH(ROW()-2,Arkusz1!$C:$C,0)+5)) -> 13803 | G35: =IF(ISERROR(MATCH(ROW()-2,Arkusz1!$C:$C,0)),"",INDEX('import danych'!$L:$L,MATCH(ROW()-2,Arkusz1!$C:$C,0)+5)) -> 48.36 | H35: 33 | J35: 29 | K35: 2012-10-23 | L35: 13:06 | M35: 13750 | N35: 50.48 | O35: 29
A36: =IF(ISERROR(MATCH(ROW()-2,Arkusz1!$C:$C,0)),"",INDEX(Arkusz1!C:C,MATCH(ROW()-2,Arkusz1!$C:$C,0))) -> 34 | B36: =IF(ISERROR(MATCH(ROW()-2,Arkusz1!$C:$C,0)),"",INDEX('import danych'!$A:$A,MATCH(ROW()-2,Arkusz1!$C:$C,0)+5)) -> 2012-10-28 | C36: 41210 | D36: =IF(ISERROR(MATCH(ROW()-2,Arkusz1!$C:$C,0)),"",INDEX('import danych'!$B:$B,MATCH(ROW()-2,Arkusz1!$C:$C,0)+5)) -> 12:45 | E36: =IF(ISERROR(MATCH(ROW()-2,Arkusz1!$C:$C,0)),"",INDEX(Arkusz1!I:I,MATCH(ROW()-2,Arkusz1!$C:$C,0))) ->  | F36: =IF(ISERROR(MATCH(ROW()-2,Arkusz1!$C:$C,0)),"",INDEX('import danych'!$H:$H,MATCH(ROW()-2,Arkusz1!$C:$C,0)+5)) -> 13817 | G36: =IF(ISERROR(MATCH(ROW()-2,Arkusz1!$C:$C,0)),"",INDEX('import danych'!$L:$L,MATCH(ROW()-2,Arkusz1!$C:$C,0)+5)) -> 35.18 | H36: 34 | J36: 30 | K36: 2012-10-24 | L36: 13:04 | M36: 13768 | N36: 49.19 | O36: 30
A37: =IF(ISERROR(MATCH(ROW()-2,Arkusz1!$C:$C,0)),"",INDEX(Arkusz1!C:C,MATCH(ROW()-2,Arkusz1!$C:$C,0))) -> 35 | B37: =IF(ISERROR(MATCH(ROW()-2,Arkusz1!$C:$C,0)),"",INDEX('import danych'!$A:$A,MATCH(ROW()-2,Arkusz1!$C:$C,0)+5)) -> 2012-10-29 | C37: 41211 | D37: =IF(ISERROR(MATCH(ROW()-2,Arkusz1!$C:$C,0)),"",INDEX('import danych'!$B:$B,MATCH(ROW()-2,Arkusz1!$C:$C,0)+5)) -> 13:54 | E37: =IF(ISERROR(MATCH(ROW()-2,Arkusz1!$C:$C,0)),"",INDEX(Arkusz1!I:I,MATCH(ROW()-2,Arkusz1!$C:$C,0))) ->  | F37: =IF(ISERROR(MATCH(ROW()-2,Arkusz1!$C:$C,0)),"",INDEX('import danych'!$H:$H,MATCH(ROW()-2,Arkusz1!$C:$C,0)+5)) -> 13823 | G37: =IF(ISERROR(MATCH(ROW()-2,Arkusz1!$C:$C,0)),"",INDEX('import danych'!$L:$L,MATCH(ROW()-2,Arkusz1!$C:$C,0)+5)) -> 19.78 | H37: 35 | J37: 31 | K37: 2012-10-25 | L37: 13:23 | M37: 13785 | N37: 53.23 | O37: 31
A38: =IF(ISERROR(MATCH(ROW()-2,Arkusz1!$C:$C,0)),"",INDEX(Arkusz1!C:C,MATCH(ROW()-2,Arkusz1!$C:$C,0))) -> 36 | B38: =IF(ISERROR(MATCH(ROW()-2,Arkusz1!$C:$C,0)),"",INDEX('import danych'!$A:$A,MATCH(ROW()-2,Arkusz1!$C:$C,0)+5)) -> 2012-10-30 | C38: 41212 | D38: =IF(ISERROR(MATCH(ROW()-2,Arkusz1!$C:$C,0)),"",INDEX('import danych'!$B:$B,MATCH(ROW()-2,Arkusz1!$C:$C,0)+5)) -> 14:15 | E38: =IF(ISERROR(MATCH(ROW()-2,Arkusz1!$C:$C,0)),"",INDEX(Arkusz1!I:I,MATCH(ROW()-2,Arkusz1!$C:$C,0))) ->  | F38: =IF(ISERROR(MATCH(ROW()-2,Arkusz1!$C:$C,0)),"",INDEX('import danych'!$H:$H,MATCH(ROW()-2,Arkusz1!$C:$C,0)+5)) -> 13834 | G38: =IF(ISERROR(MATCH(ROW()-2,Arkusz1!$C:$C,0)),"",INDEX('import danych'!$L:$L,MATCH(ROW()-2,Arkusz1!$C:$C,0)+5)) -> 36.84 | J38: =IF(J37>$K$2-$K$1,"",J37+1) -> 32 | K38: =IF($J38="","",LOOKUP($K$1+$J37,$A:$A,$B:$B)) -> 2012-10-26 | L38: =IF($J38="","",LOOKUP($K$1+$J37,$A:$A,$D:$D)) -> 18:39 | M38: =IF($J38="","",LOOKUP($K$1+$J37,$A:$A,$F:$F)) -> 13803 | N38: =IF($J38="","",LOOKUP($K$1+$J37,$A:$A,$G:$G)) -> 48.36 | O38: 32
A39: =IF(ISERROR(MATCH(ROW()-2,Arkusz1!$C:$C,0)),"",INDEX(Arkusz1!C:C,MATCH(ROW()-2,Arkusz1!$C:$C,0))) -> 37 | B39: =IF(ISERROR(MATCH(ROW()-2,Arkusz1!$C:$C,0)),"",INDEX('import danych'!$A:$A,MATCH(ROW()-2,Arkusz1!$C:$C,0)+5)) -> 2012-10-31 | C39: 41213 | D39: =IF(ISERROR(MATCH(ROW()-2,Arkusz1!$C:$C,0)),"",INDEX('import danych'!$B:$B,MATCH(ROW()-2,Arkusz1!$C:$C,0)+5)) -> 09:55 | E39: =IF(ISERROR(MATCH(ROW()-2,Arkusz1!$C:$C,0)),"",INDEX(Arkusz1!I:I,MATCH(ROW()-2,Arkusz1!$C:$C,0))) ->  | F39: =IF(ISERROR(MATCH(ROW()-2,Arkusz1!$C:$C,0)),"",INDEX('import danych'!$H:$H,MATCH(ROW()-2,Arkusz1!$C:$C,0)+5)) -> 13851 | G39: =IF(ISERROR(MATCH(ROW()-2,Arkusz1!$C:$C,0)),"",INDEX('import danych'!$L:$L,MATCH(ROW()-2,Arkusz1!$C:$C,0)+5)) -> 52.18 | J39: 33 | K39: 2012-10-28 | L39: 12:45 | M39: 13817 | N39: 35.18 | O39: 33
A40: =IF(ISERROR(MATCH(ROW()-2,Arkusz1!$C:$C,0)),"",INDEX(Arkusz1!C:C,MATCH(ROW()-2,Arkusz1!$C:$C,0))) -> 38 | B40: =IF(ISERROR(MATCH(ROW()-2,Arkusz1!$C:$C,0)),"",INDEX('import danych'!$A:$A,MATCH(ROW()-2,Arkusz1!$C:$C,0)+5)) -> 2012-11-01 | C40: 41214 | D40: =IF(ISERROR(MATCH(ROW()-2,Arkusz1!$C:$C,0)),"",INDEX('import danych'!$B:$B,MATCH(ROW()-2,Arkusz1!$C:$C,0)+5)) -> 14:06 | E40: =IF(ISERROR(MATCH(ROW()-2,Arkusz1!$C:$C,0)),"",INDEX(Arkusz1!I:I,MATCH(ROW()-2,Arkusz1!$C:$C,0))) ->  | F40: =IF(ISERROR(MATCH(ROW()-2,Arkusz1!$C:$C,0)),"",INDEX('import danych'!$H:$H,MATCH(ROW()-2,Arkusz1!$C:$C,0)+5)) -> 13874 | G40: =IF(ISERROR(MATCH(ROW()-2,Arkusz1!$C:$C,0)),"",INDEX('import danych'!$L:$L,MATCH(ROW()-2,Arkusz1!$C:$C,0)+5)) -> 42.41 | J40: 34 | K40: 2012-10-29 | L40: 13:54 | M40: 13823 | N40: 19.78 | O40: 34
A41: =IF(ISERROR(MATCH(ROW()-2,Arkusz1!$C:$C,0)),"",INDEX(Arkusz1!C:C,MATCH(ROW()-2,Arkusz1!$C:$C,0))) ->  | B41: =IF(ISERROR(MATCH(ROW()-2,Arkusz1!$C:$C,0)),"",INDEX('import danych'!$A:$A,MATCH(ROW()-2,Arkusz1!$C:$C,0)+5)) ->  | D41: =IF(ISERROR(MATCH(ROW()-2,Arkusz1!$C:$C,0)),"",INDEX('import danych'!$B:$B,MATCH(ROW()-2,Arkusz1!$C:$C,0)+5)) ->  | E41: =IF(ISERROR(MATCH(ROW()-2,Arkusz1!$C:$C,0)),"",INDEX(Arkusz1!I:I,MATCH(ROW()-2,Arkusz1!$C:$C,0))) ->  | F41: =IF(ISERROR(MATCH(ROW()-2,Arkusz1!$C:$C,0)),"",INDEX('import danych'!$H:$H,MATCH(ROW()-2,Arkusz1!$C:$C,0)+5)) ->  | G41: =IF(ISERROR(MATCH(ROW()-2,Arkusz1!$C:$C,0)),"",INDEX('import danych'!$L:$L,MATCH(ROW()-2,Arkusz1!$C:$C,0)+5)) ->  | J41: =IF(J40>$K$2-$K$1,"",J40+1) -> 35 | K41: =IF($J41="","",LOOKUP($K$1+$J40,$A:$A,$B:$B)) -> 2012-10-30 | L41: =IF($J41="","",LOOKUP($K$1+$J40,$A:$A,$D:$D)) -> 14:15 | M41: =IF($J41="","",LOOKUP($K$1+$J40,$A:$A,$F:$F)) -> 13834 | N41: =IF($J41="","",LOOKUP($K$1+$J40,$A:$A,$G:$G)) -> 36.84 | O41: 35
A42: =IF(ISERROR(MATCH(ROW()-2,Arkusz1!$C:$C,0)),"",INDEX(Arkusz1!C:C,MATCH(ROW()-2,Arkusz1!$C:$C,0))) ->  | B42: =IF(ISERROR(MATCH(ROW()-2,Arkusz1!$C:$C,0)),"",INDEX('import danych'!$A:$A,MATCH(ROW()-2,Arkusz1!$C:$C,0)+5)) ->  | D42: =IF(ISERROR(MATCH(ROW()-2,Arkusz1!$C:$C,0)),"",INDEX('import danych'!$B:$B,MATCH(ROW()-2,Arkusz1!$C:$C,0)+5)) ->  | E42: =IF(ISERROR(MATCH(ROW()-2,Arkusz1!$C:$C,0)),"",INDEX(Arkusz1!I:I,MATCH(ROW()-2,Arkusz1!$C:$C,0))) ->  | F42: =IF(ISERROR(MATCH(ROW()-2,Arkusz1!$C:$C,0)),"",INDEX('import danych'!$H:$H,MATCH(ROW()-2,Arkusz1!$C:$C,0)+5)) ->  | G42: =IF(ISERROR(MATCH(ROW()-2,Arkusz1!$C:$C,0)),"",INDEX('import danych'!$L:$L,MATCH(ROW()-2,Arkusz1!$C:$C,0)+5)) ->  | J42: 36 | K42: 2012-10-31 | L42: 09:55 | M42: 13851 | N42: 52.18 | O42: 36
A43: =IF(ISERROR(MATCH(ROW()-2,Arkusz1!$C:$C,0)),"",INDEX(Arkusz1!C:C,MATCH(ROW()-2,Arkusz1!$C:$C,0))) ->  | B43: =IF(ISERROR(MATCH(ROW()-2,Arkusz1!$C:$C,0)),"",INDEX('import danych'!$A:$A,MATCH(ROW()-2,Arkusz1!$C:$C,0)+5)) ->  | D43: =IF(ISERROR(MATCH(ROW()-2,Arkusz1!$C:$C,0)),"",INDEX('import danych'!$B:$B,MATCH(ROW()-2,Arkusz1!$C:$C,0)+5)) ->  | E43: =IF(ISERROR(MATCH(ROW()-2,Arkusz1!$C:$C,0)),"",INDEX(Arkusz1!I:I,MATCH(ROW()-2,Arkusz1!$C:$C,0))) ->  | F43: =IF(ISERROR(MATCH(ROW()-2,Arkusz1!$C:$C,0)),"",INDEX('import danych'!$H:$H,MATCH(ROW()-2,Arkusz1!$C:$C,0)+5)) ->  | G43: =IF(ISERROR(MATCH(ROW()-2,Arkusz1!$C:$C,0)),"",INDEX('import danych'!$L:$L,MATCH(ROW()-2,Arkusz1!$C:$C,0)+5)) ->  | J43: 37 | K43: 2012-11-01 | L43: 14:06 | M43: 13874 | N43: 42.41 | O43: 37
A44: =IF(ISERROR(MATCH(ROW()-2,Arkusz1!$C:$C,0)),"",INDEX(Arkusz1!C:C,MATCH(ROW()-2,Arkusz1!$C:$C,0))) ->  | B44: =IF(ISERROR(MATCH(ROW()-2,Arkusz1!$C:$C,0)),"",INDEX('import danych'!$A:$A,MATCH(ROW()-2,Arkusz1!$C:$C,0)+5)) ->  | D44: =IF(ISERROR(MATCH(ROW()-2,Arkusz1!$C:$C,0)),"",INDEX('import danych'!$B:$B,MATCH(ROW()-2,Arkusz1!$C:$C,0)+5)) ->  | E44: =IF(ISERROR(MATCH(ROW()-2,Arkusz1!$C:$C,0)),"",INDEX(Arkusz1!I:I,MATCH(ROW()-2,Arkusz1!$C:$C,0))) ->  | F44: =IF(ISERROR(MATCH(ROW()-2,Arkusz1!$C:$C,0)),"",INDEX('import danych'!$H:$H,MATCH(ROW()-2,Arkusz1!$C:$C,0)+5)) ->  | G44: =IF(ISERROR(MATCH(ROW()-2,Arkusz1!$C:$C,0)),"",INDEX('import danych'!$L:$L,MATCH(ROW()-2,Arkusz1!$C:$C,0)+5)) ->  | O44: =IF($J44="","",LOOKUP($K$1+$J43,$A:$A,$E:$E)) -> 
A45: =IF(ISERROR(MATCH(ROW()-2,Arkusz1!$C:$C,0)),"",INDEX(Arkusz1!C:C,MATCH(ROW()-2,Arkusz1!$C:$C,0))) ->  | B45: =IF(ISERROR(MATCH(ROW()-2,Arkusz1!$C:$C,0)),"",INDEX('import danych'!$A:$A,MATCH(ROW()-2,Arkusz1!$C:$C,0)+5)) ->  | D45: =IF(ISERROR(MATCH(ROW()-2,Arkusz1!$C:$C,0)),"",INDEX('import danych'!$B:$B,MATCH(ROW()-2,Arkusz1!$C:$C,0)+5)) ->  | E45: =IF(ISERROR(MATCH(ROW()-2,Arkusz1!$C:$C,0)),"",INDEX(Arkusz1!I:I,MATCH(ROW()-2,Arkusz1!$C:$C,0))) ->  | F45: =IF(ISERROR(MATCH(ROW()-2,Arkusz1!$C:$C,0)),"",INDEX('import danych'!$H:$H,MATCH(ROW()-2,Arkusz1!$C:$C,0)+5)) ->  | G45: =IF(ISERROR(MATCH(ROW()-2,Arkusz1!$C:$C,0)),"",INDEX('import danych'!$L:$L,MATCH(ROW()-2,Arkusz1!$C:$C,0)+5)) -> 
A46: =IF(ISERROR(MATCH(ROW()-2,Arkusz1!$C:$C,0)),"",INDEX(Arkusz1!C:C,MATCH(ROW()-2,Arkusz1!$C:$C,0))) ->  | B46: =IF(ISERROR(MATCH(ROW()-2,Arkusz1!$C:$C,0)),"",INDEX('import danych'!$A:$A,MATCH(ROW()-2,Arkusz1!$C:$C,0)+5)) ->  | D46: =IF(ISERROR(MATCH(ROW()-2,Arkusz1!$C:$C,0)),"",INDEX('import danych'!$B:$B,MATCH(ROW()-2,Arkusz1!$C:$C,0)+5)) ->  | E46: =IF(ISERROR(MATCH(ROW()-2,Arkusz1!$C:$C,0)),"",INDEX(Arkusz1!I:I,MATCH(ROW()-2,Arkusz1!$C:$C,0))) ->  | F46: =IF(ISERROR(MATCH(ROW()-2,Arkusz1!$C:$C,0)),"",INDEX('import danych'!$H:$H,MATCH(ROW()-2,Arkusz1!$C:$C,0)+5)) ->  | G46: =IF(ISERROR(MATCH(ROW()-2,Arkusz1!$C:$C,0)),"",INDEX('import danych'!$L:$L,MATCH(ROW()-2,Arkusz1!$C:$C,0)+5)) -> 
A47: =IF(ISERROR(MATCH(ROW()-2,Arkusz1!$C:$C,0)),"",INDEX(Arkusz1!C:C,MATCH(ROW()-2,Arkusz1!$C:$C,0))) ->  | B47: =IF(ISERROR(MATCH(ROW()-2,Arkusz1!$C:$C,0)),"",INDEX('import danych'!$A:$A,MATCH(ROW()-2,Arkusz1!$C:$C,0)+5)) ->  | D47: =IF(ISERROR(MATCH(ROW()-2,Arkusz1!$C:$C,0)),"",INDEX('import danych'!$B:$B,MATCH(ROW()-2,Arkusz1!$C:$C,0)+5)) ->  | E47: =IF(ISERROR(MATCH(ROW()-2,Arkusz1!$C:$C,0)),"",INDEX(Arkusz1!I:I,MATCH(ROW()-2,Arkusz1!$C:$C,0))) ->  | F47: =IF(ISERROR(MATCH(ROW()-2,Arkusz1!$C:$C,0)),"",INDEX('import danych'!$H:$H,MATCH(ROW()-2,Arkusz1!$C:$C,0)+5)) ->  | G47: =IF(ISERROR(MATCH(ROW()-2,Arkusz1!$C:$C,0)),"",INDEX('import danych'!$L:$L,MATCH(ROW()-2,Arkusz1!$C:$C,0)+5)) -> 
A48: =IF(ISERROR(MATCH(ROW()-2,Arkusz1!$C:$C,0)),"",INDEX(Arkusz1!C:C,MATCH(ROW()-2,Arkusz1!$C:$C,0))) ->  | B48: =IF(ISERROR(MATCH(ROW()-2,Arkusz1!$C:$C,0)),"",INDEX('import danych'!$A:$A,MATCH(ROW()-2,Arkusz1!$C:$C,0)+5)) ->  | D48: =IF(ISERROR(MATCH(ROW()-2,Arkusz1!$C:$C,0)),"",INDEX('import danych'!$B:$B,MATCH(ROW()-2,Arkusz1!$C:$C,0)+5)) ->  | E48: =IF(ISERROR(MATCH(ROW()-2,Arkusz1!$C:$C,0)),"",INDEX(Arkusz1!I:I,MATCH(ROW()-2,Arkusz1!$C:$C,0))) ->  | F48: =IF(ISERROR(MATCH(ROW()-2,Arkusz1!$C:$C,0)),"",INDEX('import danych'!$H:$H,MATCH(ROW()-2,Arkusz1!$C:$C,0)+5)) ->  | G48: =IF(ISERROR(MATCH(ROW()-2,Arkusz1!$C:$C,0)),"",INDEX('import danych'!$L:$L,MATCH(ROW()-2,Arkusz1!$C:$C,0)+5)) -> 
A49: =IF(ISERROR(MATCH(ROW()-2,Arkusz1!$C:$C,0)),"",INDEX(Arkusz1!C:C,MATCH(ROW()-2,Arkusz1!$C:$C,0))) ->  | B49: =IF(ISERROR(MATCH(ROW()-2,Arkusz1!$C:$C,0)),"",INDEX('import danych'!$A:$A,MATCH(ROW()-2,Arkusz1!$C:$C,0)+5)) ->  | D49: =IF(ISERROR(MATCH(ROW()-2,Arkusz1!$C:$C,0)),"",INDEX('import danych'!$B:$B,MATCH(ROW()-2,Arkusz1!$C:$C,0)+5)) ->  | E49: =IF(ISERROR(MATCH(ROW()-2,Arkusz1!$C:$C,0)),"",INDEX(Arkusz1!I:I,MATCH(ROW()-2,Arkusz1!$C:$C,0))) ->  | F49: =IF(ISERROR(MATCH(ROW()-2,Arkusz1!$C:$C,0)),"",INDEX('import danych'!$H:$H,MATCH(ROW()-2,Arkusz1!$C:$C,0)+5)) ->  | G49: =IF(ISERROR(MATCH(ROW()-2,Arkusz1!$C:$C,0)),"",INDEX('import danych'!$L:$L,MATCH(ROW()-2,Arkusz1!$C:$C,0)+5)) -> 
A50: =IF(ISERROR(MATCH(ROW()-2,Arkusz1!$C:$C,0)),"",INDEX(Arkusz1!C:C,MATCH(ROW()-2,Arkusz1!$C:$C,0))) ->  | B50: =IF(ISERROR(MATCH(ROW()-2,Arkusz1!$C:$C,0)),"",INDEX('import danych'!$A:$A,MATCH(ROW()-2,Arkusz1!$C:$C,0)+5)) ->  | D50: =IF(ISERROR(MATCH(ROW()-2,Arkusz1!$C:$C,0)),"",INDEX('import danych'!$B:$B,MATCH(ROW()-2,Arkusz1!$C:$C,0)+5)) ->  | E50: =IF(ISERROR(MATCH(ROW()-2,Arkusz1!$C:$C,0)),"",INDEX(Arkusz1!I:I,MATCH(ROW()-2,Arkusz1!$C:$C,0))) ->  | F50: =IF(ISERROR(MATCH(ROW()-2,Arkusz1!$C:$C,0)),"",INDEX('import danych'!$H:$H,MATCH(ROW()-2,Arkusz1!$C:$C,0)+5)) ->  | G50: =IF(ISERROR(MATCH(ROW()-2,Arkusz1!$C:$C,0)),"",INDEX('import danych'!$L:$L,MATCH(ROW()-2,Arkusz1!$C:$C,0)+5)) -> 
A51: =IF(ISERROR(MATCH(ROW()-2,Arkusz1!$C:$C,0)),"",INDEX(Arkusz1!C:C,MATCH(ROW()-2,Arkusz1!$C:$C,0))) ->  | B51: =IF(ISERROR(MATCH(ROW()-2,Arkusz1!$C:$C,0)),"",INDEX('import danych'!$A:$A,MATCH(ROW()-2,Arkusz1!$C:$C,0)+5)) ->  | D51: =IF(ISERROR(MATCH(ROW()-2,Arkusz1!$C:$C,0)),"",INDEX('import danych'!$B:$B,MATCH(ROW()-2,Arkusz1!$C:$C,0)+5)) ->  | E51: =IF(ISERROR(MATCH(ROW()-2,Arkusz1!$C:$C,0)),"",INDEX(Arkusz1!I:I,MATCH(ROW()-2,Arkusz1!$C:$C,0))) ->  | F51: =IF(ISERROR(MATCH(ROW()-2,Arkusz1!$C:$C,0)),"",INDEX('import danych'!$H:$H,MATCH(ROW()-2,Arkusz1!$C:$C,0)+5)) ->  | G51: =IF(ISERROR(MATCH(ROW()-2,Arkusz1!$C:$C,0)),"",INDEX('import danych'!$L:$L,MATCH(ROW()-2,Arkusz1!$C:$C,0)+5)) -> 
A52: =IF(ISERROR(MATCH(ROW()-2,Arkusz1!$C:$C,0)),"",INDEX(Arkusz1!C:C,MATCH(ROW()-2,Arkusz1!$C:$C,0))) ->  | B52: =IF(ISERROR(MATCH(ROW()-2,Arkusz1!$C:$C,0)),"",INDEX('import danych'!$A:$A,MATCH(ROW()-2,Arkusz1!$C:$C,0)+5)) ->  | D52: =IF(ISERROR(MATCH(ROW()-2,Arkusz1!$C:$C,0)),"",INDEX('import danych'!$B:$B,MATCH(ROW()-2,Arkusz1!$C:$C,0)+5)) ->  | E52: =IF(ISERROR(MATCH(ROW()-2,Arkusz1!$C:$C,0)),"",INDEX(Arkusz1!I:I,MATCH(ROW()-2,Arkusz1!$C:$C,0))) ->  | F52: =IF(ISERROR(MATCH(ROW()-2,Arkusz1!$C:$C,0)),"",INDEX('import danych'!$H:$H,MATCH(ROW()-2,Arkusz1!$C:$C,0)+5)) ->  | G52: =IF(ISERROR(MATCH(ROW()-2,Arkusz1!$C:$C,0)),"",INDEX('import danych'!$L:$L,MATCH(ROW()-2,Arkusz1!$C:$C,0)+5)) -> 
A53: =IF(ISERROR(MATCH(ROW()-2,Arkusz1!$C:$C,0)),"",INDEX(Arkusz1!C:C,MATCH(ROW()-2,Arkusz1!$C:$C,0))) ->  | B53: =IF(ISERROR(MATCH(ROW()-2,Arkusz1!$C:$C,0)),"",INDEX('import danych'!$A:$A,MATCH(ROW()-2,Arkusz1!$C:$C,0)+5)) ->  | D53: =IF(ISERROR(MATCH(ROW()-2,Arkusz1!$C:$C,0)),"",INDEX('import danych'!$B:$B,MATCH(ROW()-2,Arkusz1!$C:$C,0)+5)) ->  | E53: =IF(ISERROR(MATCH(ROW()-2,Arkusz1!$C:$C,0)),"",INDEX(Arkusz1!I:I,MATCH(ROW()-2,Arkusz1!$C:$C,0))) ->  | F53: =IF(ISERROR(MATCH(ROW()-2,Arkusz1!$C:$C,0)),"",INDEX('import danych'!$H:$H,MATCH(ROW()-2,Arkusz1!$C:$C,0)+5)) ->  | G53: =IF(ISERROR(MATCH(ROW()-2,Arkusz1!$C:$C,0)),"",INDEX('import danych'!$L:$L,MATCH(ROW()-2,Arkusz1!$C:$C,0)+5)) -> 
A54: =IF(ISERROR(MATCH(ROW()-2,Arkusz1!$C:$C,0)),"",INDEX(Arkusz1!C:C,MATCH(ROW()-2,Arkusz1!$C:$C,0))) ->  | B54: =IF(ISERROR(MATCH(ROW()-2,Arkusz1!$C:$C,0)),"",INDEX('import danych'!$A:$A,MATCH(ROW()-2,Arkusz1!$C:$C,0)+5)) ->  | D54: =IF(ISERROR(MATCH(ROW()-2,Arkusz1!$C:$C,0)),"",INDEX('import danych'!$B:$B,MATCH(ROW()-2,Arkusz1!$C:$C,0)+5)) ->  | E54: =IF(ISERROR(MATCH(ROW()-2,Arkusz1!$C:$C,0)),"",INDEX(Arkusz1!I:I,MATCH(ROW()-2,Arkusz1!$C:$C,0))) ->  | F54: =IF(ISERROR(MATCH(ROW()-2,Arkusz1!$C:$C,0)),"",INDEX('import danych'!$H:$H,MATCH(ROW()-2,Arkusz1!$C:$C,0)+5)) ->  | G54: =IF(ISERROR(MATCH(ROW()-2,Arkusz1!$C:$C,0)),"",INDEX('import danych'!$L:$L,MATCH(ROW()-2,Arkusz1!$C:$C,0)+5)) -> 
A55: =IF(ISERROR(MATCH(ROW()-2,Arkusz1!$C:$C,0)),"",INDEX(Arkusz1!C:C,MATCH(ROW()-2,Arkusz1!$C:$C,0))) ->  | B55: =IF(ISERROR(MATCH(ROW()-2,Arkusz1!$C:$C,0)),"",INDEX('import danych'!$A:$A,MATCH(ROW()-2,Arkusz1!$C:$C,0)+5)) ->  | D55: =IF(ISERROR(MATCH(ROW()-2,Arkusz1!$C:$C,0)),"",INDEX('import danych'!$B:$B,MATCH(ROW()-2,Arkusz1!$C:$C,0)+5)) ->  | E55: =IF(ISERROR(MATCH(ROW()-2,Arkusz1!$C:$C,0)),"",INDEX(Arkusz1!I:I,MATCH(ROW()-2,Arkusz1!$C:$C,0))) ->  | F55: =IF(ISERROR(MATCH(ROW()-2,Arkusz1!$C:$C,0)),"",INDEX('import danych'!$H:$H,MATCH(ROW()-2,Arkusz1!$C:$C,0)+5)) ->  | G55: =IF(ISERROR(MATCH(ROW()-2,Arkusz1!$C:$C,0)),"",INDEX('import danych'!$L:$L,MATCH(ROW()-2,Arkusz1!$C:$C,0)+5)) -> 
A56: =IF(ISERROR(MATCH(ROW()-2,Arkusz1!$C:$C,0)),"",INDEX(Arkusz1!C:C,MATCH(ROW()-2,Arkusz1!$C:$C,0))) ->  | B56: =IF(ISERROR(MATCH(ROW()-2,Arkusz1!$C:$C,0)),"",INDEX('import danych'!$A:$A,MATCH(ROW()-2,Arkusz1!$C:$C,0)+5)) ->  | D56: =IF(ISERROR(MATCH(ROW()-2,Arkusz1!$C:$C,0)),"",INDEX('import danych'!$B:$B,MATCH(ROW()-2,Arkusz1!$C:$C,0)+5)) ->  | E56: =IF(ISERROR(MATCH(ROW()-2,Arkusz1!$C:$C,0)),"",INDEX(Arkusz1!I:I,MATCH(ROW()-2,Arkusz1!$C:$C,0))) ->  | F56: =IF(ISERROR(MATCH(ROW()-2,Arkusz1!$C:$C,0)),"",INDEX('import danych'!$H:$H,MATCH(ROW()-2,Arkusz1!$C:$C,0)+5)) ->  | G56: =IF(ISERROR(MATCH(ROW()-2,Arkusz1!$C:$C,0)),"",INDEX('import danych'!$L:$L,MATCH(ROW()-2,Arkusz1!$C:$C,0)+5)) -> 
A57: =IF(ISERROR(MATCH(ROW()-2,Arkusz1!$C:$C,0)),"",INDEX(Arkusz1!C:C,MATCH(ROW()-2,Arkusz1!$C:$C,0))) ->  | B57: =IF(ISERROR(MATCH(ROW()-2,Arkusz1!$C:$C,0)),"",INDEX('import danych'!$A:$A,MATCH(ROW()-2,Arkusz1!$C:$C,0)+5)) ->  | D57: =IF(ISERROR(MATCH(ROW()-2,Arkusz1!$C:$C,0)),"",INDEX('import danych'!$B:$B,MATCH(ROW()-2,Arkusz1!$C:$C,0)+5)) ->  | E57: =IF(ISERROR(MATCH(ROW()-2,Arkusz1!$C:$C,0)),"",INDEX(Arkusz1!I:I,MATCH(ROW()-2,Arkusz1!$C:$C,0))) ->  | F57: =IF(ISERROR(MATCH(ROW()-2,Arkusz1!$C:$C,0)),"",INDEX('import danych'!$H:$H,MATCH(ROW()-2,Arkusz1!$C:$C,0)+5)) ->  | G57: =IF(ISERROR(MATCH(ROW()-2,Arkusz1!$C:$C,0)),"",INDEX('import danych'!$L:$L,MATCH(ROW()-2,Arkusz1!$C:$C,0)+5)) -> 
A58: =IF(ISERROR(MATCH(ROW()-2,Arkusz1!$C:$C,0)),"",INDEX(Arkusz1!C:C,MATCH(ROW()-2,Arkusz1!$C:$C,0))) ->  | B58: =IF(ISERROR(MATCH(ROW()-2,Arkusz1!$C:$C,0)),"",INDEX('import danych'!$A:$A,MATCH(ROW()-2,Arkusz1!$C:$C,0)+5)) ->  | D58: =IF(ISERROR(MATCH(ROW()-2,Arkusz1!$C:$C,0)),"",INDEX('import danych'!$B:$B,MATCH(ROW()-2,Arkusz1!$C:$C,0)+5)) ->  | E58: =IF(ISERROR(MATCH(ROW()-2,Arkusz1!$C:$C,0)),"",INDEX(Arkusz1!I:I,MATCH(ROW()-2,Arkusz1!$C:$C,0))) ->  | F58: =IF(ISERROR(MATCH(ROW()-2,Arkusz1!$C:$C,0)),"",INDEX('import danych'!$H:$H,MATCH(ROW()-2,Arkusz1!$C:$C,0)+5)) ->  | G58: =IF(ISERROR(MATCH(ROW()-2,Arkusz1!$C:$C,0)),"",INDEX('import danych'!$L:$L,MATCH(ROW()-2,Arkusz1!$C:$C,0)+5)) -> 
A59: =IF(ISERROR(MATCH(ROW()-2,Arkusz1!$C:$C,0)),"",INDEX(Arkusz1!C:C,MATCH(ROW()-2,Arkusz1!$C:$C,0))) ->  | B59: =IF(ISERROR(MATCH(ROW()-2,Arkusz1!$C:$C,0)),"",INDEX('import danych'!$A:$A,MATCH(ROW()-2,Arkusz1!$C:$C,0)+5)) ->  | D59: =IF(ISERROR(MATCH(ROW()-2,Arkusz1!$C:$C,0)),"",INDEX('import danych'!$B:$B,MATCH(ROW()-2,Arkusz1!$C:$C,0)+5)) ->  | E59: =IF(ISERROR(MATCH(ROW()-2,Arkusz1!$C:$C,0)),"",INDEX(Arkusz1!I:I,MATCH(ROW()-2,Arkusz1!$C:$C,0))) ->  | F59: =IF(ISERROR(MATCH(ROW()-2,Arkusz1!$C:$C,0)),"",INDEX('import danych'!$H:$H,MATCH(ROW()-2,Arkusz1!$C:$C,0)+5)) ->  | G59: =IF(ISERROR(MATCH(ROW()-2,Arkusz1!$C:$C,0)),"",INDEX('import danych'!$L:$L,MATCH(ROW()-2,Arkusz1!$C:$C,0)+5)) -> 
A60: =IF(ISERROR(MATCH(ROW()-2,Arkusz1!$C:$C,0)),"",INDEX(Arkusz1!C:C,MATCH(ROW()-2,Arkusz1!$C:$C,0))) ->  | B60: =IF(ISERROR(MATCH(ROW()-2,Arkusz1!$C:$C,0)),"",INDEX('import danych'!$A:$A,MATCH(ROW()-2,Arkusz1!$C:$C,0)+5)) ->  | D60: =IF(ISERROR(MATCH(ROW()-2,Arkusz1!$C:$C,0)),"",INDEX('import danych'!$B:$B,MATCH(ROW()-2,Arkusz1!$C:$C,0)+5)) ->  | E60: =IF(ISERROR(MATCH(ROW()-2,Arkusz1!$C:$C,0)),"",INDEX(Arkusz1!I:I,MATCH(ROW()-2,Arkusz1!$C:$C,0))) ->  | F60: =IF(ISERROR(MATCH(ROW()-2,Arkusz1!$C:$C,0)),"",INDEX('import danych'!$H:$H,MATCH(ROW()-2,Arkusz1!$C:$C,0)+5)) ->  | G60: =IF(ISERROR(MATCH(ROW()-2,Arkusz1!$C:$C,0)),"",INDEX('import danych'!$L:$L,MATCH(ROW()-2,Arkusz1!$C:$C,0)+5)) -> 
A61: =IF(ISERROR(MATCH(ROW()-2,Arkusz1!$C:$C,0)),"",INDEX(Arkusz1!C:C,MATCH(ROW()-2,Arkusz1!$C:$C,0))) ->  | B61: =IF(ISERROR(MATCH(ROW()-2,Arkusz1!$C:$C,0)),"",INDEX('import danych'!$A:$A,MATCH(ROW()-2,Arkusz1!$C:$C,0)+5)) ->  | D61: =IF(ISERROR(MATCH(ROW()-2,Arkusz1!$C:$C,0)),"",INDEX('import danych'!$B:$B,MATCH(ROW()-2,Arkusz1!$C:$C,0)+5)) ->  | E61: =IF(ISERROR(MATCH(ROW()-2,Arkusz1!$C:$C,0)),"",INDEX(Arkusz1!I:I,MATCH(ROW()-2,Arkusz1!$C:$C,0))) ->  | F61: =IF(ISERROR(MATCH(ROW()-2,Arkusz1!$C:$C,0)),"",INDEX('import danych'!$H:$H,MATCH(ROW()-2,Arkusz1!$C:$C,0)+5)) ->  | G61: =IF(ISERROR(MATCH(ROW()-2,Arkusz1!$C:$C,0)),"",INDEX('import danych'!$L:$L,MATCH(ROW()-2,Arkusz1!$C:$C,0)+5)) -> 
A62: =IF(ISERROR(MATCH(ROW()-2,Arkusz1!$C:$C,0)),"",INDEX(Arkusz1!C:C,MATCH(ROW()-2,Arkusz1!$C:$C,0))) ->  | B62: =IF(ISERROR(MATCH(ROW()-2,Arkusz1!$C:$C,0)),"",INDEX('import danych'!$A:$A,MATCH(ROW()-2,Arkusz1!$C:$C,0)+5)) ->  | D62: =IF(ISERROR(MATCH(ROW()-2,Arkusz1!$C:$C,0)),"",INDEX('import danych'!$B:$B,MATCH(ROW()-2,Arkusz1!$C:$C,0)+5)) ->  | E62: =IF(ISERROR(MATCH(ROW()-2,Arkusz1!$C:$C,0)),"",INDEX(Arkusz1!I:I,MATCH(ROW()-2,Arkusz1!$C:$C,0))) ->  | F62: =IF(ISERROR(MATCH(ROW()-2,Arkusz1!$C:$C,0)),"",INDEX('import danych'!$H:$H,MATCH(ROW()-2,Arkusz1!$C:$C,0)+5)) ->  | G62: =IF(ISERROR(MATCH(ROW()-2,Arkusz1!$C:$C,0)),"",INDEX('import danych'!$L:$L,MATCH(ROW()-2,Arkusz1!$C:$C,0)+5)) -> 
A63: =IF(ISERROR(MATCH(ROW()-2,Arkusz1!$C:$C,0)),"",INDEX(Arkusz1!C:C,MATCH(ROW()-2,Arkusz1!$C:$C,0))) ->  | B63: =IF(ISERROR(MATCH(ROW()-2,Arkusz1!$C:$C,0)),"",INDEX('import danych'!$A:$A,MATCH(ROW()-2,Arkusz1!$C:$C,0)+5)) ->  | D63: =IF(ISERROR(MATCH(ROW()-2,Arkusz1!$C:$C,0)),"",INDEX('import danych'!$B:$B,MATCH(ROW()-2,Arkusz1!$C:$C,0)+5)) ->  | E63: =IF(ISERROR(MATCH(ROW()-2,Arkusz1!$C:$C,0)),"",INDEX(Arkusz1!I:I,MATCH(ROW()-2,Arkusz1!$C:$C,0))) ->  | F63: =IF(ISERROR(MATCH(ROW()-2,Arkusz1!$C:$C,0)),"",INDEX('import danych'!$H:$H,MATCH(ROW()-2,Arkusz1!$C:$C,0)+5)) ->  | G63: =IF(ISERROR(MATCH(ROW()-2,Arkusz1!$C:$C,0)),"",INDEX('import danych'!$L:$L,MATCH(ROW()-2,Arkusz1!$C:$C,0)+5)) -> 
A64: =IF(ISERROR(MATCH(ROW()-2,Arkusz1!$C:$C,0)),"",INDEX(Arkusz1!C:C,MATCH(ROW()-2,Arkusz1!$C:$C,0))) ->  | B64: =IF(ISERROR(MATCH(ROW()-2,Arkusz1!$C:$C,0)),"",INDEX('import danych'!$A:$A,MATCH(ROW()-2,Arkusz1!$C:$C,0)+5)) ->  | D64: =IF(ISERROR(MATCH(ROW()-2,Arkusz1!$C:$C,0)),"",INDEX('import danych'!$B:$B,MATCH(ROW()-2,Arkusz1!$C:$C,0)+5)) ->  | E64: =IF(ISERROR(MATCH(ROW()-2,Arkusz1!$C:$C,0)),"",INDEX(Arkusz1!I:I,MATCH(ROW()-2,Arkusz1!$C:$C,0))) ->  | F64: =IF(ISERROR(MATCH(ROW()-2,Arkusz1!$C:$C,0)),"",INDEX('import danych'!$H:$H,MATCH(ROW()-2,Arkusz1!$C:$C,0)+5)) ->  | G64: =IF(ISERROR(MATCH(ROW()-2,Arkusz1!$C:$C,0)),"",INDEX('import danych'!$L:$L,MATCH(ROW()-2,Arkusz1!$C:$C,0)+5)) -> 
A65: =IF(ISERROR(MATCH(ROW()-2,Arkusz1!$C:$C,0)),"",INDEX(Arkusz1!C:C,MATCH(ROW()-2,Arkusz1!$C:$C,0))) ->  | B65: =IF(ISERROR(MATCH(ROW()-2,Arkusz1!$C:$C,0)),"",INDEX('import danych'!$A:$A,MATCH(ROW()-2,Arkusz1!$C:$C,0)+5)) ->  | D65: =IF(ISERROR(MATCH(ROW()-2,Arkusz1!$C:$C,0)),"",INDEX('import danych'!$B:$B,MATCH(ROW()-2,Arkusz1!$C:$C,0)+5)) ->  | E65: =IF(ISERROR(MATCH(ROW()-2,Arkusz1!$C:$C,0)),"",INDEX(Arkusz1!I:I,MATCH(ROW()-2,Arkusz1!$C:$C,0))) ->  | F65: =IF(ISERROR(MATCH(ROW()-2,Arkusz1!$C:$C,0)),"",INDEX('import danych'!$H:$H,MATCH(ROW()-2,Arkusz1!$C:$C,0)+5)) ->  | G65: =IF(ISERROR(MATCH(ROW()-2,Arkusz1!$C:$C,0)),"",INDEX('import danych'!$L:$L,MATCH(ROW()-2,Arkusz1!$C:$C,0)+5)) -> 
A66: =IF(ISERROR(MATCH(ROW()-2,Arkusz1!$C:$C,0)),"",INDEX(Arkusz1!C:C,MATCH(ROW()-2,Arkusz1!$C:$C,0))) ->  | B66: =IF(ISERROR(MATCH(ROW()-2,Arkusz1!$C:$C,0)),"",INDEX('import danych'!$A:$A,MATCH(ROW()-2,Arkusz1!$C:$C,0)+5)) ->  | D66: =IF(ISERROR(MATCH(ROW()-2,Arkusz1!$C:$C,0)),"",INDEX('import danych'!$B:$B,MATCH(ROW()-2,Arkusz1!$C:$C,0)+5)) ->  | E66: =IF(ISERROR(MATCH(ROW()-2,Arkusz1!$C:$C,0)),"",INDEX(Arkusz1!I:I,MATCH(ROW()-2,Arkusz1!$C:$C,0))) ->  | F66: =IF(ISERROR(MATCH(ROW()-2,Arkusz1!$C:$C,0)),"",INDEX('import danych'!$H:$H,MATCH(ROW()-2,Arkusz1!$C:$C,0)+5)) ->  | G66: =IF(ISERROR(MATCH(ROW()-2,Arkusz1!$C:$C,0)),"",INDEX('import danych'!$L:$L,MATCH(ROW()-2,Arkusz1!$C:$C,0)+5)) -> 
A67: =IF(ISERROR(MATCH(ROW()-2,Arkusz1!$C:$C,0)),"",INDEX(Arkusz1!C:C,MATCH(ROW()-2,Arkusz1!$C:$C,0))) ->  | B67: =IF(ISERROR(MATCH(ROW()-2,Arkusz1!$C:$C,0)),"",INDEX('import danych'!$A:$A,MATCH(ROW()-2,Arkusz1!$C:$C,0)+5)) ->  | D67: =IF(ISERROR(MATCH(ROW()-2,Arkusz1!$C:$C,0)),"",INDEX('import danych'!$B:$B,MATCH(ROW()-2,Arkusz1!$C:$C,0)+5)) ->  | E67: =IF(ISERROR(MATCH(ROW()-2,Arkusz1!$C:$C,0)),"",INDEX(Arkusz1!I:I,MATCH(ROW()-2,Arkusz1!$C:$C,0))) ->  | F67: =IF(ISERROR(MATCH(ROW()-2,Arkusz1!$C:$C,0)),"",INDEX('import danych'!$H:$H,MATCH(ROW()-2,Arkusz1!$C:$C,0)+5)) ->  | G67: =IF(ISERROR(MATCH(ROW()-2,Arkusz1!$C:$C,0)),"",INDEX('import danych'!$L:$L,MATCH(ROW()-2,Arkusz1!$C:$C,0)+5)) -> 
A68: =IF(ISERROR(MATCH(ROW()-2,Arkusz1!$C:$C,0)),"",INDEX(Arkusz1!C:C,MATCH(ROW()-2,Arkusz1!$C:$C,0))) ->  | B68: =IF(ISERROR(MATCH(ROW()-2,Arkusz1!$C:$C,0)),"",INDEX('import danych'!$A:$A,MATCH(ROW()-2,Arkusz1!$C:$C,0)+5)) ->  | C68: =IF(A68="","",DATEVALUE(B68)) ->  | D68: =IF(ISERROR(MATCH(ROW()-2,Arkusz1!$C:$C,0)),"",INDEX('import danych'!$B:$B,MATCH(ROW()-2,Arkusz1!$C:$C,0)+5)) ->  | E68: =IF(ISERROR(MATCH(ROW()-2,Arkusz1!$C:$C,0)),"",INDEX(Arkusz1!I:I,MATCH(ROW()-2,Arkusz1!$C:$C,0))) ->  | F68: =IF(ISERROR(MATCH(ROW()-2,Arkusz1!$C:$C,0)),"",INDEX('import danych'!$H:$H,MATCH(ROW()-2,Arkusz1!$C:$C,0)+5)) ->  | G68: =IF(ISERROR(MATCH(ROW()-2,Arkusz1!$C:$C,0)),"",INDEX('import danych'!$L:$L,MATCH(ROW()-2,Arkusz1!$C:$C,0)+5)) -> 
A69: =IF(ISERROR(MATCH(ROW()-2,Arkusz1!$C:$C,0)),"",INDEX(Arkusz1!C:C,MATCH(ROW()-2,Arkusz1!$C:$C,0))) ->  | B69: =IF(ISERROR(MATCH(ROW()-2,Arkusz1!$C:$C,0)),"",INDEX('import danych'!$A:$A,MATCH(ROW()-2,Arkusz1!$C:$C,0)+5)) ->  | D69: =IF(ISERROR(MATCH(ROW()-2,Arkusz1!$C:$C,0)),"",INDEX('import danych'!$B:$B,MATCH(ROW()-2,Arkusz1!$C:$C,0)+5)) ->  | E69: =IF(ISERROR(MATCH(ROW()-2,Arkusz1!$C:$C,0)),"",INDEX(Arkusz1!I:I,MATCH(ROW()-2,Arkusz1!$C:$C,0))) ->  | F69: =IF(ISERROR(MATCH(ROW()-2,Arkusz1!$C:$C,0)),"",INDEX('import danych'!$H:$H,MATCH(ROW()-2,Arkusz1!$C:$C,0)+5)) ->  | G69: =IF(ISERROR(MATCH(ROW()-2,Arkusz1!$C:$C,0)),"",INDEX('import danych'!$L:$L,MATCH(ROW()-2,Arkusz1!$C:$C,0)+5)) -> 
A70: =IF(ISERROR(MATCH(ROW()-2,Arkusz1!$C:$C,0)),"",INDEX(Arkusz1!C:C,MATCH(ROW()-2,Arkusz1!$C:$C,0))) ->  | B70: =IF(ISERROR(MATCH(ROW()-2,Arkusz1!$C:$C,0)),"",INDEX('import danych'!$A:$A,MATCH(ROW()-2,Arkusz1!$C:$C,0)+5)) ->  | D70: =IF(ISERROR(MATCH(ROW()-2,Arkusz1!$C:$C,0)),"",INDEX('import danych'!$B:$B,MATCH(ROW()-2,Arkusz1!$C:$C,0)+5)) ->  | E70: =IF(ISERROR(MATCH(ROW()-2,Arkusz1!$C:$C,0)),"",INDEX(Arkusz1!I:I,MATCH(ROW()-2,Arkusz1!$C:$C,0))) ->  | F70: =IF(ISERROR(MATCH(ROW()-2,Arkusz1!$C:$C,0)),"",INDEX('import danych'!$H:$H,MATCH(ROW()-2,Arkusz1!$C:$C,0)+5)) ->  | G70: =IF(ISERROR(MATCH(ROW()-2,Arkusz1!$C:$C,0)),"",INDEX('import danych'!$L:$L,MATCH(ROW()-2,Arkusz1!$C:$C,0)+5)) -> 
A71: =IF(ISERROR(MATCH(ROW()-2,Arkusz1!$C:$C,0)),"",INDEX(Arkusz1!C:C,MATCH(ROW()-2,Arkusz1!$C:$C,0))) ->  | B71: =IF(ISERROR(MATCH(ROW()-2,Arkusz1!$C:$C,0)),"",INDEX('import danych'!$A:$A,MATCH(ROW()-2,Arkusz1!$C:$C,0)+5)) ->  | D71: =IF(ISERROR(MATCH(ROW()-2,Arkusz1!$C:$C,0)),"",INDEX('import danych'!$B:$B,MATCH(ROW()-2,Arkusz1!$C:$C,0)+5)) ->  | E71: =IF(ISERROR(MATCH(ROW()-2,Arkusz1!$C:$C,0)),"",INDEX(Arkusz1!I:I,MATCH(ROW()-2,Arkusz1!$C:$C,0))) ->  | F71: =IF(ISERROR(MATCH(ROW()-2,Arkusz1!$C:$C,0)),"",INDEX('import danych'!$H:$H,MATCH(ROW()-2,Arkusz1!$C:$C,0)+5)) ->  | G71: =IF(ISERROR(MATCH(ROW()-2,Arkusz1!$C:$C,0)),"",INDEX('import danych'!$L:$L,MATCH(ROW()-2,Arkusz1!$C:$C,0)+5)) -> 
A72: =IF(ISERROR(MATCH(ROW()-2,Arkusz1!$C:$C,0)),"",INDEX(Arkusz1!C:C,MATCH(ROW()-2,Arkusz1!$C:$C,0))) ->  | B72: =IF(ISERROR(MATCH(ROW()-2,Arkusz1!$C:$C,0)),"",INDEX('import danych'!$A:$A,MATCH(ROW()-2,Arkusz1!$C:$C,0)+5)) ->  | D72: =IF(ISERROR(MATCH(ROW()-2,Arkusz1!$C:$C,0)),"",INDEX('import danych'!$B:$B,MATCH(ROW()-2,Arkusz1!$C:$C,0)+5)) ->  | E72: =IF(ISERROR(MATCH(ROW()-2,Arkusz1!$C:$C,0)),"",INDEX(Arkusz1!I:I,MATCH(ROW()-2,Arkusz1!$C:$C,0))) ->  | F72: =IF(ISERROR(MATCH(ROW()-2,Arkusz1!$C:$C,0)),"",INDEX('import danych'!$H:$H,MATCH(ROW()-2,Arkusz1!$C:$C,0)+5)) ->  | G72: =IF(ISERROR(MATCH(ROW()-2,Arkusz1!$C:$C,0)),"",INDEX('import danych'!$L:$L,MATCH(ROW()-2,Arkusz1!$C:$C,0)+5)) -> 
A73: =IF(ISERROR(MATCH(ROW()-2,Arkusz1!$C:$C,0)),"",INDEX(Arkusz1!C:C,MATCH(ROW()-2,Arkusz1!$C:$C,0))) ->  | B73: =IF(ISERROR(MATCH(ROW()-2,Arkusz1!$C:$C,0)),"",INDEX('import danych'!$A:$A,MATCH(ROW()-2,Arkusz1!$C:$C,0)+5)) ->  | D73: =IF(ISERROR(MATCH(ROW()-2,Arkusz1!$C:$C,0)),"",INDEX('import danych'!$B:$B,MATCH(ROW()-2,Arkusz1!$C:$C,0)+5)) ->  | E73: =IF(ISERROR(MATCH(ROW()-2,Arkusz1!$C:$C,0)),"",INDEX(Arkusz1!I:I,MATCH(ROW()-2,Arkusz1!$C:$C,0))) ->  | F73: =IF(ISERROR(MATCH(ROW()-2,Arkusz1!$C:$C,0)),"",INDEX('import danych'!$H:$H,MATCH(ROW()-2,Arkusz1!$C:$C,0)+5)) ->  | G73: =IF(ISERROR(MATCH(ROW()-2,Arkusz1!$C:$C,0)),"",INDEX('import danych'!$L:$L,MATCH(ROW()-2,Arkusz1!$C:$C,0)+5)) -> 
A74: =IF(ISERROR(MATCH(ROW()-2,Arkusz1!$C:$C,0)),"",INDEX(Arkusz1!C:C,MATCH(ROW()-2,Arkusz1!$C:$C,0))) ->  | B74: =IF(ISERROR(MATCH(ROW()-2,Arkusz1!$C:$C,0)),"",INDEX('import danych'!$A:$A,MATCH(ROW()-2,Arkusz1!$C:$C,0)+5)) ->  | D74: =IF(ISERROR(MATCH(ROW()-2,Arkusz1!$C:$C,0)),"",INDEX('import danych'!$B:$B,MATCH(ROW()-2,Arkusz1!$C:$C,0)+5)) ->  | E74: =IF(ISERROR(MATCH(ROW()-2,Arkusz1!$C:$C,0)),"",INDEX(Arkusz1!I:I,MATCH(ROW()-2,Arkusz1!$C:$C,0))) ->  | F74: =IF(ISERROR(MATCH(ROW()-2,Arkusz1!$C:$C,0)),"",INDEX('import danych'!$H:$H,MATCH(ROW()-2,Arkusz1!$C:$C,0)+5)) ->  | G74: =IF(ISERROR(MATCH(ROW()-2,Arkusz1!$C:$C,0)),"",INDEX('import danych'!$L:$L,MATCH(ROW()-2,Arkusz1!$C:$C,0)+5)) -> 
A75: =IF(ISERROR(MATCH(ROW()-2,Arkusz1!$C:$C,0)),"",INDEX(Arkusz1!C:C,MATCH(ROW()-2,Arkusz1!$C:$C,0))) ->  | B75: =IF(ISERROR(MATCH(ROW()-2,Arkusz1!$C:$C,0)),"",INDEX('import danych'!$A:$A,MATCH(ROW()-2,Arkusz1!$C:$C,0)+5)) ->  | D75: =IF(ISERROR(MATCH(ROW()-2,Arkusz1!$C:$C,0)),"",INDEX('import danych'!$B:$B,MATCH(ROW()-2,Arkusz1!$C:$C,0)+5)) ->  | E75: =IF(ISERROR(MATCH(ROW()-2,Arkusz1!$C:$C,0)),"",INDEX(Arkusz1!I:I,MATCH(ROW()-2,Arkusz1!$C:$C,0))) ->  | F75: =IF(ISERROR(MATCH(ROW()-2,Arkusz1!$C:$C,0)),"",INDEX('import danych'!$H:$H,MATCH(ROW()-2,Arkusz1!$C:$C,0)+5)) ->  | G75: =IF(ISERROR(MATCH(ROW()-2,Arkusz1!$C:$C,0)),"",INDEX('import danych'!$L:$L,MATCH(ROW()-2,Arkusz1!$C:$C,0)+5)) -> 
A76: =IF(ISERROR(MATCH(ROW()-2,Arkusz1!$C:$C,0)),"",INDEX(Arkusz1!C:C,MATCH(ROW()-2,Arkusz1!$C:$C,0))) ->  | B76: =IF(ISERROR(MATCH(ROW()-2,Arkusz1!$C:$C,0)),"",INDEX('import danych'!$A:$A,MATCH(ROW()-2,Arkusz1!$C:$C,0)+5)) ->  | D76: =IF(ISERROR(MATCH(ROW()-2,Arkusz1!$C:$C,0)),"",INDEX('import danych'!$B:$B,MATCH(ROW()-2,Arkusz1!$C:$C,0)+5)) ->  | E76: =IF(ISERROR(MATCH(ROW()-2,Arkusz1!$C:$C,0)),"",INDEX(Arkusz1!I:I,MATCH(ROW()-2,Arkusz1!$C:$C,0))) ->  | F76: =IF(ISERROR(MATCH(ROW()-2,Arkusz1!$C:$C,0)),"",INDEX('import danych'!$H:$H,MATCH(ROW()-2,Arkusz1!$C:$C,0)+5)) ->  | G76: =IF(ISERROR(MATCH(ROW()-2,Arkusz1!$C:$C,0)),"",INDEX('import danych'!$L:$L,MATCH(ROW()-2,Arkusz1!$C:$C,0)+5)) -> 
A77: =IF(ISERROR(MATCH(ROW()-2,Arkusz1!$C:$C,0)),"",INDEX(Arkusz1!C:C,MATCH(ROW()-2,Arkusz1!$C:$C,0))) ->  | B77: =IF(ISERROR(MATCH(ROW()-2,Arkusz1!$C:$C,0)),"",INDEX('import danych'!$A:$A,MATCH(ROW()-2,Arkusz1!$C:$C,0)+5)) ->  | D77: =IF(ISERROR(MATCH(ROW()-2,Arkusz1!$C:$C,0)),"",INDEX('import danych'!$B:$B,MATCH(ROW()-2,Arkusz1!$C:$C,0)+5)) ->  | E77: =IF(ISERROR(MATCH(ROW()-2,Arkusz1!$C:$C,0)),"",INDEX(Arkusz1!I:I,MATCH(ROW()-2,Arkusz1!$C:$C,0))) ->  | F77: =IF(ISERROR(MATCH(ROW()-2,Arkusz1!$C:$C,0)),"",INDEX('import danych'!$H:$H,MATCH(ROW()-2,Arkusz1!$C:$C,0)+5)) ->  | G77: =IF(ISERROR(MATCH(ROW()-2,Arkusz1!$C:$C,0)),"",INDEX('import danych'!$L:$L,MATCH(ROW()-2,Arkusz1!$C:$C,0)+5)) -> 
A78: =IF(ISERROR(MATCH(ROW()-2,Arkusz1!$C:$C,0)),"",INDEX(Arkusz1!C:C,MATCH(ROW()-2,Arkusz1!$C:$C,0))) ->  | B78: =IF(ISERROR(MATCH(ROW()-2,Arkusz1!$C:$C,0)),"",INDEX('import danych'!$A:$A,MATCH(ROW()-2,Arkusz1!$C:$C,0)+5)) ->  | D78: =IF(ISERROR(MATCH(ROW()-2,Arkusz1!$C:$C,0)),"",INDEX('import danych'!$B:$B,MATCH(ROW()-2,Arkusz1!$C:$C,0)+5)) ->  | E78: =IF(ISERROR(MATCH(ROW()-2,Arkusz1!$C:$C,0)),"",INDEX(Arkusz1!I:I,MATCH(ROW()-2,Arkusz1!$C:$C,0))) ->  | F78: =IF(ISERROR(MATCH(ROW()-2,Arkusz1!$C:$C,0)),"",INDEX('import danych'!$H:$H,MATCH(ROW()-2,Arkusz1!$C:$C,0)+5)) ->  | G78: =IF(ISERROR(MATCH(ROW()-2,Arkusz1!$C:$C,0)),"",INDEX('import danych'!$L:$L,MATCH(ROW()-2,Arkusz1!$C:$C,0)+5)) -> 
A79: =IF(ISERROR(MATCH(ROW()-2,Arkusz1!$C:$C,0)),"",INDEX(Arkusz1!C:C,MATCH(ROW()-2,Arkusz1!$C:$C,0))) ->  | B79: =IF(ISERROR(MATCH(ROW()-2,Arkusz1!$C:$C,0)),"",INDEX('import danych'!$A:$A,MATCH(ROW()-2,Arkusz1!$C:$C,0)+5)) ->  | D79: =IF(ISERROR(MATCH(ROW()-2,Arkusz1!$C:$C,0)),"",INDEX('import danych'!$B:$B,MATCH(ROW()-2,Arkusz1!$C:$C,0)+5)) ->  | E79: =IF(ISERROR(MATCH(ROW()-2,Arkusz1!$C:$C,0)),"",INDEX(Arkusz1!I:I,MATCH(ROW()-2,Arkusz1!$C:$C,0))) ->  | F79: =IF(ISERROR(MATCH(ROW()-2,Arkusz1!$C:$C,0)),"",INDEX('import danych'!$H:$H,MATCH(ROW()-2,Arkusz1!$C:$C,0)+5)) ->  | G79: =IF(ISERROR(MATCH(ROW()-2,Arkusz1!$C:$C,0)),"",INDEX('import danych'!$L:$L,MATCH(ROW()-2,Arkusz1!$C:$C,0)+5)) -> 
A80: =IF(ISERROR(MATCH(ROW()-2,Arkusz1!$C:$C,0)),"",INDEX(Arkusz1!C:C,MATCH(ROW()-2,Arkusz1!$C:$C,0))) ->  | B80: =IF(ISERROR(MATCH(ROW()-2,Arkusz1!$C:$C,0)),"",INDEX('import danych'!$A:$A,MATCH(ROW()-2,Arkusz1!$C:$C,0)+5)) ->  | D80: =IF(ISERROR(MATCH(ROW()-2,Arkusz1!$C:$C,0)),"",INDEX('import danych'!$B:$B,MATCH(ROW()-2,Arkusz1!$C:$C,0)+5)) ->  | E80: =IF(ISERROR(MATCH(ROW()-2,Arkusz1!$C:$C,0)),"",INDEX(Arkusz1!I:I,MATCH(ROW()-2,Arkusz1!$C:$C,0))) ->  | F80: =IF(ISERROR(MATCH(ROW()-2,Arkusz1!$C:$C,0)),"",INDEX('import danych'!$H:$H,MATCH(ROW()-2,Arkusz1!$C:$C,0)+5)) ->  | G80: =IF(ISERROR(MATCH(ROW()-2,Arkusz1!$C:$C,0)),"",INDEX('import danych'!$L:$L,MATCH(ROW()-2,Arkusz1!$C:$C,0)+5)) -> 
A81: =IF(ISERROR(MATCH(ROW()-2,Arkusz1!$C:$C,0)),"",INDEX(Arkusz1!C:C,MATCH(ROW()-2,Arkusz1!$C:$C,0))) ->  | B81: =IF(ISERROR(MATCH(ROW()-2,Arkusz1!$C:$C,0)),"",INDEX('import danych'!$A:$A,MATCH(ROW()-2,Arkusz1!$C:$C,0)+5)) ->  | D81: =IF(ISERROR(MATCH(ROW()-2,Arkusz1!$C:$C,0)),"",INDEX('import danych'!$B:$B,MATCH(ROW()-2,Arkusz1!$C:$C,0)+5)) ->  | E81: =IF(ISERROR(MATCH(ROW()-2,Arkusz1!$C:$C,0)),"",INDEX(Arkusz1!I:I,MATCH(ROW()-2,Arkusz1!$C:$C,0))) ->  | F81: =IF(ISERROR(MATCH(ROW()-2,Arkusz1!$C:$C,0)),"",INDEX('import danych'!$H:$H,MATCH(ROW()-2,Arkusz1!$C:$C,0)+5)) ->  | G81: =IF(ISERROR(MATCH(ROW()-2,Arkusz1!$C:$C,0)),"",INDEX('import danych'!$L:$L,MATCH(ROW()-2,Arkusz1!$C:$C,0)+5)) -> 
A82: =IF(ISERROR(MATCH(ROW()-2,Arkusz1!$C:$C,0)),"",INDEX(Arkusz1!C:C,MATCH(ROW()-2,Arkusz1!$C:$C,0))) ->  | B82: =IF(ISERROR(MATCH(ROW()-2,Arkusz1!$C:$C,0)),"",INDEX('import danych'!$A:$A,MATCH(ROW()-2,Arkusz1!$C:$C,0)+5)) ->  | D82: =IF(ISERROR(MATCH(ROW()-2,Arkusz1!$C:$C,0)),"",INDEX('import danych'!$B:$B,MATCH(ROW()-2,Arkusz1!$C:$C,0)+5)) ->  | E82: =IF(ISERROR(MATCH(ROW()-2,Arkusz1!$C:$C,0)),"",INDEX(Arkusz1!I:I,MATCH(ROW()-2,Arkusz1!$C:$C,0))) ->  | F82: =IF(ISERROR(MATCH(ROW()-2,Arkusz1!$C:$C,0)),"",INDEX('import danych'!$H:$H,MATCH(ROW()-2,Arkusz1!$C:$C,0)+5)) ->  | G82: =IF(ISERROR(MATCH(ROW()-2,Arkusz1!$C:$C,0)),"",INDEX('import danych'!$L:$L,MATCH(ROW()-2,Arkusz1!$C:$C,0)+5)) -> 
A83: =IF(ISERROR(MATCH(ROW()-2,Arkusz1!$C:$C,0)),"",INDEX(Arkusz1!C:C,MATCH(ROW()-2,Arkusz1!$C:$C,0))) ->  | B83: =IF(ISERROR(MATCH(ROW()-2,Arkusz1!$C:$C,0)),"",INDEX('import danych'!$A:$A,MATCH(ROW()-2,Arkusz1!$C:$C,0)+5)) ->  | D83: =IF(ISERROR(MATCH(ROW()-2,Arkusz1!$C:$C,0)),"",INDEX('import danych'!$B:$B,MATCH(ROW()-2,Arkusz1!$C:$C,0)+5)) ->  | E83: =IF(ISERROR(MATCH(ROW()-2,Arkusz1!$C:$C,0)),"",INDEX(Arkusz1!I:I,MATCH(ROW()-2,Arkusz1!$C:$C,0))) ->  | F83: =IF(ISERROR(MATCH(ROW()-2,Arkusz1!$C:$C,0)),"",INDEX('import danych'!$H:$H,MATCH(ROW()-2,Arkusz1!$C:$C,0)+5)) ->  | G83: =IF(ISERROR(MATCH(ROW()-2,Arkusz1!$C:$C,0)),"",INDEX('import danych'!$L:$L,MATCH(ROW()-2,Arkusz1!$C:$C,0)+5)) -> 
A84: =IF(ISERROR(MATCH(ROW()-2,Arkusz1!$C:$C,0)),"",INDEX(Arkusz1!C:C,MATCH(ROW()-2,Arkusz1!$C:$C,0))) ->  | B84: =IF(ISERROR(MATCH(ROW()-2,Arkusz1!$C:$C,0)),"",INDEX('import danych'!$A:$A,MATCH(ROW()-2,Arkusz1!$C:$C,0)+5)) ->  | D84: =IF(ISERROR(MATCH(ROW()-2,Arkusz1!$C:$C,0)),"",INDEX('import danych'!$B:$B,MATCH(ROW()-2,Arkusz1!$C:$C,0)+5)) ->  | E84: =IF(ISERROR(MATCH(ROW()-2,Arkusz1!$C:$C,0)),"",INDEX(Arkusz1!I:I,MATCH(ROW()-2,Arkusz1!$C:$C,0))) ->  | F84: =IF(ISERROR(MATCH(ROW()-2,Arkusz1!$C:$C,0)),"",INDEX('import danych'!$H:$H,MATCH(ROW()-2,Arkusz1!$C:$C,0)+5)) ->  | G84: =IF(ISERROR(MATCH(ROW()-2,Arkusz1!$C:$C,0)),"",INDEX('import danych'!$L:$L,MATCH(ROW()-2,Arkusz1!$C:$C,0)+5)) -> 
A85: =IF(ISERROR(MATCH(ROW()-2,Arkusz1!$C:$C,0)),"",INDEX(Arkusz1!C:C,MATCH(ROW()-2,Arkusz1!$C:$C,0))) ->  | B85: =IF(ISERROR(MATCH(ROW()-2,Arkusz1!$C:$C,0)),"",INDEX('import danych'!$A:$A,MATCH(ROW()-2,Arkusz1!$C:$C,0)+5)) ->  | D85: =IF(ISERROR(MATCH(ROW()-2,Arkusz1!$C:$C,0)),"",INDEX('import danych'!$B:$B,MATCH(ROW()-2,Arkusz1!$C:$C,0)+5)) ->  | E85: =IF(ISERROR(MATCH(ROW()-2,Arkusz1!$C:$C,0)),"",INDEX(Arkusz1!I:I,MATCH(ROW()-2,Arkusz1!$C:$C,0))) ->  | F85: =IF(ISERROR(MATCH(ROW()-2,Arkusz1!$C:$C,0)),"",INDEX('import danych'!$H:$H,MATCH(ROW()-2,Arkusz1!$C:$C,0)+5)) ->  | G85: =IF(ISERROR(MATCH(ROW()-2,Arkusz1!$C:$C,0)),"",INDEX('import danych'!$L:$L,MATCH(ROW()-2,Arkusz1!$C:$C,0)+5)) -> 
A86: =IF(ISERROR(MATCH(ROW()-2,Arkusz1!$C:$C,0)),"",INDEX(Arkusz1!C:C,MATCH(ROW()-2,Arkusz1!$C:$C,0))) ->  | B86: =IF(ISERROR(MATCH(ROW()-2,Arkusz1!$C:$C,0)),"",INDEX('import danych'!$A:$A,MATCH(ROW()-2,Arkusz1!$C:$C,0)+5)) ->  | D86: =IF(ISERROR(MATCH(ROW()-2,Arkusz1!$C:$C,0)),"",INDEX('import danych'!$B:$B,MATCH(ROW()-2,Arkusz1!$C:$C,0)+5)) ->  | E86: =IF(ISERROR(MATCH(ROW()-2,Arkusz1!$C:$C,0)),"",INDEX(Arkusz1!I:I,MATCH(ROW()-2,Arkusz1!$C:$C,0))) ->  | F86: =IF(ISERROR(MATCH(ROW()-2,Arkusz1!$C:$C,0)),"",INDEX('import danych'!$H:$H,MATCH(ROW()-2,Arkusz1!$C:$C,0)+5)) ->  | G86: =IF(ISERROR(MATCH(ROW()-2,Arkusz1!$C:$C,0)),"",INDEX('import danych'!$L:$L,MATCH(ROW()-2,Arkusz1!$C:$C,0)+5)) -> 
A87: =IF(ISERROR(MATCH(ROW()-2,Arkusz1!$C:$C,0)),"",INDEX(Arkusz1!C:C,MATCH(ROW()-2,Arkusz1!$C:$C,0))) ->  | B87: =IF(ISERROR(MATCH(ROW()-2,Arkusz1!$C:$C,0)),"",INDEX('import danych'!$A:$A,MATCH(ROW()-2,Arkusz1!$C:$C,0)+5)) ->  | D87: =IF(ISERROR(MATCH(ROW()-2,Arkusz1!$C:$C,0)),"",INDEX('import danych'!$B:$B,MATCH(ROW()-2,Arkusz1!$C:$C,0)+5)) ->  | E87: =IF(ISERROR(MATCH(ROW()-2,Arkusz1!$C:$C,0)),"",INDEX(Arkusz1!I:I,MATCH(ROW()-2,Arkusz1!$C:$C,0))) ->  | F87: =IF(ISERROR(MATCH(ROW()-2,Arkusz1!$C:$C,0)),"",INDEX('import danych'!$H:$H,MATCH(ROW()-2,Arkusz1!$C:$C,0)+5)) ->  | G87: =IF(ISERROR(MATCH(ROW()-2,Arkusz1!$C:$C,0)),"",INDEX('import danych'!$L:$L,MATCH(ROW()-2,Arkusz1!$C:$C,0)+5)) -> 
A88: =IF(ISERROR(MATCH(ROW()-2,Arkusz1!$C:$C,0)),"",INDEX(Arkusz1!C:C,MATCH(ROW()-2,Arkusz1!$C:$C,0))) ->  | B88: =IF(ISERROR(MATCH(ROW()-2,Arkusz1!$C:$C,0)),"",INDEX('import danych'!$A:$A,MATCH(ROW()-2,Arkusz1!$C:$C,0)+5)) ->  | D88: =IF(ISERROR(MATCH(ROW()-2,Arkusz1!$C:$C,0)),"",INDEX('import danych'!$B:$B,MATCH(ROW()-2,Arkusz1!$C:$C,0)+5)) ->  | E88: =IF(ISERROR(MATCH(ROW()-2,Arkusz1!$C:$C,0)),"",INDEX(Arkusz1!I:I,MATCH(ROW()-2,Arkusz1!$C:$C,0))) ->  | F88: =IF(ISERROR(MATCH(ROW()-2,Arkusz1!$C:$C,0)),"",INDEX('import danych'!$H:$H,MATCH(ROW()-2,Arkusz1!$C:$C,0)+5)) ->  | G88: =IF(ISERROR(MATCH(ROW()-2,Arkusz1!$C:$C,0)),"",INDEX('import danych'!$L:$L,MATCH(ROW()-2,Arkusz1!$C:$C,0)+5)) -> 
A89: =IF(ISERROR(MATCH(ROW()-2,Arkusz1!$C:$C,0)),"",INDEX(Arkusz1!C:C,MATCH(ROW()-2,Arkusz1!$C:$C,0))) ->  | B89: =IF(ISERROR(MATCH(ROW()-2,Arkusz1!$C:$C,0)),"",INDEX('import danych'!$A:$A,MATCH(ROW()-2,Arkusz1!$C:$C,0)+5)) ->  | D89: =IF(ISERROR(MATCH(ROW()-2,Arkusz1!$C:$C,0)),"",INDEX('import danych'!$B:$B,MATCH(ROW()-2,Arkusz1!$C:$C,0)+5)) ->  | E89: =IF(ISERROR(MATCH(ROW()-2,Arkusz1!$C:$C,0)),"",INDEX(Arkusz1!I:I,MATCH(ROW()-2,Arkusz1!$C:$C,0))) ->  | F89: =IF(ISERROR(MATCH(ROW()-2,Arkusz1!$C:$C,0)),"",INDEX('import danych'!$H:$H,MATCH(ROW()-2,Arkusz1!$C:$C,0)+5)) ->  | G89: =IF(ISERROR(MATCH(ROW()-2,Arkusz1!$C:$C,0)),"",INDEX('import danych'!$L:$L,MATCH(ROW()-2,Arkusz1!$C:$C,0)+5)) -> 
A90: =IF(ISERROR(MATCH(ROW()-2,Arkusz1!$C:$C,0)),"",INDEX(Arkusz1!C:C,MATCH(ROW()-2,Arkusz1!$C:$C,0))) ->  | B90: =IF(ISERROR(MATCH(ROW()-2,Arkusz1!$C:$C,0)),"",INDEX('import danych'!$A:$A,MATCH(ROW()-2,Arkusz1!$C:$C,0)+5)) ->  | D90: =IF(ISERROR(MATCH(ROW()-2,Arkusz1!$C:$C,0)),"",INDEX('import danych'!$B:$B,MATCH(ROW()-2,Arkusz1!$C:$C,0)+5)) ->  | E90: =IF(ISERROR(MATCH(ROW()-2,Arkusz1!$C:$C,0)),"",INDEX(Arkusz1!I:I,MATCH(ROW()-2,Arkusz1!$C:$C,0))) ->  | F90: =IF(ISERROR(MATCH(ROW()-2,Arkusz1!$C:$C,0)),"",INDEX('import danych'!$H:$H,MATCH(ROW()-2,Arkusz1!$C:$C,0)+5)) ->  | G90: =IF(ISERROR(MATCH(ROW()-2,Arkusz1!$C:$C,0)),"",INDEX('import danych'!$L:$L,MATCH(ROW()-2,Arkusz1!$C:$C,0)+5)) -> 
A91: =IF(ISERROR(MATCH(ROW()-2,Arkusz1!$C:$C,0)),"",INDEX(Arkusz1!C:C,MATCH(ROW()-2,Arkusz1!$C:$C,0))) ->  | B91: =IF(ISERROR(MATCH(ROW()-2,Arkusz1!$C:$C,0)),"",INDEX('import danych'!$A:$A,MATCH(ROW()-2,Arkusz1!$C:$C,0)+5)) ->  | D91: =IF(ISERROR(MATCH(ROW()-2,Arkusz1!$C:$C,0)),"",INDEX('import danych'!$B:$B,MATCH(ROW()-2,Arkusz1!$C:$C,0)+5)) ->  | E91: =IF(ISERROR(MATCH(ROW()-2,Arkusz1!$C:$C,0)),"",INDEX(Arkusz1!I:I,MATCH(ROW()-2,Arkusz1!$C:$C,0))) ->  | F91: =IF(ISERROR(MATCH(ROW()-2,Arkusz1!$C:$C,0)),"",INDEX('import danych'!$H:$H,MATCH(ROW()-2,Arkusz1!$C:$C,0)+5)) ->  | G91: =IF(ISERROR(MATCH(ROW()-2,Arkusz1!$C:$C,0)),"",INDEX('import danych'!$L:$L,MATCH(ROW()-2,Arkusz1!$C:$C,0)+5)) -> 
A92: =IF(ISERROR(MATCH(ROW()-2,Arkusz1!$C:$C,0)),"",INDEX(Arkusz1!C:C,MATCH(ROW()-2,Arkusz1!$C:$C,0))) ->  | B92: =IF(ISERROR(MATCH(ROW()-2,Arkusz1!$C:$C,0)),"",INDEX('import danych'!$A:$A,MATCH(ROW()-2,Arkusz1!$C:$C,0)+5)) ->  | D92: =IF(ISERROR(MATCH(ROW()-2,Arkusz1!$C:$C,0)),"",INDEX('import danych'!$B:$B,MATCH(ROW()-2,Arkusz1!$C:$C,0)+5)) ->  | E92: =IF(ISERROR(MATCH(ROW()-2,Arkusz1!$C:$C,0)),"",INDEX(Arkusz1!I:I,MATCH(ROW()-2,Arkusz1!$C:$C,0))) ->  | F92: =IF(ISERROR(MATCH(ROW()-2,Arkusz1!$C:$C,0)),"",INDEX('import danych'!$H:$H,MATCH(ROW()-2,Arkusz1!$C:$C,0)+5)) ->  | G92: =IF(ISERROR(MATCH(ROW()-2,Arkusz1!$C:$C,0)),"",INDEX('import danych'!$L:$L,MATCH(ROW()-2,Arkusz1!$C:$C,0)+5)) -> 
A93: =IF(ISERROR(MATCH(ROW()-2,Arkusz1!$C:$C,0)),"",INDEX(Arkusz1!C:C,MATCH(ROW()-2,Arkusz1!$C:$C,0))) ->  | B93: =IF(ISERROR(MATCH(ROW()-2,Arkusz1!$C:$C,0)),"",INDEX('import danych'!$A:$A,MATCH(ROW()-2,Arkusz1!$C:$C,0)+5)) ->  | D93: =IF(ISERROR(MATCH(ROW()-2,Arkusz1!$C:$C,0)),"",INDEX('import danych'!$B:$B,MATCH(ROW()-2,Arkusz1!$C:$C,0)+5)) ->  | E93: =IF(ISERROR(MATCH(ROW()-2,Arkusz1!$C:$C,0)),"",INDEX(Arkusz1!I:I,MATCH(ROW()-2,Arkusz1!$C:$C,0))) ->  | F93: =IF(ISERROR(MATCH(ROW()-2,Arkusz1!$C:$C,0)),"",INDEX('import danych'!$H:$H,MATCH(ROW()-2,Arkusz1!$C:$C,0)+5)) ->  | G93: =IF(ISERROR(MATCH(ROW()-2,Arkusz1!$C:$C,0)),"",INDEX('import danych'!$L:$L,MATCH(ROW()-2,Arkusz1!$C:$C,0)+5)) -> 
A94: =IF(ISERROR(MATCH(ROW()-2,Arkusz1!$C:$C,0)),"",INDEX(Arkusz1!C:C,MATCH(ROW()-2,Arkusz1!$C:$C,0))) ->  | B94: =IF(ISERROR(MATCH(ROW()-2,Arkusz1!$C:$C,0)),"",INDEX('import danych'!$A:$A,MATCH(ROW()-2,Arkusz1!$C:$C,0)+5)) ->  | D94: =IF(ISERROR(MATCH(ROW()-2,Arkusz1!$C:$C,0)),"",INDEX('import danych'!$B:$B,MATCH(ROW()-2,Arkusz1!$C:$C,0)+5)) ->  | E94: =IF(ISERROR(MATCH(ROW()-2,Arkusz1!$C:$C,0)),"",INDEX(Arkusz1!I:I,MATCH(ROW()-2,Arkusz1!$C:$C,0))) ->  | F94: =IF(ISERROR(MATCH(ROW()-2,Arkusz1!$C:$C,0)),"",INDEX('import danych'!$H:$H,MATCH(ROW()-2,Arkusz1!$C:$C,0)+5)) ->  | G94: =IF(ISERROR(MATCH(ROW()-2,Arkusz1!$C:$C,0)),"",INDEX('import danych'!$L:$L,MATCH(ROW()-2,Arkusz1!$C:$C,0)+5)) -> 
A95: =IF(ISERROR(MATCH(ROW()-2,Arkusz1!$C:$C,0)),"",INDEX(Arkusz1!C:C,MATCH(ROW()-2,Arkusz1!$C:$C,0))) ->  | B95: =IF(ISERROR(MATCH(ROW()-2,Arkusz1!$C:$C,0)),"",INDEX('import danych'!$A:$A,MATCH(ROW()-2,Arkusz1!$C:$C,0)+5)) ->  | D95: =IF(ISERROR(MATCH(ROW()-2,Arkusz1!$C:$C,0)),"",INDEX('import danych'!$B:$B,MATCH(ROW()-2,Arkusz1!$C:$C,0)+5)) ->  | E95: =IF(ISERROR(MATCH(ROW()-2,Arkusz1!$C:$C,0)),"",INDEX(Arkusz1!I:I,MATCH(ROW()-2,Arkusz1!$C:$C,0))) ->  | F95: =IF(ISERROR(MATCH(ROW()-2,Arkusz1!$C:$C,0)),"",INDEX('import danych'!$H:$H,MATCH(ROW()-2,Arkusz1!$C:$C,0)+5)) ->  | G95: =IF(ISERROR(MATCH(ROW()-2,Arkusz1!$C:$C,0)),"",INDEX('import danych'!$L:$L,MATCH(ROW()-2,Arkusz1!$C:$C,0)+5)) -> 
A96: =IF(ISERROR(MATCH(ROW()-2,Arkusz1!$C:$C,0)),"",INDEX(Arkusz1!C:C,MATCH(ROW()-2,Arkusz1!$C:$C,0))) ->  | B96: =IF(ISERROR(MATCH(ROW()-2,Arkusz1!$C:$C,0)),"",INDEX('import danych'!$A:$A,MATCH(ROW()-2,Arkusz1!$C:$C,0)+5)) ->  | D96: =IF(ISERROR(MATCH(ROW()-2,Arkusz1!$C:$C,0)),"",INDEX('import danych'!$B:$B,MATCH(ROW()-2,Arkusz1!$C:$C,0)+5)) ->  | E96: =IF(ISERROR(MATCH(ROW()-2,Arkusz1!$C:$C,0)),"",INDEX(Arkusz1!I:I,MATCH(ROW()-2,Arkusz1!$C:$C,0))) ->  | F96: =IF(ISERROR(MATCH(ROW()-2,Arkusz1!$C:$C,0)),"",INDEX('import danych'!$H:$H,MATCH(ROW()-2,Arkusz1!$C:$C,0)+5)) ->  | G96: =IF(ISERROR(MATCH(ROW()-2,Arkusz1!$C:$C,0)),"",INDEX('import danych'!$L:$L,MATCH(ROW()-2,Arkusz1!$C:$C,0)+5)) -> 
A97: =IF(ISERROR(MATCH(ROW()-2,Arkusz1!$C:$C,0)),"",INDEX(Arkusz1!C:C,MATCH(ROW()-2,Arkusz1!$C:$C,0))) ->  | B97: =IF(ISERROR(MATCH(ROW()-2,Arkusz1!$C:$C,0)),"",INDEX('import danych'!$A:$A,MATCH(ROW()-2,Arkusz1!$C:$C,0)+5)) ->  | D97: =IF(ISERROR(MATCH(ROW()-2,Arkusz1!$C:$C,0)),"",INDEX('import danych'!$B:$B,MATCH(ROW()-2,Arkusz1!$C:$C,0)+5)) ->  | E97: =IF(ISERROR(MATCH(ROW()-2,Arkusz1!$C:$C,0)),"",INDEX(Arkusz1!I:I,MATCH(ROW()-2,Arkusz1!$C:$C,0))) ->  | F97: =IF(ISERROR(MATCH(ROW()-2,Arkusz1!$C:$C,0)),"",INDEX('import danych'!$H:$H,MATCH(ROW()-2,Arkusz1!$C:$C,0)+5)) ->  | G97: =IF(ISERROR(MATCH(ROW()-2,Arkusz1!$C:$C,0)),"",INDEX('import danych'!$L:$L,MATCH(ROW()-2,Arkusz1!$C:$C,0)+5)) -> 
A98: =IF(ISERROR(MATCH(ROW()-2,Arkusz1!$C:$C,0)),"",INDEX(Arkusz1!C:C,MATCH(ROW()-2,Arkusz1!$C:$C,0))) ->  | B98: =IF(ISERROR(MATCH(ROW()-2,Arkusz1!$C:$C,0)),"",INDEX('import danych'!$A:$A,MATCH(ROW()-2,Arkusz1!$C:$C,0)+5)) ->  | D98: =IF(ISERROR(MATCH(ROW()-2,Arkusz1!$C:$C,0)),"",INDEX('import danych'!$B:$B,MATCH(ROW()-2,Arkusz1!$C:$C,0)+5)) ->  | E98: =IF(ISERROR(MATCH(ROW()-2,Arkusz1!$C:$C,0)),"",INDEX(Arkusz1!I:I,MATCH(ROW()-2,Arkusz1!$C:$C,0))) ->  | F98: =IF(ISERROR(MATCH(ROW()-2,Arkusz1!$C:$C,0)),"",INDEX('import danych'!$H:$H,MATCH(ROW()-2,Arkusz1!$C:$C,0)+5)) ->  | G98: =IF(ISERROR(MATCH(ROW()-2,Arkusz1!$C:$C,0)),"",INDEX('import danych'!$L:$L,MATCH(ROW()-2,Arkusz1!$C:$C,0)+5)) -> 
A99: =IF(ISERROR(MATCH(ROW()-2,Arkusz1!$C:$C,0)),"",INDEX(Arkusz1!C:C,MATCH(ROW()-2,Arkusz1!$C:$C,0))) ->  | B99: =IF(ISERROR(MATCH(ROW()-2,Arkusz1!$C:$C,0)),"",INDEX('import danych'!$A:$A,MATCH(ROW()-2,Arkusz1!$C:$C,0)+5)) ->  | D99: =IF(ISERROR(MATCH(ROW()-2,Arkusz1!$C:$C,0)),"",INDEX('import danych'!$B:$B,MATCH(ROW()-2,Arkusz1!$C:$C,0)+5)) ->  | E99: =IF(ISERROR(MATCH(ROW()-2,Arkusz1!$C:$C,0)),"",INDEX(Arkusz1!I:I,MATCH(ROW()-2,Arkusz1!$C:$C,0))) ->  | F99: =IF(ISERROR(MATCH(ROW()-2,Arkusz1!$C:$C,0)),"",INDEX('import danych'!$H:$H,MATCH(ROW()-2,Arkusz1!$C:$C,0)+5)) ->  | G99: =IF(ISERROR(MATCH(ROW()-2,Arkusz1!$C:$C,0)),"",INDEX('import danych'!$L:$L,MATCH(ROW()-2,Arkusz1!$C:$C,0)+5)) -> 
A100: =IF(ISERROR(MATCH(ROW()-2,Arkusz1!$C:$C,0)),"",INDEX(Arkusz1!C:C,MATCH(ROW()-2,Arkusz1!$C:$C,0))) ->  | B100: =IF(ISERROR(MATCH(ROW()-2,Arkusz1!$C:$C,0)),"",INDEX('import danych'!$A:$A,MATCH(ROW()-2,Arkusz1!$C:$C,0)+5)) ->  | D100: =IF(ISERROR(MATCH(ROW()-2,Arkusz1!$C:$C,0)),"",INDEX('import danych'!$B:$B,MATCH(ROW()-2,Arkusz1!$C:$C,0)+5)) ->  | E100: =IF(ISERROR(MATCH(ROW()-2,Arkusz1!$C:$C,0)),"",INDEX(Arkusz1!I:I,MATCH(ROW()-2,Arkusz1!$C:$C,0))) ->  | F100: =IF(ISERROR(MATCH(ROW()-2,Arkusz1!$C:$C,0)),"",INDEX('import danych'!$H:$H,MATCH(ROW()-2,Arkusz1!$C:$C,0)+5)) ->  | G100: =IF(ISERROR(MATCH(ROW()-2,Arkusz1!$C:$C,0)),"",INDEX('import danych'!$L:$L,MATCH(ROW()-2,Arkusz1!$C:$C,0)+5)) -> 
A101: =IF(ISERROR(MATCH(ROW()-2,Arkusz1!$C:$C,0)),"",INDEX(Arkusz1!C:C,MATCH(ROW()-2,Arkusz1!$C:$C,0))) ->  | B101: =IF(ISERROR(MATCH(ROW()-2,Arkusz1!$C:$C,0)),"",INDEX('import danych'!$A:$A,MATCH(ROW()-2,Arkusz1!$C:$C,0)+5)) ->  | D101: =IF(ISERROR(MATCH(ROW()-2,Arkusz1!$C:$C,0)),"",INDEX('import danych'!$B:$B,MATCH(ROW()-2,Arkusz1!$C:$C,0)+5)) ->  | E101: =IF(ISERROR(MATCH(ROW()-2,Arkusz1!$C:$C,0)),"",INDEX(Arkusz1!I:I,MATCH(ROW()-2,Arkusz1!$C:$C,0))) ->  | F101: =IF(ISERROR(MATCH(ROW()-2,Arkusz1!$C:$C,0)),"",INDEX('import danych'!$H:$H,MATCH(ROW()-2,Arkusz1!$C:$C,0)+5)) ->  | G101: =IF(ISERROR(MATCH(ROW()-2,Arkusz1!$C:$C,0)),"",INDEX('import danych'!$L:$L,MATCH(ROW()-2,Arkusz1!$C:$C,0)+5)) -> 
A102: =IF(ISERROR(MATCH(ROW()-2,Arkusz1!$C:$C,0)),"",INDEX(Arkusz1!C:C,MATCH(ROW()-2,Arkusz1!$C:$C,0))) ->  | B102: =IF(ISERROR(MATCH(ROW()-2,Arkusz1!$C:$C,0)),"",INDEX('import danych'!$A:$A,MATCH(ROW()-2,Arkusz1!$C:$C,0)+5)) ->  | D102: =IF(ISERROR(MATCH(ROW()-2,Arkusz1!$C:$C,0)),"",INDEX('import danych'!$B:$B,MATCH(ROW()-2,Arkusz1!$C:$C,0)+5)) ->  | E102: =IF(ISERROR(MATCH(ROW()-2,Arkusz1!$C:$C,0)),"",INDEX(Arkusz1!I:I,MATCH(ROW()-2,Arkusz1!$C:$C,0))) ->  | F102: =IF(ISERROR(MATCH(ROW()-2,Arkusz1!$C:$C,0)),"",INDEX('import danych'!$H:$H,MATCH(ROW()-2,Arkusz1!$C:$C,0)+5)) ->  | G102: =IF(ISERROR(MATCH(ROW()-2,Arkusz1!$C:$C,0)),"",INDEX('import danych'!$L:$L,MATCH(ROW()-2,Arkusz1!$C:$C,0)+5)) -> 
A103: =IF(ISERROR(MATCH(ROW()-2,Arkusz1!$C:$C,0)),"",INDEX(Arkusz1!C:C,MATCH(ROW()-2,Arkusz1!$C:$C,0))) ->  | B103: =IF(ISERROR(MATCH(ROW()-2,Arkusz1!$C:$C,0)),"",INDEX('import danych'!$A:$A,MATCH(ROW()-2,Arkusz1!$C:$C,0)+5)) ->  | D103: =IF(ISERROR(MATCH(ROW()-2,Arkusz1!$C:$C,0)),"",INDEX('import danych'!$B:$B,MATCH(ROW()-2,Arkusz1!$C:$C,0)+5)) ->  | E103: =IF(ISERROR(MATCH(ROW()-2,Arkusz1!$C:$C,0)),"",INDEX(Arkusz1!I:I,MATCH(ROW()-2,Arkusz1!$C:$C,0))) ->  | F103: =IF(ISERROR(MATCH(ROW()-2,Arkusz1!$C:$C,0)),"",INDEX('import danych'!$H:$H,MATCH(ROW()-2,Arkusz1!$C:$C,0)+5)) ->  | G103: =IF(ISERROR(MATCH(ROW()-2,Arkusz1!$C:$C,0)),"",INDEX('import danych'!$L:$L,MATCH(ROW()-2,Arkusz1!$C:$C,0)+5)) -> 
A104: =IF(ISERROR(MATCH(ROW()-2,Arkusz1!$C:$C,0)),"",INDEX(Arkusz1!C:C,MATCH(ROW()-2,Arkusz1!$C:$C,0))) ->  | B104: =IF(ISERROR(MATCH(ROW()-2,Arkusz1!$C:$C,0)),"",INDEX('import danych'!$A:$A,MATCH(ROW()-2,Arkusz1!$C:$C,0)+5)) ->  | D104: =IF(ISERROR(MATCH(ROW()-2,Arkusz1!$C:$C,0)),"",INDEX('import danych'!$B:$B,MATCH(ROW()-2,Arkusz1!$C:$C,0)+5)) ->  | E104: =IF(ISERROR(MATCH(ROW()-2,Arkusz1!$C:$C,0)),"",INDEX(Arkusz1!I:I,MATCH(ROW()-2,Arkusz1!$C:$C,0))) ->  | F104: =IF(ISERROR(MATCH(ROW()-2,Arkusz1!$C:$C,0)),"",INDEX('import danych'!$H:$H,MATCH(ROW()-2,Arkusz1!$C:$C,0)+5)) ->  | G104: =IF(ISERROR(MATCH(ROW()-2,Arkusz1!$C:$C,0)),"",INDEX('import danych'!$L:$L,MATCH(ROW()-2,Arkusz1!$C:$C,0)+5)) -> 
A105: =IF(ISERROR(MATCH(ROW()-2,Arkusz1!$C:$C,0)),"",INDEX(Arkusz1!C:C,MATCH(ROW()-2,Arkusz1!$C:$C,0))) ->  | B105: =IF(ISERROR(MATCH(ROW()-2,Arkusz1!$C:$C,0)),"",INDEX('import danych'!$A:$A,MATCH(ROW()-2,Arkusz1!$C:$C,0)+5)) ->  | D105: =IF(ISERROR(MATCH(ROW()-2,Arkusz1!$C:$C,0)),"",INDEX('import danych'!$B:$B,MATCH(ROW()-2,Arkusz1!$C:$C,0)+5)) ->  | E105: =IF(ISERROR(MATCH(ROW()-2,Arkusz1!$C:$C,0)),"",INDEX(Arkusz1!I:I,MATCH(ROW()-2,Arkusz1!$C:$C,0))) ->  | F105: =IF(ISERROR(MATCH(ROW()-2,Arkusz1!$C:$C,0)),"",INDEX('import danych'!$H:$H,MATCH(ROW()-2,Arkusz1!$C:$C,0)+5)) ->  | G105: =IF(ISERROR(MATCH(ROW()-2,Arkusz1!$C:$C,0)),"",INDEX('import danych'!$L:$L,MATCH(ROW()-2,Arkusz1!$C:$C,0)+5)) -> 
A106: =IF(ISERROR(MATCH(ROW()-2,Arkusz1!$C:$C,0)),"",INDEX(Arkusz1!C:C,MATCH(ROW()-2,Arkusz1!$C:$C,0))) ->  | B106: =IF(ISERROR(MATCH(ROW()-2,Arkusz1!$C:$C,0)),"",INDEX('import danych'!$A:$A,MATCH(ROW()-2,Arkusz1!$C:$C,0)+5)) ->  | D106: =IF(ISERROR(MATCH(ROW()-2,Arkusz1!$C:$C,0)),"",INDEX('import danych'!$B:$B,MATCH(ROW()-2,Arkusz1!$C:$C,0)+5)) ->  | E106: =IF(ISERROR(MATCH(ROW()-2,Arkusz1!$C:$C,0)),"",INDEX(Arkusz1!I:I,MATCH(ROW()-2,Arkusz1!$C:$C,0))) ->  | F106: =IF(ISERROR(MATCH(ROW()-2,Arkusz1!$C:$C,0)),"",INDEX('import danych'!$H:$H,MATCH(ROW()-2,Arkusz1!$C:$C,0)+5)) ->  | G106: =IF(ISERROR(MATCH(ROW()-2,Arkusz1!$C:$C,0)),"",INDEX('import danych'!$L:$L,MATCH(ROW()-2,Arkusz1!$C:$C,0)+5)) -> 
A107: =IF(ISERROR(MATCH(ROW()-2,Arkusz1!$C:$C,0)),"",INDEX(Arkusz1!C:C,MATCH(ROW()-2,Arkusz1!$C:$C,0))) ->  | B107: =IF(ISERROR(MATCH(ROW()-2,Arkusz1!$C:$C,0)),"",INDEX('import danych'!$A:$A,MATCH(ROW()-2,Arkusz1!$C:$C,0)+5)) ->  | D107: =IF(ISERROR(MATCH(ROW()-2,Arkusz1!$C:$C,0)),"",INDEX('import danych'!$B:$B,MATCH(ROW()-2,Arkusz1!$C:$C,0)+5)) ->  | E107: =IF(ISERROR(MATCH(ROW()-2,Arkusz1!$C:$C,0)),"",INDEX(Arkusz1!I:I,MATCH(ROW()-2,Arkusz1!$C:$C,0))) ->  | F107: =IF(ISERROR(MATCH(ROW()-2,Arkusz1!$C:$C,0)),"",INDEX('import danych'!$H:$H,MATCH(ROW()-2,Arkusz1!$C:$C,0)+5)) ->  | G107: =IF(ISERROR(MATCH(ROW()-2,Arkusz1!$C:$C,0)),"",INDEX('import danych'!$L:$L,MATCH(ROW()-2,Arkusz1!$C:$C,0)+5)) -> 
A108: =IF(ISERROR(MATCH(ROW()-2,Arkusz1!$C:$C,0)),"",INDEX(Arkusz1!C:C,MATCH(ROW()-2,Arkusz1!$C:$C,0))) ->  | B108: =IF(ISERROR(MATCH(ROW()-2,Arkusz1!$C:$C,0)),"",INDEX('import danych'!$A:$A,MATCH(ROW()-2,Arkusz1!$C:$C,0)+5)) ->  | D108: =IF(ISERROR(MATCH(ROW()-2,Arkusz1!$C:$C,0)),"",INDEX('import danych'!$B:$B,MATCH(ROW()-2,Arkusz1!$C:$C,0)+5)) ->  | E108: =IF(ISERROR(MATCH(ROW()-2,Arkusz1!$C:$C,0)),"",INDEX(Arkusz1!I:I,MATCH(ROW()-2,Arkusz1!$C:$C,0))) ->  | F108: =IF(ISERROR(MATCH(ROW()-2,Arkusz1!$C:$C,0)),"",INDEX('import danych'!$H:$H,MATCH(ROW()-2,Arkusz1!$C:$C,0)+5)) ->  | G108: =IF(ISERROR(MATCH(ROW()-2,Arkusz1!$C:$C,0)),"",INDEX('import danych'!$L:$L,MATCH(ROW()-2,Arkusz1!$C:$C,0)+5)) -> 
A109: =IF(ISERROR(MATCH(ROW()-2,Arkusz1!$C:$C,0)),"",INDEX(Arkusz1!C:C,MATCH(ROW()-2,Arkusz1!$C:$C,0))) ->  | B109: =IF(ISERROR(MATCH(ROW()-2,Arkusz1!$C:$C,0)),"",INDEX('import danych'!$A:$A,MATCH(ROW()-2,Arkusz1!$C:$C,0)+5)) ->  | D109: =IF(ISERROR(MATCH(ROW()-2,Arkusz1!$C:$C,0)),"",INDEX('import danych'!$B:$B,MATCH(ROW()-2,Arkusz1!$C:$C,0)+5)) ->  | E109: =IF(ISERROR(MATCH(ROW()-2,Arkusz1!$C:$C,0)),"",INDEX(Arkusz1!I:I,MATCH(ROW()-2,Arkusz1!$C:$C,0))) ->  | F109: =IF(ISERROR(MATCH(ROW()-2,Arkusz1!$C:$C,0)),"",INDEX('import danych'!$H:$H,MATCH(ROW()-2,Arkusz1!$C:$C,0)+5)) ->  | G109: =IF(ISERROR(MATCH(ROW()-2,Arkusz1!$C:$C,0)),"",INDEX('import danych'!$L:$L,MATCH(ROW()-2,Arkusz1!$C:$C,0)+5)) -> 
A110: =IF(ISERROR(MATCH(ROW()-2,Arkusz1!$C:$C,0)),"",INDEX(Arkusz1!C:C,MATCH(ROW()-2,Arkusz1!$C:$C,0))) ->  | B110: =IF(ISERROR(MATCH(ROW()-2,Arkusz1!$C:$C,0)),"",INDEX('import danych'!$A:$A,MATCH(ROW()-2,Arkusz1!$C:$C,0)+5)) ->  | D110: =IF(ISERROR(MATCH(ROW()-2,Arkusz1!$C:$C,0)),"",INDEX('import danych'!$B:$B,MATCH(ROW()-2,Arkusz1!$C:$C,0)+5)) ->  | E110: =IF(ISERROR(MATCH(ROW()-2,Arkusz1!$C:$C,0)),"",INDEX(Arkusz1!I:I,MATCH(ROW()-2,Arkusz1!$C:$C,0))) ->  | F110: =IF(ISERROR(MATCH(ROW()-2,Arkusz1!$C:$C,0)),"",INDEX('import danych'!$H:$H,MATCH(ROW()-2,Arkusz1!$C:$C,0)+5)) ->  | G110: =IF(ISERROR(MATCH(ROW()-2,Arkusz1!$C:$C,0)),"",INDEX('import danych'!$L:$L,MATCH(ROW()-2,Arkusz1!$C:$C,0)+5)) -> 
A111: =IF(ISERROR(MATCH(ROW()-2,Arkusz1!$C:$C,0)),"",INDEX(Arkusz1!C:C,MATCH(ROW()-2,Arkusz1!$C:$C,0))) ->  | B111: =IF(ISERROR(MATCH(ROW()-2,Arkusz1!$C:$C,0)),"",INDEX('import danych'!$A:$A,MATCH(ROW()-2,Arkusz1!$C:$C,0)+5)) ->  | D111: =IF(ISERROR(MATCH(ROW()-2,Arkusz1!$C:$C,0)),"",INDEX('import danych'!$B:$B,MATCH(ROW()-2,Arkusz1!$C:$C,0)+5)) ->  | E111: =IF(ISERROR(MATCH(ROW()-2,Arkusz1!$C:$C,0)),"",INDEX(Arkusz1!I:I,MATCH(ROW()-2,Arkusz1!$C:$C,0))) ->  | F111: =IF(ISERROR(MATCH(ROW()-2,Arkusz1!$C:$C,0)),"",INDEX('import danych'!$H:$H,MATCH(ROW()-2,Arkusz1!$C:$C,0)+5)) ->  | G111: =IF(ISERROR(MATCH(ROW()-2,Arkusz1!$C:$C,0)),"",INDEX('import danych'!$L:$L,MATCH(ROW()-2,Arkusz1!$C:$C,0)+5)) -> 
A112: =IF(ISERROR(MATCH(ROW()-2,Arkusz1!$C:$C,0)),"",INDEX(Arkusz1!C:C,MATCH(ROW()-2,Arkusz1!$C:$C,0))) ->  | B112: =IF(ISERROR(MATCH(ROW()-2,Arkusz1!$C:$C,0)),"",INDEX('import danych'!$A:$A,MATCH(ROW()-2,Arkusz1!$C:$C,0)+5)) ->  | D112: =IF(ISERROR(MATCH(ROW()-2,Arkusz1!$C:$C,0)),"",INDEX('import danych'!$B:$B,MATCH(ROW()-2,Arkusz1!$C:$C,0)+5)) ->  | E112: =IF(ISERROR(MATCH(ROW()-2,Arkusz1!$C:$C,0)),"",INDEX(Arkusz1!I:I,MATCH(ROW()-2,Arkusz1!$C:$C,0))) ->  | F112: =IF(ISERROR(MATCH(ROW()-2,Arkusz1!$C:$C,0)),"",INDEX('import danych'!$H:$H,MATCH(ROW()-2,Arkusz1!$C:$C,0)+5)) ->  | G112: =IF(ISERROR(MATCH(ROW()-2,Arkusz1!$C:$C,0)),"",INDEX('import danych'!$L:$L,MATCH(ROW()-2,Arkusz1!$C:$C,0)+5)) -> 
A113: =IF(ISERROR(MATCH(ROW()-2,Arkusz1!$C:$C,0)),"",INDEX(Arkusz1!C:C,MATCH(ROW()-2,Arkusz1!$C:$C,0))) ->  | B113: =IF(ISERROR(MATCH(ROW()-2,Arkusz1!$C:$C,0)),"",INDEX('import danych'!$A:$A,MATCH(ROW()-2,Arkusz1!$C:$C,0)+5)) ->  | D113: =IF(ISERROR(MATCH(ROW()-2,Arkusz1!$C:$C,0)),"",INDEX('import danych'!$B:$B,MATCH(ROW()-2,Arkusz1!$C:$C,0)+5)) ->  | E113: =IF(ISERROR(MATCH(ROW()-2,Arkusz1!$C:$C,0)),"",INDEX(Arkusz1!I:I,MATCH(ROW()-2,Arkusz1!$C:$C,0))) ->  | F113: =IF(ISERROR(MATCH(ROW()-2,Arkusz1!$C:$C,0)),"",INDEX('import danych'!$H:$H,MATCH(ROW()-2,Arkusz1!$C:$C,0)+5)) ->  | G113: =IF(ISERROR(MATCH(ROW()-2,Arkusz1!$C:$C,0)),"",INDEX('import danych'!$L:$L,MATCH(ROW()-2,Arkusz1!$C:$C,0)+5)) -> 
A114: =IF(ISERROR(MATCH(ROW()-2,Arkusz1!$C:$C,0)),"",INDEX(Arkusz1!C:C,MATCH(ROW()-2,Arkusz1!$C:$C,0))) ->  | B114: =IF(ISERROR(MATCH(ROW()-2,Arkusz1!$C:$C,0)),"",INDEX('import danych'!$A:$A,MATCH(ROW()-2,Arkusz1!$C:$C,0)+5)) ->  | D114: =IF(ISERROR(MATCH(ROW()-2,Arkusz1!$C:$C,0)),"",INDEX('import danych'!$B:$B,MATCH(ROW()-2,Arkusz1!$C:$C,0)+5)) ->  | E114: =IF(ISERROR(MATCH(ROW()-2,Arkusz1!$C:$C,0)),"",INDEX(Arkusz1!I:I,MATCH(ROW()-2,Arkusz1!$C:$C,0))) ->  | F114: =IF(ISERROR(MATCH(ROW()-2,Arkusz1!$C:$C,0)),"",INDEX('import danych'!$H:$H,MATCH(ROW()-2,Arkusz1!$C:$C,0)+5)) ->  | G114: =IF(ISERROR(MATCH(ROW()-2,Arkusz1!$C:$C,0)),"",INDEX('import danych'!$L:$L,MATCH(ROW()-2,Arkusz1!$C:$C,0)+5)) -> 
A115: =IF(ISERROR(MATCH(ROW()-2,Arkusz1!$C:$C,0)),"",INDEX(Arkusz1!C:C,MATCH(ROW()-2,Arkusz1!$C:$C,0))) ->  | B115: =IF(ISERROR(MATCH(ROW()-2,Arkusz1!$C:$C,0)),"",INDEX('import danych'!$A:$A,MATCH(ROW()-2,Arkusz1!$C:$C,0)+5)) ->  | D115: =IF(ISERROR(MATCH(ROW()-2,Arkusz1!$C:$C,0)),"",INDEX('import danych'!$B:$B,MATCH(ROW()-2,Arkusz1!$C:$C,0)+5)) ->  | E115: =IF(ISERROR(MATCH(ROW()-2,Arkusz1!$C:$C,0)),"",INDEX(Arkusz1!I:I,MATCH(ROW()-2,Arkusz1!$C:$C,0))) ->  | F115: =IF(ISERROR(MATCH(ROW()-2,Arkusz1!$C:$C,0)),"",INDEX('import danych'!$H:$H,MATCH(ROW()-2,Arkusz1!$C:$C,0)+5)) ->  | G115: =IF(ISERROR(MATCH(ROW()-2,Arkusz1!$C:$C,0)),"",INDEX('import danych'!$L:$L,MATCH(ROW()-2,Arkusz1!$C:$C,0)+5)) -> 
A116: =IF(ISERROR(MATCH(ROW()-2,Arkusz1!$C:$C,0)),"",INDEX(Arkusz1!C:C,MATCH(ROW()-2,Arkusz1!$C:$C,0))) ->  | B116: =IF(ISERROR(MATCH(ROW()-2,Arkusz1!$C:$C,0)),"",INDEX('import danych'!$A:$A,MATCH(ROW()-2,Arkusz1!$C:$C,0)+5)) ->  | D116: =IF(ISERROR(MATCH(ROW()-2,Arkusz1!$C:$C,0)),"",INDEX('import danych'!$B:$B,MATCH(ROW()-2,Arkusz1!$C:$C,0)+5)) ->  | E116: =IF(ISERROR(MATCH(ROW()-2,Arkusz1!$C:$C,0)),"",INDEX(Arkusz1!I:I,MATCH(ROW()-2,Arkusz1!$C:$C,0))) ->  | F116: =IF(ISERROR(MATCH(ROW()-2,Arkusz1!$C:$C,0)),"",INDEX('import danych'!$H:$H,MATCH(ROW()-2,Arkusz1!$C:$C,0)+5)) ->  | G116: =IF(ISERROR(MATCH(ROW()-2,Arkusz1!$C:$C,0)),"",INDEX('import danych'!$L:$L,MATCH(ROW()-2,Arkusz1!$C:$C,0)+5)) -> 
A117: =IF(ISERROR(MATCH(ROW()-2,Arkusz1!$C:$C,0)),"",INDEX(Arkusz1!C:C,MATCH(ROW()-2,Arkusz1!$C:$C,0))) ->  | B117: =IF(ISERROR(MATCH(ROW()-2,Arkusz1!$C:$C,0)),"",INDEX('import danych'!$A:$A,MATCH(ROW()-2,Arkusz1!$C:$C,0)+5)) ->  | D117: =IF(ISERROR(MATCH(ROW()-2,Arkusz1!$C:$C,0)),"",INDEX('import danych'!$B:$B,MATCH(ROW()-2,Arkusz1!$C:$C,0)+5)) ->  | E117: =IF(ISERROR(MATCH(ROW()-2,Arkusz1!$C:$C,0)),"",INDEX(Arkusz1!I:I,MATCH(ROW()-2,Arkusz1!$C:$C,0))) ->  | F117: =IF(ISERROR(MATCH(ROW()-2,Arkusz1!$C:$C,0)),"",INDEX('import danych'!$H:$H,MATCH(ROW()-2,Arkusz1!$C:$C,0)+5)) ->  | G117: =IF(ISERROR(MATCH(ROW()-2,Arkusz1!$C:$C,0)),"",INDEX('import danych'!$L:$L,MATCH(ROW()-2,Arkusz1!$C:$C,0)+5)) -> 
A118: =IF(ISERROR(MATCH(ROW()-2,Arkusz1!$C:$C,0)),"",INDEX(Arkusz1!C:C,MATCH(ROW()-2,Arkusz1!$C:$C,0))) ->  | B118: =IF(ISERROR(MATCH(ROW()-2,Arkusz1!$C:$C,0)),"",INDEX('import danych'!$A:$A,MATCH(ROW()-2,Arkusz1!$C:$C,0)+5)) ->  | D118: =IF(ISERROR(MATCH(ROW()-2,Arkusz1!$C:$C,0)),"",INDEX('import danych'!$B:$B,MATCH(ROW()-2,Arkusz1!$C:$C,0)+5)) ->  | E118: =IF(ISERROR(MATCH(ROW()-2,Arkusz1!$C:$C,0)),"",INDEX(Arkusz1!I:I,MATCH(ROW()-2,Arkusz1!$C:$C,0))) ->  | F118: =IF(ISERROR(MATCH(ROW()-2,Arkusz1!$C:$C,0)),"",INDEX('import danych'!$H:$H,MATCH(ROW()-2,Arkusz1!$C:$C,0)+5)) ->  | G118: =IF(ISERROR(MATCH(ROW()-2,Arkusz1!$C:$C,0)),"",INDEX('import danych'!$L:$L,MATCH(ROW()-2,Arkusz1!$C:$C,0)+5)) -> 
A119: =IF(ISERROR(MATCH(ROW()-2,Arkusz1!$C:$C,0)),"",INDEX(Arkusz1!C:C,MATCH(ROW()-2,Arkusz1!$C:$C,0))) ->  | B119: =IF(ISERROR(MATCH(ROW()-2,Arkusz1!$C:$C,0)),"",INDEX('import danych'!$A:$A,MATCH(ROW()-2,Arkusz1!$C:$C,0)+5)) ->  | D119: =IF(ISERROR(MATCH(ROW()-2,Arkusz1!$C:$C,0)),"",INDEX('import danych'!$B:$B,MATCH(ROW()-2,Arkusz1!$C:$C,0)+5)) ->  | E119: =IF(ISERROR(MATCH(ROW()-2,Arkusz1!$C:$C,0)),"",INDEX(Arkusz1!I:I,MATCH(ROW()-2,Arkusz1!$C:$C,0))) ->  | F119: =IF(ISERROR(MATCH(ROW()-2,Arkusz1!$C:$C,0)),"",INDEX('import danych'!$H:$H,MATCH(ROW()-2,Arkusz1!$C:$C,0)+5)) ->  | G119: =IF(ISERROR(MATCH(ROW()-2,Arkusz1!$C:$C,0)),"",INDEX('import danych'!$L:$L,MATCH(ROW()-2,Arkusz1!$C:$C,0)+5)) -> 
A120: =IF(ISERROR(MATCH(ROW()-2,Arkusz1!$C:$C,0)),"",INDEX(Arkusz1!C:C,MATCH(ROW()-2,Arkusz1!$C:$C,0))) ->  | B120: =IF(ISERROR(MATCH(ROW()-2,Arkusz1!$C:$C,0)),"",INDEX('import danych'!$A:$A,MATCH(ROW()-2,Arkusz1!$C:$C,0)+5)) ->  | D120: =IF(ISERROR(MATCH(ROW()-2,Arkusz1!$C:$C,0)),"",INDEX('import danych'!$B:$B,MATCH(ROW()-2,Arkusz1!$C:$C,0)+5)) ->  | E120: =IF(ISERROR(MATCH(ROW()-2,Arkusz1!$C:$C,0)),"",INDEX(Arkusz1!I:I,MATCH(ROW()-2,Arkusz1!$C:$C,0))) ->  | F120: =IF(ISERROR(MATCH(ROW()-2,Arkusz1!$C:$C,0)),"",INDEX('import danych'!$H:$H,MATCH(ROW()-2,Arkusz1!$C:$C,0)+5)) ->  | G120: =IF(ISERROR(MATCH(ROW()-2,Arkusz1!$C:$C,0)),"",INDEX('import danych'!$L:$L,MATCH(ROW()-2,Arkusz1!$C:$C,0)+5)) -> 
A121: =IF(ISERROR(MATCH(ROW()-2,Arkusz1!$C:$C,0)),"",INDEX(Arkusz1!C:C,MATCH(ROW()-2,Arkusz1!$C:$C,0))) ->  | B121: =IF(ISERROR(MATCH(ROW()-2,Arkusz1!$C:$C,0)),"",INDEX('import danych'!$A:$A,MATCH(ROW()-2,Arkusz1!$C:$C,0)+5)) ->  | D121: =IF(ISERROR(MATCH(ROW()-2,Arkusz1!$C:$C,0)),"",INDEX('import danych'!$B:$B,MATCH(ROW()-2,Arkusz1!$C:$C,0)+5)) ->  | E121: =IF(ISERROR(MATCH(ROW()-2,Arkusz1!$C:$C,0)),"",INDEX(Arkusz1!I:I,MATCH(ROW()-2,Arkusz1!$C:$C,0))) ->  | F121: =IF(ISERROR(MATCH(ROW()-2,Arkusz1!$C:$C,0)),"",INDEX('import danych'!$H:$H,MATCH(ROW()-2,Arkusz1!$C:$C,0)+5)) ->  | G121: =IF(ISERROR(MATCH(ROW()-2,Arkusz1!$C:$C,0)),"",INDEX('import danych'!$L:$L,MATCH(ROW()-2,Arkusz1!$C:$C,0)+5)) -> 
A122: =IF(ISERROR(MATCH(ROW()-2,Arkusz1!$C:$C,0)),"",INDEX(Arkusz1!C:C,MATCH(ROW()-2,Arkusz1!$C:$C,0))) ->  | B122: =IF(ISERROR(MATCH(ROW()-2,Arkusz1!$C:$C,0)),"",INDEX('import danych'!$A:$A,MATCH(ROW()-2,Arkusz1!$C:$C,0)+5)) ->  | D122: =IF(ISERROR(MATCH(ROW()-2,Arkusz1!$C:$C,0)),"",INDEX('import danych'!$B:$B,MATCH(ROW()-2,Arkusz1!$C:$C,0)+5)) ->  | E122: =IF(ISERROR(MATCH(ROW()-2,Arkusz1!$C:$C,0)),"",INDEX(Arkusz1!I:I,MATCH(ROW()-2,Arkusz1!$C:$C,0))) ->  | F122: =IF(ISERROR(MATCH(ROW()-2,Arkusz1!$C:$C,0)),"",INDEX('import danych'!$H:$H,MATCH(ROW()-2,Arkusz1!$C:$C,0)+5)) ->  | G122: =IF(ISERROR(MATCH(ROW()-2,Arkusz1!$C:$C,0)),"",INDEX('import danych'!$L:$L,MATCH(ROW()-2,Arkusz1!$C:$C,0)+5)) -> 
A123: =IF(ISERROR(MATCH(ROW()-2,Arkusz1!$C:$C,0)),"",INDEX(Arkusz1!C:C,MATCH(ROW()-2,Arkusz1!$C:$C,0))) ->  | B123: =IF(ISERROR(MATCH(ROW()-2,Arkusz1!$C:$C,0)),"",INDEX('import danych'!$A:$A,MATCH(ROW()-2,Arkusz1!$C:$C,0)+5)) ->  | D123: =IF(ISERROR(MATCH(ROW()-2,Arkusz1!$C:$C,0)),"",INDEX('import danych'!$B:$B,MATCH(ROW()-2,Arkusz1!$C:$C,0)+5)) ->  | E123: =IF(ISERROR(MATCH(ROW()-2,Arkusz1!$C:$C,0)),"",INDEX(Arkusz1!I:I,MATCH(ROW()-2,Arkusz1!$C:$C,0))) ->  | F123: =IF(ISERROR(MATCH(ROW()-2,Arkusz1!$C:$C,0)),"",INDEX('import danych'!$H:$H,MATCH(ROW()-2,Arkusz1!$C:$C,0)+5)) ->  | G123: =IF(ISERROR(MATCH(ROW()-2,Arkusz1!$C:$C,0)),"",INDEX('import danych'!$L:$L,MATCH(ROW()-2,Arkusz1!$C:$C,0)+5)) -> 
A124: =IF(ISERROR(MATCH(ROW()-2,Arkusz1!$C:$C,0)),"",INDEX(Arkusz1!C:C,MATCH(ROW()-2,Arkusz1!$C:$C,0))) ->  | B124: =IF(ISERROR(MATCH(ROW()-2,Arkusz1!$C:$C,0)),"",INDEX('import danych'!$A:$A,MATCH(ROW()-2,Arkusz1!$C:$C,0)+5)) ->  | D124: =IF(ISERROR(MATCH(ROW()-2,Arkusz1!$C:$C,0)),"",INDEX('import danych'!$B:$B,MATCH(ROW()-2,Arkusz1!$C:$C,0)+5)) ->  | E124: =IF(ISERROR(MATCH(ROW()-2,Arkusz1!$C:$C,0)),"",INDEX(Arkusz1!I:I,MATCH(ROW()-2,Arkusz1!$C:$C,0))) ->  | F124: =IF(ISERROR(MATCH(ROW()-2,Arkusz1!$C:$C,0)),"",INDEX('import danych'!$H:$H,MATCH(ROW()-2,Arkusz1!$C:$C,0)+5)) ->  | G124: =IF(ISERROR(MATCH(ROW()-2,Arkusz1!$C:$C,0)),"",INDEX('import danych'!$L:$L,MATCH(ROW()-2,Arkusz1!$C:$C,0)+5)) -> 
A125: =IF(ISERROR(MATCH(ROW()-2,Arkusz1!$C:$C,0)),"",INDEX(Arkusz1!C:C,MATCH(ROW()-2,Arkusz1!$C:$C,0))) ->  | B125: =IF(ISERROR(MATCH(ROW()-2,Arkusz1!$C:$C,0)),"",INDEX('import danych'!$A:$A,MATCH(ROW()-2,Arkusz1!$C:$C,0)+5)) ->  | D125: =IF(ISERROR(MATCH(ROW()-2,Arkusz1!$C:$C,0)),"",INDEX('import danych'!$B:$B,MATCH(ROW()-2,Arkusz1!$C:$C,0)+5)) ->  | E125: =IF(ISERROR(MATCH(ROW()-2,Arkusz1!$C:$C,0)),"",INDEX(Arkusz1!I:I,MATCH(ROW()-2,Arkusz1!$C:$C,0))) ->  | F125: =IF(ISERROR(MATCH(ROW()-2,Arkusz1!$C:$C,0)),"",INDEX('import danych'!$H:$H,MATCH(ROW()-2,Arkusz1!$C:$C,0)+5)) ->  | G125: =IF(ISERROR(MATCH(ROW()-2,Arkusz1!$C:$C,0)),"",INDEX('import danych'!$L:$L,MATCH(ROW()-2,Arkusz1!$C:$C,0)+5)) -> 
A126: =IF(ISERROR(MATCH(ROW()-2,Arkusz1!$C:$C,0)),"",INDEX(Arkusz1!C:C,MATCH(ROW()-2,Arkusz1!$C:$C,0))) ->  | B126: =IF(ISERROR(MATCH(ROW()-2,Arkusz1!$C:$C,0)),"",INDEX('import danych'!$A:$A,MATCH(ROW()-2,Arkusz1!$C:$C,0)+5)) ->  | D126: =IF(ISERROR(MATCH(ROW()-2,Arkusz1!$C:$C,0)),"",INDEX('import danych'!$B:$B,MATCH(ROW()-2,Arkusz1!$C:$C,0)+5)) ->  | E126: =IF(ISERROR(MATCH(ROW()-2,Arkusz1!$C:$C,0)),"",INDEX(Arkusz1!I:I,MATCH(ROW()-2,Arkusz1!$C:$C,0))) ->  | F126: =IF(ISERROR(MATCH(ROW()-2,Arkusz1!$C:$C,0)),"",INDEX('import danych'!$H:$H,MATCH(ROW()-2,Arkusz1!$C:$C,0)+5)) ->  | G126: =IF(ISERROR(MATCH(ROW()-2,Arkusz1!$C:$C,0)),"",INDEX('import danych'!$L:$L,MATCH(ROW()-2,Arkusz1!$C:$C,0)+5)) -> 
A127: =IF(ISERROR(MATCH(ROW()-2,Arkusz1!$C:$C,0)),"",INDEX(Arkusz1!C:C,MATCH(ROW()-2,Arkusz1!$C:$C,0))) ->  | B127: =IF(ISERROR(MATCH(ROW()-2,Arkusz1!$C:$C,0)),"",INDEX('import danych'!$A:$A,MATCH(ROW()-2,Arkusz1!$C:$C,0)+5)) ->  | D127: =IF(ISERROR(MATCH(ROW()-2,Arkusz1!$C:$C,0)),"",INDEX('import danych'!$B:$B,MATCH(ROW()-2,Arkusz1!$C:$C,0)+5)) ->  | E127: =IF(ISERROR(MATCH(ROW()-2,Arkusz1!$C:$C,0)),"",INDEX(Arkusz1!I:I,MATCH(ROW()-2,Arkusz1!$C:$C,0))) ->  | F127: =IF(ISERROR(MATCH(ROW()-2,Arkusz1!$C:$C,0)),"",INDEX('import danych'!$H:$H,MATCH(ROW()-2,Arkusz1!$C:$C,0)+5)) ->  | G127: =IF(ISERROR(MATCH(ROW()-2,Arkusz1!$C:$C,0)),"",INDEX('import danych'!$L:$L,MATCH(ROW()-2,Arkusz1!$C:$C,0)+5)) -> 
A128: =IF(ISERROR(MATCH(ROW()-2,Arkusz1!$C:$C,0)),"",INDEX(Arkusz1!C:C,MATCH(ROW()-2,Arkusz1!$C:$C,0))) ->  | B128: =IF(ISERROR(MATCH(ROW()-2,Arkusz1!$C:$C,0)),"",INDEX('import danych'!$A:$A,MATCH(ROW()-2,Arkusz1!$C:$C,0)+5)) ->  | D128: =IF(ISERROR(MATCH(ROW()-2,Arkusz1!$C:$C,0)),"",INDEX('import danych'!$B:$B,MATCH(ROW()-2,Arkusz1!$C:$C,0)+5)) ->  | E128: =IF(ISERROR(MATCH(ROW()-2,Arkusz1!$C:$C,0)),"",INDEX(Arkusz1!I:I,MATCH(ROW()-2,Arkusz1!$C:$C,0))) ->  | F128: =IF(ISERROR(MATCH(ROW()-2,Arkusz1!$C:$C,0)),"",INDEX('import danych'!$H:$H,MATCH(ROW()-2,Arkusz1!$C:$C,0)+5)) ->  | G128: =IF(ISERROR(MATCH(ROW()-2,Arkusz1!$C:$C,0)),"",INDEX('import danych'!$L:$L,MATCH(ROW()-2,Arkusz1!$C:$C,0)+5)) -> 
A129: =IF(ISERROR(MATCH(ROW()-2,Arkusz1!$C:$C,0)),"",INDEX(Arkusz1!C:C,MATCH(ROW()-2,Arkusz1!$C:$C,0))) ->  | B129: =IF(ISERROR(MATCH(ROW()-2,Arkusz1!$C:$C,0)),"",INDEX('import danych'!$A:$A,MATCH(ROW()-2,Arkusz1!$C:$C,0)+5)) ->  | D129: =IF(ISERROR(MATCH(ROW()-2,Arkusz1!$C:$C,0)),"",INDEX('import danych'!$B:$B,MATCH(ROW()-2,Arkusz1!$C:$C,0)+5)) ->  | E129: =IF(ISERROR(MATCH(ROW()-2,Arkusz1!$C:$C,0)),"",INDEX(Arkusz1!I:I,MATCH(ROW()-2,Arkusz1!$C:$C,0))) ->  | F129: =IF(ISERROR(MATCH(ROW()-2,Arkusz1!$C:$C,0)),"",INDEX('import danych'!$H:$H,MATCH(ROW()-2,Arkusz1!$C:$C,0)+5)) ->  | G129: =IF(ISERROR(MATCH(ROW()-2,Arkusz1!$C:$C,0)),"",INDEX('import danych'!$L:$L,MATCH(ROW()-2,Arkusz1!$C:$C,0)+5)) -> 
A130: =IF(ISERROR(MATCH(ROW()-2,Arkusz1!$C:$C,0)),"",INDEX(Arkusz1!C:C,MATCH(ROW()-2,Arkusz1!$C:$C,0))) ->  | B130: =IF(ISERROR(MATCH(ROW()-2,Arkusz1!$C:$C,0)),"",INDEX('import danych'!$A:$A,MATCH(ROW()-2,Arkusz1!$C:$C,0)+5)) ->  | D130: =IF(ISERROR(MATCH(ROW()-2,Arkusz1!$C:$C,0)),"",INDEX('import danych'!$B:$B,MATCH(ROW()-2,Arkusz1!$C:$C,0)+5)) ->  | E130: =IF(ISERROR(MATCH(ROW()-2,Arkusz1!$C:$C,0)),"",INDEX(Arkusz1!I:I,MATCH(ROW()-2,Arkusz1!$C:$C,0))) ->  | F130: =IF(ISERROR(MATCH(ROW()-2,Arkusz1!$C:$C,0)),"",INDEX('import danych'!$H:$H,MATCH(ROW()-2,Arkusz1!$C:$C,0)+5)) ->  | G130: =IF(ISERROR(MATCH(ROW()-2,Arkusz1!$C:$C,0)),"",INDEX('import danych'!$L:$L,MATCH(ROW()-2,Arkusz1!$C:$C,0)+5)) -> 
A131: =IF(ISERROR(MATCH(ROW()-2,Arkusz1!$C:$C,0)),"",INDEX(Arkusz1!C:C,MATCH(ROW()-2,Arkusz1!$C:$C,0))) ->  | B131: =IF(ISERROR(MATCH(ROW()-2,Arkusz1!$C:$C,0)),"",INDEX('import danych'!$A:$A,MATCH(ROW()-2,Arkusz1!$C:$C,0)+5)) ->  | D131: =IF(ISERROR(MATCH(ROW()-2,Arkusz1!$C:$C,0)),"",INDEX('import danych'!$B:$B,MATCH(ROW()-2,Arkusz1!$C:$C,0)+5)) ->  | E131: =IF(ISERROR(MATCH(ROW()-2,Arkusz1!$C:$C,0)),"",INDEX(Arkusz1!I:I,MATCH(ROW()-2,Arkusz1!$C:$C,0))) ->  | F131: =IF(ISERROR(MATCH(ROW()-2,Arkusz1!$C:$C,0)),"",INDEX('import danych'!$H:$H,MATCH(ROW()-2,Arkusz1!$C:$C,0)+5)) ->  | G131: =IF(ISERROR(MATCH(ROW()-2,Arkusz1!$C:$C,0)),"",INDEX('import danych'!$L:$L,MATCH(ROW()-2,Arkusz1!$C:$C,0)+5)) -> 
A132: =IF(ISERROR(MATCH(ROW()-2,Arkusz1!$C:$C,0)),"",INDEX(Arkusz1!C:C,MATCH(ROW()-2,Arkusz1!$C:$C,0))) ->  | B132: =IF(ISERROR(MATCH(ROW()-2,Arkusz1!$C:$C,0)),"",INDEX('import danych'!$A:$A,MATCH(ROW()-2,Arkusz1!$C:$C,0)+5)) ->  | C132: =IF(A132="","",DATEVALUE(B132)) ->  | D132: =IF(ISERROR(MATCH(ROW()-2,Arkusz1!$C:$C,0)),"",INDEX('import danych'!$B:$B,MATCH(ROW()-2,Arkusz1!$C:$C,0)+5)) ->  | E132: =IF(ISERROR(MATCH(ROW()-2,Arkusz1!$C:$C,0)),"",INDEX(Arkusz1!I:I,MATCH(ROW()-2,Arkusz1!$C:$C,0))) ->  | F132: =IF(ISERROR(MATCH(ROW()-2,Arkusz1!$C:$C,0)),"",INDEX('import danych'!$H:$H,MATCH(ROW()-2,Arkusz1!$C:$C,0)+5)) ->  | G132: =IF(ISERROR(MATCH(ROW()-2,Arkusz1!$C:$C,0)),"",INDEX('import danych'!$L:$L,MATCH(ROW()-2,Arkusz1!$C:$C,0)+5)) -> 
A133: =IF(ISERROR(MATCH(ROW()-2,Arkusz1!$C:$C,0)),"",INDEX(Arkusz1!C:C,MATCH(ROW()-2,Arkusz1!$C:$C,0))) ->  | B133: =IF(ISERROR(MATCH(ROW()-2,Arkusz1!$C:$C,0)),"",INDEX('import danych'!$A:$A,MATCH(ROW()-2,Arkusz1!$C:$C,0)+5)) ->  | D133: =IF(ISERROR(MATCH(ROW()-2,Arkusz1!$C:$C,0)),"",INDEX('import danych'!$B:$B,MATCH(ROW()-2,Arkusz1!$C:$C,0)+5)) ->  | E133: =IF(ISERROR(MATCH(ROW()-2,Arkusz1!$C:$C,0)),"",INDEX(Arkusz1!I:I,MATCH(ROW()-2,Arkusz1!$C:$C,0))) ->  | F133: =IF(ISERROR(MATCH(ROW()-2,Arkusz1!$C:$C,0)),"",INDEX('import danych'!$H:$H,MATCH(ROW()-2,Arkusz1!$C:$C,0)+5)) ->  | G133: =IF(ISERROR(MATCH(ROW()-2,Arkusz1!$C:$C,0)),"",INDEX('import danych'!$L:$L,MATCH(ROW()-2,Arkusz1!$C:$C,0)+5)) -> 
A134: =IF(ISERROR(MATCH(ROW()-2,Arkusz1!$C:$C,0)),"",INDEX(Arkusz1!C:C,MATCH(ROW()-2,Arkusz1!$C:$C,0))) ->  | B134: =IF(ISERROR(MATCH(ROW()-2,Arkusz1!$C:$C,0)),"",INDEX('import danych'!$A:$A,MATCH(ROW()-2,Arkusz1!$C:$C,0)+5)) ->  | D134: =IF(ISERROR(MATCH(ROW()-2,Arkusz1!$C:$C,0)),"",INDEX('import danych'!$B:$B,MATCH(ROW()-2,Arkusz1!$C:$C,0)+5)) ->  | E134: =IF(ISERROR(MATCH(ROW()-2,Arkusz1!$C:$C,0)),"",INDEX(Arkusz1!I:I,MATCH(ROW()-2,Arkusz1!$C:$C,0))) ->  | F134: =IF(ISERROR(MATCH(ROW()-2,Arkusz1!$C:$C,0)),"",INDEX('import danych'!$H:$H,MATCH(ROW()-2,Arkusz1!$C:$C,0)+5)) ->  | G134: =IF(ISERROR(MATCH(ROW()-2,Arkusz1!$C:$C,0)),"",INDEX('import danych'!$L:$L,MATCH(ROW()-2,Arkusz1!$C:$C,0)+5)) -> 
A135: =IF(ISERROR(MATCH(ROW()-2,Arkusz1!$C:$C,0)),"",INDEX(Arkusz1!C:C,MATCH(ROW()-2,Arkusz1!$C:$C,0))) ->  | B135: =IF(ISERROR(MATCH(ROW()-2,Arkusz1!$C:$C,0)),"",INDEX('import danych'!$A:$A,MATCH(ROW()-2,Arkusz1!$C:$C,0)+5)) ->  | D135: =IF(ISERROR(MATCH(ROW()-2,Arkusz1!$C:$C,0)),"",INDEX('import danych'!$B:$B,MATCH(ROW()-2,Arkusz1!$C:$C,0)+5)) ->  | E135: =IF(ISERROR(MATCH(ROW()-2,Arkusz1!$C:$C,0)),"",INDEX(Arkusz1!I:I,MATCH(ROW()-2,Arkusz1!$C:$C,0))) ->  | F135: =IF(ISERROR(MATCH(ROW()-2,Arkusz1!$C:$C,0)),"",INDEX('import danych'!$H:$H,MATCH(ROW()-2,Arkusz1!$C:$C,0)+5)) ->  | G135: =IF(ISERROR(MATCH(ROW()-2,Arkusz1!$C:$C,0)),"",INDEX('import danych'!$L:$L,MATCH(ROW()-2,Arkusz1!$C:$C,0)+5)) -> 
A136: =IF(ISERROR(MATCH(ROW()-2,Arkusz1!$C:$C,0)),"",INDEX(Arkusz1!C:C,MATCH(ROW()-2,Arkusz1!$C:$C,0))) ->  | B136: =IF(ISERROR(MATCH(ROW()-2,Arkusz1!$C:$C,0)),"",INDEX('import danych'!$A:$A,MATCH(ROW()-2,Arkusz1!$C:$C,0)+5)) ->  | D136: =IF(ISERROR(MATCH(ROW()-2,Arkusz1!$C:$C,0)),"",INDEX('import danych'!$B:$B,MATCH(ROW()-2,Arkusz1!$C:$C,0)+5)) ->  | E136: =IF(ISERROR(MATCH(ROW()-2,Arkusz1!$C:$C,0)),"",INDEX(Arkusz1!I:I,MATCH(ROW()-2,Arkusz1!$C:$C,0))) ->  | F136: =IF(ISERROR(MATCH(ROW()-2,Arkusz1!$C:$C,0)),"",INDEX('import danych'!$H:$H,MATCH(ROW()-2,Arkusz1!$C:$C,0)+5)) ->  | G136: =IF(ISERROR(MATCH(ROW()-2,Arkusz1!$C:$C,0)),"",INDEX('import danych'!$L:$L,MATCH(ROW()-2,Arkusz1!$C:$C,0)+5)) -> 
A137: =IF(ISERROR(MATCH(ROW()-2,Arkusz1!$C:$C,0)),"",INDEX(Arkusz1!C:C,MATCH(ROW()-2,Arkusz1!$C:$C,0))) ->  | B137: =IF(ISERROR(MATCH(ROW()-2,Arkusz1!$C:$C,0)),"",INDEX('import danych'!$A:$A,MATCH(ROW()-2,Arkusz1!$C:$C,0)+5)) ->  | D137: =IF(ISERROR(MATCH(ROW()-2,Arkusz1!$C:$C,0)),"",INDEX('import danych'!$B:$B,MATCH(ROW()-2,Arkusz1!$C:$C,0)+5)) ->  | E137: =IF(ISERROR(MATCH(ROW()-2,Arkusz1!$C:$C,0)),"",INDEX(Arkusz1!I:I,MATCH(ROW()-2,Arkusz1!$C:$C,0))) ->  | F137: =IF(ISERROR(MATCH(ROW()-2,Arkusz1!$C:$C,0)),"",INDEX('import danych'!$H:$H,MATCH(ROW()-2,Arkusz1!$C:$C,0)+5)) ->  | G137: =IF(ISERROR(MATCH(ROW()-2,Arkusz1!$C:$C,0)),"",INDEX('import danych'!$L:$L,MATCH(ROW()-2,Arkusz1!$C:$C,0)+5)) -> 
A138: =IF(ISERROR(MATCH(ROW()-2,Arkusz1!$C:$C,0)),"",INDEX(Arkusz1!C:C,MATCH(ROW()-2,Arkusz1!$C:$C,0))) ->  | B138: =IF(ISERROR(MATCH(ROW()-2,Arkusz1!$C:$C,0)),"",INDEX('import danych'!$A:$A,MATCH(ROW()-2,Arkusz1!$C:$C,0)+5)) ->  | D138: =IF(ISERROR(MATCH(ROW()-2,Arkusz1!$C:$C,0)),"",INDEX('import danych'!$B:$B,MATCH(ROW()-2,Arkusz1!$C:$C,0)+5)) ->  | E138: =IF(ISERROR(MATCH(ROW()-2,Arkusz1!$C:$C,0)),"",INDEX(Arkusz1!I:I,MATCH(ROW()-2,Arkusz1!$C:$C,0))) ->  | F138: =IF(ISERROR(MATCH(ROW()-2,Arkusz1!$C:$C,0)),"",INDEX('import danych'!$H:$H,MATCH(ROW()-2,Arkusz1!$C:$C,0)+5)) ->  | G138: =IF(ISERROR(MATCH(ROW()-2,Arkusz1!$C:$C,0)),"",INDEX('import danych'!$L:$L,MATCH(ROW()-2,Arkusz1!$C:$C,0)+5)) -> 
A139: =IF(ISERROR(MATCH(ROW()-2,Arkusz1!$C:$C,0)),"",INDEX(Arkusz1!C:C,MATCH(ROW()-2,Arkusz1!$C:$C,0))) ->  | B139: =IF(ISERROR(MATCH(ROW()-2,Arkusz1!$C:$C,0)),"",INDEX('import danych'!$A:$A,MATCH(ROW()-2,Arkusz1!$C:$C,0)+5)) ->  | D139: =IF(ISERROR(MATCH(ROW()-2,Arkusz1!$C:$C,0)),"",INDEX('import danych'!$B:$B,MATCH(ROW()-2,Arkusz1!$C:$C,0)+5)) ->  | E139: =IF(ISERROR(MATCH(ROW()-2,Arkusz1!$C:$C,0)),"",INDEX(Arkusz1!I:I,MATCH(ROW()-2,Arkusz1!$C:$C,0))) ->  | F139: =IF(ISERROR(MATCH(ROW()-2,Arkusz1!$C:$C,0)),"",INDEX('import danych'!$H:$H,MATCH(ROW()-2,Arkusz1!$C:$C,0)+5)) ->  | G139: =IF(ISERROR(MATCH(ROW()-2,Arkusz1!$C:$C,0)),"",INDEX('import danych'!$L:$L,MATCH(ROW()-2,Arkusz1!$C:$C,0)+5)) -> 
A140: =IF(ISERROR(MATCH(ROW()-2,Arkusz1!$C:$C,0)),"",INDEX(Arkusz1!C:C,MATCH(ROW()-2,Arkusz1!$C:$C,0))) ->  | B140: =IF(ISERROR(MATCH(ROW()-2,Arkusz1!$C:$C,0)),"",INDEX('import danych'!$A:$A,MATCH(ROW()-2,Arkusz1!$C:$C,0)+5)) ->  | D140: =IF(ISERROR(MATCH(ROW()-2,Arkusz1!$C:$C,0)),"",INDEX('import danych'!$B:$B,MATCH(ROW()-2,Arkusz1!$C:$C,0)+5)) ->  | E140: =IF(ISERROR(MATCH(ROW()-2,Arkusz1!$C:$C,0)),"",INDEX(Arkusz1!I:I,MATCH(ROW()-2,Arkusz1!$C:$C,0))) ->  | F140: =IF(ISERROR(MATCH(ROW()-2,Arkusz1!$C:$C,0)),"",INDEX('import danych'!$H:$H,MATCH(ROW()-2,Arkusz1!$C:$C,0)+5)) ->  | G140: =IF(ISERROR(MATCH(ROW()-2,Arkusz1!$C:$C,0)),"",INDEX('import danych'!$L:$L,MATCH(ROW()-2,Arkusz1!$C:$C,0)+5)) -> 
A141: =IF(ISERROR(MATCH(ROW()-2,Arkusz1!$C:$C,0)),"",INDEX(Arkusz1!C:C,MATCH(ROW()-2,Arkusz1!$C:$C,0))) ->  | B141: =IF(ISERROR(MATCH(ROW()-2,Arkusz1!$C:$C,0)),"",INDEX('import danych'!$A:$A,MATCH(ROW()-2,Arkusz1!$C:$C,0)+5)) ->  | D141: =IF(ISERROR(MATCH(ROW()-2,Arkusz1!$C:$C,0)),"",INDEX('import danych'!$B:$B,MATCH(ROW()-2,Arkusz1!$C:$C,0)+5)) ->  | E141: =IF(ISERROR(MATCH(ROW()-2,Arkusz1!$C:$C,0)),"",INDEX(Arkusz1!I:I,MATCH(ROW()-2,Arkusz1!$C:$C,0))) ->  | F141: =IF(ISERROR(MATCH(ROW()-2,Arkusz1!$C:$C,0)),"",INDEX('import danych'!$H:$H,MATCH(ROW()-2,Arkusz1!$C:$C,0)+5)) ->  | G141: =IF(ISERROR(MATCH(ROW()-2,Arkusz1!$C:$C,0)),"",INDEX('import danych'!$L:$L,MATCH(ROW()-2,Arkusz1!$C:$C,0)+5)) -> 
A142: =IF(ISERROR(MATCH(ROW()-2,Arkusz1!$C:$C,0)),"",INDEX(Arkusz1!C:C,MATCH(ROW()-2,Arkusz1!$C:$C,0))) ->  | B142: =IF(ISERROR(MATCH(ROW()-2,Arkusz1!$C:$C,0)),"",INDEX('import danych'!$A:$A,MATCH(ROW()-2,Arkusz1!$C:$C,0)+5)) ->  | D142: =IF(ISERROR(MATCH(ROW()-2,Arkusz1!$C:$C,0)),"",INDEX('import danych'!$B:$B,MATCH(ROW()-2,Arkusz1!$C:$C,0)+5)) ->  | E142: =IF(ISERROR(MATCH(ROW()-2,Arkusz1!$C:$C,0)),"",INDEX(Arkusz1!I:I,MATCH(ROW()-2,Arkusz1!$C:$C,0))) ->  | F142: =IF(ISERROR(MATCH(ROW()-2,Arkusz1!$C:$C,0)),"",INDEX('import danych'!$H:$H,MATCH(ROW()-2,Arkusz1!$C:$C,0)+5)) ->  | G142: =IF(ISERROR(MATCH(ROW()-2,Arkusz1!$C:$C,0)),"",INDEX('import danych'!$L:$L,MATCH(ROW()-2,Arkusz1!$C:$C,0)+5)) -> 
A143: =IF(ISERROR(MATCH(ROW()-2,Arkusz1!$C:$C,0)),"",INDEX(Arkusz1!C:C,MATCH(ROW()-2,Arkusz1!$C:$C,0))) ->  | B143: =IF(ISERROR(MATCH(ROW()-2,Arkusz1!$C:$C,0)),"",INDEX('import danych'!$A:$A,MATCH(ROW()-2,Arkusz1!$C:$C,0)+5)) ->  | D143: =IF(ISERROR(MATCH(ROW()-2,Arkusz1!$C:$C,0)),"",INDEX('import danych'!$B:$B,MATCH(ROW()-2,Arkusz1!$C:$C,0)+5)) ->  | E143: =IF(ISERROR(MATCH(ROW()-2,Arkusz1!$C:$C,0)),"",INDEX(Arkusz1!I:I,MATCH(ROW()-2,Arkusz1!$C:$C,0))) ->  | F143: =IF(ISERROR(MATCH(ROW()-2,Arkusz1!$C:$C,0)),"",INDEX('import danych'!$H:$H,MATCH(ROW()-2,Arkusz1!$C:$C,0)+5)) ->  | G143: =IF(ISERROR(MATCH(ROW()-2,Arkusz1!$C:$C,0)),"",INDEX('import danych'!$L:$L,MATCH(ROW()-2,Arkusz1!$C:$C,0)+5)) -> 
A144: =IF(ISERROR(MATCH(ROW()-2,Arkusz1!$C:$C,0)),"",INDEX(Arkusz1!C:C,MATCH(ROW()-2,Arkusz1!$C:$C,0))) ->  | B144: =IF(ISERROR(MATCH(ROW()-2,Arkusz1!$C:$C,0)),"",INDEX('import danych'!$A:$A,MATCH(ROW()-2,Arkusz1!$C:$C,0)+5)) ->  | D144: =IF(ISERROR(MATCH(ROW()-2,Arkusz1!$C:$C,0)),"",INDEX('import danych'!$B:$B,MATCH(ROW()-2,Arkusz1!$C:$C,0)+5)) ->  | E144: =IF(ISERROR(MATCH(ROW()-2,Arkusz1!$C:$C,0)),"",INDEX(Arkusz1!I:I,MATCH(ROW()-2,Arkusz1!$C:$C,0))) ->  | F144: =IF(ISERROR(MATCH(ROW()-2,Arkusz1!$C:$C,0)),"",INDEX('import danych'!$H:$H,MATCH(ROW()-2,Arkusz1!$C:$C,0)+5)) ->  | G144: =IF(ISERROR(MATCH(ROW()-2,Arkusz1!$C:$C,0)),"",INDEX('import danych'!$L:$L,MATCH(ROW()-2,Arkusz1!$C:$C,0)+5)) -> 
A145: =IF(ISERROR(MATCH(ROW()-2,Arkusz1!$C:$C,0)),"",INDEX(Arkusz1!C:C,MATCH(ROW()-2,Arkusz1!$C:$C,0))) ->  | B145: =IF(ISERROR(MATCH(ROW()-2,Arkusz1!$C:$C,0)),"",INDEX('import danych'!$A:$A,MATCH(ROW()-2,Arkusz1!$C:$C,0)+5)) ->  | D145: =IF(ISERROR(MATCH(ROW()-2,Arkusz1!$C:$C,0)),"",INDEX('import danych'!$B:$B,MATCH(ROW()-2,Arkusz1!$C:$C,0)+5)) ->  | E145: =IF(ISERROR(MATCH(ROW()-2,Arkusz1!$C:$C,0)),"",INDEX(Arkusz1!I:I,MATCH(ROW()-2,Arkusz1!$C:$C,0))) ->  | F145: =IF(ISERROR(MATCH(ROW()-2,Arkusz1!$C:$C,0)),"",INDEX('import danych'!$H:$H,MATCH(ROW()-2,Arkusz1!$C:$C,0)+5)) ->  | G145: =IF(ISERROR(MATCH(ROW()-2,Arkusz1!$C:$C,0)),"",INDEX('import danych'!$L:$L,MATCH(ROW()-2,Arkusz1!$C:$C,0)+5)) -> 
A146: =IF(ISERROR(MATCH(ROW()-2,Arkusz1!$C:$C,0)),"",INDEX(Arkusz1!C:C,MATCH(ROW()-2,Arkusz1!$C:$C,0))) ->  | B146: =IF(ISERROR(MATCH(ROW()-2,Arkusz1!$C:$C,0)),"",INDEX('import danych'!$A:$A,MATCH(ROW()-2,Arkusz1!$C:$C,0)+5)) ->  | D146: =IF(ISERROR(MATCH(ROW()-2,Arkusz1!$C:$C,0)),"",INDEX('import danych'!$B:$B,MATCH(ROW()-2,Arkusz1!$C:$C,0)+5)) ->  | E146: =IF(ISERROR(MATCH(ROW()-2,Arkusz1!$C:$C,0)),"",INDEX(Arkusz1!I:I,MATCH(ROW()-2,Arkusz1!$C:$C,0))) ->  | F146: =IF(ISERROR(MATCH(ROW()-2,Arkusz1!$C:$C,0)),"",INDEX('import danych'!$H:$H,MATCH(ROW()-2,Arkusz1!$C:$C,0)+5)) ->  | G146: =IF(ISERROR(MATCH(ROW()-2,Arkusz1!$C:$C,0)),"",INDEX('import danych'!$L:$L,MATCH(ROW()-2,Arkusz1!$C:$C,0)+5)) -> 
A147: =IF(ISERROR(MATCH(ROW()-2,Arkusz1!$C:$C,0)),"",INDEX(Arkusz1!C:C,MATCH(ROW()-2,Arkusz1!$C:$C,0))) ->  | B147: =IF(ISERROR(MATCH(ROW()-2,Arkusz1!$C:$C,0)),"",INDEX('import danych'!$A:$A,MATCH(ROW()-2,Arkusz1!$C:$C,0)+5)) ->  | D147: =IF(ISERROR(MATCH(ROW()-2,Arkusz1!$C:$C,0)),"",INDEX('import danych'!$B:$B,MATCH(ROW()-2,Arkusz1!$C:$C,0)+5)) ->  | E147: =IF(ISERROR(MATCH(ROW()-2,Arkusz1!$C:$C,0)),"",INDEX(Arkusz1!I:I,MATCH(ROW()-2,Arkusz1!$C:$C,0))) ->  | F147: =IF(ISERROR(MATCH(ROW()-2,Arkusz1!$C:$C,0)),"",INDEX('import danych'!$H:$H,MATCH(ROW()-2,Arkusz1!$C:$C,0)+5)) ->  | G147: =IF(ISERROR(MATCH(ROW()-2,Arkusz1!$C:$C,0)),"",INDEX('import danych'!$L:$L,MATCH(ROW()-2,Arkusz1!$C:$C,0)+5)) -> 
A148: =IF(ISERROR(MATCH(ROW()-2,Arkusz1!$C:$C,0)),"",INDEX(Arkusz1!C:C,MATCH(ROW()-2,Arkusz1!$C:$C,0))) ->  | B148: =IF(ISERROR(MATCH(ROW()-2,Arkusz1!$C:$C,0)),"",INDEX('import danych'!$A:$A,MATCH(ROW()-2,Arkusz1!$C:$C,0)+5)) ->  | D148: =IF(ISERROR(MATCH(ROW()-2,Arkusz1!$C:$C,0)),"",INDEX('import danych'!$B:$B,MATCH(ROW()-2,Arkusz1!$C:$C,0)+5)) ->  | E148: =IF(ISERROR(MATCH(ROW()-2,Arkusz1!$C:$C,0)),"",INDEX(Arkusz1!I:I,MATCH(ROW()-2,Arkusz1!$C:$C,0))) ->  | F148: =IF(ISERROR(MATCH(ROW()-2,Arkusz1!$C:$C,0)),"",INDEX('import danych'!$H:$H,MATCH(ROW()-2,Arkusz1!$C:$C,0)+5)) ->  | G148: =IF(ISERROR(MATCH(ROW()-2,Arkusz1!$C:$C,0)),"",INDEX('import danych'!$L:$L,MATCH(ROW()-2,Arkusz1!$C:$C,0)+5)) -> 
A149: =IF(ISERROR(MATCH(ROW()-2,Arkusz1!$C:$C,0)),"",INDEX(Arkusz1!C:C,MATCH(ROW()-2,Arkusz1!$C:$C,0))) ->  | B149: =IF(ISERROR(MATCH(ROW()-2,Arkusz1!$C:$C,0)),"",INDEX('import danych'!$A:$A,MATCH(ROW()-2,Arkusz1!$C:$C,0)+5)) ->  | D149: =IF(ISERROR(MATCH(ROW()-2,Arkusz1!$C:$C,0)),"",INDEX('import danych'!$B:$B,MATCH(ROW()-2,Arkusz1!$C:$C,0)+5)) ->  | E149: =IF(ISERROR(MATCH(ROW()-2,Arkusz1!$C:$C,0)),"",INDEX(Arkusz1!I:I,MATCH(ROW()-2,Arkusz1!$C:$C,0))) ->  | F149: =IF(ISERROR(MATCH(ROW()-2,Arkusz1!$C:$C,0)),"",INDEX('import danych'!$H:$H,MATCH(ROW()-2,Arkusz1!$C:$C,0)+5)) ->  | G149: =IF(ISERROR(MATCH(ROW()-2,Arkusz1!$C:$C,0)),"",INDEX('import danych'!$L:$L,MATCH(ROW()-2,Arkusz1!$C:$C,0)+5)) -> 
A150: =IF(ISERROR(MATCH(ROW()-2,Arkusz1!$C:$C,0)),"",INDEX(Arkusz1!C:C,MATCH(ROW()-2,Arkusz1!$C:$C,0))) ->  | B150: =IF(ISERROR(MATCH(ROW()-2,Arkusz1!$C:$C,0)),"",INDEX('import danych'!$A:$A,MATCH(ROW()-2,Arkusz1!$C:$C,0)+5)) ->  | D150: =IF(ISERROR(MATCH(ROW()-2,Arkusz1!$C:$C,0)),"",INDEX('import danych'!$B:$B,MATCH(ROW()-2,Arkusz1!$C:$C,0)+5)) ->  | E150: =IF(ISERROR(MATCH(ROW()-2,Arkusz1!$C:$C,0)),"",INDEX(Arkusz1!I:I,MATCH(ROW()-2,Arkusz1!$C:$C,0))) ->  | F150: =IF(ISERROR(MATCH(ROW()-2,Arkusz1!$C:$C,0)),"",INDEX('import danych'!$H:$H,MATCH(ROW()-2,Arkusz1!$C:$C,0)+5)) ->  | G150: =IF(ISERROR(MATCH(ROW()-2,Arkusz1!$C:$C,0)),"",INDEX('import danych'!$L:$L,MATCH(ROW()-2,Arkusz1!$C:$C,0)+5)) -> 
A151: =IF(ISERROR(MATCH(ROW()-2,Arkusz1!$C:$C,0)),"",INDEX(Arkusz1!C:C,MATCH(ROW()-2,Arkusz1!$C:$C,0))) ->  | B151: =IF(ISERROR(MATCH(ROW()-2,Arkusz1!$C:$C,0)),"",INDEX('import danych'!$A:$A,MATCH(ROW()-2,Arkusz1!$C:$C,0)+5)) ->  | D151: =IF(ISERROR(MATCH(ROW()-2,Arkusz1!$C:$C,0)),"",INDEX('import danych'!$B:$B,MATCH(ROW()-2,Arkusz1!$C:$C,0)+5)) ->  | E151: =IF(ISERROR(MATCH(ROW()-2,Arkusz1!$C:$C,0)),"",INDEX(Arkusz1!I:I,MATCH(ROW()-2,Arkusz1!$C:$C,0))) ->  | F151: =IF(ISERROR(MATCH(ROW()-2,Arkusz1!$C:$C,0)),"",INDEX('import danych'!$H:$H,MATCH(ROW()-2,Arkusz1!$C:$C,0)+5)) ->  | G151: =IF(ISERROR(MATCH(ROW()-2,Arkusz1!$C:$C,0)),"",INDEX('import danych'!$L:$L,MATCH(ROW()-2,Arkusz1!$C:$C,0)+5)) -> 
A152: =IF(ISERROR(MATCH(ROW()-2,Arkusz1!$C:$C,0)),"",INDEX(Arkusz1!C:C,MATCH(ROW()-2,Arkusz1!$C:$C,0))) ->  | B152: =IF(ISERROR(MATCH(ROW()-2,Arkusz1!$C:$C,0)),"",INDEX('import danych'!$A:$A,MATCH(ROW()-2,Arkusz1!$C:$C,0)+5)) ->  | D152: =IF(ISERROR(MATCH(ROW()-2,Arkusz1!$C:$C,0)),"",INDEX('import danych'!$B:$B,MATCH(ROW()-2,Arkusz1!$C:$C,0)+5)) ->  | E152: =IF(ISERROR(MATCH(ROW()-2,Arkusz1!$C:$C,0)),"",INDEX(Arkusz1!I:I,MATCH(ROW()-2,Arkusz1!$C:$C,0))) ->  | F152: =IF(ISERROR(MATCH(ROW()-2,Arkusz1!$C:$C,0)),"",INDEX('import danych'!$H:$H,MATCH(ROW()-2,Arkusz1!$C:$C,0)+5)) ->  | G152: =IF(ISERROR(MATCH(ROW()-2,Arkusz1!$C:$C,0)),"",INDEX('import danych'!$L:$L,MATCH(ROW()-2,Arkusz1!$C:$C,0)+5)) -> 
A153: =IF(ISERROR(MATCH(ROW()-2,Arkusz1!$C:$C,0)),"",INDEX(Arkusz1!C:C,MATCH(ROW()-2,Arkusz1!$C:$C,0))) ->  | B153: =IF(ISERROR(MATCH(ROW()-2,Arkusz1!$C:$C,0)),"",INDEX('import danych'!$A:$A,MATCH(ROW()-2,Arkusz1!$C:$C,0)+5)) ->  | D153: =IF(ISERROR(MATCH(ROW()-2,Arkusz1!$C:$C,0)),"",INDEX('import danych'!$B:$B,MATCH(ROW()-2,Arkusz1!$C:$C,0)+5)) ->  | E153: =IF(ISERROR(MATCH(ROW()-2,Arkusz1!$C:$C,0)),"",INDEX(Arkusz1!I:I,MATCH(ROW()-2,Arkusz1!$C:$C,0))) ->  | F153: =IF(ISERROR(MATCH(ROW()-2,Arkusz1!$C:$C,0)),"",INDEX('import danych'!$H:$H,MATCH(ROW()-2,Arkusz1!$C:$C,0)+5)) ->  | G153: =IF(ISERROR(MATCH(ROW()-2,Arkusz1!$C:$C,0)),"",INDEX('import danych'!$L:$L,MATCH(ROW()-2,Arkusz1!$C:$C,0)+5)) -> 
A154: =IF(ISERROR(MATCH(ROW()-2,Arkusz1!$C:$C,0)),"",INDEX(Arkusz1!C:C,MATCH(ROW()-2,Arkusz1!$C:$C,0))) ->  | B154: =IF(ISERROR(MATCH(ROW()-2,Arkusz1!$C:$C,0)),"",INDEX('import danych'!$A:$A,MATCH(ROW()-2,Arkusz1!$C:$C,0)+5)) ->  | D154: =IF(ISERROR(MATCH(ROW()-2,Arkusz1!$C:$C,0)),"",INDEX('import danych'!$B:$B,MATCH(ROW()-2,Arkusz1!$C:$C,0)+5)) ->  | E154: =IF(ISERROR(MATCH(ROW()-2,Arkusz1!$C:$C,0)),"",INDEX(Arkusz1!I:I,MATCH(ROW()-2,Arkusz1!$C:$C,0))) ->  | F154: =IF(ISERROR(MATCH(ROW()-2,Arkusz1!$C:$C,0)),"",INDEX('import danych'!$H:$H,MATCH(ROW()-2,Arkusz1!$C:$C,0)+5)) ->  | G154: =IF(ISERROR(MATCH(ROW()-2,Arkusz1!$C:$C,0)),"",INDEX('import danych'!$L:$L,MATCH(ROW()-2,Arkusz1!$C:$C,0)+5)) -> 
A155: =IF(ISERROR(MATCH(ROW()-2,Arkusz1!$C:$C,0)),"",INDEX(Arkusz1!C:C,MATCH(ROW()-2,Arkusz1!$C:$C,0))) ->  | B155: =IF(ISERROR(MATCH(ROW()-2,Arkusz1!$C:$C,0)),"",INDEX('import danych'!$A:$A,MATCH(ROW()-2,Arkusz1!$C:$C,0)+5)) ->  | D155: =IF(ISERROR(MATCH(ROW()-2,Arkusz1!$C:$C,0)),"",INDEX('import danych'!$B:$B,MATCH(ROW()-2,Arkusz1!$C:$C,0)+5)) ->  | E155: =IF(ISERROR(MATCH(ROW()-2,Arkusz1!$C:$C,0)),"",INDEX(Arkusz1!I:I,MATCH(ROW()-2,Arkusz1!$C:$C,0))) ->  | F155: =IF(ISERROR(MATCH(ROW()-2,Arkusz1!$C:$C,0)),"",INDEX('import danych'!$H:$H,MATCH(ROW()-2,Arkusz1!$C:$C,0)+5)) ->  | G155: =IF(ISERROR(MATCH(ROW()-2,Arkusz1!$C:$C,0)),"",INDEX('import danych'!$L:$L,MATCH(ROW()-2,Arkusz1!$C:$C,0)+5)) -> 
A156: =IF(ISERROR(MATCH(ROW()-2,Arkusz1!$C:$C,0)),"",INDEX(Arkusz1!C:C,MATCH(ROW()-2,Arkusz1!$C:$C,0))) ->  | B156: =IF(ISERROR(MATCH(ROW()-2,Arkusz1!$C:$C,0)),"",INDEX('import danych'!$A:$A,MATCH(ROW()-2,Arkusz1!$C:$C,0)+5)) ->  | D156: =IF(ISERROR(MATCH(ROW()-2,Arkusz1!$C:$C,0)),"",INDEX('import danych'!$B:$B,MATCH(ROW()-2,Arkusz1!$C:$C,0)+5)) ->  | E156: =IF(ISERROR(MATCH(ROW()-2,Arkusz1!$C:$C,0)),"",INDEX(Arkusz1!I:I,MATCH(ROW()-2,Arkusz1!$C:$C,0))) ->  | F156: =IF(ISERROR(MATCH(ROW()-2,Arkusz1!$C:$C,0)),"",INDEX('import danych'!$H:$H,MATCH(ROW()-2,Arkusz1!$C:$C,0)+5)) ->  | G156: =IF(ISERROR(MATCH(ROW()-2,Arkusz1!$C:$C,0)),"",INDEX('import danych'!$L:$L,MATCH(ROW()-2,Arkusz1!$C:$C,0)+5)) -> 
A157: =IF(ISERROR(MATCH(ROW()-2,Arkusz1!$C:$C,0)),"",INDEX(Arkusz1!C:C,MATCH(ROW()-2,Arkusz1!$C:$C,0))) ->  | B157: =IF(ISERROR(MATCH(ROW()-2,Arkusz1!$C:$C,0)),"",INDEX('import danych'!$A:$A,MATCH(ROW()-2,Arkusz1!$C:$C,0)+5)) ->  | D157: =IF(ISERROR(MATCH(ROW()-2,Arkusz1!$C:$C,0)),"",INDEX('import danych'!$B:$B,MATCH(ROW()-2,Arkusz1!$C:$C,0)+5)) ->  | E157: =IF(ISERROR(MATCH(ROW()-2,Arkusz1!$C:$C,0)),"",INDEX(Arkusz1!I:I,MATCH(ROW()-2,Arkusz1!$C:$C,0))) ->  | F157: =IF(ISERROR(MATCH(ROW()-2,Arkusz1!$C:$C,0)),"",INDEX('import danych'!$H:$H,MATCH(ROW()-2,Arkusz1!$C:$C,0)+5)) ->  | G157: =IF(ISERROR(MATCH(ROW()-2,Arkusz1!$C:$C,0)),"",INDEX('import danych'!$L:$L,MATCH(ROW()-2,Arkusz1!$C:$C,0)+5)) -> 
A158: =IF(ISERROR(MATCH(ROW()-2,Arkusz1!$C:$C,0)),"",INDEX(Arkusz1!C:C,MATCH(ROW()-2,Arkusz1!$C:$C,0))) ->  | B158: =IF(ISERROR(MATCH(ROW()-2,Arkusz1!$C:$C,0)),"",INDEX('import danych'!$A:$A,MATCH(ROW()-2,Arkusz1!$C:$C,0)+5)) ->  | D158: =IF(ISERROR(MATCH(ROW()-2,Arkusz1!$C:$C,0)),"",INDEX('import danych'!$B:$B,MATCH(ROW()-2,Arkusz1!$C:$C,0)+5)) ->  | E158: =IF(ISERROR(MATCH(ROW()-2,Arkusz1!$C:$C,0)),"",INDEX(Arkusz1!I:I,MATCH(ROW()-2,Arkusz1!$C:$C,0))) ->  | F158: =IF(ISERROR(MATCH(ROW()-2,Arkusz1!$C:$C,0)),"",INDEX('import danych'!$H:$H,MATCH(ROW()-2,Arkusz1!$C:$C,0)+5)) ->  | G158: =IF(ISERROR(MATCH(ROW()-2,Arkusz1!$C:$C,0)),"",INDEX('import danych'!$L:$L,MATCH(ROW()-2,Arkusz1!$C:$C,0)+5)) -> 
A159: =IF(ISERROR(MATCH(ROW()-2,Arkusz1!$C:$C,0)),"",INDEX(Arkusz1!C:C,MATCH(ROW()-2,Arkusz1!$C:$C,0))) ->  | B159: =IF(ISERROR(MATCH(ROW()-2,Arkusz1!$C:$C,0)),"",INDEX('import danych'!$A:$A,MATCH(ROW()-2,Arkusz1!$C:$C,0)+5)) ->  | D159: =IF(ISERROR(MATCH(ROW()-2,Arkusz1!$C:$C,0)),"",INDEX('import danych'!$B:$B,MATCH(ROW()-2,Arkusz1!$C:$C,0)+5)) ->  | E159: =IF(ISERROR(MATCH(ROW()-2,Arkusz1!$C:$C,0)),"",INDEX(Arkusz1!I:I,MATCH(ROW()-2,Arkusz1!$C:$C,0))) ->  | F159: =IF(ISERROR(MATCH(ROW()-2,Arkusz1!$C:$C,0)),"",INDEX('import danych'!$H:$H,MATCH(ROW()-2,Arkusz1!$C:$C,0)+5)) ->  | G159: =IF(ISERROR(MATCH(ROW()-2,Arkusz1!$C:$C,0)),"",INDEX('import danych'!$L:$L,MATCH(ROW()-2,Arkusz1!$C:$C,0)+5)) -> 
A160: =IF(ISERROR(MATCH(ROW()-2,Arkusz1!$C:$C,0)),"",INDEX(Arkusz1!C:C,MATCH(ROW()-2,Arkusz1!$C:$C,0))) ->  | B160: =IF(ISERROR(MATCH(ROW()-2,Arkusz1!$C:$C,0)),"",INDEX('import danych'!$A:$A,MATCH(ROW()-2,Arkusz1!$C:$C,0)+5)) ->  | D160: =IF(ISERROR(MATCH(ROW()-2,Arkusz1!$C:$C,0)),"",INDEX('import danych'!$B:$B,MATCH(ROW()-2,Arkusz1!$C:$C,0)+5)) ->  | E160: =IF(ISERROR(MATCH(ROW()-2,Arkusz1!$C:$C,0)),"",INDEX(Arkusz1!I:I,MATCH(ROW()-2,Arkusz1!$C:$C,0))) ->  | F160: =IF(ISERROR(MATCH(ROW()-2,Arkusz1!$C:$C,0)),"",INDEX('import danych'!$H:$H,MATCH(ROW()-2,Arkusz1!$C:$C,0)+5)) ->  | G160: =IF(ISERROR(MATCH(ROW()-2,Arkusz1!$C:$C,0)),"",INDEX('import danych'!$L:$L,MATCH(ROW()-2,Arkusz1!$C:$C,0)+5)) -> 
A161: =IF(ISERROR(MATCH(ROW()-2,Arkusz1!$C:$C,0)),"",INDEX(Arkusz1!C:C,MATCH(ROW()-2,Arkusz1!$C:$C,0))) ->  | B161: =IF(ISERROR(MATCH(ROW()-2,Arkusz1!$C:$C,0)),"",INDEX('import danych'!$A:$A,MATCH(ROW()-2,Arkusz1!$C:$C,0)+5)) ->  | D161: =IF(ISERROR(MATCH(ROW()-2,Arkusz1!$C:$C,0)),"",INDEX('import danych'!$B:$B,MATCH(ROW()-2,Arkusz1!$C:$C,0)+5)) ->  | E161: =IF(ISERROR(MATCH(ROW()-2,Arkusz1!$C:$C,0)),"",INDEX(Arkusz1!I:I,MATCH(ROW()-2,Arkusz1!$C:$C,0))) ->  | F161: =IF(ISERROR(MATCH(ROW()-2,Arkusz1!$C:$C,0)),"",INDEX('import danych'!$H:$H,MATCH(ROW()-2,Arkusz1!$C:$C,0)+5)) ->  | G161: =IF(ISERROR(MATCH(ROW()-2,Arkusz1!$C:$C,0)),"",INDEX('import danych'!$L:$L,MATCH(ROW()-2,Arkusz1!$C:$C,0)+5)) -> 
A162: =IF(ISERROR(MATCH(ROW()-2,Arkusz1!$C:$C,0)),"",INDEX(Arkusz1!C:C,MATCH(ROW()-2,Arkusz1!$C:$C,0))) ->  | B162: =IF(ISERROR(MATCH(ROW()-2,Arkusz1!$C:$C,0)),"",INDEX('import danych'!$A:$A,MATCH(ROW()-2,Arkusz1!$C:$C,0)+5)) ->  | D162: =IF(ISERROR(MATCH(ROW()-2,Arkusz1!$C:$C,0)),"",INDEX('import danych'!$B:$B,MATCH(ROW()-2,Arkusz1!$C:$C,0)+5)) ->  | E162: =IF(ISERROR(MATCH(ROW()-2,Arkusz1!$C:$C,0)),"",INDEX(Arkusz1!I:I,MATCH(ROW()-2,Arkusz1!$C:$C,0))) ->  | F162: =IF(ISERROR(MATCH(ROW()-2,Arkusz1!$C:$C,0)),"",INDEX('import danych'!$H:$H,MATCH(ROW()-2,Arkusz1!$C:$C,0)+5)) ->  | G162: =IF(ISERROR(MATCH(ROW()-2,Arkusz1!$C:$C,0)),"",INDEX('import danych'!$L:$L,MATCH(ROW()-2,Arkusz1!$C:$C,0)+5)) -> 
A163: =IF(ISERROR(MATCH(ROW()-2,Arkusz1!$C:$C,0)),"",INDEX(Arkusz1!C:C,MATCH(ROW()-2,Arkusz1!$C:$C,0))) ->  | B163: =IF(ISERROR(MATCH(ROW()-2,Arkusz1!$C:$C,0)),"",INDEX('import danych'!$A:$A,MATCH(ROW()-2,Arkusz1!$C:$C,0)+5)) ->  | D163: =IF(ISERROR(MATCH(ROW()-2,Arkusz1!$C:$C,0)),"",INDEX('import danych'!$B:$B,MATCH(ROW()-2,Arkusz1!$C:$C,0)+5)) ->  | E163: =IF(ISERROR(MATCH(ROW()-2,Arkusz1!$C:$C,0)),"",INDEX(Arkusz1!I:I,MATCH(ROW()-2,Arkusz1!$C:$C,0))) ->  | F163: =IF(ISERROR(MATCH(ROW()-2,Arkusz1!$C:$C,0)),"",INDEX('import danych'!$H:$H,MATCH(ROW()-2,Arkusz1!$C:$C,0)+5)) ->  | G163: =IF(ISERROR(MATCH(ROW()-2,Arkusz1!$C:$C,0)),"",INDEX('import danych'!$L:$L,MATCH(ROW()-2,Arkusz1!$C:$C,0)+5)) -> 
A164: =IF(ISERROR(MATCH(ROW()-2,Arkusz1!$C:$C,0)),"",INDEX(Arkusz1!C:C,MATCH(ROW()-2,Arkusz1!$C:$C,0))) ->  | B164: =IF(ISERROR(MATCH(ROW()-2,Arkusz1!$C:$C,0)),"",INDEX('import danych'!$A:$A,MATCH(ROW()-2,Arkusz1!$C:$C,0)+5)) ->  | D164: =IF(ISERROR(MATCH(ROW()-2,Arkusz1!$C:$C,0)),"",INDEX('import danych'!$B:$B,MATCH(ROW()-2,Arkusz1!$C:$C,0)+5)) ->  | E164: =IF(ISERROR(MATCH(ROW()-2,Arkusz1!$C:$C,0)),"",INDEX(Arkusz1!I:I,MATCH(ROW()-2,Arkusz1!$C:$C,0))) ->  | F164: =IF(ISERROR(MATCH(ROW()-2,Arkusz1!$C:$C,0)),"",INDEX('import danych'!$H:$H,MATCH(ROW()-2,Arkusz1!$C:$C,0)+5)) ->  | G164: =IF(ISERROR(MATCH(ROW()-2,Arkusz1!$C:$C,0)),"",INDEX('import danych'!$L:$L,MATCH(ROW()-2,Arkusz1!$C:$C,0)+5)) -> 
A165: =IF(ISERROR(MATCH(ROW()-2,Arkusz1!$C:$C,0)),"",INDEX(Arkusz1!C:C,MATCH(ROW()-2,Arkusz1!$C:$C,0))) ->  | B165: =IF(ISERROR(MATCH(ROW()-2,Arkusz1!$C:$C,0)),"",INDEX('import danych'!$A:$A,MATCH(ROW()-2,Arkusz1!$C:$C,0)+5)) ->  | D165: =IF(ISERROR(MATCH(ROW()-2,Arkusz1!$C:$C,0)),"",INDEX('import danych'!$B:$B,MATCH(ROW()-2,Arkusz1!$C:$C,0)+5)) ->  | E165: =IF(ISERROR(MATCH(ROW()-2,Arkusz1!$C:$C,0)),"",INDEX(Arkusz1!I:I,MATCH(ROW()-2,Arkusz1!$C:$C,0))) ->  | F165: =IF(ISERROR(MATCH(ROW()-2,Arkusz1!$C:$C,0)),"",INDEX('import danych'!$H:$H,MATCH(ROW()-2,Arkusz1!$C:$C,0)+5)) ->  | G165: =IF(ISERROR(MATCH(ROW()-2,Arkusz1!$C:$C,0)),"",INDEX('import danych'!$L:$L,MATCH(ROW()-2,Arkusz1!$C:$C,0)+5)) -> 
A166: =IF(ISERROR(MATCH(ROW()-2,Arkusz1!$C:$C,0)),"",INDEX(Arkusz1!C:C,MATCH(ROW()-2,Arkusz1!$C:$C,0))) ->  | B166: =IF(ISERROR(MATCH(ROW()-2,Arkusz1!$C:$C,0)),"",INDEX('import danych'!$A:$A,MATCH(ROW()-2,Arkusz1!$C:$C,0)+5)) ->  | D166: =IF(ISERROR(MATCH(ROW()-2,Arkusz1!$C:$C,0)),"",INDEX('import danych'!$B:$B,MATCH(ROW()-2,Arkusz1!$C:$C,0)+5)) ->  | E166: =IF(ISERROR(MATCH(ROW()-2,Arkusz1!$C:$C,0)),"",INDEX(Arkusz1!I:I,MATCH(ROW()-2,Arkusz1!$C:$C,0))) ->  | F166: =IF(ISERROR(MATCH(ROW()-2,Arkusz1!$C:$C,0)),"",INDEX('import danych'!$H:$H,MATCH(ROW()-2,Arkusz1!$C:$C,0)+5)) ->  | G166: =IF(ISERROR(MATCH(ROW()-2,Arkusz1!$C:$C,0)),"",INDEX('import danych'!$L:$L,MATCH(ROW()-2,Arkusz1!$C:$C,0)+5)) -> 
A167: =IF(ISERROR(MATCH(ROW()-2,Arkusz1!$C:$C,0)),"",INDEX(Arkusz1!C:C,MATCH(ROW()-2,Arkusz1!$C:$C,0))) ->  | B167: =IF(ISERROR(MATCH(ROW()-2,Arkusz1!$C:$C,0)),"",INDEX('import danych'!$A:$A,MATCH(ROW()-2,Arkusz1!$C:$C,0)+5)) ->  | D167: =IF(ISERROR(MATCH(ROW()-2,Arkusz1!$C:$C,0)),"",INDEX('import danych'!$B:$B,MATCH(ROW()-2,Arkusz1!$C:$C,0)+5)) ->  | E167: =IF(ISERROR(MATCH(ROW()-2,Arkusz1!$C:$C,0)),"",INDEX(Arkusz1!I:I,MATCH(ROW()-2,Arkusz1!$C:$C,0))) ->  | F167: =IF(ISERROR(MATCH(ROW()-2,Arkusz1!$C:$C,0)),"",INDEX('import danych'!$H:$H,MATCH(ROW()-2,Arkusz1!$C:$C,0)+5)) ->  | G167: =IF(ISERROR(MATCH(ROW()-2,Arkusz1!$C:$C,0)),"",INDEX('import danych'!$L:$L,MATCH(ROW()-2,Arkusz1!$C:$C,0)+5)) -> 
A168: =IF(ISERROR(MATCH(ROW()-2,Arkusz1!$C:$C,0)),"",INDEX(Arkusz1!C:C,MATCH(ROW()-2,Arkusz1!$C:$C,0))) ->  | B168: =IF(ISERROR(MATCH(ROW()-2,Arkusz1!$C:$C,0)),"",INDEX('import danych'!$A:$A,MATCH(ROW()-2,Arkusz1!$C:$C,0)+5)) ->  | D168: =IF(ISERROR(MATCH(ROW()-2,Arkusz1!$C:$C,0)),"",INDEX('import danych'!$B:$B,MATCH(ROW()-2,Arkusz1!$C:$C,0)+5)) ->  | E168: =IF(ISERROR(MATCH(ROW()-2,Arkusz1!$C:$C,0)),"",INDEX(Arkusz1!I:I,MATCH(ROW()-2,Arkusz1!$C:$C,0))) ->  | F168: =IF(ISERROR(MATCH(ROW()-2,Arkusz1!$C:$C,0)),"",INDEX('import danych'!$H:$H,MATCH(ROW()-2,Arkusz1!$C:$C,0)+5)) ->  | G168: =IF(ISERROR(MATCH(ROW()-2,Arkusz1!$C:$C,0)),"",INDEX('import danych'!$L:$L,MATCH(ROW()-2,Arkusz1!$C:$C,0)+5)) -> 
A169: =IF(ISERROR(MATCH(ROW()-2,Arkusz1!$C:$C,0)),"",INDEX(Arkusz1!C:C,MATCH(ROW()-2,Arkusz1!$C:$C,0))) ->  | B169: =IF(ISERROR(MATCH(ROW()-2,Arkusz1!$C:$C,0)),"",INDEX('import danych'!$A:$A,MATCH(ROW()-2,Arkusz1!$C:$C,0)+5)) ->  | D169: =IF(ISERROR(MATCH(ROW()-2,Arkusz1!$C:$C,0)),"",INDEX('import danych'!$B:$B,MATCH(ROW()-2,Arkusz1!$C:$C,0)+5)) ->  | E169: =IF(ISERROR(MATCH(ROW()-2,Arkusz1!$C:$C,0)),"",INDEX(Arkusz1!I:I,MATCH(ROW()-2,Arkusz1!$C:$C,0))) ->  | F169: =IF(ISERROR(MATCH(ROW()-2,Arkusz1!$C:$C,0)),"",INDEX('import danych'!$H:$H,MATCH(ROW()-2,Arkusz1!$C:$C,0)+5)) ->  | G169: =IF(ISERROR(MATCH(ROW()-2,Arkusz1!$C:$C,0)),"",INDEX('import danych'!$L:$L,MATCH(ROW()-2,Arkusz1!$C:$C,0)+5)) -> 
A170: =IF(ISERROR(MATCH(ROW()-2,Arkusz1!$C:$C,0)),"",INDEX(Arkusz1!C:C,MATCH(ROW()-2,Arkusz1!$C:$C,0))) ->  | B170: =IF(ISERROR(MATCH(ROW()-2,Arkusz1!$C:$C,0)),"",INDEX('import danych'!$A:$A,MATCH(ROW()-2,Arkusz1!$C:$C,0)+5)) ->  | D170: =IF(ISERROR(MATCH(ROW()-2,Arkusz1!$C:$C,0)),"",INDEX('import danych'!$B:$B,MATCH(ROW()-2,Arkusz1!$C:$C,0)+5)) ->  | E170: =IF(ISERROR(MATCH(ROW()-2,Arkusz1!$C:$C,0)),"",INDEX(Arkusz1!I:I,MATCH(ROW()-2,Arkusz1!$C:$C,0))) ->  | F170: =IF(ISERROR(MATCH(ROW()-2,Arkusz1!$C:$C,0)),"",INDEX('import danych'!$H:$H,MATCH(ROW()-2,Arkusz1!$C:$C,0)+5)) ->  | G170: =IF(ISERROR(MATCH(ROW()-2,Arkusz1!$C:$C,0)),"",INDEX('import danych'!$L:$L,MATCH(ROW()-2,Arkusz1!$C:$C,0)+5)) -> 
A171: =IF(ISERROR(MATCH(ROW()-2,Arkusz1!$C:$C,0)),"",INDEX(Arkusz1!C:C,MATCH(ROW()-2,Arkusz1!$C:$C,0))) ->  | B171: =IF(ISERROR(MATCH(ROW()-2,Arkusz1!$C:$C,0)),"",INDEX('import danych'!$A:$A,MATCH(ROW()-2,Arkusz1!$C:$C,0)+5)) ->  | D171: =IF(ISERROR(MATCH(ROW()-2,Arkusz1!$C:$C,0)),"",INDEX('import danych'!$B:$B,MATCH(ROW()-2,Arkusz1!$C:$C,0)+5)) ->  | E171: =IF(ISERROR(MATCH(ROW()-2,Arkusz1!$C:$C,0)),"",INDEX(Arkusz1!I:I,MATCH(ROW()-2,Arkusz1!$C:$C,0))) ->  | F171: =IF(ISERROR(MATCH(ROW()-2,Arkusz1!$C:$C,0)),"",INDEX('import danych'!$H:$H,MATCH(ROW()-2,Arkusz1!$C:$C,0)+5)) ->  | G171: =IF(ISERROR(MATCH(ROW()-2,Arkusz1!$C:$C,0)),"",INDEX('import danych'!$L:$L,MATCH(ROW()-2,Arkusz1!$C:$C,0)+5)) -> 
A172: =IF(ISERROR(MATCH(ROW()-2,Arkusz1!$C:$C,0)),"",INDEX(Arkusz1!C:C,MATCH(ROW()-2,Arkusz1!$C:$C,0))) ->  | B172: =IF(ISERROR(MATCH(ROW()-2,Arkusz1!$C:$C,0)),"",INDEX('import danych'!$A:$A,MATCH(ROW()-2,Arkusz1!$C:$C,0)+5)) ->  | D172: =IF(ISERROR(MATCH(ROW()-2,Arkusz1!$C:$C,0)),"",INDEX('import danych'!$B:$B,MATCH(ROW()-2,Arkusz1!$C:$C,0)+5)) ->  | E172: =IF(ISERROR(MATCH(ROW()-2,Arkusz1!$C:$C,0)),"",INDEX(Arkusz1!I:I,MATCH(ROW()-2,Arkusz1!$C:$C,0))) ->  | F172: =IF(ISERROR(MATCH(ROW()-2,Arkusz1!$C:$C,0)),"",INDEX('import danych'!$H:$H,MATCH(ROW()-2,Arkusz1!$C:$C,0)+5)) ->  | G172: =IF(ISERROR(MATCH(ROW()-2,Arkusz1!$C:$C,0)),"",INDEX('import danych'!$L:$L,MATCH(ROW()-2,Arkusz1!$C:$C,0)+5)) -> 
A173: =IF(ISERROR(MATCH(ROW()-2,Arkusz1!$C:$C,0)),"",INDEX(Arkusz1!C:C,MATCH(ROW()-2,Arkusz1!$C:$C,0))) ->  | B173: =IF(ISERROR(MATCH(ROW()-2,Arkusz1!$C:$C,0)),"",INDEX('import danych'!$A:$A,MATCH(ROW()-2,Arkusz1!$C:$C,0)+5)) ->  | D173: =IF(ISERROR(MATCH(ROW()-2,Arkusz1!$C:$C,0)),"",INDEX('import danych'!$B:$B,MATCH(ROW()-2,Arkusz1!$C:$C,0)+5)) ->  | E173: =IF(ISERROR(MATCH(ROW()-2,Arkusz1!$C:$C,0)),"",INDEX(Arkusz1!I:I,MATCH(ROW()-2,Arkusz1!$C:$C,0))) ->  | F173: =IF(ISERROR(MATCH(ROW()-2,Arkusz1!$C:$C,0)),"",INDEX('import danych'!$H:$H,MATCH(ROW()-2,Arkusz1!$C:$C,0)+5)) ->  | G173: =IF(ISERROR(MATCH(ROW()-2,Arkusz1!$C:$C,0)),"",INDEX('import danych'!$L:$L,MATCH(ROW()-2,Arkusz1!$C:$C,0)+5)) -> 
A174: =IF(ISERROR(MATCH(ROW()-2,Arkusz1!$C:$C,0)),"",INDEX(Arkusz1!C:C,MATCH(ROW()-2,Arkusz1!$C:$C,0))) ->  | B174: =IF(ISERROR(MATCH(ROW()-2,Arkusz1!$C:$C,0)),"",INDEX('import danych'!$A:$A,MATCH(ROW()-2,Arkusz1!$C:$C,0)+5)) ->  | D174: =IF(ISERROR(MATCH(ROW()-2,Arkusz1!$C:$C,0)),"",INDEX('import danych'!$B:$B,MATCH(ROW()-2,Arkusz1!$C:$C,0)+5)) ->  | E174: =IF(ISERROR(MATCH(ROW()-2,Arkusz1!$C:$C,0)),"",INDEX(Arkusz1!I:I,MATCH(ROW()-2,Arkusz1!$C:$C,0))) ->  | F174: =IF(ISERROR(MATCH(ROW()-2,Arkusz1!$C:$C,0)),"",INDEX('import danych'!$H:$H,MATCH(ROW()-2,Arkusz1!$C:$C,0)+5)) ->  | G174: =IF(ISERROR(MATCH(ROW()-2,Arkusz1!$C:$C,0)),"",INDEX('import danych'!$L:$L,MATCH(ROW()-2,Arkusz1!$C:$C,0)+5)) -> 
A175: =IF(ISERROR(MATCH(ROW()-2,Arkusz1!$C:$C,0)),"",INDEX(Arkusz1!C:C,MATCH(ROW()-2,Arkusz1!$C:$C,0))) ->  | B175: =IF(ISERROR(MATCH(ROW()-2,Arkusz1!$C:$C,0)),"",INDEX('import danych'!$A:$A,MATCH(ROW()-2,Arkusz1!$C:$C,0)+5)) ->  | D175: =IF(ISERROR(MATCH(ROW()-2,Arkusz1!$C:$C,0)),"",INDEX('import danych'!$B:$B,MATCH(ROW()-2,Arkusz1!$C:$C,0)+5)) ->  | E175: =IF(ISERROR(MATCH(ROW()-2,Arkusz1!$C:$C,0)),"",INDEX(Arkusz1!I:I,MATCH(ROW()-2,Arkusz1!$C:$C,0))) ->  | F175: =IF(ISERROR(MATCH(ROW()-2,Arkusz1!$C:$C,0)),"",INDEX('import danych'!$H:$H,MATCH(ROW()-2,Arkusz1!$C:$C,0)+5)) ->  | G175: =IF(ISERROR(MATCH(ROW()-2,Arkusz1!$C:$C,0)),"",INDEX('import danych'!$L:$L,MATCH(ROW()-2,Arkusz1!$C:$C,0)+5)) -> 
A176: =IF(ISERROR(MATCH(ROW()-2,Arkusz1!$C:$C,0)),"",INDEX(Arkusz1!C:C,MATCH(ROW()-2,Arkusz1!$C:$C,0))) ->  | B176: =IF(ISERROR(MATCH(ROW()-2,Arkusz1!$C:$C,0)),"",INDEX('import danych'!$A:$A,MATCH(ROW()-2,Arkusz1!$C:$C,0)+5)) ->  | D176: =IF(ISERROR(MATCH(ROW()-2,Arkusz1!$C:$C,0)),"",INDEX('import danych'!$B:$B,MATCH(ROW()-2,Arkusz1!$C:$C,0)+5)) ->  | E176: =IF(ISERROR(MATCH(ROW()-2,Arkusz1!$C:$C,0)),"",INDEX(Arkusz1!I:I,MATCH(ROW()-2,Arkusz1!$C:$C,0))) ->  | F176: =IF(ISERROR(MATCH(ROW()-2,Arkusz1!$C:$C,0)),"",INDEX('import danych'!$H:$H,MATCH(ROW()-2,Arkusz1!$C:$C,0)+5)) ->  | G176: =IF(ISERROR(MATCH(ROW()-2,Arkusz1!$C:$C,0)),"",INDEX('import danych'!$L:$L,MATCH(ROW()-2,Arkusz1!$C:$C,0)+5)) -> 
A177: =IF(ISERROR(MATCH(ROW()-2,Arkusz1!$C:$C,0)),"",INDEX(Arkusz1!C:C,MATCH(ROW()-2,Arkusz1!$C:$C,0))) ->  | B177: =IF(ISERROR(MATCH(ROW()-2,Arkusz1!$C:$C,0)),"",INDEX('import danych'!$A:$A,MATCH(ROW()-2,Arkusz1!$C:$C,0)+5)) ->  | D177: =IF(ISERROR(MATCH(ROW()-2,Arkusz1!$C:$C,0)),"",INDEX('import danych'!$B:$B,MATCH(ROW()-2,Arkusz1!$C:$C,0)+5)) ->  | E177: =IF(ISERROR(MATCH(ROW()-2,Arkusz1!$C:$C,0)),"",INDEX(Arkusz1!I:I,MATCH(ROW()-2,Arkusz1!$C:$C,0))) ->  | F177: =IF(ISERROR(MATCH(ROW()-2,Arkusz1!$C:$C,0)),"",INDEX('import danych'!$H:$H,MATCH(ROW()-2,Arkusz1!$C:$C,0)+5)) ->  | G177: =IF(ISERROR(MATCH(ROW()-2,Arkusz1!$C:$C,0)),"",INDEX('import danych'!$L:$L,MATCH(ROW()-2,Arkusz1!$C:$C,0)+5)) -> 
A178: =IF(ISERROR(MATCH(ROW()-2,Arkusz1!$C:$C,0)),"",INDEX(Arkusz1!C:C,MATCH(ROW()-2,Arkusz1!$C:$C,0))) ->  | B178: =IF(ISERROR(MATCH(ROW()-2,Arkusz1!$C:$C,0)),"",INDEX('import danych'!$A:$A,MATCH(ROW()-2,Arkusz1!$C:$C,0)+5)) ->  | D178: =IF(ISERROR(MATCH(ROW()-2,Arkusz1!$C:$C,0)),"",INDEX('import danych'!$B:$B,MATCH(ROW()-2,Arkusz1!$C:$C,0)+5)) ->  | E178: =IF(ISERROR(MATCH(ROW()-2,Arkusz1!$C:$C,0)),"",INDEX(Arkusz1!I:I,MATCH(ROW()-2,Arkusz1!$C:$C,0))) ->  | F178: =IF(ISERROR(MATCH(ROW()-2,Arkusz1!$C:$C,0)),"",INDEX('import danych'!$H:$H,MATCH(ROW()-2,Arkusz1!$C:$C,0)+5)) ->  | G178: =IF(ISERROR(MATCH(ROW()-2,Arkusz1!$C:$C,0)),"",INDEX('import danych'!$L:$L,MATCH(ROW()-2,Arkusz1!$C:$C,0)+5)) -> 
A179: =IF(ISERROR(MATCH(ROW()-2,Arkusz1!$C:$C,0)),"",INDEX(Arkusz1!C:C,MATCH(ROW()-2,Arkusz1!$C:$C,0))) ->  | B179: =IF(ISERROR(MATCH(ROW()-2,Arkusz1!$C:$C,0)),"",INDEX('import danych'!$A:$A,MATCH(ROW()-2,Arkusz1!$C:$C,0)+5)) ->  | D179: =IF(ISERROR(MATCH(ROW()-2,Arkusz1!$C:$C,0)),"",INDEX('import danych'!$B:$B,MATCH(ROW()-2,Arkusz1!$C:$C,0)+5)) ->  | E179: =IF(ISERROR(MATCH(ROW()-2,Arkusz1!$C:$C,0)),"",INDEX(Arkusz1!I:I,MATCH(ROW()-2,Arkusz1!$C:$C,0))) ->  | F179: =IF(ISERROR(MATCH(ROW()-2,Arkusz1!$C:$C,0)),"",INDEX('import danych'!$H:$H,MATCH(ROW()-2,Arkusz1!$C:$C,0)+5)) ->  | G179: =IF(ISERROR(MATCH(ROW()-2,Arkusz1!$C:$C,0)),"",INDEX('import danych'!$L:$L,MATCH(ROW()-2,Arkusz1!$C:$C,0)+5)) -> 
A180: =IF(ISERROR(MATCH(ROW()-2,Arkusz1!$C:$C,0)),"",INDEX(Arkusz1!C:C,MATCH(ROW()-2,Arkusz1!$C:$C,0))) ->  | B180: =IF(ISERROR(MATCH(ROW()-2,Arkusz1!$C:$C,0)),"",INDEX('import danych'!$A:$A,MATCH(ROW()-2,Arkusz1!$C:$C,0)+5)) ->  | D180: =IF(ISERROR(MATCH(ROW()-2,Arkusz1!$C:$C,0)),"",INDEX('import danych'!$B:$B,MATCH(ROW()-2,Arkusz1!$C:$C,0)+5)) ->  | E180: =IF(ISERROR(MATCH(ROW()-2,Arkusz1!$C:$C,0)),"",INDEX(Arkusz1!I:I,MATCH(ROW()-2,Arkusz1!$C:$C,0))) ->  | F180: =IF(ISERROR(MATCH(ROW()-2,Arkusz1!$C:$C,0)),"",INDEX('import danych'!$H:$H,MATCH(ROW()-2,Arkusz1!$C:$C,0)+5)) ->  | G180: =IF(ISERROR(MATCH(ROW()-2,Arkusz1!$C:$C,0)),"",INDEX('import danych'!$L:$L,MATCH(ROW()-2,Arkusz1!$C:$C,0)+5)) -> 
A181: =IF(ISERROR(MATCH(ROW()-2,Arkusz1!$C:$C,0)),"",INDEX(Arkusz1!C:C,MATCH(ROW()-2,Arkusz1!$C:$C,0))) ->  | B181: =IF(ISERROR(MATCH(ROW()-2,Arkusz1!$C:$C,0)),"",INDEX('import danych'!$A:$A,MATCH(ROW()-2,Arkusz1!$C:$C,0)+5)) ->  | D181: =IF(ISERROR(MATCH(ROW()-2,Arkusz1!$C:$C,0)),"",INDEX('import danych'!$B:$B,MATCH(ROW()-2,Arkusz1!$C:$C,0)+5)) ->  | E181: =IF(ISERROR(MATCH(ROW()-2,Arkusz1!$C:$C,0)),"",INDEX(Arkusz1!I:I,MATCH(ROW()-2,Arkusz1!$C:$C,0))) ->  | F181: =IF(ISERROR(MATCH(ROW()-2,Arkusz1!$C:$C,0)),"",INDEX('import danych'!$H:$H,MATCH(ROW()-2,Arkusz1!$C:$C,0)+5)) ->  | G181: =IF(ISERROR(MATCH(ROW()-2,Arkusz1!$C:$C,0)),"",INDEX('import danych'!$L:$L,MATCH(ROW()-2,Arkusz1!$C:$C,0)+5)) -> 
A182: =IF(ISERROR(MATCH(ROW()-2,Arkusz1!$C:$C,0)),"",INDEX(Arkusz1!C:C,MATCH(ROW()-2,Arkusz1!$C:$C,0))) ->  | B182: =IF(ISERROR(MATCH(ROW()-2,Arkusz1!$C:$C,0)),"",INDEX('import danych'!$A:$A,MATCH(ROW()-2,Arkusz1!$C:$C,0)+5)) ->  | D182: =IF(ISERROR(MATCH(ROW()-2,Arkusz1!$C:$C,0)),"",INDEX('import danych'!$B:$B,MATCH(ROW()-2,Arkusz1!$C:$C,0)+5)) ->  | E182: =IF(ISERROR(MATCH(ROW()-2,Arkusz1!$C:$C,0)),"",INDEX(Arkusz1!I:I,MATCH(ROW()-2,Arkusz1!$C:$C,0))) ->  | F182: =IF(ISERROR(MATCH(ROW()-2,Arkusz1!$C:$C,0)),"",INDEX('import danych'!$H:$H,MATCH(ROW()-2,Arkusz1!$C:$C,0)+5)) ->  | G182: =IF(ISERROR(MATCH(ROW()-2,Arkusz1!$C:$C,0)),"",INDEX('import danych'!$L:$L,MATCH(ROW()-2,Arkusz1!$C:$C,0)+5)) -> 
A183: =IF(ISERROR(MATCH(ROW()-2,Arkusz1!$C:$C,0)),"",INDEX(Arkusz1!C:C,MATCH(ROW()-2,Arkusz1!$C:$C,0))) ->  | B183: =IF(ISERROR(MATCH(ROW()-2,Arkusz1!$C:$C,0)),"",INDEX('import danych'!$A:$A,MATCH(ROW()-2,Arkusz1!$C:$C,0)+5)) ->  | D183: =IF(ISERROR(MATCH(ROW()-2,Arkusz1!$C:$C,0)),"",INDEX('import danych'!$B:$B,MATCH(ROW()-2,Arkusz1!$C:$C,0)+5)) ->  | E183: =IF(ISERROR(MATCH(ROW()-2,Arkusz1!$C:$C,0)),"",INDEX(Arkusz1!I:I,MATCH(ROW()-2,Arkusz1!$C:$C,0))) ->  | F183: =IF(ISERROR(MATCH(ROW()-2,Arkusz1!$C:$C,0)),"",INDEX('import danych'!$H:$H,MATCH(ROW()-2,Arkusz1!$C:$C,0)+5)) ->  | G183: =IF(ISERROR(MATCH(ROW()-2,Arkusz1!$C:$C,0)),"",INDEX('import danych'!$L:$L,MATCH(ROW()-2,Arkusz1!$C:$C,0)+5)) -> 
A184: =IF(ISERROR(MATCH(ROW()-2,Arkusz1!$C:$C,0)),"",INDEX(Arkusz1!C:C,MATCH(ROW()-2,Arkusz1!$C:$C,0))) ->  | B184: =IF(ISERROR(MATCH(ROW()-2,Arkusz1!$C:$C,0)),"",INDEX('import danych'!$A:$A,MATCH(ROW()-2,Arkusz1!$C:$C,0)+5)) ->  | D184: =IF(ISERROR(MATCH(ROW()-2,Arkusz1!$C:$C,0)),"",INDEX('import danych'!$B:$B,MATCH(ROW()-2,Arkusz1!$C:$C,0)+5)) ->  | E184: =IF(ISERROR(MATCH(ROW()-2,Arkusz1!$C:$C,0)),"",INDEX(Arkusz1!I:I,MATCH(ROW()-2,Arkusz1!$C:$C,0))) ->  | F184: =IF(ISERROR(MATCH(ROW()-2,Arkusz1!$C:$C,0)),"",INDEX('import danych'!$H:$H,MATCH(ROW()-2,Arkusz1!$C:$C,0)+5)) ->  | G184: =IF(ISERROR(MATCH(ROW()-2,Arkusz1!$C:$C,0)),"",INDEX('import danych'!$L:$L,MATCH(ROW()-2,Arkusz1!$C:$C,0)+5)) -> 
A185: =IF(ISERROR(MATCH(ROW()-2,Arkusz1!$C:$C,0)),"",INDEX(Arkusz1!C:C,MATCH(ROW()-2,Arkusz1!$C:$C,0))) ->  | B185: =IF(ISERROR(MATCH(ROW()-2,Arkusz1!$C:$C,0)),"",INDEX('import danych'!$A:$A,MATCH(ROW()-2,Arkusz1!$C:$C,0)+5)) ->  | D185: =IF(ISERROR(MATCH(ROW()-2,Arkusz1!$C:$C,0)),"",INDEX('import danych'!$B:$B,MATCH(ROW()-2,Arkusz1!$C:$C,0)+5)) ->  | E185: =IF(ISERROR(MATCH(ROW()-2,Arkusz1!$C:$C,0)),"",INDEX(Arkusz1!I:I,MATCH(ROW()-2,Arkusz1!$C:$C,0))) ->  | F185: =IF(ISERROR(MATCH(ROW()-2,Arkusz1!$C:$C,0)),"",INDEX('import danych'!$H:$H,MATCH(ROW()-2,Arkusz1!$C:$C,0)+5)) ->  | G185: =IF(ISERROR(MATCH(ROW()-2,Arkusz1!$C:$C,0)),"",INDEX('import danych'!$L:$L,MATCH(ROW()-2,Arkusz1!$C:$C,0)+5)) -> 
A186: =IF(ISERROR(MATCH(ROW()-2,Arkusz1!$C:$C,0)),"",INDEX(Arkusz1!C:C,MATCH(ROW()-2,Arkusz1!$C:$C,0))) ->  | B186: =IF(ISERROR(MATCH(ROW()-2,Arkusz1!$C:$C,0)),"",INDEX('import danych'!$A:$A,MATCH(ROW()-2,Arkusz1!$C:$C,0)+5)) ->  | D186: =IF(ISERROR(MATCH(ROW()-2,Arkusz1!$C:$C,0)),"",INDEX('import danych'!$B:$B,MATCH(ROW()-2,Arkusz1!$C:$C,0)+5)) ->  | E186: =IF(ISERROR(MATCH(ROW()-2,Arkusz1!$C:$C,0)),"",INDEX(Arkusz1!I:I,MATCH(ROW()-2,Arkusz1!$C:$C,0))) ->  | F186: =IF(ISERROR(MATCH(ROW()-2,Arkusz1!$C:$C,0)),"",INDEX('import danych'!$H:$H,MATCH(ROW()-2,Arkusz1!$C:$C,0)+5)) ->  | G186: =IF(ISERROR(MATCH(ROW()-2,Arkusz1!$C:$C,0)),"",INDEX('import danych'!$L:$L,MATCH(ROW()-2,Arkusz1!$C:$C,0)+5)) -> 
A187: =IF(ISERROR(MATCH(ROW()-2,Arkusz1!$C:$C,0)),"",INDEX(Arkusz1!C:C,MATCH(ROW()-2,Arkusz1!$C:$C,0))) ->  | B187: =IF(ISERROR(MATCH(ROW()-2,Arkusz1!$C:$C,0)),"",INDEX('import danych'!$A:$A,MATCH(ROW()-2,Arkusz1!$C:$C,0)+5)) ->  | D187: =IF(ISERROR(MATCH(ROW()-2,Arkusz1!$C:$C,0)),"",INDEX('import danych'!$B:$B,MATCH(ROW()-2,Arkusz1!$C:$C,0)+5)) ->  | E187: =IF(ISERROR(MATCH(ROW()-2,Arkusz1!$C:$C,0)),"",INDEX(Arkusz1!I:I,MATCH(ROW()-2,Arkusz1!$C:$C,0))) ->  | F187: =IF(ISERROR(MATCH(ROW()-2,Arkusz1!$C:$C,0)),"",INDEX('import danych'!$H:$H,MATCH(ROW()-2,Arkusz1!$C:$C,0)+5)) ->  | G187: =IF(ISERROR(MATCH(ROW()-2,Arkusz1!$C:$C,0)),"",INDEX('import danych'!$L:$L,MATCH(ROW()-2,Arkusz1!$C:$C,0)+5)) -> 
A188: =IF(ISERROR(MATCH(ROW()-2,Arkusz1!$C:$C,0)),"",INDEX(Arkusz1!C:C,MATCH(ROW()-2,Arkusz1!$C:$C,0))) ->  | B188: =IF(ISERROR(MATCH(ROW()-2,Arkusz1!$C:$C,0)),"",INDEX('import danych'!$A:$A,MATCH(ROW()-2,Arkusz1!$C:$C,0)+5)) ->  | D188: =IF(ISERROR(MATCH(ROW()-2,Arkusz1!$C:$C,0)),"",INDEX('import danych'!$B:$B,MATCH(ROW()-2,Arkusz1!$C:$C,0)+5)) ->  | E188: =IF(ISERROR(MATCH(ROW()-2,Arkusz1!$C:$C,0)),"",INDEX(Arkusz1!I:I,MATCH(ROW()-2,Arkusz1!$C:$C,0))) ->  | F188: =IF(ISERROR(MATCH(ROW()-2,Arkusz1!$C:$C,0)),"",INDEX('import danych'!$H:$H,MATCH(ROW()-2,Arkusz1!$C:$C,0)+5)) ->  | G188: =IF(ISERROR(MATCH(ROW()-2,Arkusz1!$C:$C,0)),"",INDEX('import danych'!$L:$L,MATCH(ROW()-2,Arkusz1!$C:$C,0)+5)) -> 
A189: =IF(ISERROR(MATCH(ROW()-2,Arkusz1!$C:$C,0)),"",INDEX(Arkusz1!C:C,MATCH(ROW()-2,Arkusz1!$C:$C,0))) ->  | B189: =IF(ISERROR(MATCH(ROW()-2,Arkusz1!$C:$C,0)),"",INDEX('import danych'!$A:$A,MATCH(ROW()-2,Arkusz1!$C:$C,0)+5)) ->  | D189: =IF(ISERROR(MATCH(ROW()-2,Arkusz1!$C:$C,0)),"",INDEX('import danych'!$B:$B,MATCH(ROW()-2,Arkusz1!$C:$C,0)+5)) ->  | E189: =IF(ISERROR(MATCH(ROW()-2,Arkusz1!$C:$C,0)),"",INDEX(Arkusz1!I:I,MATCH(ROW()-2,Arkusz1!$C:$C,0))) ->  | F189: =IF(ISERROR(MATCH(ROW()-2,Arkusz1!$C:$C,0)),"",INDEX('import danych'!$H:$H,MATCH(ROW()-2,Arkusz1!$C:$C,0)+5)) ->  | G189: =IF(ISERROR(MATCH(ROW()-2,Arkusz1!$C:$C,0)),"",INDEX('import danych'!$L:$L,MATCH(ROW()-2,Arkusz1!$C:$C,0)+5)) -> 
A190: =IF(ISERROR(MATCH(ROW()-2,Arkusz1!$C:$C,0)),"",INDEX(Arkusz1!C:C,MATCH(ROW()-2,Arkusz1!$C:$C,0))) ->  | B190: =IF(ISERROR(MATCH(ROW()-2,Arkusz1!$C:$C,0)),"",INDEX('import danych'!$A:$A,MATCH(ROW()-2,Arkusz1!$C:$C,0)+5)) ->  | D190: =IF(ISERROR(MATCH(ROW()-2,Arkusz1!$C:$C,0)),"",INDEX('import danych'!$B:$B,MATCH(ROW()-2,Arkusz1!$C:$C,0)+5)) ->  | E190: =IF(ISERROR(MATCH(ROW()-2,Arkusz1!$C:$C,0)),"",INDEX(Arkusz1!I:I,MATCH(ROW()-2,Arkusz1!$C:$C,0))) ->  | F190: =IF(ISERROR(MATCH(ROW()-2,Arkusz1!$C:$C,0)),"",INDEX('import danych'!$H:$H,MATCH(ROW()-2,Arkusz1!$C:$C,0)+5)) ->  | G190: =IF(ISERROR(MATCH(ROW()-2,Arkusz1!$C:$C,0)),"",INDEX('import danych'!$L:$L,MATCH(ROW()-2,Arkusz1!$C:$C,0)+5)) -> 
A191: =IF(ISERROR(MATCH(ROW()-2,Arkusz1!$C:$C,0)),"",INDEX(Arkusz1!C:C,MATCH(ROW()-2,Arkusz1!$C:$C,0))) ->  | B191: =IF(ISERROR(MATCH(ROW()-2,Arkusz1!$C:$C,0)),"",INDEX('import danych'!$A:$A,MATCH(ROW()-2,Arkusz1!$C:$C,0)+5)) ->  | D191: =IF(ISERROR(MATCH(ROW()-2,Arkusz1!$C:$C,0)),"",INDEX('import danych'!$B:$B,MATCH(ROW()-2,Arkusz1!$C:$C,0)+5)) ->  | E191: =IF(ISERROR(MATCH(ROW()-2,Arkusz1!$C:$C,0)),"",INDEX(Arkusz1!I:I,MATCH(ROW()-2,Arkusz1!$C:$C,0))) ->  | F191: =IF(ISERROR(MATCH(ROW()-2,Arkusz1!$C:$C,0)),"",INDEX('import danych'!$H:$H,MATCH(ROW()-2,Arkusz1!$C:$C,0)+5)) ->  | G191: =IF(ISERROR(MATCH(ROW()-2,Arkusz1!$C:$C,0)),"",INDEX('import danych'!$L:$L,MATCH(ROW()-2,Arkusz1!$C:$C,0)+5)) -> 
A192: =IF(ISERROR(MATCH(ROW()-2,Arkusz1!$C:$C,0)),"",INDEX(Arkusz1!C:C,MATCH(ROW()-2,Arkusz1!$C:$C,0))) ->  | B192: =IF(ISERROR(MATCH(ROW()-2,Arkusz1!$C:$C,0)),"",INDEX('import danych'!$A:$A,MATCH(ROW()-2,Arkusz1!$C:$C,0)+5)) ->  | D192: =IF(ISERROR(MATCH(ROW()-2,Arkusz1!$C:$C,0)),"",INDEX('import danych'!$B:$B,MATCH(ROW()-2,Arkusz1!$C:$C,0)+5)) ->  | E192: =IF(ISERROR(MATCH(ROW()-2,Arkusz1!$C:$C,0)),"",INDEX(Arkusz1!I:I,MATCH(ROW()-2,Arkusz1!$C:$C,0))) ->  | F192: =IF(ISERROR(MATCH(ROW()-2,Arkusz1!$C:$C,0)),"",INDEX('import danych'!$H:$H,MATCH(ROW()-2,Arkusz1!$C:$C,0)+5)) ->  | G192: =IF(ISERROR(MATCH(ROW()-2,Arkusz1!$C:$C,0)),"",INDEX('import danych'!$L:$L,MATCH(ROW()-2,Arkusz1!$C:$C,0)+5)) -> 
A193: =IF(ISERROR(MATCH(ROW()-2,Arkusz1!$C:$C,0)),"",INDEX(Arkusz1!C:C,MATCH(ROW()-2,Arkusz1!$C:$C,0))) ->  | B193: =IF(ISERROR(MATCH(ROW()-2,Arkusz1!$C:$C,0)),"",INDEX('import danych'!$A:$A,MATCH(ROW()-2,Arkusz1!$C:$C,0)+5)) ->  | D193: =IF(ISERROR(MATCH(ROW()-2,Arkusz1!$C:$C,0)),"",INDEX('import danych'!$B:$B,MATCH(ROW()-2,Arkusz1!$C:$C,0)+5)) ->  | E193: =IF(ISERROR(MATCH(ROW()-2,Arkusz1!$C:$C,0)),"",INDEX(Arkusz1!I:I,MATCH(ROW()-2,Arkusz1!$C:$C,0))) ->  | F193: =IF(ISERROR(MATCH(ROW()-2,Arkusz1!$C:$C,0)),"",INDEX('import danych'!$H:$H,MATCH(ROW()-2,Arkusz1!$C:$C,0)+5)) ->  | G193: =IF(ISERROR(MATCH(ROW()-2,Arkusz1!$C:$C,0)),"",INDEX('import danych'!$L:$L,MATCH(ROW()-2,Arkusz1!$C:$C,0)+5)) -> 
A194: =IF(ISERROR(MATCH(ROW()-2,Arkusz1!$C:$C,0)),"",INDEX(Arkusz1!C:C,MATCH(ROW()-2,Arkusz1!$C:$C,0))) ->  | B194: =IF(ISERROR(MATCH(ROW()-2,Arkusz1!$C:$C,0)),"",INDEX('import danych'!$A:$A,MATCH(ROW()-2,Arkusz1!$C:$C,0)+5)) ->  | D194: =IF(ISERROR(MATCH(ROW()-2,Arkusz1!$C:$C,0)),"",INDEX('import danych'!$B:$B,MATCH(ROW()-2,Arkusz1!$C:$C,0)+5)) ->  | E194: =IF(ISERROR(MATCH(ROW()-2,Arkusz1!$C:$C,0)),"",INDEX(Arkusz1!I:I,MATCH(ROW()-2,Arkusz1!$C:$C,0))) ->  | F194: =IF(ISERROR(MATCH(ROW()-2,Arkusz1!$C:$C,0)),"",INDEX('import danych'!$H:$H,MATCH(ROW()-2,Arkusz1!$C:$C,0)+5)) ->  | G194: =IF(ISERROR(MATCH(ROW()-2,Arkusz1!$C:$C,0)),"",INDEX('import danych'!$L:$L,MATCH(ROW()-2,Arkusz1!$C:$C,0)+5)) -> 
A195: =IF(ISERROR(MATCH(ROW()-2,Arkusz1!$C:$C,0)),"",INDEX(Arkusz1!C:C,MATCH(ROW()-2,Arkusz1!$C:$C,0))) ->  | B195: =IF(ISERROR(MATCH(ROW()-2,Arkusz1!$C:$C,0)),"",INDEX('import danych'!$A:$A,MATCH(ROW()-2,Arkusz1!$C:$C,0)+5)) ->  | D195: =IF(ISERROR(MATCH(ROW()-2,Arkusz1!$C:$C,0)),"",INDEX('import danych'!$B:$B,MATCH(ROW()-2,Arkusz1!$C:$C,0)+5)) ->  | E195: =IF(ISERROR(MATCH(ROW()-2,Arkusz1!$C:$C,0)),"",INDEX(Arkusz1!I:I,MATCH(ROW()-2,Arkusz1!$C:$C,0))) ->  | F195: =IF(ISERROR(MATCH(ROW()-2,Arkusz1!$C:$C,0)),"",INDEX('import danych'!$H:$H,MATCH(ROW()-2,Arkusz1!$C:$C,0)+5)) ->  | G195: =IF(ISERROR(MATCH(ROW()-2,Arkusz1!$C:$C,0)),"",INDEX('import danych'!$L:$L,MATCH(ROW()-2,Arkusz1!$C:$C,0)+5)) -> 
A196: =IF(ISERROR(MATCH(ROW()-2,Arkusz1!$C:$C,0)),"",INDEX(Arkusz1!C:C,MATCH(ROW()-2,Arkusz1!$C:$C,0))) ->  | B196: =IF(ISERROR(MATCH(ROW()-2,Arkusz1!$C:$C,0)),"",INDEX('import danych'!$A:$A,MATCH(ROW()-2,Arkusz1!$C:$C,0)+5)) ->  | D196: =IF(ISERROR(MATCH(ROW()-2,Arkusz1!$C:$C,0)),"",INDEX('import danych'!$B:$B,MATCH(ROW()-2,Arkusz1!$C:$C,0)+5)) ->  | E196: =IF(ISERROR(MATCH(ROW()-2,Arkusz1!$C:$C,0)),"",INDEX(Arkusz1!I:I,MATCH(ROW()-2,Arkusz1!$C:$C,0))) ->  | F196: =IF(ISERROR(MATCH(ROW()-2,Arkusz1!$C:$C,0)),"",INDEX('import danych'!$H:$H,MATCH(ROW()-2,Arkusz1!$C:$C,0)+5)) ->  | G196: =IF(ISERROR(MATCH(ROW()-2,Arkusz1!$C:$C,0)),"",INDEX('import danych'!$L:$L,MATCH(ROW()-2,Arkusz1!$C:$C,0)+5)) -> 
A197: =IF(ISERROR(MATCH(ROW()-2,Arkusz1!$C:$C,0)),"",INDEX(Arkusz1!C:C,MATCH(ROW()-2,Arkusz1!$C:$C,0))) ->  | B197: =IF(ISERROR(MATCH(ROW()-2,Arkusz1!$C:$C,0)),"",INDEX('import danych'!$A:$A,MATCH(ROW()-2,Arkusz1!$C:$C,0)+5)) ->  | D197: =IF(ISERROR(MATCH(ROW()-2,Arkusz1!$C:$C,0)),"",INDEX('import danych'!$B:$B,MATCH(ROW()-2,Arkusz1!$C:$C,0)+5)) ->  | E197: =IF(ISERROR(MATCH(ROW()-2,Arkusz1!$C:$C,0)),"",INDEX(Arkusz1!I:I,MATCH(ROW()-2,Arkusz1!$C:$C,0))) ->  | F197: =IF(ISERROR(MATCH(ROW()-2,Arkusz1!$C:$C,0)),"",INDEX('import danych'!$H:$H,MATCH(ROW()-2,Arkusz1!$C:$C,0)+5)) ->  | G197: =IF(ISERROR(MATCH(ROW()-2,Arkusz1!$C:$C,0)),"",INDEX('import danych'!$L:$L,MATCH(ROW()-2,Arkusz1!$C:$C,0)+5)) -> 
A198: =IF(ISERROR(MATCH(ROW()-2,Arkusz1!$C:$C,0)),"",INDEX(Arkusz1!C:C,MATCH(ROW()-2,Arkusz1!$C:$C,0))) ->  | B198: =IF(ISERROR(MATCH(ROW()-2,Arkusz1!$C:$C,0)),"",INDEX('import danych'!$A:$A,MATCH(ROW()-2,Arkusz1!$C:$C,0)+5)) ->  | D198: =IF(ISERROR(MATCH(ROW()-2,Arkusz1!$C:$C,0)),"",INDEX('import danych'!$B:$B,MATCH(ROW()-2,Arkusz1!$C:$C,0)+5)) ->  | E198: =IF(ISERROR(MATCH(ROW()-2,Arkusz1!$C:$C,0)),"",INDEX(Arkusz1!I:I,MATCH(ROW()-2,Arkusz1!$C:$C,0))) ->  | F198: =IF(ISERROR(MATCH(ROW()-2,Arkusz1!$C:$C,0)),"",INDEX('import danych'!$H:$H,MATCH(ROW()-2,Arkusz1!$C:$C,0)+5)) ->  | G198: =IF(ISERROR(MATCH(ROW()-2,Arkusz1!$C:$C,0)),"",INDEX('import danych'!$L:$L,MATCH(ROW()-2,Arkusz1!$C:$C,0)+5)) -> 
A199: =IF(ISERROR(MATCH(ROW()-2,Arkusz1!$C:$C,0)),"",INDEX(Arkusz1!C:C,MATCH(ROW()-2,Arkusz1!$C:$C,0))) ->  | B199: =IF(ISERROR(MATCH(ROW()-2,Arkusz1!$C:$C,0)),"",INDEX('import danych'!$A:$A,MATCH(ROW()-2,Arkusz1!$C:$C,0)+5)) ->  | D199: =IF(ISERROR(MATCH(ROW()-2,Arkusz1!$C:$C,0)),"",INDEX('import danych'!$B:$B,MATCH(ROW()-2,Arkusz1!$C:$C,0)+5)) ->  | E199: =IF(ISERROR(MATCH(ROW()-2,Arkusz1!$C:$C,0)),"",INDEX(Arkusz1!I:I,MATCH(ROW()-2,Arkusz1!$C:$C,0))) ->  | F199: =IF(ISERROR(MATCH(ROW()-2,Arkusz1!$C:$C,0)),"",INDEX('import danych'!$H:$H,MATCH(ROW()-2,Arkusz1!$C:$C,0)+5)) ->  | G199: =IF(ISERROR(MATCH(ROW()-2,Arkusz1!$C:$C,0)),"",INDEX('import danych'!$L:$L,MATCH(ROW()-2,Arkusz1!$C:$C,0)+5)) -> 
A200: =IF(ISERROR(MATCH(ROW()-2,Arkusz1!$C:$C,0)),"",INDEX(Arkusz1!C:C,MATCH(ROW()-2,Arkusz1!$C:$C,0))) ->  | B200: =IF(ISERROR(MATCH(ROW()-2,Arkusz1!$C:$C,0)),"",INDEX('import danych'!$A:$A,MATCH(ROW()-2,Arkusz1!$C:$C,0)+5)) ->  | D200: =IF(ISERROR(MATCH(ROW()-2,Arkusz1!$C:$C,0)),"",INDEX('import danych'!$B:$B,MATCH(ROW()-2,Arkusz1!$C:$C,0)+5)) ->  | E200: =IF(ISERROR(MATCH(ROW()-2,Arkusz1!$C:$C,0)),"",INDEX(Arkusz1!I:I,MATCH(ROW()-2,Arkusz1!$C:$C,0))) ->  | F200: =IF(ISERROR(MATCH(ROW()-2,Arkusz1!$C:$C,0)),"",INDEX('import danych'!$H:$H,MATCH(ROW()-2,Arkusz1!$C:$C,0)+5)) ->  | G200: =IF(ISERROR(MATCH(ROW()-2,Arkusz1!$C:$C,0)),"",INDEX('import danych'!$L:$L,MATCH(ROW()-2,Arkusz1!$C:$C,0)+5)) -> 

Sheet import danych
A1: =IF([1]Sheet1!A1="","",[1]Sheet1!A1) ->  | B1: =IF([1]Sheet1!B1="","",[1]Sheet1!B1) ->  | C1: =IF([1]Sheet1!C1="","",[1]Sheet1!C1) ->  | D1: =IF([1]Sheet1!D1="","",[1]Sheet1!D1) ->  | E1: =IF([1]Sheet1!E1="","",[1]Sheet1!E1) ->  | F1: =IF([1]Sheet1!F1="","",[1]Sheet1!F1) ->  | G1: =IF([1]Sheet1!G1="","",[1]Sheet1!G1) ->  | H1: =IF([1]Sheet1!H1="","",[1]Sheet1!H1) ->  | I1: =IF([1]Sheet1!I1="","",[1]Sheet1!I1) ->  | J1: =IF([1]Sheet1!J1="","",[1]Sheet1!J1) ->  | K1: =IF([1]Sheet1!K1="","",[1]Sheet1!K1) ->  | L1: =IF([1]Sheet1!L1="","",[1]Sheet1!L1) -> 
B2: =IF([1]Sheet1!B2="","",[1]Sheet1!B2) ->  | C2: =IF([1]Sheet1!C2="","",[1]Sheet1!C2) ->  | D2: =IF([1]Sheet1!D2="","",[1]Sheet1!D2) ->  | E2: =IF([1]Sheet1!E2="","",[1]Sheet1!E2) ->  | F2: =IF([1]Sheet1!F2="","",[1]Sheet1!F2) ->  | G2: =IF([1]Sheet1!G2="","",[1]Sheet1!G2) ->  | H2: =IF([1]Sheet1!H2="","",[1]Sheet1!H2) ->  | I2: =IF([1]Sheet1!I2="","",[1]Sheet1!I2) ->  | J2: =IF([1]Sheet1!J2="","",[1]Sheet1!J2) ->  | K2: =IF([1]Sheet1!K2="","",[1]Sheet1!K2) ->  | L2: =IF([1]Sheet1!L2="","",[1]Sheet1!L2) -> 2012-11-02 14:07:37
A3: =IF([1]Sheet1!A3="","",[1]Sheet1!A3) ->  | B3: =IF([1]Sheet1!B3="","",[1]Sheet1!B3) ->  | C3: =IF([1]Sheet1!C3="","",[1]Sheet1!C3) ->  | D3: =IF([1]Sheet1!D3="","",[1]Sheet1!D3) ->  | E3: =IF([1]Sheet1!E3="","",[1]Sheet1!E3) ->  | F3: =IF([1]Sheet1!F3="","",[1]Sheet1!F3) -> Lista odbiorców | G3: =IF([1]Sheet1!G3="","",[1]Sheet1!G3) ->  | H3: =IF([1]Sheet1!H3="","",[1]Sheet1!H3) ->  | I3: =IF([1]Sheet1!I3="","",[1]Sheet1!I3) ->  | J3: =IF([1]Sheet1!J3="","",[1]Sheet1!J3) ->  | K3: =IF([1]Sheet1!K3="","",[1]Sheet1!K3) ->  | L3: =IF([1]Sheet1!L3="","",[1]Sheet1!L3) -> 
A4: =IF([1]Sheet1!A4="","",[1]Sheet1!A4) ->  | B4: =IF([1]Sheet1!B4="","",[1]Sheet1!B4) ->  | C4: =IF([1]Sheet1!C4="","",[1]Sheet1!C4) ->  | D4: =IF([1]Sheet1!D4="","",[1]Sheet1!D4) ->  | E4: =IF([1]Sheet1!E4="","",[1]Sheet1!E4) ->  | F4: =IF([1]Sheet1!F4="","",[1]Sheet1!F4) ->  | G4: =IF([1]Sheet1!G4="","",[1]Sheet1!G4) ->  | H4: =IF([1]Sheet1!H4="","",[1]Sheet1!H4) ->  | I4: =IF([1]Sheet1!I4="","",[1]Sheet1!I4) ->  | J4: =IF([1]Sheet1!J4="","",[1]Sheet1!J4) ->  | K4: =IF([1]Sheet1!K4="","",[1]Sheet1!K4) ->  | L4: =IF([1]Sheet1!L4="","",[1]Sheet1!L4) -> 
A5: =IF([1]Sheet1!A5="","",[1]Sheet1!A5) -> Data | B5: =IF([1]Sheet1!B5="","",[1]Sheet1!B5) -> Godzina | C5: =IF([1]Sheet1!C5="","",[1]Sheet1!C5) -> Dystrybutor | D5: =IF([1]Sheet1!D5="","",[1]Sheet1!D5) -> Nr._rejestracyjny | F5: Pracownik | G5: =IF([1]Sheet1!G5="","",[1]Sheet1!G5) ->  | H5: =IF([1]Sheet1!H5="","",[1]Sheet1!H5) -> Przebieg | I5: =IF([1]Sheet1!I5="","",[1]Sheet1!I5) -> Operator | J5: =IF([1]Sheet1!J5="","",[1]Sheet1!J5) ->  | K5: =IF([1]Sheet1!K5="","",[1]Sheet1!K5) ->  | L5: =IF([1]Sheet1!L5="","",[1]Sheet1!L5) -> Ilosc
A6: =IF([1]Sheet1!A6="","",[1]Sheet1!A6) ->  | B6: =IF([1]Sheet1!B6="","",[1]Sheet1!B6) ->  | C6: =IF([1]Sheet1!C6="","",[1]Sheet1!C6) ->  | D6: =IF([1]Sheet1!D6="","",[1]Sheet1!D6) ->  | G6: =IF([1]Sheet1!G6="","",[1]Sheet1!G6) ->  | H6: =IF([1]Sheet1!H6="","",[1]Sheet1!H6) ->  | I6: =IF([1]Sheet1!I6="","",[1]Sheet1!I6) ->  | J6: =IF([1]Sheet1!J6="","",[1]Sheet1!J6) ->  | K6: =IF([1]Sheet1!K6="","",[1]Sheet1!K6) ->  | L6: =IF([1]Sheet1!L6="","",[1]Sheet1!L6) -> 
A7: =IF([1]Sheet1!A7="","",[1]Sheet1!A7) -> 2012-09-20 | B7: =IF([1]Sheet1!B7="","",[1]Sheet1!B7) -> 13:24 | C7: =IF([1]Sheet1!C7="","",[1]Sheet1!C7) -> 1 | D7: =IF([1]Sheet1!D7="","",[1]Sheet1!D7) -> TEST1 | E7: =COUNTIF(D7,"???") -> 0 | F7: =IF(E7=0,"00"&D7,D7) -> 00TEST1 | G7: =IF([1]Sheet1!G7="","",[1]Sheet1!G7) ->  | H7: =IF([1]Sheet1!H7="","",[1]Sheet1!H7) -> 13319 | I7: =IF([1]Sheet1!I7="","",[1]Sheet1!I7) -> LINDE 01 | J7: =IF([1]Sheet1!J7="","",[1]Sheet1!J7) ->  | K7: =IF([1]Sheet1!K7="","",[1]Sheet1!K7) ->  | L7: =IF([1]Sheet1!L7="","",[1]Sheet1!L7) -> 1.55
A8: =IF([1]Sheet1!A8="","",[1]Sheet1!A8) -> 2012-09-21 | B8: =IF([1]Sheet1!B8="","",[1]Sheet1!B8) -> 13:04 | C8: =IF([1]Sheet1!C8="","",[1]Sheet1!C8) -> 1 | D8: =IF([1]Sheet1!D8="","",[1]Sheet1!D8) -> 016 | E8: =COUNTIF(D8,"???") -> 1 | F8: =IF(E8=0,"00"&D8,D8) -> 016 | G8: =IF([1]Sheet1!G8="","",[1]Sheet1!G8) ->  | H8: =IF([1]Sheet1!H8="","",[1]Sheet1!H8) -> 19366 | I8: =IF([1]Sheet1!I8="","",[1]Sheet1!I8) -> LINDE 03 | J8: =IF([1]Sheet1!J8="","",[1]Sheet1!J8) ->  | K8: =IF([1]Sheet1!K8="","",[1]Sheet1!K8) ->  | L8: =IF([1]Sheet1!L8="","",[1]Sheet1!L8) -> 36.63
A9: =IF([1]Sheet1!A9="","",[1]Sheet1!A9) -> 2012-09-21 | B9: =IF([1]Sheet1!B9="","",[1]Sheet1!B9) -> 13:08 | C9: =IF([1]Sheet1!C9="","",[1]Sheet1!C9) -> 1 | D9: =IF([1]Sheet1!D9="","",[1]Sheet1!D9) -> 002 | E9: 1 | F9: 002 | G9: =IF([1]Sheet1!G9="","",[1]Sheet1!G9) ->  | H9: =IF([1]Sheet1!H9="","",[1]Sheet1!H9) -> 13337 | I9: =IF([1]Sheet1!I9="","",[1]Sheet1!I9) -> LINDE 01 | J9: =IF([1]Sheet1!J9="","",[1]Sheet1!J9) ->  | K9: =IF([1]Sheet1!K9="","",[1]Sheet1!K9) ->  | L9: =IF([1]Sheet1!L9="","",[1]Sheet1!L9) -> 44.48
A10: =IF([1]Sheet1!A10="","",[1]Sheet1!A10) -> 2012-09-21 | B10: =IF([1]Sheet1!B10="","",[1]Sheet1!B10) -> 13:13 | C10: =IF([1]Sheet1!C10="","",[1]Sheet1!C10) -> 1 | D10: =IF([1]Sheet1!D10="","",[1]Sheet1!D10) -> 006 | E10: 1 | F10: 006 | G10: =IF([1]Sheet1!G10="","",[1]Sheet1!G10) ->  | H10: =IF([1]Sheet1!H10="","",[1]Sheet1!H10) -> 14133 | I10: =IF([1]Sheet1!I10="","",[1]Sheet1!I10) -> LINDE 02 | J10: =IF([1]Sheet1!J10="","",[1]Sheet1!J10) ->  | K10: =IF([1]Sheet1!K10="","",[1]Sheet1!K10) ->  | L10: =IF([1]Sheet1!L10="","",[1]Sheet1!L10) -> 45.93
A11: =IF([1]Sheet1!A11="","",[1]Sheet1!A11) -> 2012-09-22 | B11: =IF([1]Sheet1!B11="","",[1]Sheet1!B11) -> 12:54 | C11: =IF([1]Sheet1!C11="","",[1]Sheet1!C11) -> 1 | D11: =IF([1]Sheet1!D11="","",[1]Sheet1!D11) -> 002 | E11: 1 | F11: 002 | G11: =IF([1]Sheet1!G11="","",[1]Sheet1!G11) ->  | H11: =IF([1]Sheet1!H11="","",[1]Sheet1!H11) -> 13348 | I11: =IF([1]Sheet1!I11="","",[1]Sheet1!I11) -> LINDE 01 | J11: =IF([1]Sheet1!J11="","",[1]Sheet1!J11) ->  | K11: =IF([1]Sheet1!K11="","",[1]Sheet1!K11) ->  | L11: =IF([1]Sheet1!L11="","",[1]Sheet1!L11) -> 31.27
A12: =IF([1]Sheet1!A12="","",[1]Sheet1!A12) -> 2012-09-22 | B12: =IF([1]Sheet1!B12="","",[1]Sheet1!B12) -> 12:57 | C12: =IF([1]Sheet1!C12="","",[1]Sheet1!C12) -> 1 | D12: =IF([1]Sheet1!D12="","",[1]Sheet1!D12) -> 006 | E12: 1 | F12: 006 | G12: =IF([1]Sheet1!G12="","",[1]Sheet1!G12) ->  | H12: =IF([1]Sheet1!H12="","",[1]Sheet1!H12) -> 14150 | I12: =IF([1]Sheet1!I12="","",[1]Sheet1!I12) -> LINDE 02 | J12: =IF([1]Sheet1!J12="","",[1]Sheet1!J12) ->  | K12: =IF([1]Sheet1!K12="","",[1]Sheet1!K12) ->  | L12: =IF([1]Sheet1!L12="","",[1]Sheet1!L12) -> 47.21
A13: =IF([1]Sheet1!A13="","",[1]Sheet1!A13) -> 2012-09-22 | B13: =IF([1]Sheet1!B13="","",[1]Sheet1!B13) -> 13:03 | C13: =IF([1]Sheet1!C13="","",[1]Sheet1!C13) -> 1 | D13: =IF([1]Sheet1!D13="","",[1]Sheet1!D13) -> 014 | E13: 1 | F13: 014 | G13: =IF([1]Sheet1!G13="","",[1]Sheet1!G13) ->  | H13: =IF([1]Sheet1!H13="","",[1]Sheet1!H13) -> 19373 | I13: =IF([1]Sheet1!I13="","",[1]Sheet1!I13) -> LINDE 03 | J13: =IF([1]Sheet1!J13="","",[1]Sheet1!J13) ->  | K13: =IF([1]Sheet1!K13="","",[1]Sheet1!K13) ->  | L13: =IF([1]Sheet1!L13="","",[1]Sheet1!L13) -> 17.2
A14: =IF([1]Sheet1!A14="","",[1]Sheet1!A14) -> 2012-09-24 | B14: =IF([1]Sheet1!B14="","",[1]Sheet1!B14) -> 12:31 | C14: =IF([1]Sheet1!C14="","",[1]Sheet1!C14) -> 1 | D14: =IF([1]Sheet1!D14="","",[1]Sheet1!D14) -> 005 | E14: 1 | F14: 005 | G14: =IF([1]Sheet1!G14="","",[1]Sheet1!G14) ->  | H14: =IF([1]Sheet1!H14="","",[1]Sheet1!H14) -> 14165 | I14: =IF([1]Sheet1!I14="","",[1]Sheet1!I14) -> LINDE 02 | J14: =IF([1]Sheet1!J14="","",[1]Sheet1!J14) ->  | K14: =IF([1]Sheet1!K14="","",[1]Sheet1!K14) ->  | L14: =IF([1]Sheet1!L14="","",[1]Sheet1!L14) -> 35.7
A15: =IF([1]Sheet1!A15="","",[1]Sheet1!A15) -> 2012-09-24 | B15: =IF([1]Sheet1!B15="","",[1]Sheet1!B15) -> 12:36 | C15: =IF([1]Sheet1!C15="","",[1]Sheet1!C15) -> 1 | D15: =IF([1]Sheet1!D15="","",[1]Sheet1!D15) -> 101 | E15: 1 | F15: 101 | G15: =IF([1]Sheet1!G15="","",[1]Sheet1!G15) ->  | H15: =IF([1]Sheet1!H15="","",[1]Sheet1!H15) -> 13354 | I15: =IF([1]Sheet1!I15="","",[1]Sheet1!I15) -> LINDE 01 | J15: =IF([1]Sheet1!J15="","",[1]Sheet1!J15) ->  | K15: =IF([1]Sheet1!K15="","",[1]Sheet1!K15) ->  | L15: =IF([1]Sheet1!L15="","",[1]Sheet1!L15) -> 14.63
A16: =IF([1]Sheet1!A16="","",[1]Sheet1!A16) -> 2012-09-25 | B16: =IF([1]Sheet1!B16="","",[1]Sheet1!B16) -> 08:53 | C16: =IF([1]Sheet1!C16="","",[1]Sheet1!C16) -> 1 | D16: =IF([1]Sheet1!D16="","",[1]Sheet1!D16) -> 001 | E16: 1 | F16: 001 | G16: =IF([1]Sheet1!G16="","",[1]Sheet1!G16) ->  | H16: =IF([1]Sheet1!H16="","",[1]Sheet1!H16) -> 13371 | I16: =IF([1]Sheet1!I16="","",[1]Sheet1!I16) -> LINDE 01 | J16: =IF([1]Sheet1!J16="","",[1]Sheet1!J16) ->  | K16: =IF([1]Sheet1!K16="","",[1]Sheet1!K16) ->  | L16: =IF([1]Sheet1!L16="","",[1]Sheet1!L16) -> 43.92
A17: =IF([1]Sheet1!A17="","",[1]Sheet1!A17) -> 2012-09-25 | B17: =IF([1]Sheet1!B17="","",[1]Sheet1!B17) -> 08:56 | C17: =IF([1]Sheet1!C17="","",[1]Sheet1!C17) -> 1 | D17: =IF([1]Sheet1!D17="","",[1]Sheet1!D17) -> 005 | E17: 1 | F17: 005 | G17: =IF([1]Sheet1!G17="","",[1]Sheet1!G17) ->  | H17: =IF([1]Sheet1!H17="","",[1]Sheet1!H17) -> 14175 | I17: =IF([1]Sheet1!I17="","",[1]Sheet1!I17) -> LINDE 02 | J17: =IF([1]Sheet1!J17="","",[1]Sheet1!J17) ->  | K17: =IF([1]Sheet1!K17="","",[1]Sheet1!K17) ->  | L17: =IF([1]Sheet1!L17="","",[1]Sheet1!L17) -> 28.71
A18: =IF([1]Sheet1!A18="","",[1]Sheet1!A18) -> 2012-09-25 | B18: =IF([1]Sheet1!B18="","",[1]Sheet1!B18) -> 10:25 | C18: =IF([1]Sheet1!C18="","",[1]Sheet1!C18) -> 1 | D18: =IF([1]Sheet1!D18="","",[1]Sheet1!D18) -> 011 | E18: 1 | F18: 011 | G18: =IF([1]Sheet1!G18="","",[1]Sheet1!G18) ->  | H18: =IF([1]Sheet1!H18="","",[1]Sheet1!H18) -> 19385 | I18: =IF([1]Sheet1!I18="","",[1]Sheet1!I18) -> LINDE 03 | J18: =IF([1]Sheet1!J18="","",[1]Sheet1!J18) ->  | K18: =IF([1]Sheet1!K18="","",[1]Sheet1!K18) ->  | L18: =IF([1]Sheet1!L18="","",[1]Sheet1!L18) -> 36.41
A19: =IF([1]Sheet1!A19="","",[1]Sheet1!A19) -> 2012-09-26 | B19: =IF([1]Sheet1!B19="","",[1]Sheet1!B19) -> 09:33 | C19: =IF([1]Sheet1!C19="","",[1]Sheet1!C19) -> 1 | D19: =IF([1]Sheet1!D19="","",[1]Sheet1!D19) -> 005 | E19: 1 | F19: 005 | G19: =IF([1]Sheet1!G19="","",[1]Sheet1!G19) ->  | H19: =IF([1]Sheet1!H19="","",[1]Sheet1!H19) -> 14192 | I19: =IF([1]Sheet1!I19="","",[1]Sheet1!I19) -> LINDE 02 | J19: =IF([1]Sheet1!J19="","",[1]Sheet1!J19) ->  | K19: =IF([1]Sheet1!K19="","",[1]Sheet1!K19) ->  | L19: =IF([1]Sheet1!L19="","",[1]Sheet1!L19) -> 45.92
A20: =IF([1]Sheet1!A20="","",[1]Sheet1!A20) -> 2012-09-26 | B20: =IF([1]Sheet1!B20="","",[1]Sheet1!B20) -> 09:36 | C20: =IF([1]Sheet1!C20="","",[1]Sheet1!C20) -> 1 | D20: =IF([1]Sheet1!D20="","",[1]Sheet1!D20) -> 001 | E20: 1 | F20: 001 | G20: =IF([1]Sheet1!G20="","",[1]Sheet1!G20) ->  | H20: =IF([1]Sheet1!H20="","",[1]Sheet1!H20) -> 13386 | I20: =IF([1]Sheet1!I20="","",[1]Sheet1!I20) -> LINDE 01 | J20: =IF([1]Sheet1!J20="","",[1]Sheet1!J20) ->  | K20: =IF([1]Sheet1!K20="","",[1]Sheet1!K20) ->  | L20: =IF([1]Sheet1!L20="","",[1]Sheet1!L20) -> 41.02
A21: =IF([1]Sheet1!A21="","",[1]Sheet1!A21) -> 2012-09-27 | B21: =IF([1]Sheet1!B21="","",[1]Sheet1!B21) -> 07:18 | C21: =IF([1]Sheet1!C21="","",[1]Sheet1!C21) -> 1 | D21: =IF([1]Sheet1!D21="","",[1]Sheet1!D21) -> 007 | E21: 1 | F21: 007 | G21: =IF([1]Sheet1!G21="","",[1]Sheet1!G21) ->  | H21: =IF([1]Sheet1!H21="","",[1]Sheet1!H21) -> 14209 | I21: =IF([1]Sheet1!I21="","",[1]Sheet1!I21) -> LINDE 02 | J21: =IF([1]Sheet1!J21="","",[1]Sheet1!J21) ->  | K21: =IF([1]Sheet1!K21="","",[1]Sheet1!K21) ->  | L21: =IF([1]Sheet1!L21="","",[1]Sheet1!L21) -> 49.75
A22: =IF([1]Sheet1!A22="","",[1]Sheet1!A22) -> 2012-09-27 | B22: =IF([1]Sheet1!B22="","",[1]Sheet1!B22) -> 11:32 | C22: =IF([1]Sheet1!C22="","",[1]Sheet1!C22) -> 1 | D22: =IF([1]Sheet1!D22="","",[1]Sheet1!D22) -> 003 | E22: 1 | F22: 003 | G22: =IF([1]Sheet1!G22="","",[1]Sheet1!G22) ->  | H22: =IF([1]Sheet1!H22="","",[1]Sheet1!H22) -> 13398 | I22: =IF([1]Sheet1!I22="","",[1]Sheet1!I22) -> LINDE 01 | J22: =IF([1]Sheet1!J22="","",[1]Sheet1!J22) ->  | K22: =IF([1]Sheet1!K22="","",[1]Sheet1!K22) ->  | L22: =IF([1]Sheet1!L22="","",[1]Sheet1!L22) -> 32.57
A23: =IF([1]Sheet1!A23="","",[1]Sheet1!A23) -> 2012-09-27 | B23: =IF([1]Sheet1!B23="","",[1]Sheet1!B23) -> 13:01 | C23: =IF([1]Sheet1!C23="","",[1]Sheet1!C23) -> 1 | D23: =IF([1]Sheet1!D23="","",[1]Sheet1!D23) -> 017 | E23: 1 | F23: 017 | G23: =IF([1]Sheet1!G23="","",[1]Sheet1!G23) ->  | H23: 19400 | I23: =IF([1]Sheet1!I23="","",[1]Sheet1!I23) -> LINDE 03 | J23: =IF([1]Sheet1!J23="","",[1]Sheet1!J23) ->  | K23: =IF([1]Sheet1!K23="","",[1]Sheet1!K23) ->  | L23: =IF([1]Sheet1!L23="","",[1]Sheet1!L23) -> 35.27
A24: =IF([1]Sheet1!A24="","",[1]Sheet1!A24) -> 2012-09-28 | B24: =IF([1]Sheet1!B24="","",[1]Sheet1!B24) -> 10:11 | C24: =IF([1]Sheet1!C24="","",[1]Sheet1!C24) -> 1 | D24: =IF([1]Sheet1!D24="","",[1]Sheet1!D24) -> 003 | E24: 1 | F24: 003 | G24: =IF([1]Sheet1!G24="","",[1]Sheet1!G24) ->  | H24: =IF([1]Sheet1!H24="","",[1]Sheet1!H24) -> 13417 | I24: =IF([1]Sheet1!I24="","",[1]Sheet1!I24) -> LINDE 01 | J24: =IF([1]Sheet1!J24="","",[1]Sheet1!J24) ->  | K24: =IF([1]Sheet1!K24="","",[1]Sheet1!K24) ->  | L24: =IF([1]Sheet1!L24="","",[1]Sheet1!L24) -> 52.8
A25: =IF([1]Sheet1!A25="","",[1]Sheet1!A25) -> 2012-09-28 | B25: =IF([1]Sheet1!B25="","",[1]Sheet1!B25) -> 11:10 | C25: =IF([1]Sheet1!C25="","",[1]Sheet1!C25) -> 1 | D25: =IF([1]Sheet1!D25="","",[1]Sheet1!D25) -> 007 | E25: 1 | F25: 007 | G25: =IF([1]Sheet1!G25="","",[1]Sheet1!G25) ->  | H25: =IF([1]Sheet1!H25="","",[1]Sheet1!H25) -> 14223 | I25: =IF([1]Sheet1!I25="","",[1]Sheet1!I25) -> LINDE 02 | J25: =IF([1]Sheet1!J25="","",[1]Sheet1!J25) ->  | K25: =IF([1]Sheet1!K25="","",[1]Sheet1!K25) ->  | L25: =IF([1]Sheet1!L25="","",[1]Sheet1!L25) -> 38.34
A26: =IF([1]Sheet1!A26="","",[1]Sheet1!A26) -> 2012-09-30 | B26: =IF([1]Sheet1!B26="","",[1]Sheet1!B26) -> 07:30 | C26: =IF([1]Sheet1!C26="","",[1]Sheet1!C26) -> 1 | D26: =IF([1]Sheet1!D26="","",[1]Sheet1!D26) -> 017 | E26: 1 | F26: 017 | G26: =IF([1]Sheet1!G26="","",[1]Sheet1!G26) ->  | H26: =IF([1]Sheet1!H26="","",[1]Sheet1!H26) -> 19419 | I26: =IF([1]Sheet1!I26="","",[1]Sheet1!I26) -> LINDE 03 | J26: =IF([1]Sheet1!J26="","",[1]Sheet1!J26) ->  | K26: =IF([1]Sheet1!K26="","",[1]Sheet1!K26) ->  | L26: =IF([1]Sheet1!L26="","",[1]Sheet1!L26) -> 41.62
A27: =IF([1]Sheet1!A27="","",[1]Sheet1!A27) -> 2012-09-30 | B27: =IF([1]Sheet1!B27="","",[1]Sheet1!B27) -> 08:45 | C27: =IF([1]Sheet1!C27="","",[1]Sheet1!C27) -> 1 | D27: =IF([1]Sheet1!D27="","",[1]Sheet1!D27) -> 003 | E27: 1 | F27: 003 | G27: =IF([1]Sheet1!G27="","",[1]Sheet1!G27) ->  | H27: =IF([1]Sheet1!H27="","",[1]Sheet1!H27) -> 13435 | I27: =IF([1]Sheet1!I27="","",[1]Sheet1!I27) -> LINDE 01 | J27: =IF([1]Sheet1!J27="","",[1]Sheet1!J27) ->  | K27: =IF([1]Sheet1!K27="","",[1]Sheet1!K27) ->  | L27: =IF([1]Sheet1!L27="","",[1]Sheet1!L27) -> 50.82
A28: =IF([1]Sheet1!A28="","",[1]Sheet1!A28) -> 2012-09-30 | B28: =IF([1]Sheet1!B28="","",[1]Sheet1!B28) -> 10:21 | C28: =IF([1]Sheet1!C28="","",[1]Sheet1!C28) -> 1 | D28: =IF([1]Sheet1!D28="","",[1]Sheet1!D28) -> 007 | E28: 1 | F28: 007 | G28: =IF([1]Sheet1!G28="","",[1]Sheet1!G28) ->  | H28: =IF([1]Sheet1!H28="","",[1]Sheet1!H28) -> 14240 | I28: =IF([1]Sheet1!I28="","",[1]Sheet1!I28) -> LINDE 02 | J28: =IF([1]Sheet1!J28="","",[1]Sheet1!J28) ->  | K28: =IF([1]Sheet1!K28="","",[1]Sheet1!K28) ->  | L28: =IF([1]Sheet1!L28="","",[1]Sheet1!L28) -> 48.88
A29: =IF([1]Sheet1!A29="","",[1]Sheet1!A29) -> 2012-10-01 | B29: =IF([1]Sheet1!B29="","",[1]Sheet1!B29) -> 18:54 | C29: =IF([1]Sheet1!C29="","",[1]Sheet1!C29) -> 1 | D29: =IF([1]Sheet1!D29="","",[1]Sheet1!D29) -> 005 | E29: 1 | F29: 005 | G29: =IF([1]Sheet1!G29="","",[1]Sheet1!G29) ->  | H29: =IF([1]Sheet1!H29="","",[1]Sheet1!H29) -> 14253 | I29: =IF([1]Sheet1!I29="","",[1]Sheet1!I29) -> LINDE 02 | J29: =IF([1]Sheet1!J29="","",[1]Sheet1!J29) ->  | K29: =IF([1]Sheet1!K29="","",[1]Sheet1!K29) ->  | L29: =IF([1]Sheet1!L29="","",[1]Sheet1!L29) -> 33.94
A30: =IF([1]Sheet1!A30="","",[1]Sheet1!A30) -> 2012-10-01 | B30: =IF([1]Sheet1!B30="","",[1]Sheet1!B30) -> 18:56 | C30: =IF([1]Sheet1!C30="","",[1]Sheet1!C30) -> 1 | D30: =IF([1]Sheet1!D30="","",[1]Sheet1!D30) -> 001 | E30: 1 | F30: 001 | G30: =IF([1]Sheet1!G30="","",[1]Sheet1!G30) ->  | H30: =IF([1]Sheet1!H30="","",[1]Sheet1!H30) -> 13455 | I30: =IF([1]Sheet1!I30="","",[1]Sheet1!I30) -> LINDE 01 | J30: =IF([1]Sheet1!J30="","",[1]Sheet1!J30) ->  | K30: =IF([1]Sheet1!K30="","",[1]Sheet1!K30) ->  | L30: =IF([1]Sheet1!L30="","",[1]Sheet1!L30) -> 48.04
A31: =IF([1]Sheet1!A31="","",[1]Sheet1!A31) -> 2012-10-02 | B31: =IF([1]Sheet1!B31="","",[1]Sheet1!B31) -> 11:05 | C31: =IF([1]Sheet1!C31="","",[1]Sheet1!C31) -> 1 | D31: =IF([1]Sheet1!D31="","",[1]Sheet1!D31) -> 014 | E31: 1 | F31: 014 | G31: =IF([1]Sheet1!G31="","",[1]Sheet1!G31) ->  | H31: =IF([1]Sheet1!H31="","",[1]Sheet1!H31) -> 19448 | I31: =IF([1]Sheet1!I31="","",[1]Sheet1!I31) -> LINDE 03 | J31: =IF([1]Sheet1!J31="","",[1]Sheet1!J31) ->  | K31: =IF([1]Sheet1!K31="","",[1]Sheet1!K31) ->  | L31: =IF([1]Sheet1!L31="","",[1]Sheet1!L31) -> 49.92
A32: =IF([1]Sheet1!A32="","",[1]Sheet1!A32) -> 2012-10-02 | B32: =IF([1]Sheet1!B32="","",[1]Sheet1!B32) -> 12:59 | C32: =IF([1]Sheet1!C32="","",[1]Sheet1!C32) -> 1 | D32: =IF([1]Sheet1!D32="","",[1]Sheet1!D32) -> 8 | E32: 0 | F32: 008 | G32: =IF([1]Sheet1!G32="","",[1]Sheet1!G32) ->  | H32: =IF([1]Sheet1!H32="","",[1]Sheet1!H32) -> 14264 | I32: =IF([1]Sheet1!I32="","",[1]Sheet1!I32) -> LINDE 02 | J32: =IF([1]Sheet1!J32="","",[1]Sheet1!J32) ->  | K32: =IF([1]Sheet1!K32="","",[1]Sheet1!K32) ->  | L32: =IF([1]Sheet1!L32="","",[1]Sheet1!L32) -> 31.57
A33: =IF([1]Sheet1!A33="","",[1]Sheet1!A33) -> 2012-10-02 | B33: =IF([1]Sheet1!B33="","",[1]Sheet1!B33) -> 13:02 | C33: =IF([1]Sheet1!C33="","",[1]Sheet1!C33) -> 1 | D33: =IF([1]Sheet1!D33="","",[1]Sheet1!D33) -> 4 | E33: 0 | F33: 004 | G33: =IF([1]Sheet1!G33="","",[1]Sheet1!G33) ->  | H33: =IF([1]Sheet1!H33="","",[1]Sheet1!H33) -> 13463 | I33: =IF([1]Sheet1!I33="","",[1]Sheet1!I33) -> LINDE 01 | J33: =IF([1]Sheet1!J33="","",[1]Sheet1!J33) ->  | K33: =IF([1]Sheet1!K33="","",[1]Sheet1!K33) ->  | L33: =IF([1]Sheet1!L33="","",[1]Sheet1!L33) -> 23.7
A34: =IF([1]Sheet1!A34="","",[1]Sheet1!A34) -> 2012-10-03 | B34: =IF([1]Sheet1!B34="","",[1]Sheet1!B34) -> 13:08 | C34: =IF([1]Sheet1!C34="","",[1]Sheet1!C34) -> 1 | D34: =IF([1]Sheet1!D34="","",[1]Sheet1!D34) -> 8 | E34: 0 | F34: 008 | G34: =IF([1]Sheet1!G34="","",[1]Sheet1!G34) ->  | H34: =IF([1]Sheet1!H34="","",[1]Sheet1!H34) -> 14279 | I34: =IF([1]Sheet1!I34="","",[1]Sheet1!I34) -> LINDE 02 | J34: =IF([1]Sheet1!J34="","",[1]Sheet1!J34) ->  | K34: =IF([1]Sheet1!K34="","",[1]Sheet1!K34) ->  | L34: =IF([1]Sheet1!L34="","",[1]Sheet1!L34) -> 41.4
A35: =IF([1]Sheet1!A35="","",[1]Sheet1!A35) -> 2012-10-03 | B35: =IF([1]Sheet1!B35="","",[1]Sheet1!B35) -> 13:15 | C35: =IF([1]Sheet1!C35="","",[1]Sheet1!C35) -> 1 | D35: =IF([1]Sheet1!D35="","",[1]Sheet1!D35) -> 4 | E35: 0 | F35: 004 | G35: =IF([1]Sheet1!G35="","",[1]Sheet1!G35) ->  | H35: =IF([1]Sheet1!H35="","",[1]Sheet1!H35) -> 13475 | I35: =IF([1]Sheet1!I35="","",[1]Sheet1!I35) -> LINDE 01 | J35: =IF([1]Sheet1!J35="","",[1]Sheet1!J35) ->  | K35: =IF([1]Sheet1!K35="","",[1]Sheet1!K35) ->  | L35: =IF([1]Sheet1!L35="","",[1]Sheet1!L35) -> 34.78
A36: =IF([1]Sheet1!A36="","",[1]Sheet1!A36) -> 2012-10-04 | B36: =IF([1]Sheet1!B36="","",[1]Sheet1!B36) -> 00:46 | C36: =IF([1]Sheet1!C36="","",[1]Sheet1!C36) -> 1 | D36: =IF([1]Sheet1!D36="","",[1]Sheet1!D36) -> 017 | E36: 1 | F36: 017 | G36: =IF([1]Sheet1!G36="","",[1]Sheet1!G36) ->  | H36: =IF([1]Sheet1!H36="","",[1]Sheet1!H36) -> 19470 | I36: =IF([1]Sheet1!I36="","",[1]Sheet1!I36) -> LINDE 03 | J36: =IF([1]Sheet1!J36="","",[1]Sheet1!J36) ->  | K36: =IF([1]Sheet1!K36="","",[1]Sheet1!K36) ->  | L36: =IF([1]Sheet1!L36="","",[1]Sheet1!L36) -> 46.91
A37: =IF([1]Sheet1!A37="","",[1]Sheet1!A37) -> 2012-10-04 | B37: =IF([1]Sheet1!B37="","",[1]Sheet1!B37) -> 13:06 | C37: =IF([1]Sheet1!C37="","",[1]Sheet1!C37) -> 1 | D37: =IF([1]Sheet1!D37="","",[1]Sheet1!D37) -> 8 | E37: 0 | F37: 008 | G37: =IF([1]Sheet1!G37="","",[1]Sheet1!G37) ->  | H37: =IF([1]Sheet1!H37="","",[1]Sheet1!H37) -> 14295 | I37: =IF([1]Sheet1!I37="","",[1]Sheet1!I37) -> LINDE 02 | J37: =IF([1]Sheet1!J37="","",[1]Sheet1!J37) ->  | K37: =IF([1]Sheet1!K37="","",[1]Sheet1!K37) ->  | L37: =IF([1]Sheet1!L37="","",[1]Sheet1!L37) -> 46.32
A38: =IF([1]Sheet1!A38="","",[1]Sheet1!A38) -> 2012-10-04 | B38: =IF([1]Sheet1!B38="","",[1]Sheet1!B38) -> 13:21 | C38: =IF([1]Sheet1!C38="","",[1]Sheet1!C38) -> 1 | D38: =IF([1]Sheet1!D38="","",[1]Sheet1!D38) -> 4 | E38: 0 | F38: 004 | G38: =IF([1]Sheet1!G38="","",[1]Sheet1!G38) ->  | H38: =IF([1]Sheet1!H38="","",[1]Sheet1!H38) -> 13493 | I38: =IF([1]Sheet1!I38="","",[1]Sheet1!I38) -> LINDE 01 | J38: =IF([1]Sheet1!J38="","",[1]Sheet1!J38) ->  | K38: =IF([1]Sheet1!K38="","",[1]Sheet1!K38) ->  | L38: =IF([1]Sheet1!L38="","",[1]Sheet1!L38) -> 49.26
A39: =IF([1]Sheet1!A39="","",[1]Sheet1!A39) -> 2012-10-05 | B39: =IF([1]Sheet1!B39="","",[1]Sheet1!B39) -> 11:03 | C39: =IF([1]Sheet1!C39="","",[1]Sheet1!C39) -> 1 | D39: =IF([1]Sheet1!D39="","",[1]Sheet1!D39) -> 202 | E39: 1 | F39: 202 | G39: =IF([1]Sheet1!G39="","",[1]Sheet1!G39) ->  | H39: =IF([1]Sheet1!H39="","",[1]Sheet1!H39) -> 44398 | I39: =IF([1]Sheet1!I39="","",[1]Sheet1!I39) -> SMP | J39: =IF([1]Sheet1!J39="","",[1]Sheet1!J39) ->  | K39: =IF([1]Sheet1!K39="","",[1]Sheet1!K39) ->  | L39: =IF([1]Sheet1!L39="","",[1]Sheet1!L39) -> 50.69
A40: =IF([1]Sheet1!A40="","",[1]Sheet1!A40) -> 2012-10-05 | B40: =IF([1]Sheet1!B40="","",[1]Sheet1!B40) -> 11:09 | C40: =IF([1]Sheet1!C40="","",[1]Sheet1!C40) -> 1 | D40: =IF([1]Sheet1!D40="","",[1]Sheet1!D40) -> 016 | E40: 1 | F40: 016 | G40: =IF([1]Sheet1!G40="","",[1]Sheet1!G40) ->  | H40: =IF([1]Sheet1!H40="","",[1]Sheet1!H40) -> 19493 | I40: =IF([1]Sheet1!I40="","",[1]Sheet1!I40) -> LINDE 03 | J40: =IF([1]Sheet1!J40="","",[1]Sheet1!J40) ->  | K40: =IF([1]Sheet1!K40="","",[1]Sheet1!K40) ->  | L40: =IF([1]Sheet1!L40="","",[1]Sheet1!L40) -> 38.59
A41: =IF([1]Sheet1!A41="","",[1]Sheet1!A41) -> 2012-10-05 | B41: =IF([1]Sheet1!B41="","",[1]Sheet1!B41) -> 13:04 | C41: =IF([1]Sheet1!C41="","",[1]Sheet1!C41) -> 1 | D41: =IF([1]Sheet1!D41="","",[1]Sheet1!D41) -> 006 | E41: 1 | F41: 006 | G41: =IF([1]Sheet1!G41="","",[1]Sheet1!G41) ->  | H41: =IF([1]Sheet1!H41="","",[1]Sheet1!H41) -> 14312 | I41: =IF([1]Sheet1!I41="","",[1]Sheet1!I41) -> LINDE 02 | J41: =IF([1]Sheet1!J41="","",[1]Sheet1!J41) ->  | K41: =IF([1]Sheet1!K41="","",[1]Sheet1!K41) ->  | L41: =IF([1]Sheet1!L41="","",[1]Sheet1!L41) -> 45.06
A42: =IF([1]Sheet1!A42="","",[1]Sheet1!A42) -> 2012-10-05 | B42: =IF([1]Sheet1!B42="","",[1]Sheet1!B42) -> 13:07 | C42: =IF([1]Sheet1!C42="","",[1]Sheet1!C42) -> 1 | D42: =IF([1]Sheet1!D42="","",[1]Sheet1!D42) -> 002 | E42: 1 | F42: 002 | G42: =IF([1]Sheet1!G42="","",[1]Sheet1!G42) ->  | H42: =IF([1]Sheet1!H42="","",[1]Sheet1!H42) -> 13509 | I42: =IF([1]Sheet1!I42="","",[1]Sheet1!I42) -> LINDE 01 | J42: =IF([1]Sheet1!J42="","",[1]Sheet1!J42) ->  | K42: =IF([1]Sheet1!K42="","",[1]Sheet1!K42) ->  | L42: =IF([1]Sheet1!L42="","",[1]Sheet1!L42) -> 45.18
A43: =IF([1]Sheet1!A43="","",[1]Sheet1!A43) -> 2012-10-06 | B43: =IF([1]Sheet1!B43="","",[1]Sheet1!B43) -> 12:42 | C43: =IF([1]Sheet1!C43="","",[1]Sheet1!C43) -> 1 | D43: =IF([1]Sheet1!D43="","",[1]Sheet1!D43) -> 006 | E43: 1 | F43: 006 | G43: =IF([1]Sheet1!G43="","",[1]Sheet1!G43) ->  | H43: =IF([1]Sheet1!H43="","",[1]Sheet1!H43) -> 14326 | I43: =IF([1]Sheet1!I43="","",[1]Sheet1!I43) -> LINDE 02 | J43: =IF([1]Sheet1!J43="","",[1]Sheet1!J43) ->  | K43: =IF([1]Sheet1!K43="","",[1]Sheet1!K43) ->  | L43: =IF([1]Sheet1!L43="","",[1]Sheet1!L43) -> 35.08
A44: =IF([1]Sheet1!A44="","",[1]Sheet1!A44) -> 2012-10-06 | B44: =IF([1]Sheet1!B44="","",[1]Sheet1!B44) -> 12:58 | C44: =IF([1]Sheet1!C44="","",[1]Sheet1!C44) -> 1 | D44: =IF([1]Sheet1!D44="","",[1]Sheet1!D44) -> 002 | E44: 1 | F44: 002 | G44: =IF([1]Sheet1!G44="","",[1]Sheet1!G44) ->  | H44: =IF([1]Sheet1!H44="","",[1]Sheet1!H44) -> 13523 | I44: =IF([1]Sheet1!I44="","",[1]Sheet1!I44) -> LINDE 01 | J44: =IF([1]Sheet1!J44="","",[1]Sheet1!J44) ->  | K44: =IF([1]Sheet1!K44="","",[1]Sheet1!K44) ->  | L44: =IF([1]Sheet1!L44="","",[1]Sheet1!L44) -> 35.3
A45: =IF([1]Sheet1!A45="","",[1]Sheet1!A45) -> 2012-10-07 | B45: =IF([1]Sheet1!B45="","",[1]Sheet1!B45) -> 12:36 | C45: =IF([1]Sheet1!C45="","",[1]Sheet1!C45) -> 1 | D45: =IF([1]Sheet1!D45="","",[1]Sheet1!D45) -> 016 | E45: 1 | F45: 016 | G45: =IF([1]Sheet1!G45="","",[1]Sheet1!G45) ->  | H45: =IF([1]Sheet1!H45="","",[1]Sheet1!H45) -> 19511 | I45: =IF([1]Sheet1!I45="","",[1]Sheet1!I45) -> LINDE 03 | J45: =IF([1]Sheet1!J45="","",[1]Sheet1!J45) ->  | K45: =IF([1]Sheet1!K45="","",[1]Sheet1!K45) ->  | L45: =IF([1]Sheet1!L45="","",[1]Sheet1!L45) -> 35.39
A46: =IF([1]Sheet1!A46="","",[1]Sheet1!A46) -> 2012-10-08 | B46: =IF([1]Sheet1!B46="","",[1]Sheet1!B46) -> 13:17 | C46: =IF([1]Sheet1!C46="","",[1]Sheet1!C46) -> 1 | D46: =IF([1]Sheet1!D46="","",[1]Sheet1!D46) -> 006 | E46: 1 | F46: 006 | G46: =IF([1]Sheet1!G46="","",[1]Sheet1!G46) ->  | H46: =IF([1]Sheet1!H46="","",[1]Sheet1!H46) -> 14345 | I46: =IF([1]Sheet1!I46="","",[1]Sheet1!I46) -> LINDE 02 | J46: =IF([1]Sheet1!J46="","",[1]Sheet1!J46) ->  | K46: =IF([1]Sheet1!K46="","",[1]Sheet1!K46) ->  | L46: =IF([1]Sheet1!L46="","",[1]Sheet1!L46) -> 45.22
A47: =IF([1]Sheet1!A47="","",[1]Sheet1!A47) -> 2012-10-08 | B47: =IF([1]Sheet1!B47="","",[1]Sheet1!B47) -> 13:19 | C47: =IF([1]Sheet1!C47="","",[1]Sheet1!C47) -> 1 | D47: =IF([1]Sheet1!D47="","",[1]Sheet1!D47) -> 002 | E47: 1 | F47: 002 | G47: =IF([1]Sheet1!G47="","",[1]Sheet1!G47) ->  | H47: =IF([1]Sheet1!H47="","",[1]Sheet1!H47) -> 13532 | I47: =IF([1]Sheet1!I47="","",[1]Sheet1!I47) -> LINDE 01 | J47: =IF([1]Sheet1!J47="","",[1]Sheet1!J47) ->  | K47: =IF([1]Sheet1!K47="","",[1]Sheet1!K47) ->  | L47: =IF([1]Sheet1!L47="","",[1]Sheet1!L47) -> 23.29
A48: =IF([1]Sheet1!A48="","",[1]Sheet1!A48) -> 2012-10-09 | B48: =IF([1]Sheet1!B48="","",[1]Sheet1!B48) -> 11:30 | C48: =IF([1]Sheet1!C48="","",[1]Sheet1!C48) -> 1 | D48: =IF([1]Sheet1!D48="","",[1]Sheet1!D48) -> 005 | E48: 1 | F48: 005 | G48: =IF([1]Sheet1!G48="","",[1]Sheet1!G48) ->  | H48: =IF([1]Sheet1!H48="","",[1]Sheet1!H48) -> 14363 | I48: =IF([1]Sheet1!I48="","",[1]Sheet1!I48) -> LINDE 02 | J48: =IF([1]Sheet1!J48="","",[1]Sheet1!J48) ->  | K48: =IF([1]Sheet1!K48="","",[1]Sheet1!K48) ->  | L48: =IF([1]Sheet1!L48="","",[1]Sheet1!L48) -> 45.43
A49: =IF([1]Sheet1!A49="","",[1]Sheet1!A49) -> 2012-10-09 | B49: =IF([1]Sheet1!B49="","",[1]Sheet1!B49) -> 11:33 | C49: =IF([1]Sheet1!C49="","",[1]Sheet1!C49) -> 1 | D49: =IF([1]Sheet1!D49="","",[1]Sheet1!D49) -> 001 | E49: 1 | F49: 001 | G49: =IF([1]Sheet1!G49="","",[1]Sheet1!G49) ->  | H49: =IF([1]Sheet1!H49="","",[1]Sheet1!H49) -> 13550 | I49: =IF([1]Sheet1!I49="","",[1]Sheet1!I49) -> LINDE 01 | J49: =IF([1]Sheet1!J49="","",[1]Sheet1!J49) ->  | K49: =IF([1]Sheet1!K49="","",[1]Sheet1!K49) ->  | L49: =IF([1]Sheet1!L49="","",[1]Sheet1!L49) -> 45.86
A50: =IF([1]Sheet1!A50="","",[1]Sheet1!A50) -> 2012-10-09 | B50: =IF([1]Sheet1!B50="","",[1]Sheet1!B50) -> 22:19 | C50: =IF([1]Sheet1!C50="","",[1]Sheet1!C50) -> 1 | D50: =IF([1]Sheet1!D50="","",[1]Sheet1!D50) -> 013 | E50: 1 | F50: 013 | G50: =IF([1]Sheet1!G50="","",[1]Sheet1!G50) ->  | H50: =IF([1]Sheet1!H50="","",[1]Sheet1!H50) -> 19538 | I50: =IF([1]Sheet1!I50="","",[1]Sheet1!I50) -> LINDE 03 | J50: =IF([1]Sheet1!J50="","",[1]Sheet1!J50) ->  | K50: =IF([1]Sheet1!K50="","",[1]Sheet1!K50) ->  | L50: =IF([1]Sheet1!L50="","",[1]Sheet1!L50) -> 53.11
A51: =IF([1]Sheet1!A51="","",[1]Sheet1!A51) -> 2012-10-10 | B51: =IF([1]Sheet1!B51="","",[1]Sheet1!B51) -> 07:30 | C51: =IF([1]Sheet1!C51="","",[1]Sheet1!C51) -> 1 | D51: =IF([1]Sheet1!D51="","",[1]Sheet1!D51) -> 201 | E51: 1 | F51: 201 | G51: =IF([1]Sheet1!G51="","",[1]Sheet1!G51) ->  | H51: =IF([1]Sheet1!H51="","",[1]Sheet1!H51) -> 28987 | I51: =IF([1]Sheet1!I51="","",[1]Sheet1!I51) -> SMP | J51: =IF([1]Sheet1!J51="","",[1]Sheet1!J51) ->  | K51: =IF([1]Sheet1!K51="","",[1]Sheet1!K51) ->  | L51: =IF([1]Sheet1!L51="","",[1]Sheet1!L51) -> 45.12
A52: =IF([1]Sheet1!A52="","",[1]Sheet1!A52) -> 2012-10-10 | B52: =IF([1]Sheet1!B52="","",[1]Sheet1!B52) -> 08:45 | C52: =IF([1]Sheet1!C52="","",[1]Sheet1!C52) -> 1 | D52: =IF([1]Sheet1!D52="","",[1]Sheet1!D52) -> 001 | E52: 1 | F52: 001 | G52: =IF([1]Sheet1!G52="","",[1]Sheet1!G52) ->  | H52: =IF([1]Sheet1!H52="","",[1]Sheet1!H52) -> 13565 | I52: =IF([1]Sheet1!I52="","",[1]Sheet1!I52) -> LINDE 01 | J52: =IF([1]Sheet1!J52="","",[1]Sheet1!J52) ->  | K52: =IF([1]Sheet1!K52="","",[1]Sheet1!K52) ->  | L52: =IF([1]Sheet1!L52="","",[1]Sheet1!L52) -> 45.59
A53: =IF([1]Sheet1!A53="","",[1]Sheet1!A53) -> 2012-10-10 | B53: =IF([1]Sheet1!B53="","",[1]Sheet1!B53) -> 08:48 | C53: =IF([1]Sheet1!C53="","",[1]Sheet1!C53) -> 1 | D53: =IF([1]Sheet1!D53="","",[1]Sheet1!D53) -> 005 | E53: 1 | F53: 005 | G53: =IF([1]Sheet1!G53="","",[1]Sheet1!G53) ->  | H53: =IF([1]Sheet1!H53="","",[1]Sheet1!H53) -> 14379 | I53: =IF([1]Sheet1!I53="","",[1]Sheet1!I53) -> LINDE 02 | J53: =IF([1]Sheet1!J53="","",[1]Sheet1!J53) ->  | K53: =IF([1]Sheet1!K53="","",[1]Sheet1!K53) ->  | L53: =IF([1]Sheet1!L53="","",[1]Sheet1!L53) -> 46.58
A54: =IF([1]Sheet1!A54="","",[1]Sheet1!A54) -> 2012-10-11 | B54: =IF([1]Sheet1!B54="","",[1]Sheet1!B54) -> 10:23 | C54: =IF([1]Sheet1!C54="","",[1]Sheet1!C54) -> 1 | D54: =IF([1]Sheet1!D54="","",[1]Sheet1!D54) -> 001 | E54: 1 | F54: 001 | G54: =IF([1]Sheet1!G54="","",[1]Sheet1!G54) ->  | H54: =IF([1]Sheet1!H54="","",[1]Sheet1!H54) -> 13584 | I54: =IF([1]Sheet1!I54="","",[1]Sheet1!I54) -> LINDE 01 | J54: =IF([1]Sheet1!J54="","",[1]Sheet1!J54) ->  | K54: =IF([1]Sheet1!K54="","",[1]Sheet1!K54) ->  | L54: =IF([1]Sheet1!L54="","",[1]Sheet1!L54) -> 44.96
A55: =IF([1]Sheet1!A55="","",[1]Sheet1!A55) -> 2012-10-11 | B55: =IF([1]Sheet1!B55="","",[1]Sheet1!B55) -> 10:26 | C55: =IF([1]Sheet1!C55="","",[1]Sheet1!C55) -> 1 | D55: =IF([1]Sheet1!D55="","",[1]Sheet1!D55) -> 005 | E55: 1 | F55: 005 | G55: =IF([1]Sheet1!G55="","",[1]Sheet1!G55) ->  | H55: =IF([1]Sheet1!H55="","",[1]Sheet1!H55) -> 14397 | I55: =IF([1]Sheet1!I55="","",[1]Sheet1!I55) -> LINDE 02 | J55: =IF([1]Sheet1!J55="","",[1]Sheet1!J55) ->  | K55: =IF([1]Sheet1!K55="","",[1]Sheet1!K55) ->  | L55: =IF([1]Sheet1!L55="","",[1]Sheet1!L55) -> 50.18
A56: =IF([1]Sheet1!A56="","",[1]Sheet1!A56) -> 2012-10-11 | B56: =IF([1]Sheet1!B56="","",[1]Sheet1!B56) -> 17:07 | C56: =IF([1]Sheet1!C56="","",[1]Sheet1!C56) -> 1 | D56: =IF([1]Sheet1!D56="","",[1]Sheet1!D56) -> 016 | E56: 1 | F56: 016 | G56: =IF([1]Sheet1!G56="","",[1]Sheet1!G56) ->  | H56: =IF([1]Sheet1!H56="","",[1]Sheet1!H56) -> 19559 | I56: =IF([1]Sheet1!I56="","",[1]Sheet1!I56) -> LINDE 03 | J56: =IF([1]Sheet1!J56="","",[1]Sheet1!J56) ->  | K56: =IF([1]Sheet1!K56="","",[1]Sheet1!K56) ->  | L56: =IF([1]Sheet1!L56="","",[1]Sheet1!L56) -> 46.05
A57: =IF([1]Sheet1!A57="","",[1]Sheet1!A57) -> 2012-10-12 | B57: =IF([1]Sheet1!B57="","",[1]Sheet1!B57) -> 05:18 | C57: =IF([1]Sheet1!C57="","",[1]Sheet1!C57) -> 1 | D57: =IF([1]Sheet1!D57="","",[1]Sheet1!D57) -> 008 | E57: 1 | F57: 008 | G57: =IF([1]Sheet1!G57="","",[1]Sheet1!G57) ->  | H57: =IF([1]Sheet1!H57="","",[1]Sheet1!H57) -> 14412 | I57: =IF([1]Sheet1!I57="","",[1]Sheet1!I57) -> LINDE 02 | J57: =IF([1]Sheet1!J57="","",[1]Sheet1!J57) ->  | K57: =IF([1]Sheet1!K57="","",[1]Sheet1!K57) ->  | L57: =IF([1]Sheet1!L57="","",[1]Sheet1!L57) -> 38.91
A58: =IF([1]Sheet1!A58="","",[1]Sheet1!A58) -> 2012-10-12 | B58: =IF([1]Sheet1!B58="","",[1]Sheet1!B58) -> 11:27 | C58: =IF([1]Sheet1!C58="","",[1]Sheet1!C58) -> 1 | D58: =IF([1]Sheet1!D58="","",[1]Sheet1!D58) -> 001 | E58: 1 | F58: 001 | G58: =IF([1]Sheet1!G58="","",[1]Sheet1!G58) ->  | H58: =IF([1]Sheet1!H58="","",[1]Sheet1!H58) -> 13599 | I58: =IF([1]Sheet1!I58="","",[1]Sheet1!I58) -> LINDE 01 | J58: =IF([1]Sheet1!J58="","",[1]Sheet1!J58) ->  | K58: =IF([1]Sheet1!K58="","",[1]Sheet1!K58) ->  | L58: =IF([1]Sheet1!L58="","",[1]Sheet1!L58) -> 39.89
A59: =IF([1]Sheet1!A59="","",[1]Sheet1!A59) -> 2012-10-12 | B59: =IF([1]Sheet1!B59="","",[1]Sheet1!B59) -> 12:59 | C59: =IF([1]Sheet1!C59="","",[1]Sheet1!C59) -> 1 | D59: =IF([1]Sheet1!D59="","",[1]Sheet1!D59) -> 005 | E59: 1 | F59: 005 | G59: =IF([1]Sheet1!G59="","",[1]Sheet1!G59) ->  | H59: =IF([1]Sheet1!H59="","",[1]Sheet1!H59) -> 14418 | I59: =IF([1]Sheet1!I59="","",[1]Sheet1!I59) -> LINDE 02 | J59: =IF([1]Sheet1!J59="","",[1]Sheet1!J59) ->  | K59: =IF([1]Sheet1!K59="","",[1]Sheet1!K59) ->  | L59: =IF([1]Sheet1!L59="","",[1]Sheet1!L59) -> 12.97
A60: =IF([1]Sheet1!A60="","",[1]Sheet1!A60) -> 2012-10-13 | B60: =IF([1]Sheet1!B60="","",[1]Sheet1!B60) -> 11:18 | C60: =IF([1]Sheet1!C60="","",[1]Sheet1!C60) -> 1 | D60: =IF([1]Sheet1!D60="","",[1]Sheet1!D60) -> 007 | E60: 1 | F60: 007 | G60: =IF([1]Sheet1!G60="","",[1]Sheet1!G60) ->  | H60: =IF([1]Sheet1!H60="","",[1]Sheet1!H60) -> 14436 | I60: =IF([1]Sheet1!I60="","",[1]Sheet1!I60) -> LINDE 02 | J60: =IF([1]Sheet1!J60="","",[1]Sheet1!J60) ->  | K60: =IF([1]Sheet1!K60="","",[1]Sheet1!K60) ->  | L60: =IF([1]Sheet1!L60="","",[1]Sheet1!L60) -> 46.78
A61: =IF([1]Sheet1!A61="","",[1]Sheet1!A61) -> 2012-10-14 | B61: =IF([1]Sheet1!B61="","",[1]Sheet1!B61) -> 10:31 | C61: =IF([1]Sheet1!C61="","",[1]Sheet1!C61) -> 1 | D61: =IF([1]Sheet1!D61="","",[1]Sheet1!D61) -> 003 | E61: 1 | F61: 003 | G61: =IF([1]Sheet1!G61="","",[1]Sheet1!G61) ->  | H61: =IF([1]Sheet1!H61="","",[1]Sheet1!H61) -> 13618 | I61: =IF([1]Sheet1!I61="","",[1]Sheet1!I61) -> LINDE 01 | J61: =IF([1]Sheet1!J61="","",[1]Sheet1!J61) ->  | K61: =IF([1]Sheet1!K61="","",[1]Sheet1!K61) ->  | L61: =IF([1]Sheet1!L61="","",[1]Sheet1!L61) -> 48.27
A62: =IF([1]Sheet1!A62="","",[1]Sheet1!A62) -> 2012-10-15 | B62: =IF([1]Sheet1!B62="","",[1]Sheet1!B62) -> 07:33 | C62: =IF([1]Sheet1!C62="","",[1]Sheet1!C62) -> 1 | D62: =IF([1]Sheet1!D62="","",[1]Sheet1!D62) -> 106 | E62: 1 | F62: 106 | G62: =IF([1]Sheet1!G62="","",[1]Sheet1!G62) ->  | H62: =IF([1]Sheet1!H62="","",[1]Sheet1!H62) -> 49019 | I62: =IF([1]Sheet1!I62="","",[1]Sheet1!I62) -> SUR | J62: =IF([1]Sheet1!J62="","",[1]Sheet1!J62) ->  | K62: =IF([1]Sheet1!K62="","",[1]Sheet1!K62) ->  | L62: =IF([1]Sheet1!L62="","",[1]Sheet1!L62) -> 46.14
A63: =IF([1]Sheet1!A63="","",[1]Sheet1!A63) -> 2012-10-15 | B63: =IF([1]Sheet1!B63="","",[1]Sheet1!B63) -> 12:57 | C63: =IF([1]Sheet1!C63="","",[1]Sheet1!C63) -> 1 | D63: =IF([1]Sheet1!D63="","",[1]Sheet1!D63) -> 007 | E63: 1 | F63: 007 | G63: =IF([1]Sheet1!G63="","",[1]Sheet1!G63) ->  | H63: =IF([1]Sheet1!H63="","",[1]Sheet1!H63) -> 14453 | I63: =IF([1]Sheet1!I63="","",[1]Sheet1!I63) -> LINDE 02 | J63: =IF([1]Sheet1!J63="","",[1]Sheet1!J63) ->  | K63: =IF([1]Sheet1!K63="","",[1]Sheet1!K63) ->  | L63: =IF([1]Sheet1!L63="","",[1]Sheet1!L63) -> 43.59
A64: =IF([1]Sheet1!A64="","",[1]Sheet1!A64) -> 2012-10-15 | B64: =IF([1]Sheet1!B64="","",[1]Sheet1!B64) -> 13:01 | C64: =IF([1]Sheet1!C64="","",[1]Sheet1!C64) -> 1 | D64: =IF([1]Sheet1!D64="","",[1]Sheet1!D64) -> 003 | E64: 1 | F64: 003 | G64: =IF([1]Sheet1!G64="","",[1]Sheet1!G64) ->  | H64: =IF([1]Sheet1!H64="","",[1]Sheet1!H64) -> 13624 | I64: =IF([1]Sheet1!I64="","",[1]Sheet1!I64) -> LINDE 01 | J64: =IF([1]Sheet1!J64="","",[1]Sheet1!J64) ->  | K64: =IF([1]Sheet1!K64="","",[1]Sheet1!K64) ->  | L64: =IF([1]Sheet1!L64="","",[1]Sheet1!L64) -> 22.09
A65: =IF([1]Sheet1!A65="","",[1]Sheet1!A65) -> 2012-10-16 | B65: =IF([1]Sheet1!B65="","",[1]Sheet1!B65) -> 10:51 | C65: =IF([1]Sheet1!C65="","",[1]Sheet1!C65) -> 1 | D65: =IF([1]Sheet1!D65="","",[1]Sheet1!D65) -> 017 | E65: 1 | F65: 017 | G65: =IF([1]Sheet1!G65="","",[1]Sheet1!G65) ->  | H65: =IF([1]Sheet1!H65="","",[1]Sheet1!H65) -> 19580 | I65: =IF([1]Sheet1!I65="","",[1]Sheet1!I65) -> LINDE 03 | J65: =IF([1]Sheet1!J65="","",[1]Sheet1!J65) ->  | K65: =IF([1]Sheet1!K65="","",[1]Sheet1!K65) ->  | L65: =IF([1]Sheet1!L65="","",[1]Sheet1!L65) -> 43.96
A66: =IF([1]Sheet1!A66="","",[1]Sheet1!A66) -> 2012-10-16 | B66: =IF([1]Sheet1!B66="","",[1]Sheet1!B66) -> 11:18 | C66: =IF([1]Sheet1!C66="","",[1]Sheet1!C66) -> 1 | D66: =IF([1]Sheet1!D66="","",[1]Sheet1!D66) -> 003 | E66: 1 | F66: 003 | G66: =IF([1]Sheet1!G66="","",[1]Sheet1!G66) ->  | H66: =IF([1]Sheet1!H66="","",[1]Sheet1!H66) -> 13641 | I66: =IF([1]Sheet1!I66="","",[1]Sheet1!I66) -> LINDE 01 | J66: =IF([1]Sheet1!J66="","",[1]Sheet1!J66) ->  | K66: =IF([1]Sheet1!K66="","",[1]Sheet1!K66) ->  | L66: =IF([1]Sheet1!L66="","",[1]Sheet1!L66) -> 50.52
A67: =IF([1]Sheet1!A67="","",[1]Sheet1!A67) -> 2012-10-16 | B67: =IF([1]Sheet1!B67="","",[1]Sheet1!B67) -> 19:59 | C67: =IF([1]Sheet1!C67="","",[1]Sheet1!C67) -> 1 | D67: =IF([1]Sheet1!D67="","",[1]Sheet1!D67) -> 005 | E67: 1 | F67: 005 | G67: =IF([1]Sheet1!G67="","",[1]Sheet1!G67) ->  | H67: =IF([1]Sheet1!H67="","",[1]Sheet1!H67) -> 14474 | I67: =IF([1]Sheet1!I67="","",[1]Sheet1!I67) -> LINDE 02 | J67: =IF([1]Sheet1!J67="","",[1]Sheet1!J67) ->  | K67: =IF([1]Sheet1!K67="","",[1]Sheet1!K67) ->  | L67: =IF([1]Sheet1!L67="","",[1]Sheet1!L67) -> 52.54
A68: =IF([1]Sheet1!A68="","",[1]Sheet1!A68) -> 2012-10-17 | B68: =IF([1]Sheet1!B68="","",[1]Sheet1!B68) -> 11:08 | C68: =IF([1]Sheet1!C68="","",[1]Sheet1!C68) -> 1 | D68: =IF([1]Sheet1!D68="","",[1]Sheet1!D68) -> 004 | E68: 1 | F68: 004 | G68: =IF([1]Sheet1!G68="","",[1]Sheet1!G68) ->  | H68: =IF([1]Sheet1!H68="","",[1]Sheet1!H68) -> 13661 | I68: =IF([1]Sheet1!I68="","",[1]Sheet1!I68) -> LINDE 01 | J68: =IF([1]Sheet1!J68="","",[1]Sheet1!J68) ->  | K68: =IF([1]Sheet1!K68="","",[1]Sheet1!K68) ->  | L68: =IF([1]Sheet1!L68="","",[1]Sheet1!L68) -> 50.39
A69: =IF([1]Sheet1!A69="","",[1]Sheet1!A69) -> 2012-10-17 | B69: =IF([1]Sheet1!B69="","",[1]Sheet1!B69) -> 13:16 | C69: =IF([1]Sheet1!C69="","",[1]Sheet1!C69) -> 1 | D69: =IF([1]Sheet1!D69="","",[1]Sheet1!D69) -> 008 | E69: 1 | F69: 008 | G69: =IF([1]Sheet1!G69="","",[1]Sheet1!G69) ->  | H69: =IF([1]Sheet1!H69="","",[1]Sheet1!H69) -> 14487 | I69: =IF([1]Sheet1!I69="","",[1]Sheet1!I69) -> LINDE 02 | J69: =IF([1]Sheet1!J69="","",[1]Sheet1!J69) ->  | K69: =IF([1]Sheet1!K69="","",[1]Sheet1!K69) ->  | L69: =IF([1]Sheet1!L69="","",[1]Sheet1!L69) -> 35.27
A70: =IF([1]Sheet1!A70="","",[1]Sheet1!A70) -> 2012-10-18 | B70: =IF([1]Sheet1!B70="","",[1]Sheet1!B70) -> 11:03 | C70: =IF([1]Sheet1!C70="","",[1]Sheet1!C70) -> 1 | D70: =IF([1]Sheet1!D70="","",[1]Sheet1!D70) -> 004 | E70: 1 | F70: 004 | G70: =IF([1]Sheet1!G70="","",[1]Sheet1!G70) ->  | H70: =IF([1]Sheet1!H70="","",[1]Sheet1!H70) -> 13682 | I70: =IF([1]Sheet1!I70="","",[1]Sheet1!I70) -> LINDE 01 | J70: =IF([1]Sheet1!J70="","",[1]Sheet1!J70) ->  | K70: =IF([1]Sheet1!K70="","",[1]Sheet1!K70) ->  | L70: =IF([1]Sheet1!L70="","",[1]Sheet1!L70) -> 52.42
A71: =IF([1]Sheet1!A71="","",[1]Sheet1!A71) -> 2012-10-18 | B71: =IF([1]Sheet1!B71="","",[1]Sheet1!B71) -> 12:57 | C71: =IF([1]Sheet1!C71="","",[1]Sheet1!C71) -> 1 | D71: =IF([1]Sheet1!D71="","",[1]Sheet1!D71) -> 008 | E71: 1 | F71: 008 | G71: =IF([1]Sheet1!G71="","",[1]Sheet1!G71) ->  | H71: =IF([1]Sheet1!H71="","",[1]Sheet1!H71) -> 14508 | I71: =IF([1]Sheet1!I71="","",[1]Sheet1!I71) -> LINDE 02 | J71: =IF([1]Sheet1!J71="","",[1]Sheet1!J71) ->  | K71: =IF([1]Sheet1!K71="","",[1]Sheet1!K71) ->  | L71: =IF([1]Sheet1!L71="","",[1]Sheet1!L71) -> 52.33
A72: =IF([1]Sheet1!A72="","",[1]Sheet1!A72) -> 2012-10-18 | B72: =IF([1]Sheet1!B72="","",[1]Sheet1!B72) -> 15:14 | C72: =IF([1]Sheet1!C72="","",[1]Sheet1!C72) -> 1 | D72: =IF([1]Sheet1!D72="","",[1]Sheet1!D72) -> 013 | E72: =COUNTIF(D72,"???") -> 1 | F72: =IF(E72=0,"00"&D72,D72) -> 013 | G72: =IF([1]Sheet1!G72="","",[1]Sheet1!G72) ->  | H72: =IF([1]Sheet1!H72="","",[1]Sheet1!H72) -> 19605 | I72: =IF([1]Sheet1!I72="","",[1]Sheet1!I72) -> LINDE 03 | J72: =IF([1]Sheet1!J72="","",[1]Sheet1!J72) ->  | K72: =IF([1]Sheet1!K72="","",[1]Sheet1!K72) ->  | L72: =IF([1]Sheet1!L72="","",[1]Sheet1!L72) -> 52.14
A73: =IF([1]Sheet1!A73="","",[1]Sheet1!A73) -> 2012-10-19 | B73: =IF([1]Sheet1!B73="","",[1]Sheet1!B73) -> 13:23 | C73: =IF([1]Sheet1!C73="","",[1]Sheet1!C73) -> 1 | D73: =IF([1]Sheet1!D73="","",[1]Sheet1!D73) -> 008 | E73: 1 | F73: 008 | G73: =IF([1]Sheet1!G73="","",[1]Sheet1!G73) ->  | H73: =IF([1]Sheet1!H73="","",[1]Sheet1!H73) -> 14528 | I73: =IF([1]Sheet1!I73="","",[1]Sheet1!I73) -> LINDE 02 | J73: =IF([1]Sheet1!J73="","",[1]Sheet1!J73) ->  | K73: =IF([1]Sheet1!K73="","",[1]Sheet1!K73) ->  | L73: =IF([1]Sheet1!L73="","",[1]Sheet1!L73) -> 54.11
A74: =IF([1]Sheet1!A74="","",[1]Sheet1!A74) -> 2012-10-19 | B74: =IF([1]Sheet1!B74="","",[1]Sheet1!B74) -> 13:32 | C74: =IF([1]Sheet1!C74="","",[1]Sheet1!C74) -> 1 | D74: =IF([1]Sheet1!D74="","",[1]Sheet1!D74) -> 004 | E74: 1 | F74: 004 | G74: =IF([1]Sheet1!G74="","",[1]Sheet1!G74) ->  | H74: =IF([1]Sheet1!H74="","",[1]Sheet1!H74) -> 13701 | I74: =IF([1]Sheet1!I74="","",[1]Sheet1!I74) -> LINDE 01 | J74: =IF([1]Sheet1!J74="","",[1]Sheet1!J74) ->  | K74: =IF([1]Sheet1!K74="","",[1]Sheet1!K74) ->  | L74: =IF([1]Sheet1!L74="","",[1]Sheet1!L74) -> 50.82
A75: =IF([1]Sheet1!A75="","",[1]Sheet1!A75) -> 2012-10-20 | B75: =IF([1]Sheet1!B75="","",[1]Sheet1!B75) -> 13:03 | C75: =IF([1]Sheet1!C75="","",[1]Sheet1!C75) -> 1 | D75: =IF([1]Sheet1!D75="","",[1]Sheet1!D75) -> 008 | E75: 1 | F75: 008 | G75: =IF([1]Sheet1!G75="","",[1]Sheet1!G75) ->  | H75: =IF([1]Sheet1!H75="","",[1]Sheet1!H75) -> 14541 | I75: =IF([1]Sheet1!I75="","",[1]Sheet1!I75) -> LINDE 02 | J75: =IF([1]Sheet1!J75="","",[1]Sheet1!J75) ->  | K75: =IF([1]Sheet1!K75="","",[1]Sheet1!K75) ->  | L75: =IF([1]Sheet1!L75="","",[1]Sheet1!L75) -> 37.28
A76: =IF([1]Sheet1!A76="","",[1]Sheet1!A76) -> 2012-10-20 | B76: =IF([1]Sheet1!B76="","",[1]Sheet1!B76) -> 13:06 | C76: =IF([1]Sheet1!C76="","",[1]Sheet1!C76) -> 1 | D76: =IF([1]Sheet1!D76="","",[1]Sheet1!D76) -> 004 | E76: 1 | F76: 004 | G76: =IF([1]Sheet1!G76="","",[1]Sheet1!G76) ->  | H76: =IF([1]Sheet1!H76="","",[1]Sheet1!H76) -> 13713 | I76: =IF([1]Sheet1!I76="","",[1]Sheet1!I76) -> LINDE 01 | J76: =IF([1]Sheet1!J76="","",[1]Sheet1!J76) ->  | K76: =IF([1]Sheet1!K76="","",[1]Sheet1!K76) ->  | L76: =IF([1]Sheet1!L76="","",[1]Sheet1!L76) -> 40.05
A77: =IF([1]Sheet1!A77="","",[1]Sheet1!A77) -> 2012-10-21 | B77: =IF([1]Sheet1!B77="","",[1]Sheet1!B77) -> 07:15 | C77: =IF([1]Sheet1!C77="","",[1]Sheet1!C77) -> 1 | D77: =IF([1]Sheet1!D77="","",[1]Sheet1!D77) -> 016 | E77: 1 | F77: 016 | G77: =IF([1]Sheet1!G77="","",[1]Sheet1!G77) ->  | H77: =IF([1]Sheet1!H77="","",[1]Sheet1!H77) -> 19627 | I77: =IF([1]Sheet1!I77="","",[1]Sheet1!I77) -> LINDE 03 | J77: =IF([1]Sheet1!J77="","",[1]Sheet1!J77) ->  | K77: =IF([1]Sheet1!K77="","",[1]Sheet1!K77) ->  | L77: =IF([1]Sheet1!L77="","",[1]Sheet1!L77) -> 48.42
A78: =IF([1]Sheet1!A78="","",[1]Sheet1!A78) -> 2012-10-22 | B78: =IF([1]Sheet1!B78="","",[1]Sheet1!B78) -> 12:32 | C78: =IF([1]Sheet1!C78="","",[1]Sheet1!C78) -> 1 | D78: =IF([1]Sheet1!D78="","",[1]Sheet1!D78) -> 013 | E78: 1 | F78: 013 | G78: =IF([1]Sheet1!G78="","",[1]Sheet1!G78) ->  | H78: =IF([1]Sheet1!H78="","",[1]Sheet1!H78) -> 19642 | I78: =IF([1]Sheet1!I78="","",[1]Sheet1!I78) -> LINDE 03 | J78: =IF([1]Sheet1!J78="","",[1]Sheet1!J78) ->  | K78: =IF([1]Sheet1!K78="","",[1]Sheet1!K78) ->  | L78: =IF([1]Sheet1!L78="","",[1]Sheet1!L78) -> 34.56
A79: =IF([1]Sheet1!A79="","",[1]Sheet1!A79) -> 2012-10-22 | B79: =IF([1]Sheet1!B79="","",[1]Sheet1!B79) -> 12:58 | C79: =IF([1]Sheet1!C79="","",[1]Sheet1!C79) -> 1 | D79: =IF([1]Sheet1!D79="","",[1]Sheet1!D79) -> 002 | E79: 1 | F79: 002 | G79: =IF([1]Sheet1!G79="","",[1]Sheet1!G79) ->  | H79: =IF([1]Sheet1!H79="","",[1]Sheet1!H79) -> 13731 | I79: =IF([1]Sheet1!I79="","",[1]Sheet1!I79) -> LINDE 01 | J79: =IF([1]Sheet1!J79="","",[1]Sheet1!J79) ->  | K79: =IF([1]Sheet1!K79="","",[1]Sheet1!K79) ->  | L79: =IF([1]Sheet1!L79="","",[1]Sheet1!L79) -> 42.97
A80: =IF([1]Sheet1!A80="","",[1]Sheet1!A80) -> 2012-10-22 | B80: =IF([1]Sheet1!B80="","",[1]Sheet1!B80) -> 13:41 | C80: =IF([1]Sheet1!C80="","",[1]Sheet1!C80) -> 1 | D80: =IF([1]Sheet1!D80="","",[1]Sheet1!D80) -> 101 | E80: 1 | F80: 101 | G80: =IF([1]Sheet1!G80="","",[1]Sheet1!G80) ->  | H80: 14553 | I80: =IF([1]Sheet1!I80="","",[1]Sheet1!I80) -> LINDE 02 | J80: =IF([1]Sheet1!J80="","",[1]Sheet1!J80) ->  | K80: =IF([1]Sheet1!K80="","",[1]Sheet1!K80) ->  | L80: =IF([1]Sheet1!L80="","",[1]Sheet1!L80) -> 34.44
A81: =IF([1]Sheet1!A81="","",[1]Sheet1!A81) -> 2012-10-23 | B81: =IF([1]Sheet1!B81="","",[1]Sheet1!B81) -> 13:06 | C81: =IF([1]Sheet1!C81="","",[1]Sheet1!C81) -> 1 | D81: =IF([1]Sheet1!D81="","",[1]Sheet1!D81) -> 002 | E81: 1 | F81: 002 | G81: =IF([1]Sheet1!G81="","",[1]Sheet1!G81) ->  | H81: =IF([1]Sheet1!H81="","",[1]Sheet1!H81) -> 13750 | I81: =IF([1]Sheet1!I81="","",[1]Sheet1!I81) -> LINDE 01 | J81: =IF([1]Sheet1!J81="","",[1]Sheet1!J81) ->  | K81: =IF([1]Sheet1!K81="","",[1]Sheet1!K81) ->  | L81: =IF([1]Sheet1!L81="","",[1]Sheet1!L81) -> 50.48
A82: =IF([1]Sheet1!A82="","",[1]Sheet1!A82) -> 2012-10-23 | B82: =IF([1]Sheet1!B82="","",[1]Sheet1!B82) -> 18:02 | C82: =IF([1]Sheet1!C82="","",[1]Sheet1!C82) -> 1 | D82: =IF([1]Sheet1!D82="","",[1]Sheet1!D82) -> 008 | E82: 1 | F82: 008 | G82: =IF([1]Sheet1!G82="","",[1]Sheet1!G82) ->  | H82: =IF([1]Sheet1!H82="","",[1]Sheet1!H82) -> 14573 | I82: =IF([1]Sheet1!I82="","",[1]Sheet1!I82) -> LINDE 02 | J82: =IF([1]Sheet1!J82="","",[1]Sheet1!J82) ->  | K82: =IF([1]Sheet1!K82="","",[1]Sheet1!K82) ->  | L82: =IF([1]Sheet1!L82="","",[1]Sheet1!L82) -> 55.87
A83: =IF([1]Sheet1!A83="","",[1]Sheet1!A83) -> 2012-10-24 | B83: =IF([1]Sheet1!B83="","",[1]Sheet1!B83) -> 10:18 | C83: =IF([1]Sheet1!C83="","",[1]Sheet1!C83) -> 1 | D83: =IF([1]Sheet1!D83="","",[1]Sheet1!D83) -> 012 | E83: 1 | F83: 012 | G83: =IF([1]Sheet1!G83="","",[1]Sheet1!G83) ->  | H83: =IF([1]Sheet1!H83="","",[1]Sheet1!H83) -> 19660 | I83: =IF([1]Sheet1!I83="","",[1]Sheet1!I83) -> LINDE 03 | J83: =IF([1]Sheet1!J83="","",[1]Sheet1!J83) ->  | K83: =IF([1]Sheet1!K83="","",[1]Sheet1!K83) ->  | L83: =IF([1]Sheet1!L83="","",[1]Sheet1!L83) -> 41.13
A84: =IF([1]Sheet1!A84="","",[1]Sheet1!A84) -> 2012-10-24 | B84: =IF([1]Sheet1!B84="","",[1]Sheet1!B84) -> 13:04 | C84: =IF([1]Sheet1!C84="","",[1]Sheet1!C84) -> 1 | D84: =IF([1]Sheet1!D84="","",[1]Sheet1!D84) -> 002 | E84: 1 | F84: 002 | G84: =IF([1]Sheet1!G84="","",[1]Sheet1!G84) ->  | H84: =IF([1]Sheet1!H84="","",[1]Sheet1!H84) -> 13768 | I84: =IF([1]Sheet1!I84="","",[1]Sheet1!I84) -> LINDE 01 | J84: =IF([1]Sheet1!J84="","",[1]Sheet1!J84) ->  | K84: =IF([1]Sheet1!K84="","",[1]Sheet1!K84) ->  | L84: =IF([1]Sheet1!L84="","",[1]Sheet1!L84) -> 49.19
A85: =IF([1]Sheet1!A85="","",[1]Sheet1!A85) -> 2012-10-24 | B85: =IF([1]Sheet1!B85="","",[1]Sheet1!B85) -> 18:18 | C85: =IF([1]Sheet1!C85="","",[1]Sheet1!C85) -> 1 | D85: =IF([1]Sheet1!D85="","",[1]Sheet1!D85) -> 008 | E85: 1 | F85: 008 | G85: =IF([1]Sheet1!G85="","",[1]Sheet1!G85) ->  | H85: =IF([1]Sheet1!H85="","",[1]Sheet1!H85) -> 14590 | I85: =IF([1]Sheet1!I85="","",[1]Sheet1!I85) -> LINDE 02 | J85: =IF([1]Sheet1!J85="","",[1]Sheet1!J85) ->  | K85: =IF([1]Sheet1!K85="","",[1]Sheet1!K85) ->  | L85: =IF([1]Sheet1!L85="","",[1]Sheet1!L85) -> 49.34
A86: =IF([1]Sheet1!A86="","",[1]Sheet1!A86) -> 2012-10-25 | B86: =IF([1]Sheet1!B86="","",[1]Sheet1!B86) -> 12:56 | C86: =IF([1]Sheet1!C86="","",[1]Sheet1!C86) -> 1 | D86: =IF([1]Sheet1!D86="","",[1]Sheet1!D86) -> 106 | E86: 1 | F86: 106 | G86: =IF([1]Sheet1!G86="","",[1]Sheet1!G86) ->  | H86: =IF([1]Sheet1!H86="","",[1]Sheet1!H86) -> 49749 | I86: =IF([1]Sheet1!I86="","",[1]Sheet1!I86) -> SUR | J86: =IF([1]Sheet1!J86="","",[1]Sheet1!J86) ->  | K86: =IF([1]Sheet1!K86="","",[1]Sheet1!K86) ->  | L86: =IF([1]Sheet1!L86="","",[1]Sheet1!L86) -> 56.67
A87: =IF([1]Sheet1!A87="","",[1]Sheet1!A87) -> 2012-10-25 | B87: =IF([1]Sheet1!B87="","",[1]Sheet1!B87) -> 13:03 | C87: =IF([1]Sheet1!C87="","",[1]Sheet1!C87) -> 1 | D87: =IF([1]Sheet1!D87="","",[1]Sheet1!D87) -> 005 | E87: 1 | F87: 005 | G87: =IF([1]Sheet1!G87="","",[1]Sheet1!G87) ->  | H87: =IF([1]Sheet1!H87="","",[1]Sheet1!H87) -> 14604 | I87: =IF([1]Sheet1!I87="","",[1]Sheet1!I87) -> LINDE 02 | J87: =IF([1]Sheet1!J87="","",[1]Sheet1!J87) ->  | K87: =IF([1]Sheet1!K87="","",[1]Sheet1!K87) ->  | L87: =IF([1]Sheet1!L87="","",[1]Sheet1!L87) -> 34.62
A88: =IF([1]Sheet1!A88="","",[1]Sheet1!A88) -> 2012-10-25 | B88: =IF([1]Sheet1!B88="","",[1]Sheet1!B88) -> 13:23 | C88: =IF([1]Sheet1!C88="","",[1]Sheet1!C88) -> 1 | D88: =IF([1]Sheet1!D88="","",[1]Sheet1!D88) -> 001 | E88: 1 | F88: 001 | G88: =IF([1]Sheet1!G88="","",[1]Sheet1!G88) ->  | H88: =IF([1]Sheet1!H88="","",[1]Sheet1!H88) -> 13785 | I88: =IF([1]Sheet1!I88="","",[1]Sheet1!I88) -> LINDE 01 | J88: =IF([1]Sheet1!J88="","",[1]Sheet1!J88) ->  | K88: =IF([1]Sheet1!K88="","",[1]Sheet1!K88) ->  | L88: =IF([1]Sheet1!L88="","",[1]Sheet1!L88) -> 53.23
A89: =IF([1]Sheet1!A89="","",[1]Sheet1!A89) -> 2012-10-26 | B89: =IF([1]Sheet1!B89="","",[1]Sheet1!B89) -> 11:16 | C89: =IF([1]Sheet1!C89="","",[1]Sheet1!C89) -> 1 | D89: =IF([1]Sheet1!D89="","",[1]Sheet1!D89) -> 001 | E89: 1 | F89: 001 | G89: =IF([1]Sheet1!G89="","",[1]Sheet1!G89) ->  | H89: =IF([1]Sheet1!H89="","",[1]Sheet1!H89) -> 14618 | I89: =IF([1]Sheet1!I89="","",[1]Sheet1!I89) -> LINDE 02 | J89: =IF([1]Sheet1!J89="","",[1]Sheet1!J89) ->  | K89: =IF([1]Sheet1!K89="","",[1]Sheet1!K89) ->  | L89: =IF([1]Sheet1!L89="","",[1]Sheet1!L89) -> 46.41
A90: =IF([1]Sheet1!A90="","",[1]Sheet1!A90) -> 2012-10-26 | B90: =IF([1]Sheet1!B90="","",[1]Sheet1!B90) -> 11:56 | C90: =IF([1]Sheet1!C90="","",[1]Sheet1!C90) -> 1 | D90: =IF([1]Sheet1!D90="","",[1]Sheet1!D90) -> 015 | E90: 1 | F90: 015 | G90: =IF([1]Sheet1!G90="","",[1]Sheet1!G90) ->  | H90: =IF([1]Sheet1!H90="","",[1]Sheet1!H90) -> 19678 | I90: =IF([1]Sheet1!I90="","",[1]Sheet1!I90) -> LINDE 03 | J90: =IF([1]Sheet1!J90="","",[1]Sheet1!J90) ->  | K90: =IF([1]Sheet1!K90="","",[1]Sheet1!K90) ->  | L90: =IF([1]Sheet1!L90="","",[1]Sheet1!L90) -> 43.95
A91: =IF([1]Sheet1!A91="","",[1]Sheet1!A91) -> 2012-10-26 | B91: =IF([1]Sheet1!B91="","",[1]Sheet1!B91) -> 18:39 | C91: =IF([1]Sheet1!C91="","",[1]Sheet1!C91) -> 1 | D91: =IF([1]Sheet1!D91="","",[1]Sheet1!D91) -> 002 | E91: 1 | F91: 002 | G91: =IF([1]Sheet1!G91="","",[1]Sheet1!G91) ->  | H91: =IF([1]Sheet1!H91="","",[1]Sheet1!H91) -> 13803 | I91: =IF([1]Sheet1!I91="","",[1]Sheet1!I91) -> LINDE 01 | J91: =IF([1]Sheet1!J91="","",[1]Sheet1!J91) ->  | K91: =IF([1]Sheet1!K91="","",[1]Sheet1!K91) ->  | L91: =IF([1]Sheet1!L91="","",[1]Sheet1!L91) -> 48.36
A92: =IF([1]Sheet1!A92="","",[1]Sheet1!A92) -> 2012-10-27 | B92: =IF([1]Sheet1!B92="","",[1]Sheet1!B92) -> 13:26 | C92: =IF([1]Sheet1!C92="","",[1]Sheet1!C92) -> 1 | D92: =IF([1]Sheet1!D92="","",[1]Sheet1!D92) -> 005 | E92: 1 | F92: 005 | G92: =IF([1]Sheet1!G92="","",[1]Sheet1!G92) ->  | H92: =IF([1]Sheet1!H92="","",[1]Sheet1!H92) -> 14634 | I92: =IF([1]Sheet1!I92="","",[1]Sheet1!I92) -> LINDE 02 | J92: =IF([1]Sheet1!J92="","",[1]Sheet1!J92) ->  | K92: =IF([1]Sheet1!K92="","",[1]Sheet1!K92) ->  | L92: =IF([1]Sheet1!L92="","",[1]Sheet1!L92) -> 43.67
A93: =IF([1]Sheet1!A93="","",[1]Sheet1!A93) -> 2012-10-28 | B93: =IF([1]Sheet1!B93="","",[1]Sheet1!B93) -> 12:45 | C93: =IF([1]Sheet1!C93="","",[1]Sheet1!C93) -> 1 | D93: =IF([1]Sheet1!D93="","",[1]Sheet1!D93) -> 001 | E93: 1 | F93: 001 | G93: =IF([1]Sheet1!G93="","",[1]Sheet1!G93) ->  | H93: =IF([1]Sheet1!H93="","",[1]Sheet1!H93) -> 13817 | I93: =IF([1]Sheet1!I93="","",[1]Sheet1!I93) -> LINDE 01 | J93: =IF([1]Sheet1!J93="","",[1]Sheet1!J93) ->  | K93: =IF([1]Sheet1!K93="","",[1]Sheet1!K93) ->  | L93: =IF([1]Sheet1!L93="","",[1]Sheet1!L93) -> 35.18
A94: =IF([1]Sheet1!A94="","",[1]Sheet1!A94) -> 2012-10-28 | B94: =IF([1]Sheet1!B94="","",[1]Sheet1!B94) -> 16:21 | C94: =IF([1]Sheet1!C94="","",[1]Sheet1!C94) -> 1 | D94: =IF([1]Sheet1!D94="","",[1]Sheet1!D94) -> 012 | E94: 1 | F94: 012 | G94: =IF([1]Sheet1!G94="","",[1]Sheet1!G94) ->  | H94: =IF([1]Sheet1!H94="","",[1]Sheet1!H94) -> 19695 | I94: =IF([1]Sheet1!I94="","",[1]Sheet1!I94) -> LINDE 03 | J94: =IF([1]Sheet1!J94="","",[1]Sheet1!J94) ->  | K94: =IF([1]Sheet1!K94="","",[1]Sheet1!K94) ->  | L94: =IF([1]Sheet1!L94="","",[1]Sheet1!L94) -> 43.43
A95: =IF([1]Sheet1!A95="","",[1]Sheet1!A95) -> 2012-10-29 | B95: =IF([1]Sheet1!B95="","",[1]Sheet1!B95) -> 11:40 | C95: =IF([1]Sheet1!C95="","",[1]Sheet1!C95) -> 1 | D95: =IF([1]Sheet1!D95="","",[1]Sheet1!D95) -> 007 | E95: 1 | F95: 007 | G95: =IF([1]Sheet1!G95="","",[1]Sheet1!G95) ->  | H95: =IF([1]Sheet1!H95="","",[1]Sheet1!H95) -> 14652 | I95: =IF([1]Sheet1!I95="","",[1]Sheet1!I95) -> LINDE 02 | J95: =IF([1]Sheet1!J95="","",[1]Sheet1!J95) ->  | K95: =IF([1]Sheet1!K95="","",[1]Sheet1!K95) ->  | L95: =IF([1]Sheet1!L95="","",[1]Sheet1!L95) -> 37.91
A96: =IF([1]Sheet1!A96="","",[1]Sheet1!A96) -> 2012-10-29 | B96: =IF([1]Sheet1!B96="","",[1]Sheet1!B96) -> 13:54 | C96: =IF([1]Sheet1!C96="","",[1]Sheet1!C96) -> 1 | D96: =IF([1]Sheet1!D96="","",[1]Sheet1!D96) -> 003 | E96: 1 | F96: 003 | G96: =IF([1]Sheet1!G96="","",[1]Sheet1!G96) ->  | H96: =IF([1]Sheet1!H96="","",[1]Sheet1!H96) -> 13823 | I96: =IF([1]Sheet1!I96="","",[1]Sheet1!I96) -> LINDE 01 | J96: =IF([1]Sheet1!J96="","",[1]Sheet1!J96) ->  | K96: =IF([1]Sheet1!K96="","",[1]Sheet1!K96) ->  | L96: =IF([1]Sheet1!L96="","",[1]Sheet1!L96) -> 19.78
A97: =IF([1]Sheet1!A97="","",[1]Sheet1!A97) -> 2012-10-30 | B97: =IF([1]Sheet1!B97="","",[1]Sheet1!B97) -> 08:26 | C97: =IF([1]Sheet1!C97="","",[1]Sheet1!C97) -> 1 | D97: =IF([1]Sheet1!D97="","",[1]Sheet1!D97) -> 007 | E97: 1 | F97: 007 | G97: =IF([1]Sheet1!G97="","",[1]Sheet1!G97) ->  | H97: =IF([1]Sheet1!H97="","",[1]Sheet1!H97) -> 14668 | I97: =IF([1]Sheet1!I97="","",[1]Sheet1!I97) -> LINDE 02 | J97: =IF([1]Sheet1!J97="","",[1]Sheet1!J97) ->  | K97: =IF([1]Sheet1!K97="","",[1]Sheet1!K97) ->  | L97: =IF([1]Sheet1!L97="","",[1]Sheet1!L97) -> 54.23
A98: =IF([1]Sheet1!A98="","",[1]Sheet1!A98) -> 2012-10-30 | B98: =IF([1]Sheet1!B98="","",[1]Sheet1!B98) -> 12:59 | C98: =IF([1]Sheet1!C98="","",[1]Sheet1!C98) -> 1 | D98: 204 | E98: =COUNTIF(D98,"???") -> 0 | F98: 204 | G98: =IF([1]Sheet1!G98="","",[1]Sheet1!G98) ->  | H98: =IF([1]Sheet1!H98="","",[1]Sheet1!H98) -> 62370 | I98: =IF([1]Sheet1!I98="","",[1]Sheet1!I98) -> SMP | J98: =IF([1]Sheet1!J98="","",[1]Sheet1!J98) ->  | K98: =IF([1]Sheet1!K98="","",[1]Sheet1!K98) ->  | L98: =IF([1]Sheet1!L98="","",[1]Sheet1!L98) -> 54.85
A99: =IF([1]Sheet1!A99="","",[1]Sheet1!A99) -> 2012-10-30 | B99: =IF([1]Sheet1!B99="","",[1]Sheet1!B99) -> 14:15 | C99: =IF([1]Sheet1!C99="","",[1]Sheet1!C99) -> 1 | D99: =IF([1]Sheet1!D99="","",[1]Sheet1!D99) -> 003 | E99: 1 | F99: =IF(E99=0,"00"&D99,D99) -> 003 | G99: =IF([1]Sheet1!G99="","",[1]Sheet1!G99) ->  | H99: =IF([1]Sheet1!H99="","",[1]Sheet1!H99) -> 13834 | I99: =IF([1]Sheet1!I99="","",[1]Sheet1!I99) -> LINDE 01 | J99: =IF([1]Sheet1!J99="","",[1]Sheet1!J99) ->  | K99: =IF([1]Sheet1!K99="","",[1]Sheet1!K99) ->  | L99: =IF([1]Sheet1!L99="","",[1]Sheet1!L99) -> 36.84
A100: =IF([1]Sheet1!A100="","",[1]Sheet1!A100) -> 2012-10-30 | B100: =IF([1]Sheet1!B100="","",[1]Sheet1!B100) -> 14:23 | C100: =IF([1]Sheet1!C100="","",[1]Sheet1!C100) -> 1 | D100: =IF([1]Sheet1!D100="","",[1]Sheet1!D100) -> 017 | E100: =COUNTIF(D100,"???") -> 1 | F100: 017 | G100: =IF([1]Sheet1!G100="","",[1]Sheet1!G100) ->  | H100: =IF([1]Sheet1!H100="","",[1]Sheet1!H100) -> 19715 | I100: =IF([1]Sheet1!I100="","",[1]Sheet1!I100) -> LINDE 03 | J100: =IF([1]Sheet1!J100="","",[1]Sheet1!J100) ->  | K100: =IF([1]Sheet1!K100="","",[1]Sheet1!K100) ->  | L100: =IF([1]Sheet1!L100="","",[1]Sheet1!L100) -> 44.9
A101: =IF([1]Sheet1!A101="","",[1]Sheet1!A101) -> 2012-10-31 | B101: =IF([1]Sheet1!B101="","",[1]Sheet1!B101) -> 09:55 | C101: =IF([1]Sheet1!C101="","",[1]Sheet1!C101) -> 1 | D101: =IF([1]Sheet1!D101="","",[1]Sheet1!D101) -> 003 | E101: 1 | F101: 003 | G101: =IF([1]Sheet1!G101="","",[1]Sheet1!G101) ->  | H101: =IF([1]Sheet1!H101="","",[1]Sheet1!H101) -> 13851 | I101: =IF([1]Sheet1!I101="","",[1]Sheet1!I101) -> LINDE 01 | J101: =IF([1]Sheet1!J101="","",[1]Sheet1!J101) ->  | K101: =IF([1]Sheet1!K101="","",[1]Sheet1!K101) ->  | L101: =IF([1]Sheet1!L101="","",[1]Sheet1!L101) -> 52.18
A102: =IF([1]Sheet1!A102="","",[1]Sheet1!A102) -> 2012-10-31 | B102: =IF([1]Sheet1!B102="","",[1]Sheet1!B102) -> 11:01 | C102: =IF([1]Sheet1!C102="","",[1]Sheet1!C102) -> 1 | D102: =IF([1]Sheet1!D102="","",[1]Sheet1!D102) -> 207 | E102: 1 | F102: 207 | G102: =IF([1]Sheet1!G102="","",[1]Sheet1!G102) ->  | H102: =IF([1]Sheet1!H102="","",[1]Sheet1!H102) -> 70490 | I102: =IF([1]Sheet1!I102="","",[1]Sheet1!I102) -> SMP | J102: =IF([1]Sheet1!J102="","",[1]Sheet1!J102) ->  | K102: =IF([1]Sheet1!K102="","",[1]Sheet1!K102) ->  | L102: =IF([1]Sheet1!L102="","",[1]Sheet1!L102) -> 72.14
A103: =IF([1]Sheet1!A103="","",[1]Sheet1!A103) -> 2012-10-31 | B103: =IF([1]Sheet1!B103="","",[1]Sheet1!B103) -> 11:59 | C103: =IF([1]Sheet1!C103="","",[1]Sheet1!C103) -> 1 | D103: =IF([1]Sheet1!D103="","",[1]Sheet1!D103) -> 007 | E103: 1 | F103: 007 | G103: =IF([1]Sheet1!G103="","",[1]Sheet1!G103) ->  | H103: =IF([1]Sheet1!H103="","",[1]Sheet1!H103) -> 14683 | I103: =IF([1]Sheet1!I103="","",[1]Sheet1!I103) -> LINDE 02 | J103: =IF([1]Sheet1!J103="","",[1]Sheet1!J103) ->  | K103: =IF([1]Sheet1!K103="","",[1]Sheet1!K103) ->  | L103: =IF([1]Sheet1!L103="","",[1]Sheet1!L103) -> 47.21
A104: =IF([1]Sheet1!A104="","",[1]Sheet1!A104) -> 2012-11-01 | B104: =IF([1]Sheet1!B104="","",[1]Sheet1!B104) -> 14:06 | C104: =IF([1]Sheet1!C104="","",[1]Sheet1!C104) -> 1 | D104: =IF([1]Sheet1!D104="","",[1]Sheet1!D104) -> 003 | E104: 1 | F104: 003 | G104: =IF([1]Sheet1!G104="","",[1]Sheet1!G104) ->  | H104: 13874 | I104: =IF([1]Sheet1!I104="","",[1]Sheet1!I104) -> LINDE 01 | J104: =IF([1]Sheet1!J104="","",[1]Sheet1!J104) ->  | K104: =IF([1]Sheet1!K104="","",[1]Sheet1!K104) ->  | L104: =IF([1]Sheet1!L104="","",[1]Sheet1!L104) -> 42.41
A105: =IF([1]Sheet1!A105="","",[1]Sheet1!A105) -> 2012-11-02 | B105: =IF([1]Sheet1!B105="","",[1]Sheet1!B105) -> 13:21 | C105: =IF([1]Sheet1!C105="","",[1]Sheet1!C105) -> 1 | D105: =IF([1]Sheet1!D105="","",[1]Sheet1!D105) -> 005 | E105: 1 | F105: 005 | G105: =IF([1]Sheet1!G105="","",[1]Sheet1!G105) ->  | H105: =IF([1]Sheet1!H105="","",[1]Sheet1!H105) -> 14701 | I105: =IF([1]Sheet1!I105="","",[1]Sheet1!I105) -> LINDE 02 | J105: =IF([1]Sheet1!J105="","",[1]Sheet1!J105) ->  | K105: =IF([1]Sheet1!K105="","",[1]Sheet1!K105) ->  | L105: =IF([1]Sheet1!L105="","",[1]Sheet1!L105) -> 39.45
A106: =IF([1]Sheet1!A106="","",[1]Sheet1!A106) ->  | B106: =IF([1]Sheet1!B106="","",[1]Sheet1!B106) ->  | C106: =IF([1]Sheet1!C106="","",[1]Sheet1!C106) ->  | D106: =IF([1]Sheet1!D106="","",[1]Sheet1!D106) ->  | E106: =COUNTIF(D106,"???") -> 0 | F106: =IF(E106=0,"00"&D106,D106) -> 00 | G106: =IF([1]Sheet1!G106="","",[1]Sheet1!G106) ->  | H106: =IF([1]Sheet1!H106="","",[1]Sheet1!H106) ->  | I106: =IF([1]Sheet1!I106="","",[1]Sheet1!I106) ->  | J106: =IF([1]Sheet1!J106="","",[1]Sheet1!J106) ->  | K106: =IF([1]Sheet1!K106="","",[1]Sheet1!K106) ->  | L106: =IF([1]Sheet1!L106="","",[1]Sheet1!L106) -> 
A107: =IF([1]Sheet1!A107="","",[1]Sheet1!A107) ->  | B107: =IF([1]Sheet1!B107="","",[1]Sheet1!B107) ->  | C107: =IF([1]Sheet1!C107="","",[1]Sheet1!C107) ->  | D107: =IF([1]Sheet1!D107="","",[1]Sheet1!D107) ->  | E107: 0 | F107: 00 | G107: =IF([1]Sheet1!G107="","",[1]Sheet1!G107) ->  | H107: =IF([1]Sheet1!H107="","",[1]Sheet1!H107) ->  | I107: =IF([1]Sheet1!I107="","",[1]Sheet1!I107) ->  | J107: =IF([1]Sheet1!J107="","",[1]Sheet1!J107) ->  | K107: =IF([1]Sheet1!K107="","",[1]Sheet1!K107) ->  | L107: =IF([1]Sheet1!L107="","",[1]Sheet1!L107) -> 
A108: =IF([1]Sheet1!A108="","",[1]Sheet1!A108) ->  | B108: =IF([1]Sheet1!B108="","",[1]Sheet1!B108) ->  | C108: =IF([1]Sheet1!C108="","",[1]Sheet1!C108) ->  | D108: =IF([1]Sheet1!D108="","",[1]Sheet1!D108) ->  | E108: 0 | F108: 00 | G108: =IF([1]Sheet1!G108="","",[1]Sheet1!G108) ->  | H108: =IF([1]Sheet1!H108="","",[1]Sheet1!H108) -> 1 | I108: =IF([1]Sheet1!I108="","",[1]Sheet1!I108) ->  | J108: =IF([1]Sheet1!J108="","",[1]Sheet1!J108) ->  | K108: =IF([1]Sheet1!K108="","",[1]Sheet1!K108) ->  | L108: =IF([1]Sheet1!L108="","",[1]Sheet1!L108) -> 
A109: =IF([1]Sheet1!A109="","",[1]Sheet1!A109) ->  | B109: =IF([1]Sheet1!B109="","",[1]Sheet1!B109) ->  | C109: =IF([1]Sheet1!C109="","",[1]Sheet1!C109) ->  | D109: =IF([1]Sheet1!D109="","",[1]Sheet1!D109) ->  | E109: 0 | F109: 00 | G109: =IF([1]Sheet1!G109="","",[1]Sheet1!G109) ->  | H109: =IF([1]Sheet1!H109="","",[1]Sheet1!H109) ->  | I109: =IF([1]Sheet1!I109="","",[1]Sheet1!I109) ->  | J109: =IF([1]Sheet1!J109="","",[1]Sheet1!J109) ->  | K109: =IF([1]Sheet1!K109="","",[1]Sheet1!K109) ->  | L109: =IF([1]Sheet1!L109="","",[1]Sheet1!L109) -> 
A110: =IF([1]Sheet1!A110="","",[1]Sheet1!A110) ->  | B110: =IF([1]Sheet1!B110="","",[1]Sheet1!B110) ->  | C110: =IF([1]Sheet1!C110="","",[1]Sheet1!C110) ->  | D110: =IF([1]Sheet1!D110="","",[1]Sheet1!D110) ->  | E110: 0 | F110: 00 | G110: =IF([1]Sheet1!G110="","",[1]Sheet1!G110) ->  | H110: =IF([1]Sheet1!H110="","",[1]Sheet1!H110) ->  | I110: =IF([1]Sheet1!I110="","",[1]Sheet1!I110) ->  | J110: =IF([1]Sheet1!J110="","",[1]Sheet1!J110) ->  | K110: =IF([1]Sheet1!K110="","",[1]Sheet1!K110) ->  | L110: =IF([1]Sheet1!L110="","",[1]Sheet1!L110) -> 
A111: =IF([1]Sheet1!A111="","",[1]Sheet1!A111) ->  | B111: =IF([1]Sheet1!B111="","",[1]Sheet1!B111) ->  | C111: =IF([1]Sheet1!C111="","",[1]Sheet1!C111) ->  | D111: =IF([1]Sheet1!D111="","",[1]Sheet1!D111) ->  | E111: 0 | F111: 00 | G111: =IF([1]Sheet1!G111="","",[1]Sheet1!G111) ->  | H111: =IF([1]Sheet1!H111="","",[1]Sheet1!H111) ->  | I111: =IF([1]Sheet1!I111="","",[1]Sheet1!I111) ->  | J111: =IF([1]Sheet1!J111="","",[1]Sheet1!J111) ->  | K111: =IF([1]Sheet1!K111="","",[1]Sheet1!K111) ->  | L111: =IF([1]Sheet1!L111="","",[1]Sheet1!L111) -> 
A112: =IF([1]Sheet1!A112="","",[1]Sheet1!A112) ->  | B112: =IF([1]Sheet1!B112="","",[1]Sheet1!B112) ->  | C112: =IF([1]Sheet1!C112="","",[1]Sheet1!C112) ->  | D112: =IF([1]Sheet1!D112="","",[1]Sheet1!D112) ->  | E112: 0 | F112: 00 | G112: =IF([1]Sheet1!G112="","",[1]Sheet1!G112) ->  | H112: =IF([1]Sheet1!H112="","",[1]Sheet1!H112) ->  | I112: =IF([1]Sheet1!I112="","",[1]Sheet1!I112) ->  | J112: =IF([1]Sheet1!J112="","",[1]Sheet1!J112) ->  | K112: =IF([1]Sheet1!K112="","",[1]Sheet1!K112) ->  | L112: =IF([1]Sheet1!L112="","",[1]Sheet1!L112) -> 
A113: =IF([1]Sheet1!A113="","",[1]Sheet1!A113) ->  | B113: =IF([1]Sheet1!B113="","",[1]Sheet1!B113) ->  | C113: =IF([1]Sheet1!C113="","",[1]Sheet1!C113) ->  | D113: =IF([1]Sheet1!D113="","",[1]Sheet1!D113) ->  | E113: 0 | F113: 00 | G113: =IF([1]Sheet1!G113="","",[1]Sheet1!G113) ->  | H113: =IF([1]Sheet1!H113="","",[1]Sheet1!H113) ->  | I113: =IF([1]Sheet1!I113="","",[1]Sheet1!I113) ->  | J113: =IF([1]Sheet1!J113="","",[1]Sheet1!J113) ->  | K113: =IF([1]Sheet1!K113="","",[1]Sheet1!K113) ->  | L113: =IF([1]Sheet1!L113="","",[1]Sheet1!L113) -> 
A114: =IF([1]Sheet1!A114="","",[1]Sheet1!A114) ->  | B114: =IF([1]Sheet1!B114="","",[1]Sheet1!B114) ->  | C114: =IF([1]Sheet1!C114="","",[1]Sheet1!C114) ->  | D114: =IF([1]Sheet1!D114="","",[1]Sheet1!D114) ->  | E114: 0 | F114: 00 | G114: =IF([1]Sheet1!G114="","",[1]Sheet1!G114) ->  | H114: =IF([1]Sheet1!H114="","",[1]Sheet1!H114) ->  | I114: =IF([1]Sheet1!I114="","",[1]Sheet1!I114) ->  | J114: =IF([1]Sheet1!J114="","",[1]Sheet1!J114) ->  | K114: =IF([1]Sheet1!K114="","",[1]Sheet1!K114) ->  | L114: =IF([1]Sheet1!L114="","",[1]Sheet1!L114) -> 
A115: =IF([1]Sheet1!A115="","",[1]Sheet1!A115) ->  | B115: =IF([1]Sheet1!B115="","",[1]Sheet1!B115) ->  | C115: =IF([1]Sheet1!C115="","",[1]Sheet1!C115) ->  | D115: =IF([1]Sheet1!D115="","",[1]Sheet1!D115) ->  | E115: 0 | F115: 00 | G115: =IF([1]Sheet1!G115="","",[1]Sheet1!G115) ->  | H115: =IF([1]Sheet1!H115="","",[1]Sheet1!H115) ->  | I115: =IF([1]Sheet1!I115="","",[1]Sheet1!I115) ->  | J115: =IF([1]Sheet1!J115="","",[1]Sheet1!J115) ->  | K115: =IF([1]Sheet1!K115="","",[1]Sheet1!K115) ->  | L115: =IF([1]Sheet1!L115="","",[1]Sheet1!L115) -> 
A116: =IF([1]Sheet1!A116="","",[1]Sheet1!A116) ->  | B116: =IF([1]Sheet1!B116="","",[1]Sheet1!B116) ->  | C116: =IF([1]Sheet1!C116="","",[1]Sheet1!C116) ->  | D116: =IF([1]Sheet1!D116="","",[1]Sheet1!D116) ->  | E116: 0 | F116: 00 | G116: =IF([1]Sheet1!G116="","",[1]Sheet1!G116) ->  | H116: =IF([1]Sheet1!H116="","",[1]Sheet1!H116) ->  | I116: =IF([1]Sheet1!I116="","",[1]Sheet1!I116) ->  | J116: =IF([1]Sheet1!J116="","",[1]Sheet1!J116) ->  | K116: =IF([1]Sheet1!K116="","",[1]Sheet1!K116) ->  | L116: =IF([1]Sheet1!L116="","",[1]Sheet1!L116) -> 
A117: =IF([1]Sheet1!A117="","",[1]Sheet1!A117) ->  | B117: =IF([1]Sheet1!B117="","",[1]Sheet1!B117) ->  | C117: =IF([1]Sheet1!C117="","",[1]Sheet1!C117) ->  | D117: =IF([1]Sheet1!D117="","",[1]Sheet1!D117) ->  | E117: 0 | F117: 00 | G117: =IF([1]Sheet1!G117="","",[1]Sheet1!G117) ->  | H117: =IF([1]Sheet1!H117="","",[1]Sheet1!H117) ->  | I117: =IF([1]Sheet1!I117="","",[1]Sheet1!I117) ->  | J117: =IF([1]Sheet1!J117="","",[1]Sheet1!J117) ->  | K117: =IF([1]Sheet1!K117="","",[1]Sheet1!K117) ->  | L117: =IF([1]Sheet1!L117="","",[1]Sheet1!L117) -> 
A118: =IF([1]Sheet1!A118="","",[1]Sheet1!A118) ->  | B118: =IF([1]Sheet1!B118="","",[1]Sheet1!B118) ->  | C118: =IF([1]Sheet1!C118="","",[1]Sheet1!C118) ->  | D118: =IF([1]Sheet1!D118="","",[1]Sheet1!D118) ->  | E118: 0 | F118: 00 | G118: =IF([1]Sheet1!G118="","",[1]Sheet1!G118) ->  | H118: =IF([1]Sheet1!H118="","",[1]Sheet1!H118) ->  | I118: =IF([1]Sheet1!I118="","",[1]Sheet1!I118) ->  | J118: =IF([1]Sheet1!J118="","",[1]Sheet1!J118) ->  | K118: =IF([1]Sheet1!K118="","",[1]Sheet1!K118) ->  | L118: =IF([1]Sheet1!L118="","",[1]Sheet1!L118) -> 
A119: =IF([1]Sheet1!A119="","",[1]Sheet1!A119) ->  | B119: =IF([1]Sheet1!B119="","",[1]Sheet1!B119) ->  | C119: =IF([1]Sheet1!C119="","",[1]Sheet1!C119) ->  | D119: =IF([1]Sheet1!D119="","",[1]Sheet1!D119) ->  | E119: 0 | F119: 00 | G119: =IF([1]Sheet1!G119="","",[1]Sheet1!G119) ->  | H119: =IF([1]Sheet1!H119="","",[1]Sheet1!H119) ->  | I119: =IF([1]Sheet1!I119="","",[1]Sheet1!I119) ->  | J119: =IF([1]Sheet1!J119="","",[1]Sheet1!J119) ->  | K119: =IF([1]Sheet1!K119="","",[1]Sheet1!K119) ->  | L119: =IF([1]Sheet1!L119="","",[1]Sheet1!L119) -> 
A120: =IF([1]Sheet1!A120="","",[1]Sheet1!A120) ->  | B120: =IF([1]Sheet1!B120="","",[1]Sheet1!B120) ->  | C120: =IF([1]Sheet1!C120="","",[1]Sheet1!C120) ->  | D120: =IF([1]Sheet1!D120="","",[1]Sheet1!D120) ->  | E120: 0 | F120: 00 | G120: =IF([1]Sheet1!G120="","",[1]Sheet1!G120) ->  | H120: =IF([1]Sheet1!H120="","",[1]Sheet1!H120) ->  | I120: =IF([1]Sheet1!I120="","",[1]Sheet1!I120) ->  | J120: =IF([1]Sheet1!J120="","",[1]Sheet1!J120) ->  | K120: =IF([1]Sheet1!K120="","",[1]Sheet1!K120) ->  | L120: =IF([1]Sheet1!L120="","",[1]Sheet1!L120) -> 
A121: =IF([1]Sheet1!A121="","",[1]Sheet1!A121) ->  | B121: =IF([1]Sheet1!B121="","",[1]Sheet1!B121) ->  | C121: =IF([1]Sheet1!C121="","",[1]Sheet1!C121) ->  | D121: =IF([1]Sheet1!D121="","",[1]Sheet1!D121) ->  | E121: 0 | F121: 00 | G121: =IF([1]Sheet1!G121="","",[1]Sheet1!G121) ->  | H121: =IF([1]Sheet1!H121="","",[1]Sheet1!H121) ->  | I121: =IF([1]Sheet1!I121="","",[1]Sheet1!I121) ->  | J121: =IF([1]Sheet1!J121="","",[1]Sheet1!J121) ->  | K121: =IF([1]Sheet1!K121="","",[1]Sheet1!K121) ->  | L121: =IF([1]Sheet1!L121="","",[1]Sheet1!L121) -> 
A122: =IF([1]Sheet1!A122="","",[1]Sheet1!A122) ->  | B122: =IF([1]Sheet1!B122="","",[1]Sheet1!B122) ->  | C122: =IF([1]Sheet1!C122="","",[1]Sheet1!C122) ->  | D122: =IF([1]Sheet1!D122="","",[1]Sheet1!D122) ->  | E122: 0 | F122: 00 | G122: =IF([1]Sheet1!G122="","",[1]Sheet1!G122) ->  | H122: =IF([1]Sheet1!H122="","",[1]Sheet1!H122) ->  | I122: =IF([1]Sheet1!I122="","",[1]Sheet1!I122) ->  | J122: =IF([1]Sheet1!J122="","",[1]Sheet1!J122) ->  | K122: =IF([1]Sheet1!K122="","",[1]Sheet1!K122) ->  | L122: =IF([1]Sheet1!L122="","",[1]Sheet1!L122) -> 
A123: =IF([1]Sheet1!A123="","",[1]Sheet1!A123) ->  | B123: =IF([1]Sheet1!B123="","",[1]Sheet1!B123) ->  | C123: =IF([1]Sheet1!C123="","",[1]Sheet1!C123) ->  | D123: =IF([1]Sheet1!D123="","",[1]Sheet1!D123) ->  | E123: 0 | F123: 00 | G123: =IF([1]Sheet1!G123="","",[1]Sheet1!G123) ->  | H123: =IF([1]Sheet1!H123="","",[1]Sheet1!H123) ->  | I123: =IF([1]Sheet1!I123="","",[1]Sheet1!I123) ->  | J123: =IF([1]Sheet1!J123="","",[1]Sheet1!J123) ->  | K123: =IF([1]Sheet1!K123="","",[1]Sheet1!K123) ->  | L123: =IF([1]Sheet1!L123="","",[1]Sheet1!L123) -> 
A124: =IF([1]Sheet1!A124="","",[1]Sheet1!A124) ->  | B124: =IF([1]Sheet1!B124="","",[1]Sheet1!B124) ->  | C124: =IF([1]Sheet1!C124="","",[1]Sheet1!C124) ->  | D124: =IF([1]Sheet1!D124="","",[1]Sheet1!D124) ->  | E124: 0 | F124: 00 | G124: =IF([1]Sheet1!G124="","",[1]Sheet1!G124) ->  | H124: =IF([1]Sheet1!H124="","",[1]Sheet1!H124) ->  | I124: =IF([1]Sheet1!I124="","",[1]Sheet1!I124) ->  | J124: =IF([1]Sheet1!J124="","",[1]Sheet1!J124) ->  | K124: =IF([1]Sheet1!K124="","",[1]Sheet1!K124) ->  | L124: =IF([1]Sheet1!L124="","",[1]Sheet1!L124) -> 
A125: =IF([1]Sheet1!A125="","",[1]Sheet1!A125) ->  | B125: =IF([1]Sheet1!B125="","",[1]Sheet1!B125) ->  | C125: =IF([1]Sheet1!C125="","",[1]Sheet1!C125) ->  | D125: =IF([1]Sheet1!D125="","",[1]Sheet1!D125) ->  | E125: 0 | F125: 00 | G125: =IF([1]Sheet1!G125="","",[1]Sheet1!G125) ->  | H125: =IF([1]Sheet1!H125="","",[1]Sheet1!H125) ->  | I125: =IF([1]Sheet1!I125="","",[1]Sheet1!I125) ->  | J125: =IF([1]Sheet1!J125="","",[1]Sheet1!J125) ->  | K125: =IF([1]Sheet1!K125="","",[1]Sheet1!K125) ->  | L125: =IF([1]Sheet1!L125="","",[1]Sheet1!L125) -> 
A126: =IF([1]Sheet1!A126="","",[1]Sheet1!A126) ->  | B126: =IF([1]Sheet1!B126="","",[1]Sheet1!B126) ->  | C126: =IF([1]Sheet1!C126="","",[1]Sheet1!C126) ->  | D126: =IF([1]Sheet1!D126="","",[1]Sheet1!D126) ->  | E126: 0 | F126: 00 | G126: =IF([1]Sheet1!G126="","",[1]Sheet1!G126) ->  | H126: =IF([1]Sheet1!H126="","",[1]Sheet1!H126) ->  | I126: =IF([1]Sheet1!I126="","",[1]Sheet1!I126) ->  | J126: =IF([1]Sheet1!J126="","",[1]Sheet1!J126) ->  | K126: =IF([1]Sheet1!K126="","",[1]Sheet1!K126) ->  | L126: =IF([1]Sheet1!L126="","",[1]Sheet1!L126) -> 
A127: =IF([1]Sheet1!A127="","",[1]Sheet1!A127) ->  | B127: =IF([1]Sheet1!B127="","",[1]Sheet1!B127) ->  | C127: =IF([1]Sheet1!C127="","",[1]Sheet1!C127) ->  | D127: =IF([1]Sheet1!D127="","",[1]Sheet1!D127) ->  | E127: 0 | F127: 00 | G127: =IF([1]Sheet1!G127="","",[1]Sheet1!G127) ->  | H127: =IF([1]Sheet1!H127="","",[1]Sheet1!H127) ->  | I127: =IF([1]Sheet1!I127="","",[1]Sheet1!I127) ->  | J127: =IF([1]Sheet1!J127="","",[1]Sheet1!J127) ->  | K127: =IF([1]Sheet1!K127="","",[1]Sheet1!K127) ->  | L127: =IF([1]Sheet1!L127="","",[1]Sheet1!L127) -> 
A128: =IF([1]Sheet1!A128="","",[1]Sheet1!A128) ->  | B128: =IF([1]Sheet1!B128="","",[1]Sheet1!B128) ->  | C128: =IF([1]Sheet1!C128="","",[1]Sheet1!C128) ->  | D128: =IF([1]Sheet1!D128="","",[1]Sheet1!D128) ->  | E128: 0 | F128: 00 | G128: =IF([1]Sheet1!G128="","",[1]Sheet1!G128) ->  | H128: =IF([1]Sheet1!H128="","",[1]Sheet1!H128) ->  | I128: =IF([1]Sheet1!I128="","",[1]Sheet1!I128) ->  | J128: =IF([1]Sheet1!J128="","",[1]Sheet1!J128) ->  | K128: =IF([1]Sheet1!K128="","",[1]Sheet1!K128) ->  | L128: =IF([1]Sheet1!L128="","",[1]Sheet1!L128) -> 
A129: =IF([1]Sheet1!A129="","",[1]Sheet1!A129) ->  | B129: =IF([1]Sheet1!B129="","",[1]Sheet1!B129) ->  | C129: =IF([1]Sheet1!C129="","",[1]Sheet1!C129) ->  | D129: =IF([1]Sheet1!D129="","",[1]Sheet1!D129) ->  | E129: 0 | F129: 00 | G129: =IF([1]Sheet1!G129="","",[1]Sheet1!G129) ->  | H129: =IF([1]Sheet1!H129="","",[1]Sheet1!H129) ->  | I129: =IF([1]Sheet1!I129="","",[1]Sheet1!I129) ->  | J129: =IF([1]Sheet1!J129="","",[1]Sheet1!J129) ->  | K129: =IF([1]Sheet1!K129="","",[1]Sheet1!K129) ->  | L129: =IF([1]Sheet1!L129="","",[1]Sheet1!L129) -> 
A130: =IF([1]Sheet1!A130="","",[1]Sheet1!A130) ->  | B130: =IF([1]Sheet1!B130="","",[1]Sheet1!B130) ->  | C130: =IF([1]Sheet1!C130="","",[1]Sheet1!C130) ->  | D130: =IF([1]Sheet1!D130="","",[1]Sheet1!D130) ->  | E130: 0 | F130: 00 | G130: =IF([1]Sheet1!G130="","",[1]Sheet1!G130) ->  | H130: =IF([1]Sheet1!H130="","",[1]Sheet1!H130) ->  | I130: =IF([1]Sheet1!I130="","",[1]Sheet1!I130) ->  | J130: =IF([1]Sheet1!J130="","",[1]Sheet1!J130) ->  | K130: =IF([1]Sheet1!K130="","",[1]Sheet1!K130) ->  | L130: =IF([1]Sheet1!L130="","",[1]Sheet1!L130) -> 
A131: =IF([1]Sheet1!A131="","",[1]Sheet1!A131) ->  | B131: =IF([1]Sheet1!B131="","",[1]Sheet1!B131) ->  | C131: =IF([1]Sheet1!C131="","",[1]Sheet1!C131) ->  | D131: =IF([1]Sheet1!D131="","",[1]Sheet1!D131) ->  | E131: 0 | F131: 00 | G131: =IF([1]Sheet1!G131="","",[1]Sheet1!G131) ->  | H131: =IF([1]Sheet1!H131="","",[1]Sheet1!H131) ->  | I131: =IF([1]Sheet1!I131="","",[1]Sheet1!I131) ->  | J131: =IF([1]Sheet1!J131="","",[1]Sheet1!J131) ->  | K131: =IF([1]Sheet1!K131="","",[1]Sheet1!K131) ->  | L131: =IF([1]Sheet1!L131="","",[1]Sheet1!L131) -> 
A132: =IF([1]Sheet1!A132="","",[1]Sheet1!A132) ->  | B132: =IF([1]Sheet1!B132="","",[1]Sheet1!B132) ->  | C132: =IF([1]Sheet1!C132="","",[1]Sheet1!C132) ->  | D132: =IF([1]Sheet1!D132="","",[1]Sheet1!D132) ->  | E132: 0 | F132: 00 | G132: =IF([1]Sheet1!G132="","",[1]Sheet1!G132) ->  | H132: =IF([1]Sheet1!H132="","",[1]Sheet1!H132) ->  | I132: =IF([1]Sheet1!I132="","",[1]Sheet1!I132) ->  | J132: =IF([1]Sheet1!J132="","",[1]Sheet1!J132) ->  | K132: =IF([1]Sheet1!K132="","",[1]Sheet1!K132) ->  | L132: =IF([1]Sheet1!L132="","",[1]Sheet1!L132) -> 
A133: =IF([1]Sheet1!A133="","",[1]Sheet1!A133) ->  | B133: =IF([1]Sheet1!B133="","",[1]Sheet1!B133) ->  | C133: =IF([1]Sheet1!C133="","",[1]Sheet1!C133) ->  | D133: =IF([1]Sheet1!D133="","",[1]Sheet1!D133) ->  | E133: 0 | F133: 00 | G133: =IF([1]Sheet1!G133="","",[1]Sheet1!G133) ->  | H133: =IF([1]Sheet1!H133="","",[1]Sheet1!H133) ->  | I133: =IF([1]Sheet1!I133="","",[1]Sheet1!I133) ->  | J133: =IF([1]Sheet1!J133="","",[1]Sheet1!J133) ->  | K133: =IF([1]Sheet1!K133="","",[1]Sheet1!K133) ->  | L133: =IF([1]Sheet1!L133="","",[1]Sheet1!L133) -> 
A134: =IF([1]Sheet1!A134="","",[1]Sheet1!A134) ->  | B134: =IF([1]Sheet1!B134="","",[1]Sheet1!B134) ->  | C134: =IF([1]Sheet1!C134="","",[1]Sheet1!C134) ->  | D134: =IF([1]Sheet1!D134="","",[1]Sheet1!D134) ->  | E134: 0 | F134: 00 | G134: =IF([1]Sheet1!G134="","",[1]Sheet1!G134) ->  | H134: =IF([1]Sheet1!H134="","",[1]Sheet1!H134) ->  | I134: =IF([1]Sheet1!I134="","",[1]Sheet1!I134) ->  | J134: =IF([1]Sheet1!J134="","",[1]Sheet1!J134) ->  | K134: =IF([1]Sheet1!K134="","",[1]Sheet1!K134) ->  | L134: =IF([1]Sheet1!L134="","",[1]Sheet1!L134) -> 
A135: =IF([1]Sheet1!A135="","",[1]Sheet1!A135) ->  | B135: =IF([1]Sheet1!B135="","",[1]Sheet1!B135) ->  | C135: =IF([1]Sheet1!C135="","",[1]Sheet1!C135) ->  | D135: =IF([1]Sheet1!D135="","",[1]Sheet1!D135) ->  | E135: 0 | F135: 00 | G135: =IF([1]Sheet1!G135="","",[1]Sheet1!G135) ->  | H135: =IF([1]Sheet1!H135="","",[1]Sheet1!H135) ->  | I135: =IF([1]Sheet1!I135="","",[1]Sheet1!I135) ->  | J135: =IF([1]Sheet1!J135="","",[1]Sheet1!J135) ->  | K135: =IF([1]Sheet1!K135="","",[1]Sheet1!K135) ->  | L135: =IF([1]Sheet1!L135="","",[1]Sheet1!L135) -> 
A136: =IF([1]Sheet1!A136="","",[1]Sheet1!A136) ->  | B136: =IF([1]Sheet1!B136="","",[1]Sheet1!B136) ->  | C136: =IF([1]Sheet1!C136="","",[1]Sheet1!C136) ->  | D136: =IF([1]Sheet1!D136="","",[1]Sheet1!D136) ->  | E136: 0 | F136: 00 | G136: =IF([1]Sheet1!G136="","",[1]Sheet1!G136) ->  | H136: =IF([1]Sheet1!H136="","",[1]Sheet1!H136) ->  | I136: =IF([1]Sheet1!I136="","",[1]Sheet1!I136) ->  | J136: =IF([1]Sheet1!J136="","",[1]Sheet1!J136) ->  | K136: =IF([1]Sheet1!K136="","",[1]Sheet1!K136) ->  | L136: =IF([1]Sheet1!L136="","",[1]Sheet1!L136) -> 
A137: =IF([1]Sheet1!A137="","",[1]Sheet1!A137) ->  | B137: =IF([1]Sheet1!B137="","",[1]Sheet1!B137) ->  | C137: =IF([1]Sheet1!C137="","",[1]Sheet1!C137) ->  | D137: =IF([1]Sheet1!D137="","",[1]Sheet1!D137) ->  | E137: 0 | F137: 00 | G137: =IF([1]Sheet1!G137="","",[1]Sheet1!G137) ->  | H137: =IF([1]Sheet1!H137="","",[1]Sheet1!H137) ->  | I137: =IF([1]Sheet1!I137="","",[1]Sheet1!I137) ->  | J137: =IF([1]Sheet1!J137="","",[1]Sheet1!J137) ->  | K137: =IF([1]Sheet1!K137="","",[1]Sheet1!K137) ->  | L137: =IF([1]Sheet1!L137="","",[1]Sheet1!L137) -> 
A138: =IF([1]Sheet1!A138="","",[1]Sheet1!A138) ->  | B138: =IF([1]Sheet1!B138="","",[1]Sheet1!B138) ->  | C138: =IF([1]Sheet1!C138="","",[1]Sheet1!C138) ->  | D138: =IF([1]Sheet1!D138="","",[1]Sheet1!D138) ->  | E138: 0 | F138: 00 | G138: =IF([1]Sheet1!G138="","",[1]Sheet1!G138) ->  | H138: =IF([1]Sheet1!H138="","",[1]Sheet1!H138) ->  | I138: =IF([1]Sheet1!I138="","",[1]Sheet1!I138) ->  | J138: =IF([1]Sheet1!J138="","",[1]Sheet1!J138) ->  | K138: =IF([1]Sheet1!K138="","",[1]Sheet1!K138) ->  | L138: =IF([1]Sheet1!L138="","",[1]Sheet1!L138) -> 
A139: =IF([1]Sheet1!A139="","",[1]Sheet1!A139) ->  | B139: =IF([1]Sheet1!B139="","",[1]Sheet1!B139) ->  | C139: =IF([1]Sheet1!C139="","",[1]Sheet1!C139) ->  | D139: =IF([1]Sheet1!D139="","",[1]Sheet1!D139) ->  | E139: 0 | F139: 00 | G139: =IF([1]Sheet1!G139="","",[1]Sheet1!G139) ->  | H139: =IF([1]Sheet1!H139="","",[1]Sheet1!H139) ->  | I139: =IF([1]Sheet1!I139="","",[1]Sheet1!I139) ->  | J139: =IF([1]Sheet1!J139="","",[1]Sheet1!J139) ->  | K139: =IF([1]Sheet1!K139="","",[1]Sheet1!K139) ->  | L139: =IF([1]Sheet1!L139="","",[1]Sheet1!L139) -> 
A140: =IF([1]Sheet1!A140="","",[1]Sheet1!A140) ->  | B140: =IF([1]Sheet1!B140="","",[1]Sheet1!B140) ->  | C140: =IF([1]Sheet1!C140="","",[1]Sheet1!C140) ->  | D140: =IF([1]Sheet1!D140="","",[1]Sheet1!D140) ->  | E140: 0 | F140: 00 | G140: =IF([1]Sheet1!G140="","",[1]Sheet1!G140) ->  | H140: =IF([1]Sheet1!H140="","",[1]Sheet1!H140) ->  | I140: =IF([1]Sheet1!I140="","",[1]Sheet1!I140) ->  | J140: =IF([1]Sheet1!J140="","",[1]Sheet1!J140) ->  | K140: =IF([1]Sheet1!K140="","",[1]Sheet1!K140) ->  | L140: =IF([1]Sheet1!L140="","",[1]Sheet1!L140) -> 
A141: =IF([1]Sheet1!A141="","",[1]Sheet1!A141) ->  | B141: =IF([1]Sheet1!B141="","",[1]Sheet1!B141) ->  | C141: =IF([1]Sheet1!C141="","",[1]Sheet1!C141) ->  | D141: =IF([1]Sheet1!D141="","",[1]Sheet1!D141) ->  | E141: 0 | F141: 00 | G141: =IF([1]Sheet1!G141="","",[1]Sheet1!G141) ->  | H141: =IF([1]Sheet1!H141="","",[1]Sheet1!H141) ->  | I141: =IF([1]Sheet1!I141="","",[1]Sheet1!I141) ->  | J141: =IF([1]Sheet1!J141="","",[1]Sheet1!J141) ->  | K141: =IF([1]Sheet1!K141="","",[1]Sheet1!K141) ->  | L141: =IF([1]Sheet1!L141="","",[1]Sheet1!L141) -> 
A142: =IF([1]Sheet1!A142="","",[1]Sheet1!A142) ->  | B142: =IF([1]Sheet1!B142="","",[1]Sheet1!B142) ->  | C142: =IF([1]Sheet1!C142="","",[1]Sheet1!C142) ->  | D142: =IF([1]Sheet1!D142="","",[1]Sheet1!D142) ->  | E142: 0 | F142: 00 | G142: =IF([1]Sheet1!G142="","",[1]Sheet1!G142) ->  | H142: =IF([1]Sheet1!H142="","",[1]Sheet1!H142) ->  | I142: =IF([1]Sheet1!I142="","",[1]Sheet1!I142) ->  | J142: =IF([1]Sheet1!J142="","",[1]Sheet1!J142) ->  | K142: =IF([1]Sheet1!K142="","",[1]Sheet1!K142) ->  | L142: =IF([1]Sheet1!L142="","",[1]Sheet1!L142) -> 
A143: =IF([1]Sheet1!A143="","",[1]Sheet1!A143) ->  | B143: =IF([1]Sheet1!B143="","",[1]Sheet1!B143) ->  | C143: =IF([1]Sheet1!C143="","",[1]Sheet1!C143) ->  | D143: =IF([1]Sheet1!D143="","",[1]Sheet1!D143) ->  | E143: 0 | F143: 00 | G143: =IF([1]Sheet1!G143="","",[1]Sheet1!G143) ->  | H143: =IF([1]Sheet1!H143="","",[1]Sheet1!H143) ->  | I143: =IF([1]Sheet1!I143="","",[1]Sheet1!I143) ->  | J143: =IF([1]Sheet1!J143="","",[1]Sheet1!J143) ->  | K143: =IF([1]Sheet1!K143="","",[1]Sheet1!K143) ->  | L143: =IF([1]Sheet1!L143="","",[1]Sheet1!L143) -> 
A144: =IF([1]Sheet1!A144="","",[1]Sheet1!A144) ->  | B144: =IF([1]Sheet1!B144="","",[1]Sheet1!B144) ->  | C144: =IF([1]Sheet1!C144="","",[1]Sheet1!C144) ->  | D144: =IF([1]Sheet1!D144="","",[1]Sheet1!D144) ->  | E144: =IF([1]Sheet1!E144="","",[1]Sheet1!E144) ->  | F144: =IF([1]Sheet1!F144="","",[1]Sheet1!F144) ->  | G144: =IF([1]Sheet1!G144="","",[1]Sheet1!G144) ->  | H144: =IF([1]Sheet1!H144="","",[1]Sheet1!H144) ->  | I144: =IF([1]Sheet1!I144="","",[1]Sheet1!I144) ->  | J144: =IF([1]Sheet1!J144="","",[1]Sheet1!J144) ->  | K144: =IF([1]Sheet1!K144="","",[1]Sheet1!K144) ->  | L144: =IF([1]Sheet1!L144="","",[1]Sheet1!L144) -> 
A145: =IF([1]Sheet1!A145="","",[1]Sheet1!A145) ->  | B145: =IF([1]Sheet1!B145="","",[1]Sheet1!B145) ->  | C145: =IF([1]Sheet1!C145="","",[1]Sheet1!C145) ->  | D145: =IF([1]Sheet1!D145="","",[1]Sheet1!D145) ->  | E145: =IF([1]Sheet1!E145="","",[1]Sheet1!E145) ->  | F145: =IF([1]Sheet1!F145="","",[1]Sheet1!F145) ->  | G145: =IF([1]Sheet1!G145="","",[1]Sheet1!G145) ->  | H145: =IF([1]Sheet1!H145="","",[1]Sheet1!H145) ->  | I145: =IF([1]Sheet1!I145="","",[1]Sheet1!I145) ->  | J145: =IF([1]Sheet1!J145="","",[1]Sheet1!J145) ->  | K145: =IF([1]Sheet1!K145="","",[1]Sheet1!K145) ->  | L145: =IF([1]Sheet1!L145="","",[1]Sheet1!L145) -> 
A146: =IF([1]Sheet1!A146="","",[1]Sheet1!A146) ->  | B146: =IF([1]Sheet1!B146="","",[1]Sheet1!B146) ->  | C146: =IF([1]Sheet1!C146="","",[1]Sheet1!C146) ->  | D146: =IF([1]Sheet1!D146="","",[1]Sheet1!D146) ->  | E146: =IF([1]Sheet1!E146="","",[1]Sheet1!E146) ->  | F146: =IF([1]Sheet1!F146="","",[1]Sheet1!F146) ->  | G146: =IF([1]Sheet1!G146="","",[1]Sheet1!G146) ->  | H146: =IF([1]Sheet1!H146="","",[1]Sheet1!H146) ->  | I146: =IF([1]Sheet1!I146="","",[1]Sheet1!I146) ->  | J146: =IF([1]Sheet1!J146="","",[1]Sheet1!J146) ->  | K146: =IF([1]Sheet1!K146="","",[1]Sheet1!K146) ->  | L146: =IF([1]Sheet1!L146="","",[1]Sheet1!L146) -> 
A147: =IF([1]Sheet1!A147="","",[1]Sheet1!A147) ->  | B147: =IF([1]Sheet1!B147="","",[1]Sheet1!B147) ->  | C147: =IF([1]Sheet1!C147="","",[1]Sheet1!C147) ->  | D147: =IF([1]Sheet1!D147="","",[1]Sheet1!D147) ->  | E147: =IF([1]Sheet1!E147="","",[1]Sheet1!E147) ->  | F147: =IF([1]Sheet1!F147="","",[1]Sheet1!F147) ->  | G147: =IF([1]Sheet1!G147="","",[1]Sheet1!G147) ->  | H147: =IF([1]Sheet1!H147="","",[1]Sheet1!H147) ->  | I147: =IF([1]Sheet1!I147="","",[1]Sheet1!I147) ->  | J147: =IF([1]Sheet1!J147="","",[1]Sheet1!J147) ->  | K147: =IF([1]Sheet1!K147="","",[1]Sheet1!K147) ->  | L147: =IF([1]Sheet1!L147="","",[1]Sheet1!L147) -> 
A148: =IF([1]Sheet1!A148="","",[1]Sheet1!A148) ->  | B148: =IF([1]Sheet1!B148="","",[1]Sheet1!B148) ->  | C148: =IF([1]Sheet1!C148="","",[1]Sheet1!C148) ->  | D148: =IF([1]Sheet1!D148="","",[1]Sheet1!D148) ->  | E148: =IF([1]Sheet1!E148="","",[1]Sheet1!E148) ->  | F148: =IF([1]Sheet1!F148="","",[1]Sheet1!F148) ->  | G148: =IF([1]Sheet1!G148="","",[1]Sheet1!G148) ->  | H148: =IF([1]Sheet1!H148="","",[1]Sheet1!H148) ->  | I148: =IF([1]Sheet1!I148="","",[1]Sheet1!I148) ->  | J148: =IF([1]Sheet1!J148="","",[1]Sheet1!J148) ->  | K148: =IF([1]Sheet1!K148="","",[1]Sheet1!K148) ->  | L148: =IF([1]Sheet1!L148="","",[1]Sheet1!L148) -> 
A149: =IF([1]Sheet1!A149="","",[1]Sheet1!A149) ->  | B149: =IF([1]Sheet1!B149="","",[1]Sheet1!B149) ->  | C149: =IF([1]Sheet1!C149="","",[1]Sheet1!C149) ->  | D149: =IF([1]Sheet1!D149="","",[1]Sheet1!D149) ->  | E149: =IF([1]Sheet1!E149="","",[1]Sheet1!E149) ->  | F149: =IF([1]Sheet1!F149="","",[1]Sheet1!F149) ->  | G149: =IF([1]Sheet1!G149="","",[1]Sheet1!G149) ->  | H149: =IF([1]Sheet1!H149="","",[1]Sheet1!H149) ->  | I149: =IF([1]Sheet1!I149="","",[1]Sheet1!I149) ->  | J149: =IF([1]Sheet1!J149="","",[1]Sheet1!J149) ->  | K149: =IF([1]Sheet1!K149="","",[1]Sheet1!K149) ->  | L149: =IF([1]Sheet1!L149="","",[1]Sheet1!L149) -> 
A150: =IF([1]Sheet1!A150="","",[1]Sheet1!A150) ->  | B150: =IF([1]Sheet1!B150="","",[1]Sheet1!B150) ->  | C150: =IF([1]Sheet1!C150="","",[1]Sheet1!C150) ->  | D150: =IF([1]Sheet1!D150="","",[1]Sheet1!D150) ->  | E150: =IF([1]Sheet1!E150="","",[1]Sheet1!E150) ->  | F150: =IF([1]Sheet1!F150="","",[1]Sheet1!F150) ->  | G150: =IF([1]Sheet1!G150="","",[1]Sheet1!G150) ->  | H150: =IF([1]Sheet1!H150="","",[1]Sheet1!H150) ->  | I150: =IF([1]Sheet1!I150="","",[1]Sheet1!I150) ->  | J150: =IF([1]Sheet1!J150="","",[1]Sheet1!J150) ->  | K150: =IF([1]Sheet1!K150="","",[1]Sheet1!K150) ->  | L150: =IF([1]Sheet1!L150="","",[1]Sheet1!L150) -> 

Sheet Arkusz1
A1: DATA | B1: GODZINA | C1: 1 | D1: 2 | E1: 3 | F1: 4 | G1: 5 | H1: 6 | I1: PRACOWNIK
A2: ='import danych'!A7 -> 2012-09-20 | B2: ='import danych'!B7 -> 13:24 | C2: =IF('import danych'!$I7="LINDE 01",MAX(C$1:C1)+1,"") -> 2 | D2: =IF('import danych'!$I7="LINDE 02",MAX(D$1:D1)+1,"") ->  | E2: =IF('import danych'!$I7="LINDE 03",MAX(E$1:E1)+1,"") ->  | F2: =IF('import danych'!$I7="YALE 04",MAX(F$1:F1)+1,"") ->  | G2: =IF('import danych'!$I7="SUR",MAX(G$1:G1)+1,"") ->  | H2: =IF('import danych'!$I7="SMP",MAX(H$1:H1)+1,"") ->  | I2: TEST 1
A3: ='import danych'!A8 -> 2012-09-21 | B3: ='import danych'!B8 -> 13:04 | C3: =IF('import danych'!$I8="LINDE 01",MAX(C$1:C2)+1,"") ->  | D3: =IF('import danych'!$I8="LINDE 02",MAX(D$1:D2)+1,"") ->  | E3: =IF('import danych'!$I8="LINDE 03",MAX(E$1:E2)+1,"") -> 4 | F3: =IF('import danych'!$I8="YALE 04",MAX(F$1:F2)+1,"") ->  | G3: =IF('import danych'!$I8="SUR",MAX(G$1:G2)+1,"") ->  | H3: =IF('import danych'!$I8="SMP",MAX(H$1:H2)+1,"") ->  | I3: =IF('import danych'!E8="","",LOOKUP('import danych'!F8,#REF!,#REF!)) -> 
A4: ='import danych'!A9 -> 2012-09-21 | B4: ='import danych'!B9 -> 13:08 | C4: =IF('import danych'!$I9="LINDE 01",MAX(C$1:C3)+1,"") -> 3 | D4: =IF('import danych'!$I9="LINDE 02",MAX(D$1:D3)+1,"") ->  | E4: =IF('import danych'!$I9="LINDE 03",MAX(E$1:E3)+1,"") ->  | F4: =IF('import danych'!$I9="YALE 04",MAX(F$1:F3)+1,"") ->  | G4: =IF('import danych'!$I9="SUR",MAX(G$1:G3)+1,"") ->  | H4: =IF('import danych'!$I9="SMP",MAX(H$1:H3)+1,"") ->  | I4: =IF('import danych'!E9="","",LOOKUP('import danych'!F9,#REF!,#REF!)) -> 
A5: ='import danych'!A10 -> 2012-09-21 | B5: ='import danych'!B10 -> 13:13 | C5: =IF('import danych'!$I10="LINDE 01",MAX(C$1:C4)+1,"") ->  | D5: =IF('import danych'!$I10="LINDE 02",MAX(D$1:D4)+1,"") -> 3 | E5: =IF('import danych'!$I10="LINDE 03",MAX(E$1:E4)+1,"") ->  | F5: =IF('import danych'!$I10="YALE 04",MAX(F$1:F4)+1,"") ->  | G5: =IF('import danych'!$I10="SUR",MAX(G$1:G4)+1,"") ->  | H5: =IF('import danych'!$I10="SMP",MAX(H$1:H4)+1,"") ->  | I5: =IF('import danych'!E10="","",LOOKUP('import danych'!F10,#REF!,#REF!)) -> 
A6: ='import danych'!A11 -> 2012-09-22 | B6: ='import danych'!B11 -> 12:54 | C6: =IF('import danych'!$I11="LINDE 01",MAX(C$1:C5)+1,"") -> 4 | D6: =IF('import danych'!$I11="LINDE 02",MAX(D$1:D5)+1,"") ->  | E6: =IF('import danych'!$I11="LINDE 03",MAX(E$1:E5)+1,"") ->  | F6: =IF('import danych'!$I11="YALE 04",MAX(F$1:F5)+1,"") ->  | G6: =IF('import danych'!$I11="SUR",MAX(G$1:G5)+1,"") ->  | H6: =IF('import danych'!$I11="SMP",MAX(H$1:H5)+1,"") ->  | I6: =IF('import danych'!E11="","",LOOKUP('import danych'!F11,#REF!,#REF!)) -> 
A7: ='import danych'!A12 -> 2012-09-22 | B7: ='import danych'!B12 -> 12:57 | C7: =IF('import danych'!$I12="LINDE 01",MAX(C$1:C6)+1,"") ->  | D7: =IF('import danych'!$I12="LINDE 02",MAX(D$1:D6)+1,"") -> 4 | E7: =IF('import danych'!$I12="LINDE 03",MAX(E$1:E6)+1,"") ->  | F7: =IF('import danych'!$I12="YALE 04",MAX(F$1:F6)+1,"") ->  | G7: =IF('import danych'!$I12="SUR",MAX(G$1:G6)+1,"") ->  | H7: =IF('import danych'!$I12="SMP",MAX(H$1:H6)+1,"") ->  | I7: =IF('import danych'!E12="","",LOOKUP('import danych'!F12,#REF!,#REF!)) -> 
A8: ='import danych'!A13 -> 2012-09-22 | B8: ='import danych'!B13 -> 13:03 | C8: =IF('import danych'!$I13="LINDE 01",MAX(C$1:C7)+1,"") ->  | D8: =IF('import danych'!$I13="LINDE 02",MAX(D$1:D7)+1,"") ->  | E8: =IF('import danych'!$I13="LINDE 03",MAX(E$1:E7)+1,"") -> 5 | F8: =IF('import danych'!$I13="YALE 04",MAX(F$1:F7)+1,"") ->  | G8: =IF('import danych'!$I13="SUR",MAX(G$1:G7)+1,"") ->  | H8: =IF('import danych'!$I13="SMP",MAX(H$1:H7)+1,"") ->  | I8: =IF('import danych'!E13="","",LOOKUP('import danych'!F13,#REF!,#REF!)) -> 
A9: ='import danych'!A14 -> 2012-09-24 | B9: ='import danych'!B14 -> 12:31 | C9: =IF('import danych'!$I14="LINDE 01",MAX(C$1:C8)+1,"") ->  | D9: =IF('import danych'!$I14="LINDE 02",MAX(D$1:D8)+1,"") -> 5 | E9: =IF('import danych'!$I14="LINDE 03",MAX(E$1:E8)+1,"") ->  | F9: =IF('import danych'!$I14="YALE 04",MAX(F$1:F8)+1,"") ->  | G9: =IF('import danych'!$I14="SUR",MAX(G$1:G8)+1,"") ->  | H9: =IF('import danych'!$I14="SMP",MAX(H$1:H8)+1,"") ->  | I9: =IF('import danych'!E14="","",LOOKUP('import danych'!F14,#REF!,#REF!)) -> 
A10: ='import danych'!A15 -> 2012-09-24 | B10: ='import danych'!B15 -> 12:36 | C10: =IF('import danych'!$I15="LINDE 01",MAX(C$1:C9)+1,"") -> 5 | D10: =IF('import danych'!$I15="LINDE 02",MAX(D$1:D9)+1,"") ->  | E10: =IF('import danych'!$I15="LINDE 03",MAX(E$1:E9)+1,"") ->  | F10: =IF('import danych'!$I15="YALE 04",MAX(F$1:F9)+1,"") ->  | G10: =IF('import danych'!$I15="SUR",MAX(G$1:G9)+1,"") ->  | H10: =IF('import danych'!$I15="SMP",MAX(H$1:H9)+1,"") ->  | I10: =IF('import danych'!E15="","",LOOKUP('import danych'!F15,#REF!,#REF!)) -> 
A11: ='import danych'!A16 -> 2012-09-25 | B11: ='import danych'!B16 -> 08:53 | C11: =IF('import danych'!$I16="LINDE 01",MAX(C$1:C10)+1,"") -> 6 | D11: =IF('import danych'!$I16="LINDE 02",MAX(D$1:D10)+1,"") ->  | E11: =IF('import danych'!$I16="LINDE 03",MAX(E$1:E10)+1,"") ->  | F11: =IF('import danych'!$I16="YALE 04",MAX(F$1:F10)+1,"") ->  | G11: =IF('import danych'!$I16="SUR",MAX(G$1:G10)+1,"") ->  | H11: =IF('import danych'!$I16="SMP",MAX(H$1:H10)+1,"") ->  | I11: =IF('import danych'!E16="","",LOOKUP('import danych'!F16,#REF!,#REF!)) -> 
A12: ='import danych'!A17 -> 2012-09-25 | B12: ='import danych'!B17 -> 08:56 | C12: =IF('import danych'!$I17="LINDE 01",MAX(C$1:C11)+1,"") ->  | D12: =IF('import danych'!$I17="LINDE 02",MAX(D$1:D11)+1,"") -> 6 | E12: =IF('import danych'!$I17="LINDE 03",MAX(E$1:E11)+1,"") ->  | F12: =IF('import danych'!$I17="YALE 04",MAX(F$1:F11)+1,"") ->  | G12: =IF('import danych'!$I17="SUR",MAX(G$1:G11)+1,"") ->  | H12: =IF('import danych'!$I17="SMP",MAX(H$1:H11)+1,"") ->  | I12: =IF('import danych'!E17="","",LOOKUP('import danych'!F17,#REF!,#REF!)) -> 
A13: ='import danych'!A18 -> 2012-09-25 | B13: ='import danych'!B18 -> 10:25 | C13: =IF('import danych'!$I18="LINDE 01",MAX(C$1:C12)+1,"") ->  | D13: =IF('import danych'!$I18="LINDE 02",MAX(D$1:D12)+1,"") ->  | E13: =IF('import danych'!$I18="LINDE 03",MAX(E$1:E12)+1,"") -> 6 | F13: =IF('import danych'!$I18="YALE 04",MAX(F$1:F12)+1,"") ->  | G13: =IF('import danych'!$I18="SUR",MAX(G$1:G12)+1,"") ->  | H13: =IF('import danych'!$I18="SMP",MAX(H$1:H12)+1,"") ->  | I13: =IF('import danych'!E18="","",LOOKUP('import danych'!F18,#REF!,#REF!)) -> 
A14: ='import danych'!A19 -> 2012-09-26 | B14: ='import danych'!B19 -> 09:33 | C14: =IF('import danych'!$I19="LINDE 01",MAX(C$1:C13)+1,"") ->  | D14: =IF('import danych'!$I19="LINDE 02",MAX(D$1:D13)+1,"") -> 7 | E14: =IF('import danych'!$I19="LINDE 03",MAX(E$1:E13)+1,"") ->  | F14: =IF('import danych'!$I19="YALE 04",MAX(F$1:F13)+1,"") ->  | G14: =IF('import danych'!$I19="SUR",MAX(G$1:G13)+1,"") ->  | H14: =IF('import danych'!$I19="SMP",MAX(H$1:H13)+1,"") ->  | I14: =IF('import danych'!E19="","",LOOKUP('import danych'!F19,#REF!,#REF!)) -> 
A15: ='import danych'!A20 -> 2012-09-26 | B15: ='import danych'!B20 -> 09:36 | C15: =IF('import danych'!$I20="LINDE 01",MAX(C$1:C14)+1,"") -> 7 | D15: =IF('import danych'!$I20="LINDE 02",MAX(D$1:D14)+1,"") ->  | E15: =IF('import danych'!$I20="LINDE 03",MAX(E$1:E14)+1,"") ->  | F15: =IF('import danych'!$I20="YALE 04",MAX(F$1:F14)+1,"") ->  | G15: =IF('import danych'!$I20="SUR",MAX(G$1:G14)+1,"") ->  | H15: =IF('import danych'!$I20="SMP",MAX(H$1:H14)+1,"") ->  | I15: =IF('import danych'!E20="","",LOOKUP('import danych'!F20,#REF!,#REF!)) -> 
A16: ='import danych'!A21 -> 2012-09-27 | B16: ='import danych'!B21 -> 07:18 | C16: =IF('import danych'!$I21="LINDE 01",MAX(C$1:C15)+1,"") ->  | D16: =IF('import danych'!$I21="LINDE 02",MAX(D$1:D15)+1,"") -> 8 | E16: =IF('import danych'!$I21="LINDE 03",MAX(E$1:E15)+1,"") ->  | F16: =IF('import danych'!$I21="YALE 04",MAX(F$1:F15)+1,"") ->  | G16: =IF('import danych'!$I21="SUR",MAX(G$1:G15)+1,"") ->  | H16: =IF('import danych'!$I21="SMP",MAX(H$1:H15)+1,"") ->  | I16: =IF('import danych'!E21="","",LOOKUP('import danych'!F21,#REF!,#REF!)) -> 
A17: ='import danych'!A22 -> 2012-09-27 | B17: ='import danych'!B22 -> 11:32 | C17: =IF('import danych'!$I22="LINDE 01",MAX(C$1:C16)+1,"") -> 8 | D17: =IF('import danych'!$I22="LINDE 02",MAX(D$1:D16)+1,"") ->  | E17: =IF('import danych'!$I22="LINDE 03",MAX(E$1:E16)+1,"") ->  | F17: =IF('import danych'!$I22="YALE 04",MAX(F$1:F16)+1,"") ->  | G17: =IF('import danych'!$I22="SUR",MAX(G$1:G16)+1,"") ->  | H17: =IF('import danych'!$I22="SMP",MAX(H$1:H16)+1,"") ->  | I17: =IF('import danych'!E22="","",LOOKUP('import danych'!F22,#REF!,#REF!)) -> 
A18: ='import danych'!A23 -> 2012-09-27 | B18: ='import danych'!B23 -> 13:01 | C18: =IF('import danych'!$I23="LINDE 01",MAX(C$1:C17)+1,"") ->  | D18: =IF('import danych'!$I23="LINDE 02",MAX(D$1:D17)+1,"") ->  | E18: =IF('import danych'!$I23="LINDE 03",MAX(E$1:E17)+1,"") -> 7 | F18: =IF('import danych'!$I23="YALE 04",MAX(F$1:F17)+1,"") ->  | G18: =IF('import danych'!$I23="SUR",MAX(G$1:G17)+1,"") ->  | H18: =IF('import danych'!$I23="SMP",MAX(H$1:H17)+1,"") ->  | I18: =IF('import danych'!E23="","",LOOKUP('import danych'!F23,#REF!,#REF!)) -> 
A19: ='import danych'!A24 -> 2012-09-28 | B19: ='import danych'!B24 -> 10:11 | C19: =IF('import danych'!$I24="LINDE 01",MAX(C$1:C18)+1,"") -> 9 | D19: =IF('import danych'!$I24="LINDE 02",MAX(D$1:D18)+1,"") ->  | E19: =IF('import danych'!$I24="LINDE 03",MAX(E$1:E18)+1,"") ->  | F19: =IF('import danych'!$I24="YALE 04",MAX(F$1:F18)+1,"") ->  | G19: =IF('import danych'!$I24="SUR",MAX(G$1:G18)+1,"") ->  | H19: =IF('import danych'!$I24="SMP",MAX(H$1:H18)+1,"") ->  | I19: =IF('import danych'!E24="","",LOOKUP('import danych'!F24,#REF!,#REF!)) -> 
A20: ='import danych'!A25 -> 2012-09-28 | B20: ='import danych'!B25 -> 11:10 | C20: =IF('import danych'!$I25="LINDE 01",MAX(C$1:C19)+1,"") ->  | D20: =IF('import danych'!$I25="LINDE 02",MAX(D$1:D19)+1,"") -> 9 | E20: =IF('import danych'!$I25="LINDE 03",MAX(E$1:E19)+1,"") ->  | F20: =IF('import danych'!$I25="YALE 04",MAX(F$1:F19)+1,"") ->  | G20: =IF('import danych'!$I25="SUR",MAX(G$1:G19)+1,"") ->  | H20: =IF('import danych'!$I25="SMP",MAX(H$1:H19)+1,"") ->  | I20: =IF('import danych'!E25="","",LOOKUP('import danych'!F25,#REF!,#REF!)) -> 
A21: ='import danych'!A26 -> 2012-09-30 | B21: ='import danych'!B26 -> 07:30 | C21: =IF('import danych'!$I26="LINDE 01",MAX(C$1:C20)+1,"") ->  | D21: =IF('import danych'!$I26="LINDE 02",MAX(D$1:D20)+1,"") ->  | E21: =IF('import danych'!$I26="LINDE 03",MAX(E$1:E20)+1,"") -> 8 | F21: =IF('import danych'!$I26="YALE 04",MAX(F$1:F20)+1,"") ->  | G21: =IF('import danych'!$I26="SUR",MAX(G$1:G20)+1,"") ->  | H21: =IF('import danych'!$I26="SMP",MAX(H$1:H20)+1,"") ->  | I21: =IF('import danych'!E26="","",LOOKUP('import danych'!F26,#REF!,#REF!)) -> 
A22: ='import danych'!A27 -> 2012-09-30 | B22: ='import danych'!B27 -> 08:45 | C22: =IF('import danych'!$I27="LINDE 01",MAX(C$1:C21)+1,"") -> 10 | D22: =IF('import danych'!$I27="LINDE 02",MAX(D$1:D21)+1,"") ->  | E22: =IF('import danych'!$I27="LINDE 03",MAX(E$1:E21)+1,"") ->  | F22: =IF('import danych'!$I27="YALE 04",MAX(F$1:F21)+1,"") ->  | G22: =IF('import danych'!$I27="SUR",MAX(G$1:G21)+1,"") ->  | H22: =IF('import danych'!$I27="SMP",MAX(H$1:H21)+1,"") ->  | I22: =IF('import danych'!E27="","",LOOKUP('import danych'!F27,#REF!,#REF!)) -> 
A23: ='import danych'!A28 -> 2012-09-30 | B23: ='import danych'!B28 -> 10:21 | C23: =IF('import danych'!$I28="LINDE 01",MAX(C$1:C22)+1,"") ->  | D23: =IF('import danych'!$I28="LINDE 02",MAX(D$1:D22)+1,"") -> 10 | E23: =IF('import danych'!$I28="LINDE 03",MAX(E$1:E22)+1,"") ->  | F23: =IF('import danych'!$I28="YALE 04",MAX(F$1:F22)+1,"") ->  | G23: =IF('import danych'!$I28="SUR",MAX(G$1:G22)+1,"") ->  | H23: =IF('import danych'!$I28="SMP",MAX(H$1:H22)+1,"") ->  | I23: =IF('import danych'!E28="","",LOOKUP('import danych'!F28,#REF!,#REF!)) -> 
A24: ='import danych'!A29 -> 2012-10-01 | B24: ='import danych'!B29 -> 18:54 | C24: =IF('import danych'!$I29="LINDE 01",MAX(C$1:C23)+1,"") ->  | D24: =IF('import danych'!$I29="LINDE 02",MAX(D$1:D23)+1,"") -> 11 | E24: =IF('import danych'!$I29="LINDE 03",MAX(E$1:E23)+1,"") ->  | F24: =IF('import danych'!$I29="YALE 04",MAX(F$1:F23)+1,"") ->  | G24: =IF('import danych'!$I29="SUR",MAX(G$1:G23)+1,"") ->  | H24: =IF('import danych'!$I29="SMP",MAX(H$1:H23)+1,"") ->  | I24: =IF('import danych'!E29="","",LOOKUP('import danych'!F29,#REF!,#REF!)) -> 
A25: ='import danych'!A30 -> 2012-10-01 | B25: ='import danych'!B30 -> 18:56 | C25: =IF('import danych'!$I30="LINDE 01",MAX(C$1:C24)+1,"") -> 11 | D25: =IF('import danych'!$I30="LINDE 02",MAX(D$1:D24)+1,"") ->  | E25: =IF('import danych'!$I30="LINDE 03",MAX(E$1:E24)+1,"") ->  | F25: =IF('import danych'!$I30="YALE 04",MAX(F$1:F24)+1,"") ->  | G25: =IF('import danych'!$I30="SUR",MAX(G$1:G24)+1,"") ->  | H25: =IF('import danych'!$I30="SMP",MAX(H$1:H24)+1,"") ->  | I25: =IF('import danych'!E30="","",LOOKUP('import danych'!F30,#REF!,#REF!)) -> 
A26: ='import danych'!A31 -> 2012-10-02 | B26: ='import danych'!B31 -> 11:05 | C26: =IF('import danych'!$I31="LINDE 01",MAX(C$1:C25)+1,"") ->  | D26: =IF('import danych'!$I31="LINDE 02",MAX(D$1:D25)+1,"") ->  | E26: =IF('import danych'!$I31="LINDE 03",MAX(E$1:E25)+1,"") -> 9 | F26: =IF('import danych'!$I31="YALE 04",MAX(F$1:F25)+1,"") ->  | G26: =IF('import danych'!$I31="SUR",MAX(G$1:G25)+1,"") ->  | H26: =IF('import danych'!$I31="SMP",MAX(H$1:H25)+1,"") ->  | I26: =IF('import danych'!E31="","",LOOKUP('import danych'!F31,#REF!,#REF!)) -> 
A27: ='import danych'!A32 -> 2012-10-02 | B27: ='import danych'!B32 -> 12:59 | C27: =IF('import danych'!$I32="LINDE 01",MAX(C$1:C26)+1,"") ->  | D27: =IF('import danych'!$I32="LINDE 02",MAX(D$1:D26)+1,"") -> 12 | E27: =IF('import danych'!$I32="LINDE 03",MAX(E$1:E26)+1,"") ->  | F27: =IF('import danych'!$I32="YALE 04",MAX(F$1:F26)+1,"") ->  | G27: =IF('import danych'!$I32="SUR",MAX(G$1:G26)+1,"") ->  | H27: =IF('import danych'!$I32="SMP",MAX(H$1:H26)+1,"") ->  | I27: =IF('import danych'!E32="","",LOOKUP('import danych'!F32,#REF!,#REF!)) -> 
A28: ='import danych'!A33 -> 2012-10-02 | B28: ='import danych'!B33 -> 13:02 | C28: =IF('import danych'!$I33="LINDE 01",MAX(C$1:C27)+1,"") -> 12 | D28: =IF('import danych'!$I33="LINDE 02",MAX(D$1:D27)+1,"") ->  | E28: =IF('import danych'!$I33="LINDE 03",MAX(E$1:E27)+1,"") ->  | F28: =IF('import danych'!$I33="YALE 04",MAX(F$1:F27)+1,"") ->  | G28: =IF('import danych'!$I33="SUR",MAX(G$1:G27)+1,"") ->  | H28: =IF('import danych'!$I33="SMP",MAX(H$1:H27)+1,"") ->  | I28: =IF('import danych'!E33="","",LOOKUP('import danych'!F33,#REF!,#REF!)) -> 
A29: ='import danych'!A34 -> 2012-10-03 | B29: ='import danych'!B34 -> 13:08 | C29: =IF('import danych'!$I34="LINDE 01",MAX(C$1:C28)+1,"") ->  | D29: =IF('import danych'!$I34="LINDE 02",MAX(D$1:D28)+1,"") -> 13 | E29: =IF('import danych'!$I34="LINDE 03",MAX(E$1:E28)+1,"") ->  | F29: =IF('import danych'!$I34="YALE 04",MAX(F$1:F28)+1,"") ->  | G29: =IF('import danych'!$I34="SUR",MAX(G$1:G28)+1,"") ->  | H29: =IF('import danych'!$I34="SMP",MAX(H$1:H28)+1,"") ->  | I29: =IF('import danych'!E34="","",LOOKUP('import danych'!F34,#REF!,#REF!)) -> 
A30: ='import danych'!A35 -> 2012-10-03 | B30: ='import danych'!B35 -> 13:15 | C30: =IF('import danych'!$I35="LINDE 01",MAX(C$1:C29)+1,"") -> 13 | D30: =IF('import danych'!$I35="LINDE 02",MAX(D$1:D29)+1,"") ->  | E30: =IF('import danych'!$I35="LINDE 03",MAX(E$1:E29)+1,"") ->  | F30: =IF('import danych'!$I35="YALE 04",MAX(F$1:F29)+1,"") ->  | G30: =IF('import danych'!$I35="SUR",MAX(G$1:G29)+1,"") ->  | H30: =IF('import danych'!$I35="SMP",MAX(H$1:H29)+1,"") ->  | I30: =IF('import danych'!E35="","",LOOKUP('import danych'!F35,#REF!,#REF!)) -> 
A31: ='import danych'!A36 -> 2012-10-04 | B31: ='import danych'!B36 -> 00:46 | C31: =IF('import danych'!$I36="LINDE 01",MAX(C$1:C30)+1,"") ->  | D31: =IF('import danych'!$I36="LINDE 02",MAX(D$1:D30)+1,"") ->  | E31: =IF('import danych'!$I36="LINDE 03",MAX(E$1:E30)+1,"") -> 10 | F31: =IF('import danych'!$I36="YALE 04",MAX(F$1:F30)+1,"") ->  | G31: =IF('import danych'!$I36="SUR",MAX(G$1:G30)+1,"") ->  | H31: =IF('import danych'!$I36="SMP",MAX(H$1:H30)+1,"") ->  | I31: =IF('import danych'!E36="","",LOOKUP('import danych'!F36,#REF!,#REF!)) -> 
A32: ='import danych'!A37 -> 2012-10-04 | B32: ='import danych'!B37 -> 13:06 | C32: =IF('import danych'!$I37="LINDE 01",MAX(C$1:C31)+1,"") ->  | D32: =IF('import danych'!$I37="LINDE 02",MAX(D$1:D31)+1,"") -> 14 | E32: =IF('import danych'!$I37="LINDE 03",MAX(E$1:E31)+1,"") ->  | F32: =IF('import danych'!$I37="YALE 04",MAX(F$1:F31)+1,"") ->  | G32: =IF('import danych'!$I37="SUR",MAX(G$1:G31)+1,"") ->  | H32: =IF('import danych'!$I37="SMP",MAX(H$1:H31)+1,"") ->  | I32: =IF('import danych'!E37="","",LOOKUP('import danych'!F37,#REF!,#REF!)) -> 
A33: ='import danych'!A38 -> 2012-10-04 | B33: ='import danych'!B38 -> 13:21 | C33: =IF('import danych'!$I38="LINDE 01",MAX(C$1:C32)+1,"") -> 14 | D33: =IF('import danych'!$I38="LINDE 02",MAX(D$1:D32)+1,"") ->  | E33: =IF('import danych'!$I38="LINDE 03",MAX(E$1:E32)+1,"") ->  | F33: =IF('import danych'!$I38="YALE 04",MAX(F$1:F32)+1,"") ->  | G33: =IF('import danych'!$I38="SUR",MAX(G$1:G32)+1,"") ->  | H33: =IF('import danych'!$I38="SMP",MAX(H$1:H32)+1,"") ->  | I33: =IF('import danych'!E38="","",LOOKUP('import danych'!F38,#REF!,#REF!)) -> 
A34: ='import danych'!A39 -> 2012-10-05 | B34: ='import danych'!B39 -> 11:03 | C34: =IF('import danych'!$I39="LINDE 01",MAX(C$1:C33)+1,"") ->  | D34: =IF('import danych'!$I39="LINDE 02",MAX(D$1:D33)+1,"") ->  | E34: =IF('import danych'!$I39="LINDE 03",MAX(E$1:E33)+1,"") ->  | F34: =IF('import danych'!$I39="YALE 04",MAX(F$1:F33)+1,"") ->  | G34: =IF('import danych'!$I39="SUR",MAX(G$1:G33)+1,"") ->  | H34: =IF('import danych'!$I39="SMP",MAX(H$1:H33)+1,"") -> 7 | I34: =IF('import danych'!E39="","",LOOKUP('import danych'!F39,#REF!,#REF!)) -> 
A35: ='import danych'!A40 -> 2012-10-05 | B35: ='import danych'!B40 -> 11:09 | C35: =IF('import danych'!$I40="LINDE 01",MAX(C$1:C34)+1,"") ->  | D35: =IF('import danych'!$I40="LINDE 02",MAX(D$1:D34)+1,"") ->  | E35: =IF('import danych'!$I40="LINDE 03",MAX(E$1:E34)+1,"") -> 11 | F35: =IF('import danych'!$I40="YALE 04",MAX(F$1:F34)+1,"") ->  | G35: =IF('import danych'!$I40="SUR",MAX(G$1:G34)+1,"") ->  | H35: =IF('import danych'!$I40="SMP",MAX(H$1:H34)+1,"") ->  | I35: =IF('import danych'!E40="","",LOOKUP('import danych'!F40,#REF!,#REF!)) -> 
A36: ='import danych'!A41 -> 2012-10-05 | B36: ='import danych'!B41 -> 13:04 | C36: =IF('import danych'!$I41="LINDE 01",MAX(C$1:C35)+1,"") ->  | D36: =IF('import danych'!$I41="LINDE 02",MAX(D$1:D35)+1,"") -> 15 | E36: =IF('import danych'!$I41="LINDE 03",MAX(E$1:E35)+1,"") ->  | F36: =IF('import danych'!$I41="YALE 04",MAX(F$1:F35)+1,"") ->  | G36: =IF('import danych'!$I41="SUR",MAX(G$1:G35)+1,"") ->  | H36: =IF('import danych'!$I41="SMP",MAX(H$1:H35)+1,"") ->  | I36: =IF('import danych'!E41="","",LOOKUP('import danych'!F41,#REF!,#REF!)) -> 
A37: ='import danych'!A42 -> 2012-10-05 | B37: ='import danych'!B42 -> 13:07 | C37: =IF('import danych'!$I42="LINDE 01",MAX(C$1:C36)+1,"") -> 15 | D37: =IF('import danych'!$I42="LINDE 02",MAX(D$1:D36)+1,"") ->  | E37: =IF('import danych'!$I42="LINDE 03",MAX(E$1:E36)+1,"") ->  | F37: =IF('import danych'!$I42="YALE 04",MAX(F$1:F36)+1,"") ->  | G37: =IF('import danych'!$I42="SUR",MAX(G$1:G36)+1,"") ->  | H37: =IF('import danych'!$I42="SMP",MAX(H$1:H36)+1,"") ->  | I37: =IF('import danych'!E42="","",LOOKUP('import danych'!F42,#REF!,#REF!)) -> 
A38: ='import danych'!A43 -> 2012-10-06 | B38: ='import danych'!B43 -> 12:42 | C38: =IF('import danych'!$I43="LINDE 01",MAX(C$1:C37)+1,"") ->  | D38: =IF('import danych'!$I43="LINDE 02",MAX(D$1:D37)+1,"") -> 16 | E38: =IF('import danych'!$I43="LINDE 03",MAX(E$1:E37)+1,"") ->  | F38: =IF('import danych'!$I43="YALE 04",MAX(F$1:F37)+1,"") ->  | G38: =IF('import danych'!$I43="SUR",MAX(G$1:G37)+1,"") ->  | H38: =IF('import danych'!$I43="SMP",MAX(H$1:H37)+1,"") ->  | I38: =IF('import danych'!E43="","",LOOKUP('import danych'!F43,#REF!,#REF!)) -> 
A39: ='import danych'!A44 -> 2012-10-06 | B39: ='import danych'!B44 -> 12:58 | C39: =IF('import danych'!$I44="LINDE 01",MAX(C$1:C38)+1,"") -> 16 | D39: =IF('import danych'!$I44="LINDE 02",MAX(D$1:D38)+1,"") ->  | E39: =IF('import danych'!$I44="LINDE 03",MAX(E$1:E38)+1,"") ->  | F39: =IF('import danych'!$I44="YALE 04",MAX(F$1:F38)+1,"") ->  | G39: =IF('import danych'!$I44="SUR",MAX(G$1:G38)+1,"") ->  | H39: =IF('import danych'!$I44="SMP",MAX(H$1:H38)+1,"") ->  | I39: =IF('import danych'!E44="","",LOOKUP('import danych'!F44,#REF!,#REF!)) -> 
A40: ='import danych'!A45 -> 2012-10-07 | B40: ='import danych'!B45 -> 12:36 | C40: =IF('import danych'!$I45="LINDE 01",MAX(C$1:C39)+1,"") ->  | D40: =IF('import danych'!$I45="LINDE 02",MAX(D$1:D39)+1,"") ->  | E40: =IF('import danych'!$I45="LINDE 03",MAX(E$1:E39)+1,"") -> 12 | F40: =IF('import danych'!$I45="YALE 04",MAX(F$1:F39)+1,"") ->  | G40: =IF('import danych'!$I45="SUR",MAX(G$1:G39)+1,"") ->  | H40: =IF('import danych'!$I45="SMP",MAX(H$1:H39)+1,"") ->  | I40: =IF('import danych'!E45="","",LOOKUP('import danych'!F45,#REF!,#REF!)) -> 
A41: ='import danych'!A46 -> 2012-10-08 | B41: ='import danych'!B46 -> 13:17 | C41: =IF('import danych'!$I46="LINDE 01",MAX(C$1:C40)+1,"") ->  | D41: =IF('import danych'!$I46="LINDE 02",MAX(D$1:D40)+1,"") -> 17 | E41: =IF('import danych'!$I46="LINDE 03",MAX(E$1:E40)+1,"") ->  | F41: =IF('import danych'!$I46="YALE 04",MAX(F$1:F40)+1,"") ->  | G41: =IF('import danych'!$I46="SUR",MAX(G$1:G40)+1,"") ->  | H41: =IF('import danych'!$I46="SMP",MAX(H$1:H40)+1,"") ->  | I41: =IF('import danych'!E46="","",LOOKUP('import danych'!F46,#REF!,#REF!)) -> 
A42: ='import danych'!A47 -> 2012-10-08 | B42: ='import danych'!B47 -> 13:19 | C42: =IF('import danych'!$I47="LINDE 01",MAX(C$1:C41)+1,"") -> 17 | D42: =IF('import danych'!$I47="LINDE 02",MAX(D$1:D41)+1,"") ->  | E42: =IF('import danych'!$I47="LINDE 03",MAX(E$1:E41)+1,"") ->  | F42: =IF('import danych'!$I47="YALE 04",MAX(F$1:F41)+1,"") ->  | G42: =IF('import danych'!$I47="SUR",MAX(G$1:G41)+1,"") ->  | H42: =IF('import danych'!$I47="SMP",MAX(H$1:H41)+1,"") ->  | I42: =IF('import danych'!E47="","",LOOKUP('import danych'!F47,#REF!,#REF!)) -> 
A43: ='import danych'!A48 -> 2012-10-09 | B43: ='import danych'!B48 -> 11:30 | C43: =IF('import danych'!$I48="LINDE 01",MAX(C$1:C42)+1,"") ->  | D43: =IF('import danych'!$I48="LINDE 02",MAX(D$1:D42)+1,"") -> 18 | E43: =IF('import danych'!$I48="LINDE 03",MAX(E$1:E42)+1,"") ->  | F43: =IF('import danych'!$I48="YALE 04",MAX(F$1:F42)+1,"") ->  | G43: =IF('import danych'!$I48="SUR",MAX(G$1:G42)+1,"") ->  | H43: =IF('import danych'!$I48="SMP",MAX(H$1:H42)+1,"") ->  | I43: =IF('import danych'!E48="","",LOOKUP('import danych'!F48,#REF!,#REF!)) -> 
A44: ='import danych'!A49 -> 2012-10-09 | B44: ='import danych'!B49 -> 11:33 | C44: =IF('import danych'!$I49="LINDE 01",MAX(C$1:C43)+1,"") -> 18 | D44: =IF('import danych'!$I49="LINDE 02",MAX(D$1:D43)+1,"") ->  | E44: =IF('import danych'!$I49="LINDE 03",MAX(E$1:E43)+1,"") ->  | F44: =IF('import danych'!$I49="YALE 04",MAX(F$1:F43)+1,"") ->  | G44: =IF('import danych'!$I49="SUR",MAX(G$1:G43)+1,"") ->  | H44: =IF('import danych'!$I49="SMP",MAX(H$1:H43)+1,"") ->  | I44: =IF('import danych'!E49="","",LOOKUP('import danych'!F49,#REF!,#REF!)) -> 
A45: ='import danych'!A50 -> 2012-10-09 | B45: ='import danych'!B50 -> 22:19 | C45: =IF('import danych'!$I50="LINDE 01",MAX(C$1:C44)+1,"") ->  | D45: =IF('import danych'!$I50="LINDE 02",MAX(D$1:D44)+1,"") ->  | E45: =IF('import danych'!$I50="LINDE 03",MAX(E$1:E44)+1,"") -> 13 | F45: =IF('import danych'!$I50="YALE 04",MAX(F$1:F44)+1,"") ->  | G45: =IF('import danych'!$I50="SUR",MAX(G$1:G44)+1,"") ->  | H45: =IF('import danych'!$I50="SMP",MAX(H$1:H44)+1,"") ->  | I45: =IF('import danych'!E50="","",LOOKUP('import danych'!F50,#REF!,#REF!)) -> 
A46: ='import danych'!A51 -> 2012-10-10 | B46: ='import danych'!B51 -> 07:30 | C46: =IF('import danych'!$I51="LINDE 01",MAX(C$1:C45)+1,"") ->  | D46: =IF('import danych'!$I51="LINDE 02",MAX(D$1:D45)+1,"") ->  | E46: =IF('import danych'!$I51="LINDE 03",MAX(E$1:E45)+1,"") ->  | F46: =IF('import danych'!$I51="YALE 04",MAX(F$1:F45)+1,"") ->  | G46: =IF('import danych'!$I51="SUR",MAX(G$1:G45)+1,"") ->  | H46: =IF('import danych'!$I51="SMP",MAX(H$1:H45)+1,"") -> 8 | I46: =IF('import danych'!E51="","",LOOKUP('import danych'!F51,#REF!,#REF!)) -> 
A47: ='import danych'!A52 -> 2012-10-10 | B47: ='import danych'!B52 -> 08:45 | C47: =IF('import danych'!$I52="LINDE 01",MAX(C$1:C46)+1,"") -> 19 | D47: =IF('import danych'!$I52="LINDE 02",MAX(D$1:D46)+1,"") ->  | E47: =IF('import danych'!$I52="LINDE 03",MAX(E$1:E46)+1,"") ->  | F47: =IF('import danych'!$I52="YALE 04",MAX(F$1:F46)+1,"") ->  | G47: =IF('import danych'!$I52="SUR",MAX(G$1:G46)+1,"") ->  | H47: =IF('import danych'!$I52="SMP",MAX(H$1:H46)+1,"") ->  | I47: =IF('import danych'!E52="","",LOOKUP('import danych'!F52,#REF!,#REF!)) -> 
A48: ='import danych'!A53 -> 2012-10-10 | B48: ='import danych'!B53 -> 08:48 | C48: =IF('import danych'!$I53="LINDE 01",MAX(C$1:C47)+1,"") ->  | D48: =IF('import danych'!$I53="LINDE 02",MAX(D$1:D47)+1,"") -> 19 | E48: =IF('import danych'!$I53="LINDE 03",MAX(E$1:E47)+1,"") ->  | F48: =IF('import danych'!$I53="YALE 04",MAX(F$1:F47)+1,"") ->  | G48: =IF('import danych'!$I53="SUR",MAX(G$1:G47)+1,"") ->  | H48: =IF('import danych'!$I53="SMP",MAX(H$1:H47)+1,"") ->  | I48: =IF('import danych'!E53="","",LOOKUP('import danych'!F53,#REF!,#REF!)) -> 
A49: ='import danych'!A54 -> 2012-10-11 | B49: ='import danych'!B54 -> 10:23 | C49: =IF('import danych'!$I54="LINDE 01",MAX(C$1:C48)+1,"") -> 20 | D49: =IF('import danych'!$I54="LINDE 02",MAX(D$1:D48)+1,"") ->  | E49: =IF('import danych'!$I54="LINDE 03",MAX(E$1:E48)+1,"") ->  | F49: =IF('import danych'!$I54="YALE 04",MAX(F$1:F48)+1,"") ->  | G49: =IF('import danych'!$I54="SUR",MAX(G$1:G48)+1,"") ->  | H49: =IF('import danych'!$I54="SMP",MAX(H$1:H48)+1,"") ->  | I49: =IF('import danych'!E54="","",LOOKUP('import danych'!F54,#REF!,#REF!)) -> 
A50: ='import danych'!A55 -> 2012-10-11 | B50: ='import danych'!B55 -> 10:26 | C50: =IF('import danych'!$I55="LINDE 01",MAX(C$1:C49)+1,"") ->  | D50: =IF('import danych'!$I55="LINDE 02",MAX(D$1:D49)+1,"") -> 20 | E50: =IF('import danych'!$I55="LINDE 03",MAX(E$1:E49)+1,"") ->  | F50: =IF('import danych'!$I55="YALE 04",MAX(F$1:F49)+1,"") ->  | G50: =IF('import danych'!$I55="SUR",MAX(G$1:G49)+1,"") ->  | H50: =IF('import danych'!$I55="SMP",MAX(H$1:H49)+1,"") ->  | I50: =IF('import danych'!E55="","",LOOKUP('import danych'!F55,#REF!,#REF!)) -> 
A51: ='import danych'!A56 -> 2012-10-11 | B51: ='import danych'!B56 -> 17:07 | C51: =IF('import danych'!$I56="LINDE 01",MAX(C$1:C50)+1,"") ->  | D51: =IF('import danych'!$I56="LINDE 02",MAX(D$1:D50)+1,"") ->  | E51: =IF('import danych'!$I56="LINDE 03",MAX(E$1:E50)+1,"") -> 14 | F51: =IF('import danych'!$I56="YALE 04",MAX(F$1:F50)+1,"") ->  | G51: =IF('import danych'!$I56="SUR",MAX(G$1:G50)+1,"") ->  | H51: =IF('import danych'!$I56="SMP",MAX(H$1:H50)+1,"") ->  | I51: =IF('import danych'!E56="","",LOOKUP('import danych'!F56,#REF!,#REF!)) -> 
A52: ='import danych'!A57 -> 2012-10-12 | B52: ='import danych'!B57 -> 05:18 | C52: =IF('import danych'!$I57="LINDE 01",MAX(C$1:C51)+1,"") ->  | D52: =IF('import danych'!$I57="LINDE 02",MAX(D$1:D51)+1,"") -> 21 | E52: =IF('import danych'!$I57="LINDE 03",MAX(E$1:E51)+1,"") ->  | F52: =IF('import danych'!$I57="YALE 04",MAX(F$1:F51)+1,"") ->  | G52: =IF('import danych'!$I57="SUR",MAX(G$1:G51)+1,"") ->  | H52: =IF('import danych'!$I57="SMP",MAX(H$1:H51)+1,"") ->  | I52: =IF('import danych'!E57="","",LOOKUP('import danych'!F57,#REF!,#REF!)) -> 
A53: ='import danych'!A58 -> 2012-10-12 | B53: ='import danych'!B58 -> 11:27 | C53: =IF('import danych'!$I58="LINDE 01",MAX(C$1:C52)+1,"") -> 21 | D53: =IF('import danych'!$I58="LINDE 02",MAX(D$1:D52)+1,"") ->  | E53: =IF('import danych'!$I58="LINDE 03",MAX(E$1:E52)+1,"") ->  | F53: =IF('import danych'!$I58="YALE 04",MAX(F$1:F52)+1,"") ->  | G53: =IF('import danych'!$I58="SUR",MAX(G$1:G52)+1,"") ->  | H53: =IF('import danych'!$I58="SMP",MAX(H$1:H52)+1,"") ->  | I53: =IF('import danych'!E58="","",LOOKUP('import danych'!F58,#REF!,#REF!)) -> 
A54: ='import danych'!A59 -> 2012-10-12 | B54: ='import danych'!B59 -> 12:59 | C54: =IF('import danych'!$I59="LINDE 01",MAX(C$1:C53)+1,"") ->  | D54: =IF('import danych'!$I59="LINDE 02",MAX(D$1:D53)+1,"") -> 22 | E54: =IF('import danych'!$I59="LINDE 03",MAX(E$1:E53)+1,"") ->  | F54: =IF('import danych'!$I59="YALE 04",MAX(F$1:F53)+1,"") ->  | G54: =IF('import danych'!$I59="SUR",MAX(G$1:G53)+1,"") ->  | H54: =IF('import danych'!$I59="SMP",MAX(H$1:H53)+1,"") ->  | I54: =IF('import danych'!E59="","",LOOKUP('import danych'!F59,#REF!,#REF!)) -> 
A55: ='import danych'!A60 -> 2012-10-13 | B55: ='import danych'!B60 -> 11:18 | C55: =IF('import danych'!$I60="LINDE 01",MAX(C$1:C54)+1,"") ->  | D55: =IF('import danych'!$I60="LINDE 02",MAX(D$1:D54)+1,"") -> 23 | E55: =IF('import danych'!$I60="LINDE 03",MAX(E$1:E54)+1,"") ->  | F55: =IF('import danych'!$I60="YALE 04",MAX(F$1:F54)+1,"") ->  | G55: =IF('import danych'!$I60="SUR",MAX(G$1:G54)+1,"") ->  | H55: =IF('import danych'!$I60="SMP",MAX(H$1:H54)+1,"") ->  | I55: =IF('import danych'!E60="","",LOOKUP('import danych'!F60,#REF!,#REF!)) -> 
A56: ='import danych'!A61 -> 2012-10-14 | B56: ='import danych'!B61 -> 10:31 | C56: =IF('import danych'!$I61="LINDE 01",MAX(C$1:C55)+1,"") -> 22 | D56: =IF('import danych'!$I61="LINDE 02",MAX(D$1:D55)+1,"") ->  | E56: =IF('import danych'!$I61="LINDE 03",MAX(E$1:E55)+1,"") ->  | F56: =IF('import danych'!$I61="YALE 04",MAX(F$1:F55)+1,"") ->  | G56: =IF('import danych'!$I61="SUR",MAX(G$1:G55)+1,"") ->  | H56: =IF('import danych'!$I61="SMP",MAX(H$1:H55)+1,"") ->  | I56: =IF('import danych'!E61="","",LOOKUP('import danych'!F61,#REF!,#REF!)) -> 
A57: ='import danych'!A62 -> 2012-10-15 | B57: ='import danych'!B62 -> 07:33 | C57: =IF('import danych'!$I62="LINDE 01",MAX(C$1:C56)+1,"") ->  | D57: =IF('import danych'!$I62="LINDE 02",MAX(D$1:D56)+1,"") ->  | E57: =IF('import danych'!$I62="LINDE 03",MAX(E$1:E56)+1,"") ->  | F57: =IF('import danych'!$I62="YALE 04",MAX(F$1:F56)+1,"") ->  | G57: =IF('import danych'!$I62="SUR",MAX(G$1:G56)+1,"") -> 6 | H57: =IF('import danych'!$I62="SMP",MAX(H$1:H56)+1,"") ->  | I57: =IF('import danych'!E62="","",LOOKUP('import danych'!F62,#REF!,#REF!)) -> 
A58: ='import danych'!A63 -> 2012-10-15 | B58: ='import danych'!B63 -> 12:57 | C58: =IF('import danych'!$I63="LINDE 01",MAX(C$1:C57)+1,"") ->  | D58: =IF('import danych'!$I63="LINDE 02",MAX(D$1:D57)+1,"") -> 24 | E58: =IF('import danych'!$I63="LINDE 03",MAX(E$1:E57)+1,"") ->  | F58: =IF('import danych'!$I63="YALE 04",MAX(F$1:F57)+1,"") ->  | G58: =IF('import danych'!$I63="SUR",MAX(G$1:G57)+1,"") ->  | H58: =IF('import danych'!$I63="SMP",MAX(H$1:H57)+1,"") ->  | I58: =IF('import danych'!E63="","",LOOKUP('import danych'!F63,#REF!,#REF!)) -> 
A59: ='import danych'!A64 -> 2012-10-15 | B59: ='import danych'!B64 -> 13:01 | C59: =IF('import danych'!$I64="LINDE 01",MAX(C$1:C58)+1,"") -> 23 | D59: =IF('import danych'!$I64="LINDE 02",MAX(D$1:D58)+1,"") ->  | E59: =IF('import danych'!$I64="LINDE 03",MAX(E$1:E58)+1,"") ->  | F59: =IF('import danych'!$I64="YALE 04",MAX(F$1:F58)+1,"") ->  | G59: =IF('import danych'!$I64="SUR",MAX(G$1:G58)+1,"") ->  | H59: =IF('import danych'!$I64="SMP",MAX(H$1:H58)+1,"") ->  | I59: =IF('import danych'!E64="","",LOOKUP('import danych'!F64,#REF!,#REF!)) -> 
A60: ='import danych'!A65 -> 2012-10-16 | B60: ='import danych'!B65 -> 10:51 | C60: =IF('import danych'!$I65="LINDE 01",MAX(C$1:C59)+1,"") ->  | D60: =IF('import danych'!$I65="LINDE 02",MAX(D$1:D59)+1,"") ->  | E60: =IF('import danych'!$I65="LINDE 03",MAX(E$1:E59)+1,"") -> 15 | F60: =IF('import danych'!$I65="YALE 04",MAX(F$1:F59)+1,"") ->  | G60: =IF('import danych'!$I65="SUR",MAX(G$1:G59)+1,"") ->  | H60: =IF('import danych'!$I65="SMP",MAX(H$1:H59)+1,"") ->  | I60: =IF('import danych'!E65="","",LOOKUP('import danych'!F65,#REF!,#REF!)) -> 
A61: ='import danych'!A66 -> 2012-10-16 | B61: ='import danych'!B66 -> 11:18 | C61: =IF('import danych'!$I66="LINDE 01",MAX(C$1:C60)+1,"") -> 24 | D61: =IF('import danych'!$I66="LINDE 02",MAX(D$1:D60)+1,"") ->  | E61: =IF('import danych'!$I66="LINDE 03",MAX(E$1:E60)+1,"") ->  | F61: =IF('import danych'!$I66="YALE 04",MAX(F$1:F60)+1,"") ->  | G61: =IF('import danych'!$I66="SUR",MAX(G$1:G60)+1,"") ->  | H61: =IF('import danych'!$I66="SMP",MAX(H$1:H60)+1,"") ->  | I61: =IF('import danych'!E66="","",LOOKUP('import danych'!F66,#REF!,#REF!)) -> 
A62: ='import danych'!A67 -> 2012-10-16 | B62: ='import danych'!B67 -> 19:59 | C62: =IF('import danych'!$I67="LINDE 01",MAX(C$1:C61)+1,"") ->  | D62: =IF('import danych'!$I67="LINDE 02",MAX(D$1:D61)+1,"") -> 25 | E62: =IF('import danych'!$I67="LINDE 03",MAX(E$1:E61)+1,"") ->  | F62: =IF('import danych'!$I67="YALE 04",MAX(F$1:F61)+1,"") ->  | G62: =IF('import danych'!$I67="SUR",MAX(G$1:G61)+1,"") ->  | H62: =IF('import danych'!$I67="SMP",MAX(H$1:H61)+1,"") ->  | I62: =IF('import danych'!E67="","",LOOKUP('import danych'!F67,#REF!,#REF!)) -> 
A63: ='import danych'!A68 -> 2012-10-17 | B63: ='import danych'!B68 -> 11:08 | C63: =IF('import danych'!$I68="LINDE 01",MAX(C$1:C62)+1,"") -> 25 | D63: =IF('import danych'!$I68="LINDE 02",MAX(D$1:D62)+1,"") ->  | E63: =IF('import danych'!$I68="LINDE 03",MAX(E$1:E62)+1,"") ->  | F63: =IF('import danych'!$I68="YALE 04",MAX(F$1:F62)+1,"") ->  | G63: =IF('import danych'!$I68="SUR",MAX(G$1:G62)+1,"") ->  | H63: =IF('import danych'!$I68="SMP",MAX(H$1:H62)+1,"") ->  | I63: =IF('import danych'!E68="","",LOOKUP('import danych'!F68,#REF!,#REF!)) -> 
A64: ='import danych'!A69 -> 2012-10-17 | B64: ='import danych'!B69 -> 13:16 | C64: =IF('import danych'!$I69="LINDE 01",MAX(C$1:C63)+1,"") ->  | D64: =IF('import danych'!$I69="LINDE 02",MAX(D$1:D63)+1,"") -> 26 | E64: =IF('import danych'!$I69="LINDE 03",MAX(E$1:E63)+1,"") ->  | F64: =IF('import danych'!$I69="YALE 04",MAX(F$1:F63)+1,"") ->  | G64: =IF('import danych'!$I69="SUR",MAX(G$1:G63)+1,"") ->  | H64: =IF('import danych'!$I69="SMP",MAX(H$1:H63)+1,"") ->  | I64: =IF('import danych'!D69="","",LOOKUP('import danych'!F69,#REF!,#REF!)) -> 
A65: ='import danych'!A70 -> 2012-10-18 | B65: ='import danych'!B70 -> 11:03 | C65: =IF('import danych'!$I70="LINDE 01",MAX(C$1:C64)+1,"") -> 26 | D65: =IF('import danych'!$I70="LINDE 02",MAX(D$1:D64)+1,"") ->  | E65: =IF('import danych'!$I70="LINDE 03",MAX(E$1:E64)+1,"") ->  | F65: =IF('import danych'!$I70="YALE 04",MAX(F$1:F64)+1,"") ->  | G65: =IF('import danych'!$I70="SUR",MAX(G$1:G64)+1,"") ->  | H65: =IF('import danych'!$I70="SMP",MAX(H$1:H64)+1,"") ->  | I65: =IF('import danych'!D70="","",LOOKUP('import danych'!F70,#REF!,#REF!)) -> 
A66: ='import danych'!A71 -> 2012-10-18 | B66: ='import danych'!B71 -> 12:57 | C66: =IF('import danych'!$I71="LINDE 01",MAX(C$1:C65)+1,"") ->  | D66: =IF('import danych'!$I71="LINDE 02",MAX(D$1:D65)+1,"") -> 27 | E66: =IF('import danych'!$I71="LINDE 03",MAX(E$1:E65)+1,"") ->  | F66: =IF('import danych'!$I71="YALE 04",MAX(F$1:F65)+1,"") ->  | G66: =IF('import danych'!$I71="SUR",MAX(G$1:G65)+1,"") ->  | H66: =IF('import danych'!$I71="SMP",MAX(H$1:H65)+1,"") ->  | I66: =IF('import danych'!D71="","",LOOKUP('import danych'!F71,#REF!,#REF!)) -> 
A67: ='import danych'!A72 -> 2012-10-18 | B67: ='import danych'!B72 -> 15:14 | C67: =IF('import danych'!$I72="LINDE 01",MAX(C$1:C66)+1,"") ->  | D67: =IF('import danych'!$I72="LINDE 02",MAX(D$1:D66)+1,"") ->  | E67: =IF('import danych'!$I72="LINDE 03",MAX(E$1:E66)+1,"") -> 16 | F67: =IF('import danych'!$I72="YALE 04",MAX(F$1:F66)+1,"") ->  | G67: =IF('import danych'!$I72="SUR",MAX(G$1:G66)+1,"") ->  | H67: =IF('import danych'!$I72="SMP",MAX(H$1:H66)+1,"") ->  | I67: =IF('import danych'!D72="","",LOOKUP('import danych'!F72,#REF!,#REF!)) -> 
A68: ='import danych'!A73 -> 2012-10-19 | B68: ='import danych'!B73 -> 13:23 | C68: =IF('import danych'!$I73="LINDE 01",MAX(C$1:C67)+1,"") ->  | D68: =IF('import danych'!$I73="LINDE 02",MAX(D$1:D67)+1,"") -> 28 | E68: =IF('import danych'!$I73="LINDE 03",MAX(E$1:E67)+1,"") ->  | F68: =IF('import danych'!$I73="YALE 04",MAX(F$1:F67)+1,"") ->  | G68: =IF('import danych'!$I73="SUR",MAX(G$1:G67)+1,"") ->  | H68: =IF('import danych'!$I73="SMP",MAX(H$1:H67)+1,"") ->  | I68: =IF('import danych'!D73="","",LOOKUP('import danych'!F73,#REF!,#REF!)) -> 
A69: ='import danych'!A74 -> 2012-10-19 | B69: ='import danych'!B74 -> 13:32 | C69: =IF('import danych'!$I74="LINDE 01",MAX(C$1:C68)+1,"") -> 27 | D69: =IF('import danych'!$I74="LINDE 02",MAX(D$1:D68)+1,"") ->  | E69: =IF('import danych'!$I74="LINDE 03",MAX(E$1:E68)+1,"") ->  | F69: =IF('import danych'!$I74="YALE 04",MAX(F$1:F68)+1,"") ->  | G69: =IF('import danych'!$I74="SUR",MAX(G$1:G68)+1,"") ->  | H69: =IF('import danych'!$I74="SMP",MAX(H$1:H68)+1,"") ->  | I69: =IF('import danych'!D74="","",LOOKUP('import danych'!F74,#REF!,#REF!)) -> 
A70: ='import danych'!A75 -> 2012-10-20 | B70: ='import danych'!B75 -> 13:03 | C70: =IF('import danych'!$I75="LINDE 01",MAX(C$1:C69)+1,"") ->  | D70: =IF('import danych'!$I75="LINDE 02",MAX(D$1:D69)+1,"") -> 29 | E70: =IF('import danych'!$I75="LINDE 03",MAX(E$1:E69)+1,"") ->  | F70: =IF('import danych'!$I75="YALE 04",MAX(F$1:F69)+1,"") ->  | G70: =IF('import danych'!$I75="SUR",MAX(G$1:G69)+1,"") ->  | H70: =IF('import danych'!$I75="SMP",MAX(H$1:H69)+1,"") ->  | I70: =IF('import danych'!D75="","",LOOKUP('import danych'!F75,#REF!,#REF!)) -> 
A71: ='import danych'!A76 -> 2012-10-20 | B71: ='import danych'!B76 -> 13:06 | C71: =IF('import danych'!$I76="LINDE 01",MAX(C$1:C70)+1,"") -> 28 | D71: =IF('import danych'!$I76="LINDE 02",MAX(D$1:D70)+1,"") ->  | E71: =IF('import danych'!$I76="LINDE 03",MAX(E$1:E70)+1,"") ->  | F71: =IF('import danych'!$I76="YALE 04",MAX(F$1:F70)+1,"") ->  | G71: =IF('import danych'!$I76="SUR",MAX(G$1:G70)+1,"") ->  | H71: =IF('import danych'!$I76="SMP",MAX(H$1:H70)+1,"") ->  | I71: =IF('import danych'!D76="","",LOOKUP('import danych'!F76,#REF!,#REF!)) -> 
A72: ='import danych'!A77 -> 2012-10-21 | B72: ='import danych'!B77 -> 07:15 | C72: =IF('import danych'!$I77="LINDE 01",MAX(C$1:C71)+1,"") ->  | D72: =IF('import danych'!$I77="LINDE 02",MAX(D$1:D71)+1,"") ->  | E72: =IF('import danych'!$I77="LINDE 03",MAX(E$1:E71)+1,"") -> 17 | F72: =IF('import danych'!$I77="YALE 04",MAX(F$1:F71)+1,"") ->  | G72: =IF('import danych'!$I77="SUR",MAX(G$1:G71)+1,"") ->  | H72: =IF('import danych'!$I77="SMP",MAX(H$1:H71)+1,"") ->  | I72: =IF('import danych'!D77="","",LOOKUP('import danych'!F77,#REF!,#REF!)) -> 
A73: ='import danych'!A78 -> 2012-10-22 | B73: ='import danych'!B78 -> 12:32 | C73: =IF('import danych'!$I78="LINDE 01",MAX(C$1:C72)+1,"") ->  | D73: =IF('import danych'!$I78="LINDE 02",MAX(D$1:D72)+1,"") ->  | E73: =IF('import danych'!$I78="LINDE 03",MAX(E$1:E72)+1,"") -> 18 | F73: =IF('import danych'!$I78="YALE 04",MAX(F$1:F72)+1,"") ->  | G73: =IF('import danych'!$I78="SUR",MAX(G$1:G72)+1,"") ->  | H73: =IF('import danych'!$I78="SMP",MAX(H$1:H72)+1,"") ->  | I73: =IF('import danych'!D78="","",LOOKUP('import danych'!F78,#REF!,#REF!)) -> 
A74: ='import danych'!A79 -> 2012-10-22 | B74: ='import danych'!B79 -> 12:58 | C74: =IF('import danych'!$I79="LINDE 01",MAX(C$1:C73)+1,"") -> 29 | D74: =IF('import danych'!$I79="LINDE 02",MAX(D$1:D73)+1,"") ->  | E74: =IF('import danych'!$I79="LINDE 03",MAX(E$1:E73)+1,"") ->  | F74: =IF('import danych'!$I79="YALE 04",MAX(F$1:F73)+1,"") ->  | G74: =IF('import danych'!$I79="SUR",MAX(G$1:G73)+1,"") ->  | H74: =IF('import danych'!$I79="SMP",MAX(H$1:H73)+1,"") ->  | I74: =IF('import danych'!D79="","",LOOKUP('import danych'!F79,#REF!,#REF!)) -> 
A75: ='import danych'!A80 -> 2012-10-22 | B75: ='import danych'!B80 -> 13:41 | C75: =IF('import danych'!$I80="LINDE 01",MAX(C$1:C74)+1,"") ->  | D75: =IF('import danych'!$I80="LINDE 02",MAX(D$1:D74)+1,"") -> 30 | E75: =IF('import danych'!$I80="LINDE 03",MAX(E$1:E74)+1,"") ->  | F75: =IF('import danych'!$I80="YALE 04",MAX(F$1:F74)+1,"") ->  | G75: =IF('import danych'!$I80="SUR",MAX(G$1:G74)+1,"") ->  | H75: =IF('import danych'!$I80="SMP",MAX(H$1:H74)+1,"") ->  | I75: =IF('import danych'!D80="","",LOOKUP('import danych'!F80,#REF!,#REF!)) -> 
A76: ='import danych'!A81 -> 2012-10-23 | B76: ='import danych'!B81 -> 13:06 | C76: =IF('import danych'!$I81="LINDE 01",MAX(C$1:C75)+1,"") -> 30 | D76: =IF('import danych'!$I81="LINDE 02",MAX(D$1:D75)+1,"") ->  | E76: =IF('import danych'!$I81="LINDE 03",MAX(E$1:E75)+1,"") ->  | F76: =IF('import danych'!$I81="YALE 04",MAX(F$1:F75)+1,"") ->  | G76: =IF('import danych'!$I81="SUR",MAX(G$1:G75)+1,"") ->  | H76: =IF('import danych'!$I81="SMP",MAX(H$1:H75)+1,"") ->  | I76: =IF('import danych'!D81="","",LOOKUP('import danych'!F81,#REF!,#REF!)) -> 
A77: ='import danych'!A82 -> 2012-10-23 | B77: ='import danych'!B82 -> 18:02 | C77: =IF('import danych'!$I82="LINDE 01",MAX(C$1:C76)+1,"") ->  | D77: =IF('import danych'!$I82="LINDE 02",MAX(D$1:D76)+1,"") -> 31 | E77: =IF('import danych'!$I82="LINDE 03",MAX(E$1:E76)+1,"") ->  | F77: =IF('import danych'!$I82="YALE 04",MAX(F$1:F76)+1,"") ->  | G77: =IF('import danych'!$I82="SUR",MAX(G$1:G76)+1,"") ->  | H77: =IF('import danych'!$I82="SMP",MAX(H$1:H76)+1,"") ->  | I77: =IF('import danych'!D82="","",LOOKUP('import danych'!F82,#REF!,#REF!)) -> 
A78: ='import danych'!A83 -> 2012-10-24 | B78: ='import danych'!B83 -> 10:18 | C78: =IF('import danych'!$I83="LINDE 01",MAX(C$1:C77)+1,"") ->  | D78: =IF('import danych'!$I83="LINDE 02",MAX(D$1:D77)+1,"") ->  | E78: =IF('import danych'!$I83="LINDE 03",MAX(E$1:E77)+1,"") -> 19 | F78: =IF('import danych'!$I83="YALE 04",MAX(F$1:F77)+1,"") ->  | G78: =IF('import danych'!$I83="SUR",MAX(G$1:G77)+1,"") ->  | H78: =IF('import danych'!$I83="SMP",MAX(H$1:H77)+1,"") ->  | I78: =IF('import danych'!D83="","",LOOKUP('import danych'!F83,#REF!,#REF!)) -> 
A79: ='import danych'!A84 -> 2012-10-24 | B79: ='import danych'!B84 -> 13:04 | C79: =IF('import danych'!$I84="LINDE 01",MAX(C$1:C78)+1,"") -> 31 | D79: =IF('import danych'!$I84="LINDE 02",MAX(D$1:D78)+1,"") ->  | E79: =IF('import danych'!$I84="LINDE 03",MAX(E$1:E78)+1,"") ->  | F79: =IF('import danych'!$I84="YALE 04",MAX(F$1:F78)+1,"") ->  | G79: =IF('import danych'!$I84="SUR",MAX(G$1:G78)+1,"") ->  | H79: =IF('import danych'!$I84="SMP",MAX(H$1:H78)+1,"") ->  | I79: =IF('import danych'!D84="","",LOOKUP('import danych'!F84,#REF!,#REF!)) -> 
A80: ='import danych'!A85 -> 2012-10-24 | B80: ='import danych'!B85 -> 18:18 | C80: =IF('import danych'!$I85="LINDE 01",MAX(C$1:C79)+1,"") ->  | D80: =IF('import danych'!$I85="LINDE 02",MAX(D$1:D79)+1,"") -> 32 | E80: =IF('import danych'!$I85="LINDE 03",MAX(E$1:E79)+1,"") ->  | F80: =IF('import danych'!$I85="YALE 04",MAX(F$1:F79)+1,"") ->  | G80: =IF('import danych'!$I85="SUR",MAX(G$1:G79)+1,"") ->  | H80: =IF('import danych'!$I85="SMP",MAX(H$1:H79)+1,"") ->  | I80: =IF('import danych'!D85="","",LOOKUP('import danych'!F85,#REF!,#REF!)) -> 
A81: ='import danych'!A86 -> 2012-10-25 | B81: ='import danych'!B86 -> 12:56 | C81: =IF('import danych'!$I86="LINDE 01",MAX(C$1:C80)+1,"") ->  | D81: =IF('import danych'!$I86="LINDE 02",MAX(D$1:D80)+1,"") ->  | E81: =IF('import danych'!$I86="LINDE 03",MAX(E$1:E80)+1,"") ->  | F81: =IF('import danych'!$I86="YALE 04",MAX(F$1:F80)+1,"") ->  | G81: =IF('import danych'!$I86="SUR",MAX(G$1:G80)+1,"") -> 7 | H81: =IF('import danych'!$I86="SMP",MAX(H$1:H80)+1,"") ->  | I81: =IF('import danych'!D86="","",LOOKUP('import danych'!F86,#REF!,#REF!)) -> 
A82: ='import danych'!A87 -> 2012-10-25 | B82: ='import danych'!B87 -> 13:03 | C82: =IF('import danych'!$I87="LINDE 01",MAX(C$1:C81)+1,"") ->  | D82: =IF('import danych'!$I87="LINDE 02",MAX(D$1:D81)+1,"") -> 33 | E82: =IF('import danych'!$I87="LINDE 03",MAX(E$1:E81)+1,"") ->  | F82: =IF('import danych'!$I87="YALE 04",MAX(F$1:F81)+1,"") ->  | G82: =IF('import danych'!$I87="SUR",MAX(G$1:G81)+1,"") ->  | H82: =IF('import danych'!$I87="SMP",MAX(H$1:H81)+1,"") ->  | I82: =IF('import danych'!D87="","",LOOKUP('import danych'!F87,#REF!,#REF!)) -> 
A83: ='import danych'!A88 -> 2012-10-25 | B83: ='import danych'!B88 -> 13:23 | C83: =IF('import danych'!$I88="LINDE 01",MAX(C$1:C82)+1,"") -> 32 | D83: =IF('import danych'!$I88="LINDE 02",MAX(D$1:D82)+1,"") ->  | E83: =IF('import danych'!$I88="LINDE 03",MAX(E$1:E82)+1,"") ->  | F83: =IF('import danych'!$I88="YALE 04",MAX(F$1:F82)+1,"") ->  | G83: =IF('import danych'!$I88="SUR",MAX(G$1:G82)+1,"") ->  | H83: =IF('import danych'!$I88="SMP",MAX(H$1:H82)+1,"") ->  | I83: =IF('import danych'!D88="","",LOOKUP('import danych'!F88,#REF!,#REF!)) -> 
A84: ='import danych'!A89 -> 2012-10-26 | B84: ='import danych'!B89 -> 11:16 | C84: =IF('import danych'!$I89="LINDE 01",MAX(C$1:C83)+1,"") ->  | D84: =IF('import danych'!$I89="LINDE 02",MAX(D$1:D83)+1,"") -> 34 | E84: =IF('import danych'!$I89="LINDE 03",MAX(E$1:E83)+1,"") ->  | F84: =IF('import danych'!$I89="YALE 04",MAX(F$1:F83)+1,"") ->  | G84: =IF('import danych'!$I89="SUR",MAX(G$1:G83)+1,"") ->  | H84: =IF('import danych'!$I89="SMP",MAX(H$1:H83)+1,"") ->  | I84: =IF('import danych'!D89="","",LOOKUP('import danych'!F89,#REF!,#REF!)) -> 
A85: ='import danych'!A90 -> 2012-10-26 | B85: ='import danych'!B90 -> 11:56 | C85: =IF('import danych'!$I90="LINDE 01",MAX(C$1:C84)+1,"") ->  | D85: =IF('import danych'!$I90="LINDE 02",MAX(D$1:D84)+1,"") ->  | E85: =IF('import danych'!$I90="LINDE 03",MAX(E$1:E84)+1,"") -> 20 | F85: =IF('import danych'!$I90="YALE 04",MAX(F$1:F84)+1,"") ->  | G85: =IF('import danych'!$I90="SUR",MAX(G$1:G84)+1,"") ->  | H85: =IF('import danych'!$I90="SMP",MAX(H$1:H84)+1,"") ->  | I85: =IF('import danych'!D90="","",LOOKUP('import danych'!F90,#REF!,#REF!)) -> 
A86: ='import danych'!A91 -> 2012-10-26 | B86: ='import danych'!B91 -> 18:39 | C86: =IF('import danych'!$I91="LINDE 01",MAX(C$1:C85)+1,"") -> 33 | D86: =IF('import danych'!$I91="LINDE 02",MAX(D$1:D85)+1,"") ->  | E86: =IF('import danych'!$I91="LINDE 03",MAX(E$1:E85)+1,"") ->  | F86: =IF('import danych'!$I91="YALE 04",MAX(F$1:F85)+1,"") ->  | G86: =IF('import danych'!$I91="SUR",MAX(G$1:G85)+1,"") ->  | H86: =IF('import danych'!$I91="SMP",MAX(H$1:H85)+1,"") ->  | I86: =IF('import danych'!D91="","",LOOKUP('import danych'!F91,#REF!,#REF!)) -> 
A87: ='import danych'!A92 -> 2012-10-27 | B87: ='import danych'!B92 -> 13:26 | C87: =IF('import danych'!$I92="LINDE 01",MAX(C$1:C86)+1,"") ->  | D87: =IF('import danych'!$I92="LINDE 02",MAX(D$1:D86)+1,"") -> 35 | E87: =IF('import danych'!$I92="LINDE 03",MAX(E$1:E86)+1,"") ->  | F87: =IF('import danych'!$I92="YALE 04",MAX(F$1:F86)+1,"") ->  | G87: =IF('import danych'!$I92="SUR",MAX(G$1:G86)+1,"") ->  | H87: =IF('import danych'!$I92="SMP",MAX(H$1:H86)+1,"") ->  | I87: =IF('import danych'!D92="","",LOOKUP('import danych'!F92,#REF!,#REF!)) -> 
A88: ='import danych'!A93 -> 2012-10-28 | B88: ='import danych'!B93 -> 12:45 | C88: =IF('import danych'!$I93="LINDE 01",MAX(C$1:C87)+1,"") -> 34 | D88: =IF('import danych'!$I93="LINDE 02",MAX(D$1:D87)+1,"") ->  | E88: =IF('import danych'!$I93="LINDE 03",MAX(E$1:E87)+1,"") ->  | F88: =IF('import danych'!$I93="YALE 04",MAX(F$1:F87)+1,"") ->  | G88: =IF('import danych'!$I93="SUR",MAX(G$1:G87)+1,"") ->  | H88: =IF('import danych'!$I93="SMP",MAX(H$1:H87)+1,"") ->  | I88: =IF('import danych'!D93="","",LOOKUP('import danych'!F93,#REF!,#REF!)) -> 
A89: ='import danych'!A94 -> 2012-10-28 | B89: ='import danych'!B94 -> 16:21 | C89: =IF('import danych'!$I94="LINDE 01",MAX(C$1:C88)+1,"") ->  | D89: =IF('import danych'!$I94="LINDE 02",MAX(D$1:D88)+1,"") ->  | E89: =IF('import danych'!$I94="LINDE 03",MAX(E$1:E88)+1,"") -> 21 | F89: =IF('import danych'!$I94="YALE 04",MAX(F$1:F88)+1,"") ->  | G89: =IF('import danych'!$I94="SUR",MAX(G$1:G88)+1,"") ->  | H89: =IF('import danych'!$I94="SMP",MAX(H$1:H88)+1,"") ->  | I89: =IF('import danych'!D94="","",LOOKUP('import danych'!F94,#REF!,#REF!)) -> 
A90: ='import danych'!A95 -> 2012-10-29 | B90: ='import danych'!B95 -> 11:40 | C90: =IF('import danych'!$I95="LINDE 01",MAX(C$1:C89)+1,"") ->  | D90: =IF('import danych'!$I95="LINDE 02",MAX(D$1:D89)+1,"") -> 36 | E90: =IF('import danych'!$I95="LINDE 03",MAX(E$1:E89)+1,"") ->  | F90: =IF('import danych'!$I95="YALE 04",MAX(F$1:F89)+1,"") ->  | G90: =IF('import danych'!$I95="SUR",MAX(G$1:G89)+1,"") ->  | H90: =IF('import danych'!$I95="SMP",MAX(H$1:H89)+1,"") ->  | I90: =IF('import danych'!D95="","",LOOKUP('import danych'!F95,#REF!,#REF!)) -> 
A91: ='import danych'!A96 -> 2012-10-29 | B91: ='import danych'!B96 -> 13:54 | C91: =IF('import danych'!$I96="LINDE 01",MAX(C$1:C90)+1,"") -> 35 | D91: =IF('import danych'!$I96="LINDE 02",MAX(D$1:D90)+1,"") ->  | E91: =IF('import danych'!$I96="LINDE 03",MAX(E$1:E90)+1,"") ->  | F91: =IF('import danych'!$I96="YALE 04",MAX(F$1:F90)+1,"") ->  | G91: =IF('import danych'!$I96="SUR",MAX(G$1:G90)+1,"") ->  | H91: =IF('import danych'!$I96="SMP",MAX(H$1:H90)+1,"") ->  | I91: =IF('import danych'!D96="","",LOOKUP('import danych'!F96,#REF!,#REF!)) -> 
A92: ='import danych'!A97 -> 2012-10-30 | B92: ='import danych'!B97 -> 08:26 | C92: =IF('import danych'!$I97="LINDE 01",MAX(C$1:C91)+1,"") ->  | D92: =IF('import danych'!$I97="LINDE 02",MAX(D$1:D91)+1,"") -> 37 | E92: =IF('import danych'!$I97="LINDE 03",MAX(E$1:E91)+1,"") ->  | F92: =IF('import danych'!$I97="YALE 04",MAX(F$1:F91)+1,"") ->  | G92: =IF('import danych'!$I97="SUR",MAX(G$1:G91)+1,"") ->  | H92: =IF('import danych'!$I97="SMP",MAX(H$1:H91)+1,"") ->  | I92: =IF('import danych'!D97="","",LOOKUP('import danych'!F97,#REF!,#REF!)) -> 
A93: ='import danych'!A98 -> 2012-10-30 | B93: ='import danych'!B98 -> 12:59 | C93: =IF('import danych'!$I98="LINDE 01",MAX(C$1:C92)+1,"") ->  | D93: =IF('import danych'!$I98="LINDE 02",MAX(D$1:D92)+1,"") ->  | E93: =IF('import danych'!$I98="LINDE 03",MAX(E$1:E92)+1,"") ->  | F93: =IF('import danych'!$I98="YALE 04",MAX(F$1:F92)+1,"") ->  | G93: =IF('import danych'!$I98="SUR",MAX(G$1:G92)+1,"") ->  | H93: =IF('import danych'!$I98="SMP",MAX(H$1:H92)+1,"") -> 9 | I93: SK 3697V
A94: ='import danych'!A99 -> 2012-10-30 | B94: ='import danych'!B99 -> 14:15 | C94: =IF('import danych'!$I99="LINDE 01",MAX(C$1:C93)+1,"") -> 36 | D94: =IF('import danych'!$I99="LINDE 02",MAX(D$1:D93)+1,"") ->  | E94: =IF('import danych'!$I99="LINDE 03",MAX(E$1:E93)+1,"") ->  | F94: =IF('import danych'!$I99="YALE 04",MAX(F$1:F93)+1,"") ->  | G94: =IF('import danych'!$I99="SUR",MAX(G$1:G93)+1,"") ->  | H94: =IF('import danych'!$I99="SMP",MAX(H$1:H93)+1,"") ->  | I94: =IF('import danych'!D99="","",LOOKUP('import danych'!F99,#REF!,#REF!)) -> 
A95: ='import danych'!A100 -> 2012-10-30 | B95: ='import danych'!B100 -> 14:23 | C95: =IF('import danych'!$I100="LINDE 01",MAX(C$1:C94)+1,"") ->  | D95: =IF('import danych'!$I100="LINDE 02",MAX(D$1:D94)+1,"") ->  | E95: =IF('import danych'!$I100="LINDE 03",MAX(E$1:E94)+1,"") -> 22 | F95: =IF('import danych'!$I100="YALE 04",MAX(F$1:F94)+1,"") ->  | G95: =IF('import danych'!$I100="SUR",MAX(G$1:G94)+1,"") ->  | H95: =IF('import danych'!$I100="SMP",MAX(H$1:H94)+1,"") ->  | I95: =IF('import danych'!D100="","",LOOKUP('import danych'!F100,#REF!,#REF!)) -> 
A96: ='import danych'!A101 -> 2012-10-31 | B96: ='import danych'!B101 -> 09:55 | C96: =IF('import danych'!$I101="LINDE 01",MAX(C$1:C95)+1,"") -> 37 | D96: =IF('import danych'!$I101="LINDE 02",MAX(D$1:D95)+1,"") ->  | E96: =IF('import danych'!$I101="LINDE 03",MAX(E$1:E95)+1,"") ->  | F96: =IF('import danych'!$I101="YALE 04",MAX(F$1:F95)+1,"") ->  | G96: =IF('import danych'!$I101="SUR",MAX(G$1:G95)+1,"") ->  | H96: =IF('import danych'!$I101="SMP",MAX(H$1:H95)+1,"") ->  | I96: =IF('import danych'!D101="","",LOOKUP('import danych'!F101,#REF!,#REF!)) -> 
A97: ='import danych'!A102 -> 2012-10-31 | B97: ='import danych'!B102 -> 11:01 | C97: =IF('import danych'!$I102="LINDE 01",MAX(C$1:C96)+1,"") ->  | D97: =IF('import danych'!$I102="LINDE 02",MAX(D$1:D96)+1,"") ->  | E97: =IF('import danych'!$I102="LINDE 03",MAX(E$1:E96)+1,"") ->  | F97: =IF('import danych'!$I102="YALE 04",MAX(F$1:F96)+1,"") ->  | G97: =IF('import danych'!$I102="SUR",MAX(G$1:G96)+1,"") ->  | H97: =IF('import danych'!$I102="SMP",MAX(H$1:H96)+1,"") -> 10 | I97: =IF('import danych'!D102="","",LOOKUP('import danych'!F102,#REF!,#REF!)) -> 
A98: ='import danych'!A103 -> 2012-10-31 | B98: ='import danych'!B103 -> 11:59 | C98: =IF('import danych'!$I103="LINDE 01",MAX(C$1:C97)+1,"") ->  | D98: =IF('import danych'!$I103="LINDE 02",MAX(D$1:D97)+1,"") -> 38 | E98: =IF('import danych'!$I103="LINDE 03",MAX(E$1:E97)+1,"") ->  | F98: =IF('import danych'!$I103="YALE 04",MAX(F$1:F97)+1,"") ->  | G98: =IF('import danych'!$I103="SUR",MAX(G$1:G97)+1,"") ->  | H98: =IF('import danych'!$I103="SMP",MAX(H$1:H97)+1,"") ->  | I98: =IF('import danych'!D103="","",LOOKUP('import danych'!F103,#REF!,#REF!)) -> 
A99: ='import danych'!A104 -> 2012-11-01 | B99: ='import danych'!B104 -> 14:06 | C99: =IF('import danych'!$I104="LINDE 01",MAX(C$1:C98)+1,"") -> 38 | D99: =IF('import danych'!$I104="LINDE 02",MAX(D$1:D98)+1,"") ->  | E99: =IF('import danych'!$I104="LINDE 03",MAX(E$1:E98)+1,"") ->  | F99: =IF('import danych'!$I104="YALE 04",MAX(F$1:F98)+1,"") ->  | G99: =IF('import danych'!$I104="SUR",MAX(G$1:G98)+1,"") ->  | H99: =IF('import danych'!$I104="SMP",MAX(H$1:H98)+1,"") ->  | I99: =IF('import danych'!D104="","",LOOKUP('import danych'!F104,#REF!,#REF!)) -> 
A100: ='import danych'!A105 -> 2012-11-02 | B100: ='import danych'!B105 -> 13:21 | C100: =IF('import danych'!$I105="LINDE 01",MAX(C$1:C99)+1,"") ->  | D100: =IF('import danych'!$I105="LINDE 02",MAX(D$1:D99)+1,"") -> 39 | E100: =IF('import danych'!$I105="LINDE 03",MAX(E$1:E99)+1,"") ->  | F100: =IF('import danych'!$I105="YALE 04",MAX(F$1:F99)+1,"") ->  | G100: =IF('import danych'!$I105="SUR",MAX(G$1:G99)+1,"") ->  | H100: =IF('import danych'!$I105="SMP",MAX(H$1:H99)+1,"") ->  | I100: =IF('import danych'!D105="","",LOOKUP('import danych'!F105,#REF!,#REF!)) -> 
A101: ='import danych'!A106 ->  | B101: ='import danych'!B106 ->  | C101: =IF('import danych'!$I106="LINDE 01",MAX(C$1:C100)+1,"") ->  | D101: =IF('import danych'!$I106="LINDE 02",MAX(D$1:D100)+1,"") ->  | E101: =IF('import danych'!$I106="LINDE 03",MAX(E$1:E100)+1,"") ->  | F101: =IF('import danych'!$I106="YALE 04",MAX(F$1:F100)+1,"") ->  | G101: =IF('import danych'!$I106="SUR",MAX(G$1:G100)+1,"") ->  | H101: =IF('import danych'!$I106="SMP",MAX(H$1:H100)+1,"") ->  | I101: =IF('import danych'!D106="","",LOOKUP('import danych'!F106,#REF!,#REF!)) -> 
A102: ='import danych'!A107 ->  | B102: ='import danych'!B107 ->  | C102: =IF('import danych'!$I107="LINDE 01",MAX(C$1:C101)+1,"") ->  | D102: =IF('import danych'!$I107="LINDE 02",MAX(D$1:D101)+1,"") ->  | E102: =IF('import danych'!$I107="LINDE 03",MAX(E$1:E101)+1,"") ->  | F102: =IF('import danych'!$I107="YALE 04",MAX(F$1:F101)+1,"") ->  | G102: =IF('import danych'!$I107="SUR",MAX(G$1:G101)+1,"") ->  | H102: =IF('import danych'!$I107="SMP",MAX(H$1:H101)+1,"") ->  | I102: =IF('import danych'!D107="","",LOOKUP('import danych'!F107,#REF!,#REF!)) -> 
A103: ='import danych'!A108 ->  | B103: ='import danych'!B108 ->  | C103: =IF('import danych'!$I108="LINDE 01",MAX(C$1:C102)+1,"") ->  | D103: =IF('import danych'!$I108="LINDE 02",MAX(D$1:D102)+1,"") ->  | E103: =IF('import danych'!$I108="LINDE 03",MAX(E$1:E102)+1,"") ->  | F103: =IF('import danych'!$I108="YALE 04",MAX(F$1:F102)+1,"") ->  | G103: =IF('import danych'!$I108="SUR",MAX(G$1:G102)+1,"") ->  | H103: =IF('import danych'!$I108="SMP",MAX(H$1:H102)+1,"") ->  | I103: =IF('import danych'!D108="","",LOOKUP('import danych'!F108,#REF!,#REF!)) -> 
A104: ='import danych'!A109 ->  | B104: ='import danych'!B109 ->  | C104: =IF('import danych'!$I109="LINDE 01",MAX(C$1:C103)+1,"") ->  | D104: =IF('import danych'!$I109="LINDE 02",MAX(D$1:D103)+1,"") ->  | E104: =IF('import danych'!$I109="LINDE 03",MAX(E$1:E103)+1,"") ->  | F104: =IF('import danych'!$I109="YALE 04",MAX(F$1:F103)+1,"") ->  | G104: =IF('import danych'!$I109="SUR",MAX(G$1:G103)+1,"") ->  | H104: =IF('import danych'!$I109="SMP",MAX(H$1:H103)+1,"") ->  | I104: =IF('import danych'!D109="","",LOOKUP('import danych'!F109,#REF!,#REF!)) -> 
A105: ='import danych'!A110 ->  | B105: ='import danych'!B110 ->  | C105: =IF('import danych'!$I110="LINDE 01",MAX(C$1:C104)+1,"") ->  | D105: =IF('import danych'!$I110="LINDE 02",MAX(D$1:D104)+1,"") ->  | E105: =IF('import danych'!$I110="LINDE 03",MAX(E$1:E104)+1,"") ->  | F105: =IF('import danych'!$I110="YALE 04",MAX(F$1:F104)+1,"") ->  | G105: =IF('import danych'!$I110="SUR",MAX(G$1:G104)+1,"") ->  | H105: =IF('import danych'!$I110="SMP",MAX(H$1:H104)+1,"") ->  | I105: =IF('import danych'!D110="","",LOOKUP('import danych'!F110,#REF!,#REF!)) -> 
A106: ='import danych'!A111 ->  | B106: ='import danych'!B111 ->  | C106: =IF('import danych'!$I111="LINDE 01",MAX(C$1:C105)+1,"") ->  | D106: =IF('import danych'!$I111="LINDE 02",MAX(D$1:D105)+1,"") ->  | E106: =IF('import danych'!$I111="LINDE 03",MAX(E$1:E105)+1,"") ->  | F106: =IF('import danych'!$I111="YALE 04",MAX(F$1:F105)+1,"") ->  | G106: =IF('import danych'!$I111="SUR",MAX(G$1:G105)+1,"") ->  | H106: =IF('import danych'!$I111="SMP",MAX(H$1:H105)+1,"") ->  | I106: =IF('import danych'!D111="","",LOOKUP('import danych'!F111,#REF!,#REF!)) -> 
A107: ='import danych'!A112 ->  | B107: ='import danych'!B112 ->  | C107: =IF('import danych'!$I112="LINDE 01",MAX(C$1:C106)+1,"") ->  | D107: =IF('import danych'!$I112="LINDE 02",MAX(D$1:D106)+1,"") ->  | E107: =IF('import danych'!$I112="LINDE 03",MAX(E$1:E106)+1,"") ->  | F107: =IF('import danych'!$I112="YALE 04",MAX(F$1:F106)+1,"") ->  | G107: =IF('import danych'!$I112="SUR",MAX(G$1:G106)+1,"") ->  | H107: =IF('import danych'!$I112="SMP",MAX(H$1:H106)+1,"") ->  | I107: =IF('import danych'!D112="","",LOOKUP('import danych'!F112,#REF!,#REF!)) -> 
A108: ='import danych'!A113 ->  | B108: ='import danych'!B113 ->  | C108: =IF('import danych'!$I113="LINDE 01",MAX(C$1:C107)+1,"") ->  | D108: =IF('import danych'!$I113="LINDE 02",MAX(D$1:D107)+1,"") ->  | E108: =IF('import danych'!$I113="LINDE 03",MAX(E$1:E107)+1,"") ->  | F108: =IF('import danych'!$I113="YALE 04",MAX(F$1:F107)+1,"") ->  | G108: =IF('import danych'!$I113="SUR",MAX(G$1:G107)+1,"") ->  | H108: =IF('import danych'!$I113="SMP",MAX(H$1:H107)+1,"") ->  | I108: =IF('import danych'!D113="","",LOOKUP('import danych'!F113,#REF!,#REF!)) -> 
A109: ='import danych'!A114 ->  | B109: ='import danych'!B114 ->  | C109: =IF('import danych'!$I114="LINDE 01",MAX(C$1:C108)+1,"") ->  | D109: =IF('import danych'!$I114="LINDE 02",MAX(D$1:D108)+1,"") ->  | E109: =IF('import danych'!$I114="LINDE 03",MAX(E$1:E108)+1,"") ->  | F109: =IF('import danych'!$I114="YALE 04",MAX(F$1:F108)+1,"") ->  | G109: =IF('import danych'!$I114="SUR",MAX(G$1:G108)+1,"") ->  | H109: =IF('import danych'!$I114="SMP",MAX(H$1:H108)+1,"") ->  | I109: =IF('import danych'!D114="","",LOOKUP('import danych'!F114,#REF!,#REF!)) -> 
A110: ='import danych'!A115 ->  | B110: ='import danych'!B115 ->  | C110: =IF('import danych'!$I115="LINDE 01",MAX(C$1:C109)+1,"") ->  | D110: =IF('import danych'!$I115="LINDE 02",MAX(D$1:D109)+1,"") ->  | E110: =IF('import danych'!$I115="LINDE 03",MAX(E$1:E109)+1,"") ->  | F110: =IF('import danych'!$I115="YALE 04",MAX(F$1:F109)+1,"") ->  | G110: =IF('import danych'!$I115="SUR",MAX(G$1:G109)+1,"") ->  | H110: =IF('import danych'!$I115="SMP",MAX(H$1:H109)+1,"") ->  | I110: =IF('import danych'!D115="","",LOOKUP('import danych'!F115,#REF!,#REF!)) -> 
A111: ='import danych'!A116 ->  | B111: ='import danych'!B116 ->  | C111: =IF('import danych'!$I116="LINDE 01",MAX(C$1:C110)+1,"") ->  | D111: =IF('import danych'!$I116="LINDE 02",MAX(D$1:D110)+1,"") ->  | E111: =IF('import danych'!$I116="LINDE 03",MAX(E$1:E110)+1,"") ->  | F111: =IF('import danych'!$I116="YALE 04",MAX(F$1:F110)+1,"") ->  | G111: =IF('import danych'!$I116="SUR",MAX(G$1:G110)+1,"") ->  | H111: =IF('import danych'!$I116="SMP",MAX(H$1:H110)+1,"") ->  | I111: =IF('import danych'!D116="","",LOOKUP('import danych'!F116,#REF!,#REF!)) -> 
A112: ='import danych'!A117 ->  | B112: ='import danych'!B117 ->  | C112: =IF('import danych'!$I117="LINDE 01",MAX(C$1:C111)+1,"") ->  | D112: =IF('import danych'!$I117="LINDE 02",MAX(D$1:D111)+1,"") ->  | E112: =IF('import danych'!$I117="LINDE 03",MAX(E$1:E111)+1,"") ->  | F112: =IF('import danych'!$I117="YALE 04",MAX(F$1:F111)+1,"") ->  | G112: =IF('import danych'!$I117="SUR",MAX(G$1:G111)+1,"") ->  | H112: =IF('import danych'!$I117="SMP",MAX(H$1:H111)+1,"") ->  | I112: =IF('import danych'!D117="","",LOOKUP('import danych'!F117,#REF!,#REF!)) -> 
C113: =IF('import danych'!$I118="LINDE 01",MAX(C$1:C112)+1,"") ->  | D113: =IF('import danych'!$I118="LINDE 02",MAX(D$1:D112)+1,"") ->  | E113: =IF('import danych'!$I118="LINDE 03",MAX(E$1:E112)+1,"") ->  | F113: =IF('import danych'!$I118="YALE 04",MAX(F$1:F112)+1,"") ->  | G113: =IF('import danych'!$I118="SUR",MAX(G$1:G112)+1,"") ->  | H113: =IF('import danych'!$I118="SMP",MAX(H$1:H112)+1,"") ->  | I113: =IF('import danych'!D118="","",LOOKUP('import danych'!F118,#REF!,#REF!)) -> 
C114: =IF('import danych'!$I119="LINDE 01",MAX(C$1:C113)+1,"") ->  | D114: =IF('import danych'!$I119="LINDE 02",MAX(D$1:D113)+1,"") ->  | E114: =IF('import danych'!$I119="LINDE 03",MAX(E$1:E113)+1,"") ->  | F114: =IF('import danych'!$I119="YALE 04",MAX(F$1:F113)+1,"") ->  | G114: =IF('import danych'!$I119="SUR",MAX(G$1:G113)+1,"") ->  | H114: =IF('import danych'!$I119="SMP",MAX(H$1:H113)+1,"") ->  | I114: =IF('import danych'!D119="","",LOOKUP('import danych'!F119,#REF!,#REF!)) -> 
C115: =IF('import danych'!$I120="LINDE 01",MAX(C$1:C114)+1,"") ->  | D115: =IF('import danych'!$I120="LINDE 02",MAX(D$1:D114)+1,"") ->  | E115: =IF('import danych'!$I120="LINDE 03",MAX(E$1:E114)+1,"") ->  | F115: =IF('import danych'!$I120="YALE 04",MAX(F$1:F114)+1,"") ->  | G115: =IF('import danych'!$I120="SUR",MAX(G$1:G114)+1,"") ->  | H115: =IF('import danych'!$I120="SMP",MAX(H$1:H114)+1,"") ->  | I115: =IF('import danych'!D120="","",LOOKUP('import danych'!F120,#REF!,#REF!)) -> 
C116: =IF('import danych'!$I121="LINDE 01",MAX(C$1:C115)+1,"") ->  | D116: =IF('import danych'!$I121="LINDE 02",MAX(D$1:D115)+1,"") ->  | E116: =IF('import danych'!$I121="LINDE 03",MAX(E$1:E115)+1,"") ->  | F116: =IF('import danych'!$I121="YALE 04",MAX(F$1:F115)+1,"") ->  | G116: =IF('import danych'!$I121="SUR",MAX(G$1:G115)+1,"") ->  | H116: =IF('import danych'!$I121="SMP",MAX(H$1:H115)+1,"") ->  | I116: =IF('import danych'!D121="","",LOOKUP('import danych'!F121,#REF!,#REF!)) -> 
C117: =IF('import danych'!$I122="LINDE 01",MAX(C$1:C116)+1,"") ->  | D117: =IF('import danych'!$I122="LINDE 02",MAX(D$1:D116)+1,"") ->  | E117: =IF('import danych'!$I122="LINDE 03",MAX(E$1:E116)+1,"") ->  | F117: =IF('import danych'!$I122="YALE 04",MAX(F$1:F116)+1,"") ->  | G117: =IF('import danych'!$I122="SUR",MAX(G$1:G116)+1,"") ->  | H117: =IF('import danych'!$I122="SMP",MAX(H$1:H116)+1,"") ->  | I117: =IF('import danych'!D122="","",LOOKUP('import danych'!F122,#REF!,#REF!)) -> 
C118: =IF('import danych'!$I123="LINDE 01",MAX(C$1:C117)+1,"") ->  | D118: =IF('import danych'!$I123="LINDE 02",MAX(D$1:D117)+1,"") ->  | E118: =IF('import danych'!$I123="LINDE 03",MAX(E$1:E117)+1,"") ->  | F118: =IF('import danych'!$I123="YALE 04",MAX(F$1:F117)+1,"") ->  | G118: =IF('import danych'!$I123="SUR",MAX(G$1:G117)+1,"") ->  | H118: =IF('import danych'!$I123="SMP",MAX(H$1:H117)+1,"") ->  | I118: =IF('import danych'!D123="","",LOOKUP('import danych'!F123,#REF!,#REF!)) -> 
C119: =IF('import danych'!$I124="LINDE 01",MAX(C$1:C118)+1,"") ->  | D119: =IF('import danych'!$I124="LINDE 02",MAX(D$1:D118)+1,"") ->  | E119: =IF('import danych'!$I124="LINDE 03",MAX(E$1:E118)+1,"") ->  | F119: =IF('import danych'!$I124="YALE 04",MAX(F$1:F118)+1,"") ->  | G119: =IF('import danych'!$I124="SUR",MAX(G$1:G118)+1,"") ->  | H119: =IF('import danych'!$I124="SMP",MAX(H$1:H118)+1,"") ->  | I119: =IF('import danych'!D124="","",LOOKUP('import danych'!F124,#REF!,#REF!)) -> 
C120: =IF('import danych'!$I125="LINDE 01",MAX(C$1:C119)+1,"") ->  | D120: =IF('import danych'!$I125="LINDE 02",MAX(D$1:D119)+1,"") ->  | E120: =IF('import danych'!$I125="LINDE 03",MAX(E$1:E119)+1,"") ->  | F120: =IF('import danych'!$I125="YALE 04",MAX(F$1:F119)+1,"") ->  | G120: =IF('import danych'!$I125="SUR",MAX(G$1:G119)+1,"") ->  | H120: =IF('import danych'!$I125="SMP",MAX(H$1:H119)+1,"") ->  | I120: =IF('import danych'!D125="","",LOOKUP('import danych'!F125,#REF!,#REF!)) -> 
C121: =IF('import danych'!$I126="LINDE 01",MAX(C$1:C120)+1,"") ->  | D121: =IF('import danych'!$I126="LINDE 02",MAX(D$1:D120)+1,"") ->  | E121: =IF('import danych'!$I126="LINDE 03",MAX(E$1:E120)+1,"") ->  | F121: =IF('import danych'!$I126="YALE 04",MAX(F$1:F120)+1,"") ->  | G121: =IF('import danych'!$I126="SUR",MAX(G$1:G120)+1,"") ->  | H121: =IF('import danych'!$I126="SMP",MAX(H$1:H120)+1,"") ->  | I121: =IF('import danych'!D126="","",LOOKUP('import danych'!F126,#REF!,#REF!)) -> 
C122: =IF('import danych'!$I127="LINDE 01",MAX(C$1:C121)+1,"") ->  | D122: =IF('import danych'!$I127="LINDE 02",MAX(D$1:D121)+1,"") ->  | E122: =IF('import danych'!$I127="LINDE 03",MAX(E$1:E121)+1,"") ->  | F122: =IF('import danych'!$I127="YALE 04",MAX(F$1:F121)+1,"") ->  | G122: =IF('import danych'!$I127="SUR",MAX(G$1:G121)+1,"") ->  | H122: =IF('import danych'!$I127="SMP",MAX(H$1:H121)+1,"") ->  | I122: =IF('import danych'!D127="","",LOOKUP('import danych'!F127,#REF!,#REF!)) -> 
C123: =IF('import danych'!$I128="LINDE 01",MAX(C$1:C122)+1,"") ->  | D123: =IF('import danych'!$I128="LINDE 02",MAX(D$1:D122)+1,"") ->  | E123: =IF('import danych'!$I128="LINDE 03",MAX(E$1:E122)+1,"") ->  | F123: =IF('import danych'!$I128="YALE 04",MAX(F$1:F122)+1,"") ->  | G123: =IF('import danych'!$I128="SUR",MAX(G$1:G122)+1,"") ->  | H123: =IF('import danych'!$I128="SMP",MAX(H$1:H122)+1,"") ->  | I123: =IF('import danych'!D128="","",LOOKUP('import danych'!F128,#REF!,#REF!)) -> 
C124: =IF('import danych'!$I129="LINDE 01",MAX(C$1:C123)+1,"") ->  | D124: =IF('import danych'!$I129="LINDE 02",MAX(D$1:D123)+1,"") ->  | E124: =IF('import danych'!$I129="LINDE 03",MAX(E$1:E123)+1,"") ->  | F124: =IF('import danych'!$I129="YALE 04",MAX(F$1:F123)+1,"") ->  | G124: =IF('import danych'!$I129="SUR",MAX(G$1:G123)+1,"") ->  | H124: =IF('import danych'!$I129="SMP",MAX(H$1:H123)+1,"") ->  | I124: =IF('import danych'!D129="","",LOOKUP('import danych'!F129,#REF!,#REF!)) -> 
C125: =IF('import danych'!$I130="LINDE 01",MAX(C$1:C124)+1,"") ->  | D125: =IF('import danych'!$I130="LINDE 02",MAX(D$1:D124)+1,"") ->  | E125: =IF('import danych'!$I130="LINDE 03",MAX(E$1:E124)+1,"") ->  | F125: =IF('import danych'!$I130="YALE 04",MAX(F$1:F124)+1,"") ->  | G125: =IF('import danych'!$I130="SUR",MAX(G$1:G124)+1,"") ->  | H125: =IF('import danych'!$I130="SMP",MAX(H$1:H124)+1,"") ->  | I125: =IF('import danych'!D130="","",LOOKUP('import danych'!F130,#REF!,#REF!)) -> 
C126: =IF('import danych'!$I131="LINDE 01",MAX(C$1:C125)+1,"") ->  | D126: =IF('import danych'!$I131="LINDE 02",MAX(D$1:D125)+1,"") ->  | E126: =IF('import danych'!$I131="LINDE 03",MAX(E$1:E125)+1,"") ->  | F126: =IF('import danych'!$I131="YALE 04",MAX(F$1:F125)+1,"") ->  | G126: =IF('import danych'!$I131="SUR",MAX(G$1:G125)+1,"") ->  | H126: =IF('import danych'!$I131="SMP",MAX(H$1:H125)+1,"") ->  | I126: =IF('import danych'!D131="","",LOOKUP('import danych'!F131,#REF!,#REF!)) -> 
C127: =IF('import danych'!$I132="LINDE 01",MAX(C$1:C126)+1,"") ->  | D127: =IF('import danych'!$I132="LINDE 02",MAX(D$1:D126)+1,"") ->  | E127: =IF('import danych'!$I132="LINDE 03",MAX(E$1:E126)+1,"") ->  | F127: =IF('import danych'!$I132="YALE 04",MAX(F$1:F126)+1,"") ->  | G127: =IF('import danych'!$I132="SUR",MAX(G$1:G126)+1,"") ->  | H127: =IF('import danych'!$I132="SMP",MAX(H$1:H126)+1,"") ->  | I127: =IF('import danych'!D132="","",LOOKUP('import danych'!F132,#REF!,#REF!)) -> 
C128: =IF('import danych'!$I133="LINDE 01",MAX(C$1:C127)+1,"") ->  | D128: =IF('import danych'!$I133="LINDE 02",MAX(D$1:D127)+1,"") ->  | E128: =IF('import danych'!$I133="LINDE 03",MAX(E$1:E127)+1,"") ->  | F128: =IF('import danych'!$I133="YALE 04",MAX(F$1:F127)+1,"") ->  | G128: =IF('import danych'!$I133="SUR",MAX(G$1:G127)+1,"") ->  | H128: =IF('import danych'!$I133="SMP",MAX(H$1:H127)+1,"") ->  | I128: =IF('import danych'!D133="","",LOOKUP('import danych'!F133,#REF!,#REF!)) -> 
C129: =IF('import danych'!$I134="LINDE 01",MAX(C$1:C128)+1,"") ->  | D129: =IF('import danych'!$I134="LINDE 02",MAX(D$1:D128)+1,"") ->  | E129: =IF('import danych'!$I134="LINDE 03",MAX(E$1:E128)+1,"") ->  | F129: =IF('import danych'!$I134="YALE 04",MAX(F$1:F128)+1,"") ->  | G129: =IF('import danych'!$I134="SUR",MAX(G$1:G128)+1,"") ->  | H129: =IF('import danych'!$I134="SMP",MAX(H$1:H128)+1,"") ->  | I129: =IF('import danych'!D134="","",LOOKUP('import danych'!F134,#REF!,#REF!)) -> 
C130: =IF('import danych'!$I135="LINDE 01",MAX(C$1:C129)+1,"") ->  | D130: =IF('import danych'!$I135="LINDE 02",MAX(D$1:D129)+1,"") ->  | E130: =IF('import danych'!$I135="LINDE 03",MAX(E$1:E129)+1,"") ->  | F130: =IF('import danych'!$I135="YALE 04",MAX(F$1:F129)+1,"") ->  | G130: =IF('import danych'!$I135="SUR",MAX(G$1:G129)+1,"") ->  | H130: =IF('import danych'!$I135="SMP",MAX(H$1:H129)+1,"") ->  | I130: =IF('import danych'!D135="","",LOOKUP('import danych'!F135,#REF!,#REF!)) -> 
C131: =IF('import danych'!$I136="LINDE 01",MAX(C$1:C130)+1,"") ->  | D131: =IF('import danych'!$I136="LINDE 02",MAX(D$1:D130)+1,"") ->  | E131: =IF('import danych'!$I136="LINDE 03",MAX(E$1:E130)+1,"") ->  | F131: =IF('import danych'!$I136="YALE 04",MAX(F$1:F130)+1,"") ->  | G131: =IF('import danych'!$I136="SUR",MAX(G$1:G130)+1,"") ->  | H131: =IF('import danych'!$I136="SMP",MAX(H$1:H130)+1,"") ->  | I131: =IF('import danych'!D136="","",LOOKUP('import danych'!F136,#REF!,#REF!)) -> 
C132: =IF('import danych'!$I137="LINDE 01",MAX(C$1:C131)+1,"") ->  | D132: =IF('import danych'!$I137="LINDE 02",MAX(D$1:D131)+1,"") ->  | E132: =IF('import danych'!$I137="LINDE 03",MAX(E$1:E131)+1,"") ->  | F132: =IF('import danych'!$I137="YALE 04",MAX(F$1:F131)+1,"") ->  | G132: =IF('import danych'!$I137="SUR",MAX(G$1:G131)+1,"") ->  | H132: =IF('import danych'!$I137="SMP",MAX(H$1:H131)+1,"") ->  | I132: =IF('import danych'!D137="","",LOOKUP('import danych'!F137,#REF!,#REF!)) -> 
C133: =IF('import danych'!$I138="LINDE 01",MAX(C$1:C132)+1,"") ->  | D133: =IF('import danych'!$I138="LINDE 02",MAX(D$1:D132)+1,"") ->  | E133: =IF('import danych'!$I138="LINDE 03",MAX(E$1:E132)+1,"") ->  | F133: =IF('import danych'!$I138="YALE 04",MAX(F$1:F132)+1,"") ->  | G133: =IF('import danych'!$I138="SUR",MAX(G$1:G132)+1,"") ->  | H133: =IF('import danych'!$I138="SMP",MAX(H$1:H132)+1,"") ->  | I133: =IF('import danych'!D138="","",LOOKUP('import danych'!F138,#REF!,#REF!)) -> 
